Workbook

Sheet Kuntakortti
A1: Valtiovarainministeriö/Kunta- ja alueosasto, 21.8.2023
A2: KUNTIEN LOPULLISET TP:T 2020 - 2022 | G2: Valitse kunta valikosta:
A4: =INDEX(Luvut!$B$3:'Luvut'!$B$296,$A$7) -> KOKO MAA (Manner-Suomi) | D4: 2020 | G4: 2021 | J4: 2022
A6: Asukasluku | D6: =VLOOKUP($A$4,Luvut!$B$3:$AT$296,2) -> 5503664 | G6: =VLOOKUP($A$4,Luvut!$B$3:$ED$296,46) -> 5517897 | I6: =((G6/D6)-1)*100 -> 0.2586095372 | J6: =VLOOKUP($A$4,Luvut!$B$3:$ED$296,90) -> 5533611 | L6: =((J6/G6)-1)*100 -> 0.284782409 | Q6: Kunta
A7: 95 | R7: 2020 | S7: 2021 | T7: 2022
A8: Tunnuslukuja | Q8: Vuosikate | R8: =D36 -> 4072986 | S8: =G36 -> 3786456.894 | T8: =J36 -> 3442012.418
I9: muutos% | L9: muutos% | N9: Konsernivelka, € | O9: Konsernivelka, € | P9: Konsernivelka, € | Q9: Poistot | R9: =D38 -> 2397525 | S9: =G38 -> 2411475 | T9: =J38 -> 2450985.914
A10: Lainat, euro/as | D10: =E67 -> 3458.31159 | G10: =H67 -> 3465.760416 | I10: =((G10/D10)-1)*100 -> 0.2153890756 | J10: =K67 -> 3378.082114 | L10: =((J10/G10)-1)*100 -> -2.529843131 | N10: 2020 | O10: 2021 | P10: 2022 | Q10: Tilikauden tulos | R10: =D41 -> 1756705 | S10: =G41 -> 1485638.647 | T10: =J41 -> 1160444.209
A11: Konsernilainat, euro/as | D11: =VLOOKUP($A$4,Luvut!$B$3:$FM$296,167) -> 7480.922891 | G11: =VLOOKUP($A$4,Luvut!$B$3:$FM$296,168) -> 7679.757319 | I11: =((G11/D11)-1)*100 -> 2.657886355 | J11: =VLOOKUP($A$4,Luvut!$B$3:$FN$296,169) -> 7867.961626 | L11: =((J11/G11)-1)*100 -> 2.450654345 | N11: =D11*D6 -> 41172486000 | O11: =G11*G6 -> 4.237610987e+10 | P11: =J11*J6 -> 4.3538239e+10 | Q11: Taseen kertynyt ali-/ylijäämä | R11: =D47 -> 12583318 | S11: =G47 -> 13856797.71 | T11: =J47 -> 14924279.64
A12: Lainanhoitokate | D12: =VLOOKUP($A$4,Luvut!$B$3:$AT$296,4) -> 1.988638614 | G12: =VLOOKUP($A$4,Luvut!$B$3:$ED$296,48) -> 1.905734999 | J12: =VLOOKUP($A$4,Luvut!$B$3:$ED$296,92) -> 1.668078571 | Q12: Toiminnan ja investointien rahavirta | R12: =D60 -> 381794 | S12: =G60 -> 269580.3414 | T12: =J60 -> 638944.3797
A13: Suhteellinen velkaantuneisuus, % | D13: =VLOOKUP($A$4,Luvut!$B$3:$AT$296,5) -> 59.95643965 | G13: =VLOOKUP($A$4,Luvut!$B$3:$ED$296,49) -> 57.90254182 | J13: =VLOOKUP($A$4,Luvut!$B$3:$ED$296,93) -> 56.47304605 | Q13: Lainakanta | R13: =D67 -> 19033385 | S13: =G67 -> 19123709 | T13: =J67 -> 18692992.34
A14: Rahoitusvarallisuus, euro/as | D14: =VLOOKUP($A$4,Luvut!$B$3:$AT$296,6) -> -2940.769277 | G14: =VLOOKUP($A$4,Luvut!$B$3:$ED$296,50) -> -2907 | J14: =VLOOKUP($A$4,Luvut!$B$3:$ED$296,94) -> -2859.028517 | Q14: Lainanhoitokate | R14: =D12 -> 1.988638614 | S14: =G12 -> 1.905734999 | T14: =J12 -> 1.668078571
A15: Omavaraisuusaste, % | D15: =VLOOKUP($A$4,Luvut!$B$3:$AT$296,10) -> 57.95873446 | G15: =VLOOKUP($A$4,Luvut!$B$3:$ED$296,54) -> 58.80761313 | J15: =VLOOKUP($A$4,Luvut!$B$3:$ED$296,98) -> 59.21187405 | Q15: Veroprosentti | R15: =D72 -> 19.96 | S15: =G72 -> 20.02 | T15: =J72 -> 20.01
A17: Rahavarat, euro/as | D17: =VLOOKUP($A$4,Luvut!$B$3:$AT$296,11) -> 1172.770903 | G17: =VLOOKUP($A$4,Luvut!$B$3:$ED$296,55) -> 1178.883979 | J17: =VLOOKUP($A$4,Luvut!$B$3:$ED$296,99) -> 1258.848759 | Q17: Asukasluku | R17: =D6 -> 5503664 | S17: =G6 -> 5517897 | T17: =J6 -> 5533611
A18: Kassan riittävyys, pv | D18: =VLOOKUP($A$4,Luvut!$B$3:$AT$296,12) -> 52.56590898 | G18: =VLOOKUP($A$4,Luvut!$B$3:$ED$296,56) -> 50.68698657 | J18: =VLOOKUP($A$4,Luvut!$B$3:$ED$296,100) -> 47.76047067
A19: Kassastamaksut, euro/as | D19: =VLOOKUP($A$4,Luvut!$B$3:$AT$296,13) -> 8143.326882 | G19: =VLOOKUP($A$4,Luvut!$B$3:$ED$296,57) -> 8486.333805 | J19: =VLOOKUP($A$4,Luvut!$B$3:$ED$296,101) -> 9620.503957 | N19: 2020 - 2021 | O19: 2021 - 2022
A20: Tuloslaskelma | D20: 1000 | E20: euro/as | G20: 1000 | H20: euro/as | I20: muut.% | J20: 1000 | K20: euro/as | L20: muut.% | N20: €/as | O20: €/as
A22: Henkilöstömenot (palkat+sivukulut) | D22: =VLOOKUP($A$4,Luvut!$B$3:$AX$296,14) -> 13613209 | E22: =D22*1000/$D$6 -> 2473.481121 | G22: =VLOOKUP($A$4,Luvut!$B$3:$ED$296,58) -> 14320379.82 | H22: =G22*1000/$G$6 -> 2595.260444 | I22: =((G22/D22)-1)*100 -> 5.194740033 | J22: =VLOOKUP($A$4,Luvut!$B$3:$ED$296,102) -> 14495048.7 | K22: =J22*1000/$J$6 -> 2619.455668 | L22: =((J22/G22)-1)*100 -> 1.219722412 | N22: =((H22/E22)-1)*100 -> 4.923398119 | O22: =((K22/H22)-1)*100 -> 0.9322850189
A23: Palvelujen ostot | D23: =VLOOKUP($A$4,Luvut!$B$3:$EF$296,134) -> 19605831 | E23: =D23*1000/$D$6 -> 3562.32339 | G23: =VLOOKUP($A$4,Luvut!$B$3:$EF$296,135) -> 21370725.51 | H23: =G23*1000/$G$6 -> 3872.983767 | I23: =((G23/D23)-1)*100 -> 9.001885768 | J23: =VLOOKUP($A$4,Luvut!$B$3:$EG$296,136) -> 22918214.47 | K23: =J23*1000/$J$6 -> 4141.638159 | L23: =((J23/G23)-1)*100 -> 7.241162504 | N23: =((H23/E23)-1)*100 -> 8.720723608 | O23: =((K23/H23)-1)*100 -> 6.936625805
A24: Toimintatuotot, sis. valmistus omaan käyt. | D24: =VLOOKUP($A$4,Luvut!$B$3:$AT$296,15) -> 7208017 | E24: =D24*1000/$D$6 -> 1309.676063 | G24: =VLOOKUP($A$4,Luvut!$B$3:$ED$296,59) -> 8352897.496 | H24: =G24*1000/$G$6 -> 1513.782786 | I24: 15.88343223 | J24: =VLOOKUP($A$4,Luvut!$B$3:$ED$296,103) -> 8097114.652 | K24: =J24*1000/$J$6 -> 1463.260546 | L24: -3.062204982 | N24: 15.58451964 | O24: -3.337482827
A25: Toimintakulut | D25: =VLOOKUP($A$4,Luvut!$B$3:$AT$296,16) -> 38429297 | E25: =D25*1000/$D$6 -> 6982.493299 | G25: =VLOOKUP($A$4,Luvut!$B$3:$ED$296,60) -> 40635574.5 | H25: =G25*1000/$G$6 -> 7364.322766 | I25: 5.74113416 | J25: =VLOOKUP($A$4,Luvut!$B$3:$ED$296,104) -> 42494269.49 | K25: =J25*1000/$J$6 -> 7679.301904 | L25: 4.574058608 | N25: 5.468382863 | O25: 4.277095783
A26: Toimintakate | D26: =VLOOKUP($A$4,Luvut!$B$3:$AT$296,17) -> -31221280 | E26: -5672.817236 | G26: =VLOOKUP($A$4,Luvut!$B$3:$ED$296,61) -> -32282677 | H26: -5850.53998 | I26: 3.399594769 | J26: =VLOOKUP($A$4,Luvut!$B$3:$ED$296,105) -> -34397117.31 | K26: =J26*1000/$J$6 -> -6216.034577 | L26: =((J26/G26)-1)*100 -> 6.549767571 | N26: 3.132883297 | O26: =((K26/H26)-1)*100 -> 6.247194252
A28: Verotulot | D28: =VLOOKUP($A$4,Luvut!$B$3:$AT$296,18) -> 23825588 | E28: 4329.041162 | G28: =VLOOKUP($A$4,Luvut!$B$3:$ED$296,62) -> 25418413.49 | H28: 4606.540045 | I28: 6.685356493 | J28: =VLOOKUP($A$4,Luvut!$B$3:$ED$296,106) -> 26769380.3 | K28: =J28*1000/$J$6 -> 4837.597059 | L28: 5.314913943 | N28: 6.410169646 | O28: 5.015847284
A29: Valtionosuudet, | D29: =VLOOKUP($A$4,Luvut!$B$3:$AT$296,19) -> 11005673 | E29: 1999.699291 | G29: =VLOOKUP($A$4,Luvut!$B$3:$ED$296,63) -> 10080583.07 | H29: 1826.88859 | I29: -8.405573487 | J29: =VLOOKUP($A$4,Luvut!$B$3:$ED$296,107) -> 10735652.4 | K29: =J29*1000/$J$6 -> 1940.080789 | L29: 6.498327773 | N29: -8.641834416 | O29: 6.195900529
A30: josta hark.var. korotus | D30: =VLOOKUP($A$4,Luvut!$B$3:$EJ$296,137) -> 60000 | E30: 10.90182831 | G30: =VLOOKUP($A$4,Luvut!$B$3:$EJ$296,138) -> 30000 | H30: 5.436853932 | J30: =VLOOKUP($A$4,Luvut!$B$3:$EJ$296,139) -> 10000 | K30: =J30*1000/$J$6 -> 1.807138232
A31: Verorahoitus | D31: =SUM(D28:D29) -> 34831261 | E31: 6328.740454 | G31: =SUM(G28:G29) -> 35498996.56 | H31: 6433.428635 | I31: 1.91705825 | J31: =SUM(J28:J29) -> 37505032.69 | K31: =J31*1000/$J$6 -> 6777.677848 | L31: 5.650965736 | N31: 1.654170869 | O31: 5.350944777
A32: Käyttökate | D32: =D31+D26 -> 3609981 | E32: 655.9232177 | G32: =G26+G31 -> 3216319.561 | H32: 582.888655 | J32: =J26+J31 -> 3107915.384 | K32: =J32*1000/$J$6 -> 561.6432712
A34: Korkotuotot/-menot, netto | D34: =VLOOKUP($A$4,Luvut!$B$3:$AT$296,22) -> 58142 | E34: 10.56423503 | G34: =VLOOKUP($A$4,Luvut!$B$3:$ED$296,66) -> 61205.48762 | H34: 11.09217653 | J34: =VLOOKUP($A$4,Luvut!$B$3:$ED$296,110) -> 56341.38239 | K34: =J34*1000/$J$6 -> 10.18166662
A35: Muut rahoituskulut/-tuotot, netto | D35: =VLOOKUP($A$4,Luvut!$B$3:$AT$296,23) -> 404863 | E35: 73.56244858 | G35: =VLOOKUP($A$4,Luvut!$B$3:$ED$296,67) -> 508931.8689 | H35: 92.23294109 | J35: =VLOOKUP($A$4,Luvut!$B$3:$ED$296,111) -> 277755.6525 | K35: =J35*1000/$J$6 -> 50.19428589
A36: Vuosikate | D36: =VLOOKUP($A$4,Luvut!$B$3:$AT$296,24) -> 4072986 | E36: 740.0499013 | G36: =VLOOKUP($A$4,Luvut!$B$3:$ED$296,68) -> 3786456.894 | H36: 686.2137685 | J36: =VLOOKUP($A$4,Luvut!$B$3:$ED$296,112) -> 3442012.418 | K36: =J36*1000/$J$6 -> 622.0192235
A38: Suunnitelman mukaiset poistot ja arvonalen. | D38: =VLOOKUP($A$4,Luvut!$B$3:$AT$296,25) -> 2397525 | E38: 435.623432 | G38: =VLOOKUP($A$4,Luvut!$B$3:$ED$296,69) -> 2411475 | H38: 437.0279112 | I38: 0.5818500328 | J38: =VLOOKUP($A$4,Luvut!$B$3:$ED$296,113) -> 2450985.914 | K38: =J38*1000/$J$6 -> 442.9270351 | L38: 1.638454211
A39: Satunnaiset tuotot | D39: =VLOOKUP($A$4,Luvut!$B$3:$AT$296,26) -> 90574 | E39: 16.45703662 | G39: =VLOOKUP($A$4,Luvut!$B$3:$ED$296,70) -> 115628.7626 | H39: 20.95522309 | J39: =VLOOKUP($A$4,Luvut!$B$3:$ED$296,114) -> 179141.9177 | K39: =J39*1000/$J$6 -> 32.37342085
A40: Satunnaiset kulut | D40: =VLOOKUP($A$4,Luvut!$B$3:$AT$296,27) -> 9330 | E40: 1.695234302 | G40: =VLOOKUP($A$4,Luvut!$B$3:$ED$296,71) -> 7179 | H40: 1.301039146 | J40: =VLOOKUP($A$4,Luvut!$B$3:$ED$296,115) -> 9724.21252 | K40: =J40*1000/$J$6 -> 1.757299622
A41: Tilikauden tulos | D41: =VLOOKUP($A$4,Luvut!$B$3:$AT$296,28) -> 1756705 | E41: 319.1882717 | G41: =VLOOKUP($A$4,Luvut!$B$3:$ED$296,72) -> 1485638.647 | H41: 269.2400106 | J41: =VLOOKUP($A$4,Luvut!$B$3:$ED$296,116) -> 1160444.209 | K41: =J41*1000/$J$6 -> 209.7083097
A43: Poistoeron lisäys(-) tai vähennys(+) | D43: =VLOOKUP($A$4,Luvut!$B$3:$AT$296,29) -> -25237 | E43: -4.585490684 | G43: =VLOOKUP($A$4,Luvut!$B$3:$ED$296,73) -> -6079.26439 | H43: -1.10173575 | J43: =VLOOKUP($A$4,Luvut!$B$3:$ED$296,117) -> -18668.6311 | K43: =J43*1000/$J$6 -> -3.3736797
A44: Varausten lisäys(-) tai vähennys(+) | D44: =VLOOKUP($A$4,Luvut!$B$3:$AT$296,30) -> -96451 | E44: -17.5248707 | G44: =VLOOKUP($A$4,Luvut!$B$3:$ED$296,74) -> 105119.8924 | H44: 19.05071668 | J44: =VLOOKUP($A$4,Luvut!$B$3:$ED$296,118) -> 53321.22231 | K44: =J44*1000/$J$6 -> 9.635881942
A45: Rahastojen lisäys(-) tai vähennys(+) | D45: =VLOOKUP($A$4,Luvut!$B$3:$AT$296,31) -> -61014 | E45: -11.08606921 | G45: =VLOOKUP($A$4,Luvut!$B$3:$ED$296,75) -> 1264.72718 | H45: 0.2292045647 | J45: =VLOOKUP($A$4,Luvut!$B$3:$ED$296,119) -> 12695.65004 | K45: =J45*1000/$J$6 -> 2.294279457
A46: Tilikauden yli-/alijäämä | D46: =VLOOKUP($A$4,Luvut!$B$3:$AT$296,32) -> 1576021 | E46: 286.3585059 | G46: =VLOOKUP($A$4,Luvut!$B$3:$ED$296,76) -> 1380876.484 | H46: 250.2541247 | J46: =VLOOKUP($A$4,Luvut!$B$3:$ED$296,120) -> 1113096.152 | K46: =J46*1000/$J$6 -> 201.1518612
A47: Taseen kertynyt yli-/alijäämä | D47: =VLOOKUP($A$4,Luvut!$B$3:$AU$296,33) -> 12583318 | E47: 2286.352873 | G47: =VLOOKUP($A$4,Luvut!$B$3:$ED$296,77) -> 13856797.71 | H47: 2511.246171 | I47: 10.1203809 | J47: =VLOOKUP($A$4,Luvut!$B$3:$ED$296,121) -> 14924279.64 | K47: =J47*1000/$J$6 -> 2697.023633 | L47: 7.703669739 | N47: 9.836333666 | O47: 7.397819642
A49: Rahoituslaskelma | D49: 1000 | E49: euro/as | G49: 1000 | H49: euro/as | J49: 1000 | K49: euro/as
A51: Toiminnan rahavirta | D51: =VLOOKUP($A$4,Luvut!$B$3:$AT$296,34) -> 3702496 | E51: 672.7329285 | G51: =VLOOKUP($A$4,Luvut!$B$3:$ED$296,78) -> 3134186.075 | H51: =G51*1000/$G$6 -> 568.0037295 | J51: =VLOOKUP($A$4,Luvut!$B$3:$ED$296,122) -> 2670899.749 | K51: =J51*1000/$J$6 -> 482.668505
A52: Investoinnit, netto | D52: =D53+D54+D55 -> -3320702 | E52: -603.3620512 | G52: =G53+G54+G55 -> -2868294.142 | H52: -519.8165428 | I52: -13.62386201 | J52: =J53+J54+J55 -> -2088730.154 | K52: -377.4624117 | L52: -27.17866263
A53: - Investointimenot | D53: =VLOOKUP($A$4,Luvut!$B$3:$EP$296,140) -> -4312042 | E53: -783.4856924 | G53: =VLOOKUP($A$4,Luvut!$B$3:$EP$296,143) -> -3972968.4 | H53: -720.0149622 | I53: -7.863411353 | J53: =VLOOKUP($A$4,Luvut!$B$3:$FM$296,146) -> -4230364.469 | K53: -764.4853368 | L53: 6.478684031
A54: + Rahoitusosuudet investointimenoihin | D54: =VLOOKUP($A$4,Luvut!$B$3:$EP$296,141) -> 185133 | E54: 33.63813634 | G54: =VLOOKUP($A$4,Luvut!$B$3:$EP$296,144) -> 153160.4398 | H54: 27.7570313 | I54: =((G54/D54)-1)*100 -> -17.27004923 | J54: =VLOOKUP($A$4,Luvut!$B$3:$FM$296,147) -> 125087.4827 | K54: 22.60503723 | L54: -18.32911757
A55: + Investointihyödykkeiden luovutustulot | D55: =VLOOKUP($A$4,Luvut!$B$3:$EP$296,142) -> 806207 | E55: 146.4855049 | G55: =VLOOKUP($A$4,Luvut!$B$3:$EP$296,145) -> 951513.8182 | H55: 172.4413881 | I55: =((G55/D55)-1)*100 -> 18.02351235 | J55: =VLOOKUP($A$4,Luvut!$B$3:$FM$296,148) -> 2016546.833 | K55: 364.4178878 | L55: 111.9303781
A56: Saamisten muutos | D56: =VLOOKUP($A$4,Luvut!$B$3:$AT$296,36) -> -31312 | E56: -5.6893008 | G56: =VLOOKUP($A$4,Luvut!$B$3:$ED$296,80) -> -239226.9649 | H56: -43.35473549 | J56: =VLOOKUP($A$4,Luvut!$B$3:$ED$296,124) -> -173632.6229 | K56: -31.37781511
A57: Pitkäaikaisten lainojen vähennys | D57: =VLOOKUP($A$4,Luvut!$B$3:$AT$296,37) -> -1966295 | E57: -357.2701749 | G57: =VLOOKUP($A$4,Luvut!$B$3:$ED$296,81) -> -1902425.344 | H57: -344.7736238 | J57: =VLOOKUP($A$4,Luvut!$B$3:$ED$296,125) -> -1995341.173 | K57: -360.5857321
A58: Pitkäaikaisten lainojen lisäys | D58: =VLOOKUP($A$4,Luvut!$B$3:$EY$296,149) -> 3338105 | E58: 606.5241265 | G58: =VLOOKUP($A$4,Luvut!$B$3:$EY$296,151) -> 1567080.941 | H58: 283.9996725 | J58: =VLOOKUP($A$4,Luvut!$B$3:$EY$296,153) -> 1771833.939 | K58: 320.1948853
A59: ± Lyhytaikaisten lainojen muutos | D59: =VLOOKUP($A$4,Luvut!$B$3:$EY$296,150) -> -762131 | E59: -138.4770219 | G59: =VLOOKUP($A$4,Luvut!$B$3:$EY$296,152) -> 454923.1036 | H59: 82.44501549 | J59: =VLOOKUP($A$4,Luvut!$B$3:$EY$296,154) -> -213185.805 | K59: -38.52562188 | N59: 2020 - 2021 | O59: 2021 - 2022
A60: Toiminnan ja investointien rahavirta | D60: =VLOOKUP($A$4,Luvut!$B$3:$AT$296,38) -> 381794 | E60: 69.37087729 | G60: =VLOOKUP($A$4,Luvut!$B$3:$ED$296,82) -> 269580.3414 | H60: 48.8556313 | J60: =VLOOKUP($A$4,Luvut!$B$3:$ED$296,126) -> 638944.3797 | K60: 115.4660817 | N60: €/as | O60: €/as
A62: Verotulot | D62: =VLOOKUP($A$4,Luvut!$B$3:$AT$296,39) -> 23825588 | E62: 4329.041162 | G62: =VLOOKUP($A$4,Luvut!$B$3:$ED$296,83) -> 25418413.49 | H62: 4606.540045 | I62: =((G62/D62)-1)*100 -> 6.685356493 | J62: =SUM(J63:J65) -> 26766501 | K62: =J62*1000/$J$6 -> 4837.07673 | L62: =((J62/G62)-1)*100 -> 5.303586336 | N62: =((H62/E62)-1)*100 -> 6.410169646 | O62: =((K62/H62)-1)*100 -> 5.004551843
A63: Kunnallisvero | D63: =VLOOKUP($A$4,Luvut!$B$3:$AT$296,40) -> 20124065 | E63: 3656.485025 | G63: =VLOOKUP($A$4,Luvut!$B$3:$ED$296,84) -> 20602525.19 | H63: 3733.764003 | I63: =((G63/D63)-1)*100 -> 2.377552397 | J63: =VLOOKUP($A$4,Luvut!$B$3:$ED$296,128) -> 21642788.67 | K63: =J63*1000/$J$6 -> 3911.151086 | L63: =((J63/G63)-1)*100 -> 5.049203799 | N63: =((H63/E63)-1)*100 -> 2.113477207 | O63: =((K63/H63)-1)*100 -> 4.750891686
A64: Yhteisövero | D64: =VLOOKUP($A$4,Luvut!$B$3:$AT$296,41) -> 1956930 | E64: 355.5685812 | G64: =VLOOKUP($A$4,Luvut!$B$3:$ED$296,85) -> 2847097.601 | H64: 515.9751263 | I64: 45.48796335 | J64: =VLOOKUP($A$4,Luvut!$B$3:$ED$296,129) -> 3031676.025 | K64: =J64*1000/$J$6 -> 547.8657653 | L64: 6.483038163 | N64: 45.1126881 | O64: 6.180654338
A65: Kiinteistövero | D65: =VLOOKUP($A$4,Luvut!$B$3:$AT$296,42) -> 1744593 | E65: 316.9875559 | G65: =VLOOKUP($A$4,Luvut!$B$3:$ED$296,86) -> 1968747.837 | H65: 356.7931472 | I65: 12.84854616 | J65: =VLOOKUP($A$4,Luvut!$B$3:$ED$296,130) -> 2092036.299 | K65: =J65*1000/$J$6 -> 378.059878 | L65: 6.262277998 | N65: 12.55746182 | O65: 5.960521074
A67: Lainakanta, | D67: =VLOOKUP($A$4,Luvut!$B$3:$FG$296,155) -> 19033385 | E67: 3458.31159 | G67: =VLOOKUP($A$4,Luvut!$B$3:$FG$296,159) -> 19123709 | H67: 3465.760416 | I67: 0.4745556295 | J67: =VLOOKUP($A$4,Luvut!$B$3:$FM$296,163) -> 18692992.34 | K67: =J67*1000/$J$6 -> 3378.082114 | L67: -2.25226527 | N67: 0.2153890756 | O67: -2.529843131
A68: josta pitkäaikainen laina | D68: =VLOOKUP($A$4,Luvut!$B$3:$FG$296,156) -> 13927122 | E68: 2530.518215 | G68: =VLOOKUP($A$4,Luvut!$B$3:$FG$296,160) -> 13571947 | H68: 2459.623114 | J68: =VLOOKUP($A$4,Luvut!$B$3:$FM$296,164) -> 13418146.49 | K68: =J68*1000/$J$6 -> 2424.844553 | N68: -2.801604063 | O68: -1.413979244
A69: josta lyhytaikainen laina | D69: =VLOOKUP($A$4,Luvut!$B$3:$FG$296,157) -> 5106263 | E69: 927.7933755 | G69: =VLOOKUP($A$4,Luvut!$B$3:$FG$296,161) -> 5551762 | H69: 1006.137302 | J69: =VLOOKUP($A$4,Luvut!$B$3:$FM$296,165) -> 5274845.85 | K69: =J69*1000/$J$6 -> 953.2375604 | N69: 8.444113587 | O69: -5.257706022
A70: Lainasaamiset | D70: =VLOOKUP($A$4,Luvut!$B$3:$FG$296,158) -> 5670611 | E70: 1030.333792 | G70: =VLOOKUP($A$4,Luvut!$B$3:$FG$296,162) -> 5036550.609 | H70: 912.7663326 | J70: =VLOOKUP($A$4,Luvut!$B$3:$FM$296,166) -> 6278443.869 | K70: =J70*1000/$J$6 -> 1134.601595 | N70: -11.41061862 | O70: 24.30362019
A72: Tuloveroprosentti | D72: =VLOOKUP($A$4,Luvut!$B$3:$AT$296,43) -> 19.96 | G72: =VLOOKUP($A$4,Luvut!$B$3:$ED$296,87) -> 20.02 | J72: =VLOOKUP($A$4,Luvut!$B$3:$ED$296,131) -> 20.01
A73: Veroprosenttiyksikön tuotto | D73: =D63/D72 -> 1008219.689 | E73: =D73*1000/$D$6 -> 183.1906325 | G73: =G63/G72 -> 1029097.162 | H73: =G73*1000/$G$6 -> 186.5016984 | J73: =J63/J72 -> 1081598.634 | K73: =J73*1000/$J$6 -> 195.4598244
A75: Sijoitus vuosikatteen (euro/as) mukaan | D75: =VLOOKUP($A$4,Luvut!$B$3:$AT$296,45) -> - | G75: =VLOOKUP($A$4,Luvut!$B$3:$ED$296,89) -> - | J75: =VLOOKUP($A$4,Luvut!$B$3:$ED$296,133) -> -
A76: Lähde: Tilastokeskus ja valtiokonttori
A78: Kunnat vuoden 2022 kuntajaolla
B80: =D4 -> 2020 | C80: =G4 -> 2021 | D80: =J4 -> 2022
A81: Vuosikate | B81: =E36 -> 740.0499013 | C81: =H36 -> 686.2137685 | D81: =K36 -> 622.0192235
A82: Poistot | B82: =E38 -> 435.623432 | C82: =H38 -> 437.0279112 | D82: =K38 -> 442.9270351
A83: Investoinnit, netto | B83: =-E52 -> 603.3620512 | C83: =-H52 -> 519.8165428 | D83: =-K52 -> 377.4624117

Sheet Luvut
C1: 2020 | U1: 108 | W1: 110 | X1: 111 | Y1: 112 | Z1: 113 | AA1: 114 | AB1: 115 | AC1: 116 | AD1: 117 | AE1: 118 | AF1: 119 | AG1: 120 | AH1: 121 | AI1: 122 | AK1: 124 | AL1: 125 | AM1: 126 | AN1: 127 | AO1: 128 | AP1: 129 | AQ1: 130 | AR1: 131 | AS1: 132 | AT1: 133 | AU1: 20201 | AW1: 92 | AX1: 93 | AY1: 94 | AZ1: 95 | BA1: 96 | BB1: 97 | BC1: 98 | BD1: 99 | BE1: 100 | BF1: 101 | BG1: 102 | BH1: 103 | BI1: 104 | BJ1: 105 | BK1: 106 | BL1: 107 | BM1: 108 | BN1: 109 | BO1: 110 | BP1: 111 | BQ1: 112 | BR1: 113 | BS1: 114 | BT1: 115 | BU1: 116 | BV1: 117 | BW1: 118 | BX1: 119 | BY1: 120 | BZ1: 121 | CA1: 122 | CB1: 123 | CC1: 124 | CD1: 125 | CE1: 126 | CF1: 127 | CG1: 128 | CH1: 129 | CI1: 130 | CJ1: 131 | CK1: 132 | CL1: 133 | CM1: 2022 | CO1: 92 | CP1: 93 | CQ1: 94 | CR1: 95 | CS1: 96 | CT1: 97 | CU1: 98 | CV1: 99 | CW1: 100 | CX1: 101 | CY1: 102 | CZ1: 103 | DA1: 104 | DB1: 105 | DC1: 106 | DD1: 107 | DE1: 108 | DG1: 110 | DH1: 111 | DI1: 112 | DJ1: 113 | DK1: 114 | DL1: 115 | DM1: 116 | DN1: 117 | DO1: 118 | DP1: 119 | DQ1: 120 | DR1: 121 | DS1: 122 | DT1: 123 | DU1: 124 | DV1: 125 | DW1: 126 | DX1: 127 | DY1: 128 | DZ1: 129 | EA1: 130 | EB1: 131 | EC1: 132 | ED1: 133 | EE1: Erillistiedot | EF1: 135 | EG1: 136 | EH1: 137 | EI1: 138 | EJ1: 139 | EK1: 2020 | EL1: 144 | EM1: 145 | EN1: 2021 | EO1: 147 | EP1: 148 | EQ1: 2022 | ER1: 147 | ES1: 148 | ET1: 2020 | EU1: 152 | EV1: 2021 | EW1: 154 | EX1: 2022 | EZ1: 2020 | FA1: 160 | FB1: 161 | FC1: 162 | FD1: 2021 | FE1: 164 | FF1: 165 | FG1: 166 | FH1: 2022 | FI1: 167 | FJ1: 168 | FK1: 169 | FL1: 2020 | FM1: 2021 | FN1: 2022 | FO1: Yhden vero%:n | FP1: Yhden vero%:n
A2: Kunta nro | B2: Kunta | E2: Lainanhoitokate | F2: Suht. velkaantuneisuus-% | G2: Rahoitusvarallisuus, e/as | K2: Omavaraisuusaste, % | L2: Rahavarat e/as | M2: Kassan riittävyys, pv | N2: Kassasta maksut, €/as | O2: Henkilöstökulut | P2: Toimintatuotot | Q2: Toimintakulut | R2: Toimintakate | S2: Verotulot | T2: Valtionosuudet | W2: Korkotuotot/-menot, netto | X2: Muut rahoitustuotot/-menot, netto (sis Osinkotuotot) | Y2: Vuosikate | Z2: Suunnitelman mukaiset poistot ja arvonalet | AA2: Satunnaiset tuotot | AB2: Satunnaiset kulut | AC2: Tilikauden tulos | AD2: Poistoeron lisäys(-) tai vähennys(+) | AE2: Varausten lisäys(-) tai vähennys(+) | AF2: Rahastojen lisäys(-) tai vähennys(+) | AG2: Tilikauden yli- tai alijäämä | AH2: Kumulat yli/alij | AI2: Tulorah (toiminnan rahavirta) | AK2: Saamisten muutos | AL2: Pitkäaikaisten lainojen vähennys | AM2: Toim ja inv rahavirta | AN2: Verotulot | AO2: Kunnallisvero | AP2: Osuus yhteisöveron tuotosta | AQ2: Kiinteistövero | AR2: Tuloveroprosentti | AT2: Sijoitus vuosikatteen mukaan | AU2: Asukasluku | AW2: Lainanhoitokate | AX2: Suht. velkaantuneisuus-% | AY2: Rahoitusvarallisuus, e/as | BC2: Omavaraisuusaste, % | BD2: Rahavarat e/as | BE2: Kassan riittävyys, pv | BF2: Kassasta maksut, €/as | BG2: Henkilöstökulut | BH2: Toimintatuotot | BI2: Toimintakulut | BJ2: Toimintakate | BK2: Verotulot | BL2: Valtionosuudet | BO2: Korkotuotot/-menot, netto | BP2: Muut rahoitustuotot/-menot, netto (sis Osinkotuotot) | BQ2: Vuosikate | BR2: Suunnitelman mukaiset poistot ja arvonalet | BS2: Satu. tuotot | BT2: Satu. kulut | BU2: Tilikauden tulos | BV2: Poistoeron lisäys(-) tai vähennys(+) | BW2: Varausten lisäys(-) tai vähennys(+) | BX2: Rahastojen lisäys(-) tai vähennys(+) | BY2: Tilikauden yli- tai alijäämä | BZ2: Kumulat yli/alij | CA2: Toiminnan rahavirta | CC2: Saamisten muutos | CD2: Pitkäaikaisten lainojen vähennys | CE2: Toim ja inv rahavirta | CF2: Verotulot | CG2: Kunnallisvero | CH2: Osuus yhteisöveron tuotosta | CI2: Kiinteistövero | CJ2: Tuloveroprosentti | CL2: Sijoitus vuosikatteen mukaan | CM2: Asukasluku | CO2: Lainanhoitokate | CP2: Suht. velkaantuneisuus-% | CQ2: Rahoitusvarallisuus, e/as | CU2: Omavaraisuusaste, % | CV2: Rahavarat e/as | CW2: Kassan riittävyys, pv | CX2: Kassasta maksut, €/as | CY2: Henkilöstökulut | CZ2: Toimintatuotot | DA2: Toimintakulut | DB2: Toimintakate | DC2: Verotulot | DD2: Valtionosuudet | DG2: Korkotuotot/-menot, netto | DH2: Muut rahoitustuotot/-menot, netto (sis Osinkotuotot) | DI2: Vuosikate | DJ2: Suunnitelman mukaiset poistot ja arvonalet | DK2: Satu. tuotot | DL2: Satu. kulut | DM2: Tilikauden tulos | DN2: Poistoeron lisäys(-) tai vähennys(+) | DO2: Varausten lisäys(-) tai vähennys(+) | DP2: Rahastojen lisäys(-) tai vähennys(+) | DQ2: Tilikauden yli- tai alijäämä | DR2: Kumulat yli/alij | DS2: Toiminnan rahavirta | DU2: Saamisten muutos | DV2: Pitkäaikaisten lainojen vähennys | DW2: Toim ja inv rahavirta | DX2: Verotulot | DY2: Kunnallisvero | DZ2: Osuus yhteisöveron tuotosta | EA2: Kiinteistövero | EB2: Tuloveroprosentti | ED2: Sijoitus vuosikatteen mukaan | EE2: Palvelujen ostot 2020 | EF2: Palvelujen ostot 2021 | EG2: Palvelujen ostot 2022 | EH2: Harkvar2020 | EI2: Harkvar2021 | EJ2: Harkvar2022 | EK2: - Investointimenot | EL2: + Rahoitusos. investointimenoihin | EM2: + Investointihyödykk. luovutustulot | EN2: - Investointimenot | EO2: + Rahoitusosuudet investointimenoihin | EP2: + Investointihyödykkeiden luovutustulot | EQ2: - Investointimenot | ER2: + Rahoitusosuudet investointimenoihin | ES2: + Investointihyödykkeiden luovutustulot | ET2: Pitkäaikaisten lainojen lisäys | EU2: ± Lyhytaikaisten lainojen muutos | EV2: Pitkäaikaisten lainojen lisäys | EW2: ± Lyhytaikaisten lainojen muutos | EX2: Pitkäaikaisten lainojen lisäys | EY2: ± Lyhytaikaisten lainojen muutos | EZ2: Lainakanta | FA2: josta pitkäaik | FB2: josta lyhytaik | FC2: Lainasaamiset | FD2: Lainakanta | FE2: josta pitkäaik | FF2: josta lyhytaik | FG2: Lainasaamiset | FH2: Lainakanta | FI2: josta pitkäaik | FJ2: josta lyhytaik | FK2: Lainasaamiset | FL2: Konsernilainat €/as | FM2: Konsernilainat €/as | FN2: Konsernilainat €/as | FO2: tuotto | FP2: tuotto, €/as
A3: 20 | B3: Akaa | C3: 16391 | E3: 3.29270562 | F3: 54.56404061 | G3: -3487.706668 | K3: 33.64537859 | L3: 528.5827588 | M3: 23.68773502 | N3: 8144.835581 | O3: 44739 | P3: 28305 | Q3: 112143 | R3: -83838 | S3: 64150 | T3: 36698 | W3: 99 | X3: 378 | Y3: 17487 | Z3: 5748 | AA3: 0 | AB3: 0 | AC3: 11739 | AD3: 20 | AE3: 0 | AF3: 0 | AG3: 11757 | AH3: 2911 | AI3: 12838 | AK3: 620 | AL3: -5166 | AM3: 3234 | AN3: 64150 | AO3: 59104 | AP3: 1773 | AQ3: 3273 | AR3: 22.25 | AT3: 22.79411765 | AU3: 16467 | AW3: 5.430582313 | AX3: 70.20649381 | AY3: -4418.742943 | BC3: 28.32799596 | BD3: 543.0407555 | BE3: 22.94937373 | BF3: 8636.83158 | BG3: 46010.27304 | BH3: 24031.75372 | BI3: 121903.6969 | BJ3: -97871.94316 | BK3: 66852.5873 | BL3: 34427.23 | BO3: -441.56817 | BP3: 389.65987 | BQ3: 3355.96584 | BR3: 4349.09011 | BS3: 0 | BT3: 0 | BU3: -993.12427 | BV3: -3.13738 | BW3: 0 | BX3: 0 | BY3: -989.98689 | BZ3: 1921.48928 | CA3: 3109.88267 | CC3: -1668.93098 | CD3: -4894 | CE3: -15571.87288 | CF3: 66852.5873 | CG3: 60897.13759 | CH3: 2439.13273 | CI3: 3516.31698 | CJ3: 22.25 | CL3: 273 | CM3: 16473 | CO3: 0.598081371 | CP3: 79.18895789 | CQ3: -5568.431499 | CU3: 24.56622257 | CV3: 279.1091216 | CW3: 11.14784625 | CX3: 9138.52121 | CY3: 46586.32144 | CZ3: 23888.96798 | DA3: 126066.8818 | DB3: -102177.9138 | DC3: 69399.14897 | DD3: 35933.28 | DG3: -490.61771 | DH3: 501.25174 | DI3: 3165.14916 | DJ3: 4662.79543 | DK3: 57.6683 | DL3: 0 | DM3: -1439.97797 | DN3: -2.66677 | DO3: 0 | DP3: 0 | DQ3: -1437.3112 | DR3: 484.17808 | DS3: 2782.52072 | DU3: 575.48973 | DV3: -5851.49364 | DW3: -19178.00617 | DX3: 69399.14897 | DY3: 62911.29604 | DZ3: 2663.49712 | EA3: 3824.35581 | EB3: 22 | ED3: 252 | EE3: 50719 | EF3: 60800.32692 | EG3: 64111.94459 | EI3: 1250 | EK3: -16001 | EL3: 115 | EM3: 6282 | EN3: -19554.5867 | EO3: 561.1121 | EP3: 311.71905 | EQ3: -23644.83348 | ER3: 528.25934 | ES3: 1156.04725 | ET3: 12000 | EU3: -8000 | EV3: 0 | EW3: 16114.40918 | EX3: 33000 | EY3: -14043.28724 | EZ3: 52444 | FA3: 40805 | FB3: 11639 | FC3: 7647 | FD3: 68557.50893 | FE3: 37055.36881 | FF3: 31502.14012 | FG3: 7235.23807 | FH3: 81662.72805 | FI3: 60848.93536 | FJ3: 20813.79269 | FK3: 7655.23807 | FL3: 4623.207858 | FM3: 5830.332119 | FN3: 6626.098454 | FO3: =(DY3/EB3) -> 2859.604365 | FP3: =(FO3/CM3)*1000 -> 173.5934174 | FV3: =BQ3/AU3*1000 -> 203.799468
A4: 5 | B4: Alajärvi | C4: 9419 | E4: 1.347094096 | F4: 37.5669431 | G4: -3337.721626 | K4: 44.05983514 | L4: 478.6070708 | M4: 14.1801322 | N4: 12319.46066 | O4: 45160 | P4: 43439 | Q4: 106079 | R4: -62640 | S4: 29583 | T4: 38640 | W4: -186 | X4: 252 | Y4: 5649 | Z4: 3584 | AA4: 0 | AB4: 0 | AC4: 2065 | AD4: 0 | AE4: 0 | AF4: 0 | AG4: 2065 | AH4: 7833 | AI4: 5646 | AK4: -298 | AL4: -4144 | AM4: 322 | AN4: 29583 | AO4: 25512 | AP4: 2144 | AQ4: 1927 | AR4: 21.75 | AT4: 184.9779412 | AU4: 9311 | AW4: 1.088286389 | AX4: 37.69396992 | AY4: -3390.653644 | BC4: 43.67984881 | BD4: 514.5437633 | BE4: 14.54899947 | BF4: 12908.68654 | BG4: 46534.56967 | BH4: 47201.90683 | BI4: 111541.3158 | BJ4: -64339.40895 | BK4: 31473.60663 | BL4: 37501.94804 | BO4: -120.57539 | BP4: 170.04986 | BQ4: 4685.62019 | BR4: 3827.31593 | BS4: 0 | BT4: 0 | BU4: 858.30426 | BV4: 0 | BW4: 0 | BX4: 0 | BY4: 858.30426 | BZ4: 8691.07212 | CA4: 4719.15415 | CC4: -1427.78409 | CD4: -4294.422 | CE4: 726.39552 | CF4: 31473.60663 | CG4: 26214.4548 | CH4: 3078.71673 | CI4: 2180.4351 | CJ4: 21.75 | CL4: 180 | CM4: 9183 | CO4: 1.009879886 | CP4: 34.23636639 | CQ4: -3297.630382 | CU4: 46.08952338 | CV4: 489.7685876 | CW4: 13.92589686 | CX4: 12836.91358 | CY4: 46797.92913 | CZ4: 46334.50072 | DA4: 113421.691 | DB4: -67087.19024 | DC4: 32479.35372 | DD4: 39080.69485 | DG4: 11.40849 | DH4: 4.07465 | DI4: 4488.34147 | DJ4: 3848.14232 | DK4: 0 | DL4: 0 | DM4: 640.19915 | DN4: 0 | DO4: 0 | DP4: 0 | DQ4: 640.19915 | DR4: 9331.27127 | DS4: 4362.1742 | DU4: 1847.47922 | DV4: -4444.431 | DW4: 1072.5829 | DX4: 32479.35372 | DY4: 26872.7009 | DZ4: 3231.5692 | EA4: 2375.08362 | EB4: 21.75 | ED4: 153 | EE4: 48993 | EF4: 52826.41324 | EG4: 54084.86597 | EK4: -5620 | EL4: 275 | EM4: 21 | EN4: -4136.17549 | EO4: 74.45 | EP4: 68.96686 | EQ4: -4156.86169 | ER4: 394.102 | ES4: 473.16839 | ET4: 4000 | EU4: 0 | EV4: 4000 | EW4: 2000 | EX4: 0 | EY4: 0 | EZ4: 27715 | FA4: 19420 | FB4: 8295 | FC4: 536 | FD4: 29419.924 | FE4: 18975.493 | FF4: 10444.431 | FG4: 611.80408 | FH4: 24975.493 | FI4: 15462.649 | FJ4: 9512.844 | FK4: 604.90838 | FL4: 5437.30757 | FM4: 5408.794921 | FN4: 4925.349747 | FO4: 1235.526478 | FP4: 134.544972 | FV4: 503.2349039
A5: 9 | B5: Alavieska | C5: 2517 | E5: 0.4954407295 | F5: 56.15236781 | G5: -2744.139849 | K5: 45.63175868 | L5: 1490.26619 | M5: 56.91129401 | N5: 9557.806913 | O5: 4572 | P5: 2476 | Q5: 18348 | R5: -15872 | S5: 7716 | T5: 10101 | W5: 15 | X5: 11 | Y5: 1971 | Z5: 705 | AA5: 0 | AB5: 0 | AC5: 1266 | AD5: 0 | AE5: 0 | AF5: 0 | AG5: 1267 | AH5: 2090 | AI5: 1843 | AK5: 233 | AL5: -3963 | AM5: 1594 | AN5: 7716 | AO5: 6711 | AP5: 305 | AQ5: 700 | AR5: 22 | AT5: 96.33088235 | AU5: 2491 | AW5: 51.52043507 | AX5: 62.72357191 | AY5: -2853.220349 | BC5: 44.61569802 | BD5: 1960.398796 | BE5: 88.44823457 | BF5: 8089.992569 | BG5: 4837.75887 | BH5: 2469.51365 | BI5: 19037.67788 | BJ5: -16568.16423 | BK5: 8352.99086 | BL5: 9572.648 | BO5: 126.93082 | BP5: 6.57889 | BQ5: 1490.98434 | BR5: 738.17448 | BS5: 0 | BT5: 0 | BU5: 752.80986 | BV5: 0 | BW5: 0 | BX5: 0 | BY5: 752.80986 | BZ5: 2843.13632 | CA5: 1498.8439 | CC5: -65.29166 | CD5: 0 | CE5: 403.4846 | CF5: 8352.99086 | CG5: 7136.83072 | CH5: 469.54072 | CI5: 746.61942 | CJ5: 22 | CL5: 129 | CM5: 2447 | CO5: 70.7158798 | CP5: 54.03883134 | CQ5: -2153.314994 | CU5: 50.12274784 | CV5: 2345.86924 | CW5: 98.34272169 | CX5: 8706.717262 | CY5: 5025.6038 | CZ5: 2801.29472 | DA5: 19875.14285 | DB5: -17073.84813 | DC5: 9098.63002 | DD5: 10638.034 | DG5: 341.37871 | DH5: -191.22508 | DI5: 2812.96952 | DJ5: 815.50557 | DK5: 0 | DL5: 0 | DM5: 1997.46395 | DN5: 0 | DO5: 0 | DP5: 0 | DQ5: 1997.46395 | DR5: 4840.60027 | DS5: 2864.14808 | DU5: -367.90283 | DV5: 0 | DW5: 1938.12933 | DX5: 9098.63002 | DY5: 7872.13573 | DZ5: 442.59867 | EA5: 783.89562 | EB5: 22 | ED5: 14 | EE5: 12132 | EF5: 12412.43849 | EG5: 12862.8951 | EK5: -1061 | EL5: 11 | EM5: 801 | EN5: -1312.08759 | EO5: 4.72379 | EP5: 212.0045 | EQ5: -975.31451 | ER5: 3.39699 | ES5: 45.89877 | ET5: 0 | EU5: 4500 | EV5: 0 | EW5: 1321.15929 | EX5: 0 | EY5: -236.26231 | EZ5: 10000 | FA5: 0 | FB5: 10000 | FC5: 774 | FD5: 11000 | FE5: 0 | FF5: 11000 | FG5: 1410 | FH5: 11000 | FI5: 0 | FJ5: 11000 | FK5: 1591.2 | FL5: 4469.209376 | FM5: 5148.893661 | FN5: 5543.080834 | FO5: 357.8243514 | FP5: 146.2298126 | FV5: 598.5485106
A6: 10 | B6: Alavus | C6: 11332 | E6: 1.280664794 | F6: 63.14536943 | G6: -2458.612778 | K6: 49.57660418 | L6: 2285.91599 | M6: 98.13852589 | N6: 8501.853159 | O6: 23589 | P6: 11612 | Q6: 85363 | R6: -73751 | S6: 35072 | T6: 43125 | W6: -106 | X6: 837 | Y6: 5177 | Z6: 4032 | AA6: 0 | AB6: 0 | AC6: 1145 | AD6: 0 | AE6: 0 | AF6: 0 | AG6: 1145 | AH6: 22489 | AI6: 5031 | AK6: 9535 | AL6: -3978 | AM6: -1397 | AN6: 35072 | AO6: 29760 | AP6: 2810 | AQ6: 2502 | AR6: 21.25 | AT6: 240.3823529 | AU6: 11197 | AW6: 0.8356627318 | AX6: 68.88571796 | AY6: -2815.557077 | BC6: 45.00412293 | BD6: 2521.988459 | BE6: 101.5103575 | BF6: 9068.294209 | BG6: 24808.29486 | BH6: 13815.95536 | BI6: 90507.81271 | BJ6: -76691.85735 | BK6: 36841.07878 | BL6: 42180.877 | BO6: -71.81293 | BP6: 1182.23178 | BQ6: 3440.51728 | BR6: 4321.48554 | BS6: 0 | BT6: 0 | BU6: -880.96826 | BV6: 0 | BW6: 0 | BX6: 0 | BY6: -880.96826 | BZ6: 19022.54681 | CA6: 3297.75234 | CC6: -1152.77548 | CD6: -4165.02764 | CE6: -1391.20628 | CF6: 36841.07878 | CG6: 30170.76358 | CH6: 3934.98392 | CI6: 2735.33128 | CJ6: 21.25 | CL6: 249 | CM6: 11102 | CO6: 0.5316941094 | CP6: 72.18502929 | CQ6: -3324.347234 | CU6: 42.3283795 | CV6: 2507.363714 | CW6: 98.9053382 | CX6: 9253.168455 | CY6: 23602.76594 | CZ6: 11230.23814 | DA6: 90798.66291 | DB6: -79568.42477 | DC6: 37759.57896 | DD6: 45138.767 | DG6: -130.93473 | DH6: -809.86651 | DI6: 2389.11995 | DJ6: 4439.9895 | DK6: 0 | DL6: 0 | DM6: -2050.86955 | DN6: 0 | DO6: 0 | DP6: 0 | DQ6: -2050.86955 | DR6: 16971.67726 | DS6: 2125.91997 | DU6: 948.69876 | DV6: -4756.308 | DW6: -7091.52004 | DX6: 37759.57896 | DY6: 30819.23618 | DZ6: 4217.36958 | EA6: 2722.9732 | EB6: 21.25 | ED6: 244 | EE6: 54746 | EF6: 57796.2769 | EG6: 59376.72571 | EK6: -6980 | EL6: 262 | EM6: 290 | EN6: -5949.21764 | EO6: 402.39802 | EP6: 857.861 | EQ6: -10030.14149 | ER6: 440.52448 | ES6: 372.177 | ET6: 7400 | EU6: -3000 | EV6: 9000 | EW6: 2000 | EX6: 10700 | EY6: -2000 | EZ6: 45665 | FA6: 41500 | FB6: 4165 | FC6: 7195 | FD6: 52499.695 | FE6: 45743.387 | FF6: 6756.308 | FG6: 6763.17321 | FH6: 56443.387 | FI6: 51185.047 | FJ6: 5258.34 | FK6: 6570.54651 | FL6: 7135.72185 | FM6: 7803.495073 | FN6: 8105.486469 | FO6: 1450.316997 | FP6: 130.6356509 | FV6: 307.2713477
A7: 16 | B7: Asikkala | C7: 8059 | E7: 160.9259259 | F7: 10.14380494 | G7: -381.0646482 | K7: 87.02895676 | L7: 110.8077925 | M7: 6.111965347 | N7: 6617.322248 | O7: 13872 | P7: 5611 | Q7: 50709 | R7: -45098 | S7: 31883 | T7: 21892 | W7: -44 | X7: 13 | Y7: 8646 | Z7: 2509 | AA7: 0 | AB7: 0 | AC7: 6137 | AD7: 94 | AE7: -5000 | AF7: 0 | AG7: 1231 | AH7: 12238 | AI7: 8594 | AK7: -1107 | AL7: -10 | AM7: 6563 | AN7: 31883 | AO7: 27480 | AP7: 1731 | AQ7: 2672 | AR7: 20.75 | AT7: 21.78676471 | AU7: 8033 | AW7: 158.4936497 | AX7: 11.33091345 | AY7: 21.16000373 | BC7: 86.55513439 | BD7: 375.6448873 | BE7: 18.84945192 | BF7: 7273.971916 | BG7: 15001.3695 | BH7: 6449.04452 | BI7: 53598.3377 | BJ7: -47149.29318 | BK7: 32598.16687 | BL7: 20316.576 | BO7: -37.03047 | BP7: 103.64465 | BQ7: 5832.06387 | BR7: 2388.0197 | BS7: 0 | BT7: 0 | BU7: 3444.04417 | BV7: -94.28168 | BW7: 3000 | BX7: 0 | BY7: 538.32585 | BZ7: 13033.76952 | CA7: 5832.06387 | CC7: -1561.22552 | CD7: 0 | CE7: 2724.34101 | CF7: 32598.16687 | CG7: 27175.23768 | CH7: 2474.89772 | CI7: 2948.03147 | CJ7: 20.75 | CL7: 80 | CM7: 8014 | CO7: 99.75474627 | CP7: 20.83570012 | CQ7: -1186.738018 | CU7: 78.67697357 | CV7: 129.9163115 | CW7: 5.124907518 | CX7: 9252.743295 | CY7: 15841.3353 | CZ7: 6494.06682 | DA7: 58984.818 | DB7: -52490.75118 | DC7: 33600.61551 | DD7: 23134.318 | DG7: -32.33475 | DH7: 414.30452 | DI7: 4626.1521 | DJ7: 2306.23831 | DK7: 0 | DL7: 0 | DM7: 2319.91379 | DN7: -94.28168 | DO7: 0 | DP7: 0 | DQ7: 2414.19547 | DR7: 16039.65399 | DS7: 4308.97876 | DU7: 1256.3452 | DV7: -9.9 | DW7: -10594.83671 | DX7: 33600.61551 | DY7: 27954.87467 | DZ7: 2546.56949 | EA7: 3099.17135 | EB7: 20.75 | ED7: 107 | EE7: 33295 | EF7: 34503.98824 | EG7: 38769.06648 | EK7: -2276 | EL7: 19 | EM7: 226 | EN7: -4674.51502 | EO7: 0 | EP7: 1566.79216 | EQ7: -15045.72071 | ER7: 77.75 | ES7: 64.15524 | ET7: 0 | EU7: -5500 | EV7: 0 | EW7: -509.9 | EX7: 0 | EY7: 5700 | EZ7: 1945 | FA7: 1435 | FB7: 510 | FC7: 791 | FD7: 1434.9 | FE7: 1425 | FF7: 9.9 | FG7: 747.3787 | FH7: 7125 | FI7: 1409.1 | FJ7: 5715.9 | FK7: 747.3787 | FL7: 1623.526492 | FM7: 1721.758036 | FN7: 2525.841585 | FO7: 1347.222876 | FP7: 168.1086693 | FV7: 726.0131794
A8: 18 | B8: Askola | C8: 4878 | E8: 2.606299213 | F8: 81.2996118 | G8: -3670.561706 | K8: 33.04351969 | L8: 1757.892579 | M8: 87.32910156 | N8: 7347.273473 | O8: 13415 | P8: 4111 | Q8: 30586 | R8: -26475 | S8: 20456 | T8: 9951 | W8: -173 | X8: 366 | Y8: 4125 | Z8: 2141 | AA8: 0 | AB8: 0 | AC8: 1984 | AD8: 0 | AE8: 0 | AF8: 0 | AG8: 1983 | AH8: 4631 | AI8: 4098 | AK8: 1047 | AL8: -1473 | AM8: 694 | AN8: 20456 | AO8: 18369 | AP8: 1008 | AQ8: 1079 | AR8: 21.5 | AT8: 72.15441176 | AU8: 4847 | AW8: 1.858131877 | AX8: 78.40345419 | AY8: -3298.345333 | BC8: 35.96151092 | BD8: 1882.475346 | BE8: 95.02657252 | BF8: 7230.645944 | BG8: 13824.90692 | BH8: 5182.86463 | BI8: 32168.37119 | BJ8: -26985.50656 | BK8: 21255.04274 | BL8: 8349.658 | BO8: -150.7292 | BP8: 514.34118 | BQ8: 2982.80616 | BR8: 1512.6519 | BS8: 0 | BT8: 0 | BU8: 1470.15426 | BV8: 0 | BW8: 0 | BX8: 0 | BY8: 1470.15426 | BZ8: 6101.43075 | CA8: 2785.72516 | CC8: -578.73562 | CD8: -1524.366 | CE8: 1923.49315 | CF8: 21255.04274 | CG8: 18635.8548 | CH8: 1445.02202 | CI8: 1174.16592 | CJ8: 21.5 | CL8: 125 | CM8: 4763 | CO8: 1.328549248 | CP8: 68.09019294 | CQ8: -3023.279397 | CU8: 39.34258465 | CV8: 1925.090206 | CW8: 94.08373775 | CX8: 7468.431228 | CY8: 14431.784 | CZ8: 5010.78488 | DA8: 33885.77792 | DB8: -28874.99304 | DC8: 22920.38747 | DD8: 8769.343 | DG8: -174.63748 | DH8: -220.42312 | DI8: 2419.67683 | DJ8: 1528.17991 | DK8: 0 | DL8: 0 | DM8: 891.49692 | DN8: 0 | DO8: 0 | DP8: 0 | DQ8: 891.49692 | DR8: 6992.92767 | DS8: 2322.88433 | DU8: 742.84776 | DV8: -1773.9046 | DW8: 1592.90246 | DX8: 22920.38747 | DY8: 20014.20859 | DZ8: 1652.86883 | EA8: 1253.31005 | EB8: 21.5 | ED8: 139 | EE8: 13433 | EF8: 14721.04258 | EG8: 15744.46379 | EK8: -3582 | EL8: 114 | EM8: 64 | EN8: -1205.12602 | EO8: 0 | EP8: 342.89401 | EQ8: -843.63163 | ER8: 0 | ES8: 113.64976 | ET8: 0 | EU8: 3500 | EV8: 0 | EW8: 0 | EX8: 0 | EY8: -1000 | EZ8: 24997 | FA8: 17473 | FB8: 7524 | FC8: 0 | FD8: 23473.24109 | FE8: 16001.55333 | FF8: 7471.68776 | FG8: 0 | FH8: 20699.33649 | FI8: 14325.43189 | FJ8: 6373.9046 | FK8: 0 | FL8: 6696.391964 | FM8: 6394.388911 | FN8: 5931.444285 | FO8: 930.8934228 | FP8: 195.442667 | FV8: 615.3922344
A9: 19 | B9: Aura | C9: 3959 | E9: 2.545967742 | F9: 55.66220266 | G9: -2722.909826 | K9: 32.43833906 | L9: 799.9494822 | M9: 45.56924351 | N9: 6407.426118 | O9: 6688 | P9: 2657 | Q9: 23226 | R9: -20569 | S9: 15595 | T9: 8107 | W9: -26 | X9: 24 | Y9: 3131 | Z9: 893 | AA9: 0 | AB9: 0 | AC9: 2238 | AD9: 28 | AE9: 0 | AF9: 0 | AG9: 2266 | AH9: 2236 | AI9: 2883 | AK9: 203 | AL9: -1214 | AM9: 2177 | AN9: 15595 | AO9: 14340 | AP9: 541 | AQ9: 714 | AR9: 21.5 | AT9: 91.29411765 | AU9: 3955 | AW9: 2.563373352 | AX9: 44.86243858 | AY9: -2284.444728 | BC9: 41.81626769 | BD9: 464.8878913 | BE9: 25.84503969 | BF9: 6565.440887 | BG9: 7208.82526 | BH9: 3069.47456 | BI9: 24059.14571 | BJ9: -20989.67115 | BK9: 15987.4943 | BL9: 7510.755 | BO9: -18.50958 | BP9: 41.2185 | BQ9: 2531.28707 | BR9: 885.66905 | BS9: 0 | BT9: 0 | BU9: 1645.61802 | BV9: -27.78768 | BW9: 0 | BX9: 0 | BY9: 1673.4057 | BZ9: 3908.53852 | CA9: 2453.3862 | CC9: -320.33348 | CD9: -976.194 | CE9: 1729.73783 | CF9: 15987.4943 | CG9: 14407.52326 | CH9: 740.52879 | CI9: 839.44225 | CJ9: 21.5 | CL9: 108 | CM9: 3965 | CO9: 1.977098563 | CP9: 46.00261006 | CQ9: -2345.006936 | CU9: 40.95250948 | CV9: 568.4558916 | CW9: 30.30672716 | CX9: 6846.216 | CY9: 7594.02595 | CZ9: 3172.48136 | DA9: 25895.73695 | DB9: -22723.25559 | DC9: 16693.9332 | DD9: 7491.634 | DG9: -45.19281 | DH9: 90.53453 | DI9: 1507.65333 | DJ9: 894.73349 | DK9: 0 | DL9: 0 | DM9: 612.91984 | DN9: -27.78768 | DO9: 0 | DP9: 0 | DQ9: 640.70752 | DR9: 4027.71604 | DS9: 1485.44338 | DU9: 11.782 | DV9: -738.094 | DW9: 344.16955 | DX9: 16693.9332 | DY9: 14935.18036 | DZ9: 872.98569 | EA9: 885.76715 | EB9: 21.5 | ED9: 187 | EE9: 13287 | EF9: 14396.97301 | EG9: 15618.68318 | EH9: 540 | EK9: -888 | EL9: 1 | EM9: 181 | EN9: -935.00202 | EO9: 73.467 | EP9: 137.88665 | EQ9: -1194.44403 | ER9: 18 | ES9: 35.1702 | ET9: 0 | EU9: 500 | EV9: 0 | EW9: -2000 | EX9: 2500 | EY9: -2500 | EZ9: 12333 | FA9: 4357 | FB9: 7976 | FC9: 0 | FD9: 9357.154 | FE9: 3619.06 | FF9: 5738.094 | FG9: 0 | FH9: 8619.06 | FI9: 5000 | FJ9: 3619.06 | FK9: 0 | FL9: 3688.305128 | FM9: 2852.403606 | FN9: 2989.289279 | FO9: 694.6595516 | FP9: 175.1978693 | FV9: 640.0220152
A10: 46 | B10: Enonkoski | C10: 1369 | F10: 11.05704698 | G10: 2508.400292 | K10: 88.43225663 | L10: 3284.879474 | M10: 151.813263 | N10: 7897.735573 | O10: 2445 | P10: 1564 | Q10: 10567 | R10: -9003 | S10: 4642 | T10: 5745 | W10: 8 | X10: 110 | Y10: 1502 | Z10: 573 | AA10: 0 | AB10: 0 | AC10: 929 | AD10: 0 | AE10: 0 | AF10: 0 | AG10: 929 | AH10: 6955 | AI10: 1433 | AK10: -279 | AL10: 0 | AM10: 1288 | AN10: 4642 | AO10: 3472 | AP10: 680 | AQ10: 490 | AR10: 21 | AT10: 17.75735294 | AU10: 1362 | AW10: 8651.679322 | AX10: 10.65173936 | AY10: 3637.928421 | BC10: 82.99457562 | BD10: 4158.721175 | BE10: 186.0339274 | BF10: 8159.44301 | BG10: 2609.9777 | BH10: 1859.14438 | BI10: 10779.09357 | BJ10: -8919.94919 | BK10: 5024.61735 | BL10: 5572.031 | BO10: 13.5881 | BP10: 121.16499 | BQ10: 1811.45225 | BR10: 568.68366 | BS10: 0 | BT10: 0 | BU10: 1242.76859 | BV10: 0 | BW10: 0 | BX10: 0 | BY10: 1242.76859 | BZ10: 8197.94619 | CA10: 1793.64073 | CC10: -360.4771 | CD10: 0 | CE10: 1501.6924 | CF10: 5024.61735 | CG10: 3512.82071 | CH10: 973.2283 | CI10: 538.56834 | CJ10: 21 | CL10: 8 | CM10: 1341 | CO10: 1378.094969 | CP10: 11.67004794 | CQ10: 3700.686518 | CU10: 83.14580351 | CV10: 4689.361969 | CW10: 176.5596378 | CX10: 9694.271805 | CY10: 2687.27052 | CZ10: 1736.70154 | DA10: 11693.37739 | DB10: -9956.67585 | DC10: 5157.24292 | DD10: 6039.6 | DG10: 19.02547 | DH10: 66.88106 | DI10: 1326.0736 | DJ10: 545.48645 | DK10: 0 | DL10: 0 | DM10: 780.58715 | DN10: 0 | DO10: 0 | DP10: 0 | DQ10: 780.58715 | DR10: 8978.53334 | DS10: 1326.0736 | DU10: 432.45702 | DV10: 0 | DW10: 41.82314 | DX10: 5157.24292 | DY10: 3683.70844 | DZ10: 905.87334 | EA10: 567.66114 | EB10: 21 | ED10: 29 | EE10: 7242 | EF10: 7167.45501 | EG10: 7953.30047 | EK10: -275 | EL10: 0 | EM10: 130 | EN10: -323.06711 | EO10: 0 | EP10: 31.11878 | EQ10: -1284.25046 | ER10: 0 | ES10: 0 | ET10: 0 | EU10: 0 | EV10: 0 | EW10: 0 | EX10: 0 | EY10: 0 | EZ10: 0 | FA10: 0 | FB10: 0 | FC10: 236 | FD10: 0 | FE10: 0 | FF10: 0 | FG10: 197.91123 | FH10: 0 | FI10: 0 | FJ10: 0 | FK10: 194.29583 | FL10: 824.6895544 | FM10: 1072.04083 | FN10: 1390.889948 | FO10: 175.4146876 | FP10: 130.8088647 | FV10: 1329.99431
A11: 47 | B11: Enontekiö | C11: 1808 | E11: 1.924713584 | F11: 38.81160358 | G11: -3367.809735 | K11: 53.76991366 | L11: 118.3628319 | M11: 3.86377127 | N11: 11181.41593 | O11: 6553 | P11: 2399 | Q11: 17630 | R11: -15231 | S11: 6394 | T11: 9753 | W11: -14 | X11: 255 | Y11: 1157 | Z11: 510 | AA11: 0 | AB11: 0 | AC11: 647 | AD11: 2 | AE11: 0 | AF11: 0 | AG11: 649 | AH11: 2127 | AI11: 1028 | AK11: 5 | AL11: -592 | AM11: -384 | AN11: 6394 | AO11: 5173 | AP11: 456 | AQ11: 765 | AR11: 21.25 | AT11: 162.8161765 | AU11: 1789 | AW11: 3.714740548 | AX11: 32.10086314 | AY11: 2172.561643 | BC11: 73.01658953 | BD11: 4847.922102 | BE11: 339.1520988 | BF11: 5217.39825 | BG11: 7170.81823 | BH11: 3496.30578 | BI11: 19083.2997 | BJ11: -15586.99392 | BK11: 6807.63983 | BL11: 9711.677 | BO11: -6.0949 | BP11: 923.19626 | BQ11: 1849.42427 | BR11: 464.69194 | BS11: 7944.34145 | BT11: 0 | BU11: 9329.07378 | BV11: 81.72326 | BW11: -84.1 | BX11: 0 | BY11: 9331.45052 | BZ11: 11458.19586 | CA11: 1231.58085 | CC11: 157.167 | CD11: -492 | CE11: 9054.99044 | CF11: 6807.63983 | CG11: 5219.61633 | CH11: 776.35284 | CI11: 811.67066 | CJ11: 21.25 | CL11: 22 | CM11: 1811 | CO11: 7.390488415 | CP11: 31.00059548 | CQ11: 2704.250657 | CU11: 76.13444861 | CV11: 5292.645019 | CW11: 157.7449767 | CX11: 12246.44659 | CY11: 7218.36348 | CZ11: 3237.51557 | DA11: 19749.19133 | DB11: -16511.67576 | DC11: 7179.49726 | DD11: 9856.307 | DG11: -18.39578 | DH11: 2251.9758 | DI11: 2757.70852 | DJ11: 881.51808 | DK11: 0 | DL11: 0 | DM11: 1876.19044 | DN11: -6.23131 | DO11: 0 | DP11: 0 | DQ11: 1882.42175 | DR11: 13340.61761 | DS11: 2328.30266 | DU11: 41.70008 | DV11: -357 | DW11: 862.32403 | DX11: 7179.49726 | DY11: 5393.17416 | DZ11: 887.71537 | EA11: 898.60773 | EB11: 21.25 | ED11: 7 | EE11: 9033 | EF11: 10002.14172 | EG11: 10568.37955 | EK11: -1675 | EL11: 119 | EM11: 144 | EN11: -1806.14546 | EO11: 389.7286 | EP11: 9239.82645 | EQ11: -2040.27947 | ER11: 141.74355 | ES11: 432.55729 | ET11: 0 | EU11: 1442 | EV11: 0 | EW11: 300 | EX11: 0 | EY11: -135 | EZ11: 4995 | FA11: 1403 | FB11: 3592 | FC11: 1652 | FD11: 4803 | FE11: 911 | FF11: 3892 | FG11: 1054.12591 | FH11: 4311 | FI11: 554 | FJ11: 3757 | FK11: 1480.36549 | FL11: 5577.433628 | FM11: 816.1652376 | FN11: 4959.938575 | FO11: 253.7964311 | FP11: 140.1415964 | FV11: 1033.775444
A12: 49 | B12: Espoo | C12: 292796 | E12: 4.047942201 | F12: 70.48585349 | G12: -741.8987964 | K12: 64.44527828 | L12: 3875.722346 | M12: 167.7636391 | N12: 8432.331726 | O12: 687990 | P12: 416164 | Q12: 1942554 | R12: -1526390 | S12: 1605340 | T12: 205087 | W12: 6090 | X12: 14289 | Y12: 304416 | Z12: 175319 | AA12: 0 | AB12: 0 | AC12: 129097 | AD12: -1232 | AE12: 0 | AF12: 15019 | AG12: 142884 | AH12: 637571 | AI12: 235436 | AK12: -27450 | AL12: -68170 | AM12: -35607 | AN12: 1605340 | AO12: 1356824 | AP12: 136178 | AQ12: 112338 | AR12: 18 | AT12: 26.82352941 | AU12: 297132 | AW12: 4.837979214 | AX12: 70.35554527 | AY12: -435.4607112 | BC12: 64.846855 | BD12: 4522.306508 | BE12: 197.4729703 | BF12: 8358.824362 | BG12: 725233.3814 | BH12: 494154.8081 | BI12: 2044328.549 | BJ12: -1550173.741 | BK12: 1711153.952 | BL12: 139004.408 | BO12: 6121.54164 | BP12: 76328.82364 | BQ12: 382434.984 | BR12: 190164.7398 | BS12: 0 | BT12: 0 | BU12: 192270.2441 | BV12: 232.4077 | BW12: 0 | BX12: -14994.92583 | BY12: 207032.7623 | BZ12: 819016.249 | CA12: 323929.2557 | CC12: 41265.62316 | CD12: -71790.64495 | CE12: 103297.4683 | CF12: 1711153.952 | CG12: 1374988.109 | CH12: 203093.3569 | CI12: 133072.4856 | CJ12: 18 | CL12: 10 | CM12: 305274 | CO12: 2.257393607 | CP12: 64.49511491 | CQ12: 314.2238505 | CU12: 67.20307191 | CV12: 5077.889473 | CW12: 229.7803265 | CX12: 8066.09376 | CY12: 746600.5222 | CZ12: 470150.3847 | DA12: 2122746.275 | DB12: -1652595.89 | DC12: 1850145.547 | DD12: 165597.969 | DG12: 6811.37585 | DH12: -22919.54814 | DI12: 347039.454 | DJ12: 199328.9489 | DK12: 97104.93395 | DL12: 0 | DM12: 244815.4391 | DN12: -15767.5923 | DO12: 0 | DP12: -2169.8645 | DQ12: 262752.8958 | DR12: 1038072.391 | DS12: 284293.9962 | DU12: 24216.34505 | DV12: -149202.2159 | DW12: 239294.8553 | DX12: 1850145.547 | DY12: 1484705.6 | DZ12: 223623.0179 | EA12: 141816.9298 | EB12: 18 | ED12: 17 | EE12: 918495 | EF12: 997830.8954 | EG12: 1044045.875 | EK12: -424525 | EL12: 82341 | EM12: 71141 | EN12: -318201.017 | EO12: 33797.85176 | EP12: 63771.37781 | EQ12: -259405.1927 | ER12: 14699.28626 | ES12: 199706.7655 | ET12: 285000 | EU12: 34749 | EV12: 0 | EW12: 223727.3315 | EX12: 0 | EY12: 43190.68653 | EZ12: 1240501 | FA12: 1038677 | FB12: 201824 | FC12: 359897 | FD12: 1392438.516 | FE12: 971750.3535 | FF12: 420688.1628 | FG12: 391278.4307 | FH12: 1286426.987 | FI12: 837533.4071 | FJ12: 448893.5797 | FK12: 420678.2357 | FL12: 14637.84341 | FM12: 15211.65167 | FN12: 14401.49156 | FO12: 82483.64443 | FP12: 270.1954455 | FV12: 1287.08784
A13: 50 | B13: Eura | C13: 11483 | E13: 5.64360587 | F13: 61.10211648 | G13: -3832.622137 | K13: 38.99856236 | L13: 295.9157015 | M13: 14.7461597 | N13: 7324.566751 | O13: 34910 | P13: 10855 | Q13: 77313 | R13: -66458 | S13: 45835 | T13: 28546 | W13: -129 | X13: 132 | Y13: 7926 | Z13: 4174 | AA13: 0 | AB13: 0 | AC13: 3752 | AD13: 20 | AE13: 0 | AF13: 0 | AG13: 3772 | AH13: 3482 | AI13: 7993 | AK13: -511 | AL13: -1281 | AM13: 2931 | AN13: 45835 | AO13: 40534 | AP13: 2487 | AQ13: 2814 | AR13: 21 | AT13: 138.6397059 | AU13: 11417 | AW13: 1.716257396 | AX13: 57.14060539 | AY13: -3666.413635 | BC13: 41.50285698 | BD13: 248.0012735 | BE13: 11.18867092 | BF13: 8090.367972 | BG13: 38075.28883 | BH13: 14427.71739 | BI13: 82653.74603 | BJ13: -68226.02864 | BK13: 48346.58028 | BL13: 26628.699 | BO13: -105.00863 | BP13: 110.00399 | BQ13: 6754.246 | BR13: 3798.15825 | BS13: 0 | BT13: 0 | BU13: 2956.08775 | BV13: -18.95267 | BW13: 0 | BX13: 0 | BY13: 2975.04042 | BZ13: 6456.75158 | CA13: 6151.77784 | CC13: -1719.70116 | CD13: -3883.07473 | CE13: 1890.2679 | CF13: 48346.58028 | CG13: 41538.94315 | CH13: 3640.50988 | CI13: 3167.12725 | CJ13: 21 | CL13: 134 | CM13: 11276 | CO13: 1.212374314 | CP13: 57.0258109 | CQ13: -3796.8304 | CU13: 40.01166339 | CV13: 102.5465821 | CW13: 4.620904812 | CX13: 8100.037546 | CY13: 38102.6571 | CZ13: 12098.0875 | DA13: 86704.51124 | DB13: -74606.42374 | DC13: 48201.62489 | DD13: 27452.392 | DG13: -146.27514 | DH13: 178.56701 | DI13: 1079.88502 | DJ13: 3847.25411 | DK13: 0 | DL13: 0 | DM13: -2767.36909 | DN13: -17.97181 | DO13: 0 | DP13: 0 | DQ13: -2749.39728 | DR13: 3707.3543 | DS13: 1268.65322 | DU13: 322.56426 | DV13: -859.55859 | DW13: -1211.29508 | DX13: 48201.62489 | DY13: 41188.58513 | DZ13: 3721.32958 | EA13: 3291.71018 | EB13: 21 | ED13: 264 | EE13: 29917 | EF13: 33334.03486 | EG13: 36383.283 | EK13: -5340 | EL13: 13 | EM13: 265 | EN13: -5697.20291 | EO13: 518.66696 | EP13: 917.02601 | EQ13: -3879.77555 | ER13: 20.74013 | ES13: 1379.08712 | ET13: 0 | EU13: 0 | EV13: 10000 | EW13: -8000 | EX13: 0 | EY13: -1500 | EZ13: 39601 | FA13: 14317 | FB13: 25284 | FC13: 2789 | FD13: 37717.40266 | FE13: 20857.84407 | FF13: 16859.55859 | FG13: 2718.10104 | FH13: 35357.84407 | FI13: 20012.73629 | FJ13: 15345.10778 | FK13: 2701.11767 | FL13: 5253.505182 | FM13: 5147.256394 | FN13: 5005.465925 | FO13: 1961.361197 | FP13: 173.94122 | FV13: 591.5955155
A14: 51 | B14: Eurajoki | C14: 9452 | E14: 2.249007374 | F14: 30.31164994 | G14: 552.1582734 | K14: 80.76027527 | L14: 2492.065171 | M14: 109.4549262 | N14: 8310.304697 | O14: 27445 | P14: 7086 | Q14: 69110 | R14: -62024 | S14: 51185 | T14: 14150 | W14: -63 | X14: 610 | Y14: 3858 | Z14: 4715 | AA14: 0 | AB14: 0 | AC14: -857 | AD14: 3 | AE14: 166 | AF14: 0 | AG14: -688 | AH14: 73022 | AI14: 3771 | AK14: 1586 | AL14: -1656 | AM14: 180 | AN14: 51185 | AO14: 28776 | AP14: 2667 | AQ14: 19742 | AR14: 18 | AT14: 255.4926471 | AU14: 9334 | AW14: 4.587193022 | AX14: 23.02364616 | AY14: 1039.505277 | BC14: 83.96358851 | BD14: 2701.138058 | BE14: 118.4400877 | BF14: 8324.169717 | BG14: 21307.06769 | BH14: 9612.46639 | BI14: 72254.29805 | BJ14: -62641.83166 | BK14: 56545.2611 | BL14: 12755.743 | BO14: -47.46374 | BP14: 1257.5816 | BQ14: 7869.2903 | BR14: 4657.49326 | BS14: 0 | BT14: 0 | BU14: 3211.79704 | BV14: -3.00562 | BW14: 0 | BX14: 0 | BY14: 3214.80266 | BZ14: 76237.02502 | CA14: 7992.77336 | CC14: 956.3803 | CD14: -1673.55006 | CE14: 4500.68723 | CF14: 56545.2611 | CG14: 30908.74323 | CH14: 3492.94999 | CI14: 22143.56788 | CJ14: 18 | CL14: 50 | CM14: 9211 | CO14: 3.669072831 | CP14: 22.36815741 | CQ14: 1476.956706 | CU14: 83.88687914 | CV14: 3139.873488 | CW14: 132.4483782 | CX14: 8652.83395 | CY14: 22418.25112 | CZ14: 9334.5087 | DA14: 77234.7856 | DB14: -67900.2769 | DC14: 59477.31155 | DD14: 14126.654 | DG14: -26.0696 | DH14: -22.66232 | DI14: 5654.95673 | DJ14: 4354.38273 | DK14: 0 | DL14: 0 | DM14: 1300.574 | DN14: -2.85735 | DO14: 0 | DP14: 0 | DQ14: 1303.43135 | DR14: 77540.47353 | DS14: 5654.97389 | DU14: -575.60414 | DV14: -1499.3073 | DW14: 3916.92613 | DX14: 59477.31155 | DY14: 32211.77872 | DZ14: 3424.65819 | EA14: 23840.87464 | EB14: 18 | ED14: 91 | EE14: 34270 | EF14: 45552.55795 | EG14: 49396.21686 | EK14: -7380 | EL14: 0 | EM14: 3789 | EN14: -3709.89313 | EO14: 146.475 | EP14: 71.332 | EQ14: -2121.78694 | ER14: 51.2021 | ES14: 332.53708 | ET14: 0 | EU14: 0 | EV14: 0 | EW14: 0 | EX14: 0 | EY14: 0 | EZ14: 10455 | FA14: 8866 | FB14: 1589 | FC14: 0 | FD14: 8781.66152 | FE14: 7282.92426 | FF14: 1498.73726 | FG14: 0 | FH14: 7282.35422 | FI14: 6172.27287 | FJ14: 1110.08135 | FK14: 0 | FL14: 1696.360559 | FM14: 1585.691628 | FN14: 1493.638187 | FO14: 1789.543262 | FP14: 194.2832768 | FV14: 843.0780266
A15: 52 | B15: Evijärvi | C15: 2408 | E15: 296 | F15: 54.41501671 | G15: -1184.800664 | K15: 52.14906161 | L15: 3031.146179 | M15: 124.0228574 | N15: 8920.681063 | O15: 4217 | P15: 1630 | Q15: 19394 | R15: -17764 | S15: 8100 | T15: 9715 | W15: 69 | X15: 175 | Y15: 295 | Z15: 744 | AA15: 0 | AB15: 0 | AC15: -449 | AD15: 0 | AE15: 0 | AF15: 0 | AG15: -449 | AH15: 2838 | AI15: 295 | AK15: 181 | AL15: 0 | AM15: -1230 | AN15: 8100 | AO15: 6733 | AP15: 674 | AQ15: 693 | AR15: 21.5 | AT15: 287.7279412 | AU15: 2404 | AX15: 55.56945409 | AY15: -1416.884867 | BC15: 51.78660771 | BD15: 3049.536094 | BE15: 123.3900174 | BF15: 9020.832463 | BG15: 4369.81058 | BH15: 1792.61106 | BI15: 19151.37745 | BJ15: -17358.76639 | BK15: 8855.19759 | BL15: 9661.002 | BO15: 89.46951 | BP15: 183.34749 | BQ15: 1430.2502 | BR15: 840.02521 | BS15: 0 | BT15: 0 | BU15: 590.22499 | BV15: 0 | BW15: 0 | BX15: 0 | BY15: 590.22499 | BZ15: 3427.51447 | CA15: 1395.7332 | CC15: -119.56412 | CD15: 0 | CE15: -556.70417 | CF15: 8855.19759 | CG15: 7118.60164 | CH15: 975.32399 | CI15: 761.27196 | CJ15: 22.5 | CL15: 131 | CM15: 2346 | CO15: 3.931661997 | CP15: 55.5762713 | CQ15: -1348.229433 | CU15: 51.6902471 | CV15: 3364.65795 | CW15: 133.8564046 | CX15: 9174.758244 | CY15: 4454.97328 | CZ15: 1848.54155 | DA15: 19724.08971 | DB15: -17875.54816 | DC15: 9163.04283 | DD15: 10076.903 | DG15: 0.23848 | DH15: -159.48572 | DI15: 1205.15043 | DJ15: 786.34138 | DK15: 0 | DL15: 0 | DM15: 418.80905 | DN15: 0 | DO15: 0 | DP15: 0 | DQ15: 418.80905 | DR15: 3846.32352 | DS15: 1205.15043 | DU15: -115.54194 | DV15: -250 | DW15: 119.86376 | DX15: 9163.04283 | DY15: 7326.38123 | DZ15: 1041.11068 | EA15: 795.55092 | EB15: 22.5 | ED15: 134 | EE15: 13237 | EF15: 13006.35633 | EG15: 13394.80199 | EK15: -1591 | EL15: 61 | EM15: 5 | EN15: -2488.58147 | EO15: 501.6271 | EP15: 34.517 | EQ15: -1283.379 | ER15: 198.09233 | ES15: 0 | ET15: 0 | EU15: 3200 | EV15: 0 | EW15: -200 | EX15: 5000 | EY15: -4300 | EZ15: 9700 | FA15: 0 | FB15: 9700 | FC15: 180 | FD15: 9500 | FE15: 0 | FF15: 9500 | FG15: 0 | FH15: 9950 | FI15: 4250 | FJ15: 5700 | FK15: 134.46511 | FL15: 5443.521595 | FM15: 5324.401418 | FN15: 5623.036918 | FO15: 325.6169436 | FP15: 138.7966511 | FV15: 594.9460067
A16: 61 | B16: Forssa | C16: 16800 | E16: 2.778869779 | F16: 48.44376179 | G16: -1605.47619 | K16: 57.94461182 | L16: 1689.107143 | M16: 81.69875688 | N16: 7546.309524 | O16: 29500 | P16: 18363 | Q16: 116977 | R16: -98614 | S16: 61562 | T16: 48333 | W16: -434 | X16: 27 | Y16: 10874 | Z16: 7583 | AA16: 0 | AB16: -664 | AC16: 3955 | AD16: 88 | AE16: -3000 | AF16: 0 | AG16: 1043 | AH16: 9182 | AI16: 10453 | AK16: 673 | AL16: -3634 | AM16: 4895 | AN16: 61562 | AO16: 52863 | AP16: 3955 | AQ16: 4744 | AR16: 20.5 | AT16: 160.8014706 | AU16: 16573 | AW16: 2.134797093 | AX16: 55.50452027 | AY16: -2149.600383 | BC16: 55.15882067 | BD16: 1722.300372 | BE16: 73.53812274 | BF16: 8548.486313 | BG16: 30499.21806 | BH16: 17788.83087 | BI16: 119882.8547 | BJ16: -102094.0239 | BK16: 64142.98091 | BL16: 46665.618 | BO16: -477.1706 | BP16: 68.40777 | BQ16: 8305.8122 | BR16: 6122.38515 | BS16: 0 | BT16: 0 | BU16: 2183.42705 | BV16: -88.49426 | BW16: 1400 | BX16: 0 | BY16: 871.92131 | BZ16: 10054.33332 | CA16: 8249.41188 | CC16: -424.13051 | CD16: -3635.9078 | CE16: -8827.98276 | CF16: 64142.98091 | CG16: 53742.53731 | CH16: 5842.3989 | CI16: 4558.0447 | CJ16: 20.5 | CL16: 182 | CM16: 16459 | CO16: 2.295341701 | CP16: 56.69506353 | CQ16: -2526.96568 | CU16: 53.89438429 | CV16: 1662.121973 | CW16: 70.00956536 | CX16: 8665.594724 | CY16: 30726.13703 | CZ16: 18659.38376 | DA16: 127041.8844 | DB16: -108382.5006 | DC16: 66797.93502 | DD16: 50180.029 | DG16: -396.00112 | DH16: 118.39807 | DI16: 8317.86034 | DJ16: 6215.3606 | DK16: 0 | DL16: 0 | DM16: 2102.49974 | DN16: -86.87491 | DO16: 0 | DP16: 0 | DQ16: 2189.37465 | DR16: 12243.70797 | DS16: 8286.10591 | DU16: -743.11153 | DV16: -3392.319 | DW16: -5528.37425 | DX16: 66797.93502 | DY16: 55085.3364 | DZ16: 6721.12909 | EA16: 4991.46953 | EB16: 20.5 | ED16: 142 | EE16: 78558 | EF16: 80957.23084 | EG16: 87716.7778 | EK16: -5724 | EL16: 34 | EM16: 132 | EN16: -17678.52744 | EO16: 514.3906 | EP16: 86.7422 | EQ16: -14669.57026 | ER16: 773.75 | ES16: 81.3401 | ET16: 10000 | EU16: -7201 | EV16: 13000 | EW16: -603.91926 | EX16: 6000 | EY16: 1370.40759 | EZ16: 52814 | FA16: 27174 | FB16: 25640 | FC16: 395 | FD16: 61574.16572 | FE16: 36800.96422 | FF16: 24773.2015 | FG16: 0 | FH16: 65552.25431 | FI16: 39262.66081 | FJ16: 26289.5935 | FK16: 771.79169 | FL16: 4027.797619 | FM16: 4679.500912 | FN16: 5183.145459 | FO16: 2687.08958 | FP16: 163.2595893 | FV16: 501.1652809
A17: 69 | B17: Haapajärvi | C17: 6896 | E17: 0.7367638863 | F17: 79.92397454 | G17: -3960.991879 | K17: 32.31287447 | L17: 2273.346868 | M17: 91.32427343 | N17: 9085.991879 | O17: 14155 | P17: 5280 | Q17: 52922 | R17: -47642 | S17: 23624 | T17: 27656 | W17: -315 | X17: 325 | Y17: 3648 | Z17: 2384 | AA17: 0 | AB17: 0 | AC17: 1264 | AD17: 85 | AE17: 0 | AF17: 0 | AG17: 1349 | AH17: -2928 | AI17: 3115 | AK17: -974 | AL17: -5065 | AM17: 690 | AN17: 23624 | AO17: 20221 | AP17: 1388 | AQ17: 2015 | AR17: 22.5 | AT17: 215.1985294 | AU17: 6802 | AW17: 0.6708470618 | AX17: 77.32486735 | AY17: -3749.105522 | BC17: 29.76220866 | BD17: 2675.690572 | BE17: 102.0373013 | BF17: 9571.274881 | BG17: 15034.32877 | BH17: 6099.03946 | BI17: 56116.19972 | BJ17: -50017.16026 | BK17: 25655.60965 | BL17: 27031.165 | BO17: -308.45706 | BP17: 1370.80976 | BQ17: 3731.96709 | BR17: 6062.11688 | BS17: 0 | BT17: 0 | BU17: -2330.14979 | BV17: -85.46604 | BW17: 0 | BX17: 0 | BY17: -2244.68375 | BZ17: -5172.66805 | CA17: 3958.96524 | CC17: 458.72903 | CD17: -5714.545 | CE17: 1582.26954 | CF17: 25655.60965 | CG17: 21357.59386 | CH17: 2111.40465 | CI17: 2186.61114 | CJ17: 22.5 | CL17: 159 | CM17: 6687 | CO17: 0.2872600493 | CP17: 80.40218409 | CQ17: -4528.735499 | CU17: 27.42939207 | CV17: 2419.725584 | CW17: 89.40299662 | CX17: 9878.861688 | CY17: 15184.56966 | CZ17: 6007.21672 | DA17: 57330.58909 | DB17: -51323.37237 | DC17: 27354.02005 | DD17: 26782.003 | DG17: -362.90705 | DH17: -936.70301 | DI17: 1513.04062 | DJ17: 2310.01287 | DK17: 0 | DL17: 0 | DM17: -796.97225 | DN17: -85.46604 | DO17: 0 | DP17: 0 | DQ17: -711.50621 | DR17: -6022.84008 | DS17: 1332.42979 | DU17: -137.52935 | DV17: -6167.594 | DW17: -4919.72331 | DX17: 27354.02005 | DY17: 22320.24149 | DZ17: 2183.88203 | EA17: 2849.89653 | EB17: 22.5 | ED17: 242 | EE17: 34495 | EF17: 36135.10293 | EG17: 37181.22919 | EH17: 970 | EI17: 1250 | EK17: -3874 | EL17: 46 | EM17: 1403 | EN17: -2761.8191 | EO17: 174.72916 | EP17: 210.39424 | EQ17: -6786.66687 | ER17: 32.21877 | ES17: 502.295 | ET17: 11360 | EU17: -3500 | EV17: 3415 | EW17: 2000 | EX17: 14531.35 | EY17: -7000 | EZ17: 41851 | FA17: 31156 | FB17: 10695 | FC17: 1132 | FD17: 41550.939 | FE17: 28873.545 | FF17: 12677.394 | FG17: 39.505 | FH17: 42914.695 | FI17: 35917.15844 | FJ17: 6997.53656 | FK17: 965.905 | FL17: 9184.019722 | FM17: 9459.5214 | FN17: 10212.57967 | FO17: 992.0107329 | FP17: 148.349145 | FV17: 548.6573199
A18: 71 | B18: Haapavesi | C18: 6667 | E18: 1.172669135 | F18: 63.4162785 | G18: -3268.336583 | K18: 33.09811828 | L18: 1354.732263 | M18: 44.36746339 | N18: 11145.04275 | O18: 30266 | P18: 16857 | Q18: 62065 | R18: -45208 | S18: 21576 | T18: 26831 | W18: -83 | X18: 120 | Y18: 3236 | Z18: 1360 | AA18: 0 | AB18: 0 | AC18: 1876 | AD18: 0 | AE18: 0 | AF18: 0 | AG18: 1875 | AH18: 4938 | AI18: 2711 | AK18: -187 | AL18: -2723 | AM18: -4281 | AN18: 21576 | AO18: 18864 | AP18: 1224 | AQ18: 1488 | AR18: 22 | AT18: 234.3382353 | AU18: 6613 | AW18: -0.06877857649 | AX18: 74.22034541 | AY18: -4321.918604 | BC18: 27.62840958 | BD18: 1400.539687 | BE18: 43.63034464 | BF18: 11716.54705 | BG18: 31962.15993 | BH18: 17825.62267 | BI18: 67699.94284 | BJ18: -49874.32017 | BK18: 22644.85722 | BL18: 26189.23504 | BO18: -165.45499 | BP18: 726.19241 | BQ18: -479.49049 | BR18: 1167.42848 | BS18: 0 | BT18: 0 | BU18: -1646.91897 | BV18: 0 | BW18: 0 | BX18: 0 | BY18: -1646.91897 | BZ18: 3290.94251 | CA18: -489.08178 | CC18: -1066.41466 | CD18: -2076.83945 | CE18: -7066.86616 | CF18: 22644.85722 | CG18: 19116.90349 | CH18: 1905.34122 | CI18: 1622.61251 | CJ18: 22 | CL18: 290 | CM18: 6591 | CO18: 0.4477427258 | CP18: 73.94640634 | CQ18: -4856.708242 | CU18: 25.5029391 | CV18: 1437.441809 | CW18: 43.05043473 | CX18: 12187.2465 | CY18: 33075.38657 | CZ18: 19373.57483 | DA18: 70121.39261 | DB18: -50747.81778 | DC18: 23668.09957 | DD18: 28519.222 | DG18: -299.08442 | DH18: -337.65073 | DI18: 802.76864 | DJ18: 1456.35054 | DK18: 0 | DL18: 0 | DM18: -653.5819 | DN18: 0 | DO18: 0 | DP18: 0 | DQ18: -653.5819 | DR18: 2504.13381 | DS18: 902.47499 | DU18: 44.36775 | DV18: -2352 | DW18: -3067.04199 | DX18: 23668.09957 | DY18: 19958.14578 | DZ18: 2010.61066 | EA18: 1699.34313 | EB18: 22 | ED18: 261 | EE18: 24087 | EF18: 28566.09511 | EG18: 28895.84588 | EK18: -7931 | EL18: 196 | EM18: 743 | EN18: -7239.4523 | EO18: 607.10692 | EP18: 54.561 | EQ18: -4706.56164 | ER18: 333.64912 | ES18: 403.39554 | ET18: 22000 | EU18: -15700 | EV18: 3520 | EW18: 7000 | EX18: 4000 | EY18: 1500 | EZ18: 31001 | FA18: 28950 | FB18: 2051 | FC18: 0 | FD18: 39444 | FE18: 30292 | FF18: 9152 | FG18: 0 | FH18: 42592 | FI18: 31540 | FJ18: 11052 | FK18: 0 | FL18: 6462.126894 | FM18: 8029.538016 | FN18: 8788.002423 | FO18: 907.1884445 | FP18: 137.6404862 | FV18: -72.50725692
A19: 72 | B19: Hailuoto | C19: 949 | E19: 1.483050847 | F19: 37.28431262 | G19: -2390.937829 | K19: 68.67342308 | L19: 653.3192835 | M19: 24.90370859 | N19: 9575.342466 | O19: 3726 | P19: 1419 | Q19: 8347 | R19: -6928 | S19: 3605 | T19: 3843 | W19: -13 | X19: 0 | Y19: 507 | Z19: 509 | AA19: 0 | AB19: 0 | AC19: -2 | AD19: 92 | AE19: 0 | AF19: 0 | AG19: 90 | AH19: 3138 | AI19: 507 | AK19: 34 | AL19: -336 | AM19: 166 | AN19: 3605 | AO19: 3176 | AP19: 121 | AQ19: 308 | AR19: 20.5 | AT19: 213.1838235 | AU19: 950 | AW19: 1.014388212 | AX19: 34.89594758 | AY19: -2417.483495 | BC19: 68.86711065 | BD19: 492.2661684 | BE19: 17.77565885 | BF19: 10108.04455 | BG19: 3897.96644 | BH19: 1677.01203 | BI19: 8854.95328 | BJ19: -7177.94125 | BK19: 3780.21682 | BL19: 3749.484 | BO19: -10.08803 | BP19: -0.70544 | BQ19: 340.9661 | BR19: 509.8461 | BS19: 0 | BT19: 0 | BU19: -168.88 | BV19: -92.19396 | BW19: 0 | BX19: 0 | BY19: -76.68604 | BZ19: 3062.21639 | CA19: 281.39764 | CC19: -30.99306 | CD19: -335.922 | CE19: -16.84502 | CF19: 3780.21682 | CG19: 3249.47155 | CH19: 187.31176 | CI19: 343.43351 | CJ19: 20.5 | CL19: 232 | CM19: 960 | CO19: 2.407094789 | CP19: 29.18729557 | CQ19: -1656.877052 | CU19: 71.15443114 | CV19: 700.5623229 | CW19: 26.13564289 | CX19: 9783.774938 | CY19: 3903.45751 | CZ19: 1891.53984 | DA19: 9205.79489 | DB19: -7314.25505 | DC19: 4233.37881 | DD19: 3991.253 | DG19: -9.81265 | DH19: -0.1392 | DI19: 900.42491 | DJ19: 518.42859 | DK19: 0 | DL19: 0 | DM19: 381.99632 | DN19: -91.87196 | DO19: 0 | DP19: 0 | DQ19: 473.86828 | DR19: 3536.08467 | DS19: 785.65878 | DU19: -240.98761 | DV19: -365.922 | DW19: 742.71807 | DX19: 4233.37881 | DY19: 3685.59681 | DZ19: 185.22874 | EA19: 362.55326 | EB19: 20.5 | ED19: 39 | EE19: 3413 | EF19: 3629.86312 | EG19: 3809.03527 | EK19: -383 | EL19: 31 | EM19: 11 | EN19: -382.66265 | EO19: 0 | EP19: 84.41999 | EQ19: -166.51671 | ER19: 0 | ES19: 123.576 | ET19: 0 | EU19: 0 | EV19: 300 | EW19: 0 | EX19: 0 | EY19: 0 | EZ19: 2244 | FA19: 1908 | FB19: 336 | FC19: 0 | FD19: 2208.339 | FE19: 1842.417 | FF19: 365.922 | FG19: 0 | FH19: 1842.417 | FI19: 1501.495 | FJ19: 340.922 | FK19: 0 | FL19: 4181.243414 | FM19: 4822.558853 | FN19: 5276.607938 | FO19: 179.7852102 | FP19: 187.2762607 | FV19: 358.9116842
A20: 74 | B20: Halsua | C20: 1103 | E20: 59.82352941 | F20: 54.73608838 | G20: -3742.520399 | K20: 39.28976628 | L20: 316.4097915 | M20: 13.85523167 | N20: 8335.448776 | O20: 2052 | P20: 912 | Q20: 8764 | R20: -7852 | S20: 4000 | T20: 4864 | W20: -9 | X20: 4 | Y20: 1007 | Z20: 492 | AA20: 0 | AB20: 0 | AC20: 515 | AD20: 0 | AE20: 0 | AF20: 0 | AG20: 515 | AH20: 520 | AI20: 1001 | AK20: -401 | AL20: -7 | AM20: 594 | AN20: 4000 | AO20: 3206 | AP20: 440 | AQ20: 354 | AR20: 23.5 | AT20: 59.05882353 | AU20: 1083 | AW20: 4.60422476 | AX20: 62.86024728 | AY20: -4755.201754 | BC20: 36.63151527 | BD20: 157.9940351 | BE20: 5.857524796 | BF20: 9844.122982 | BG20: 2244.11012 | BH20: 1197.59511 | BI20: 9554.83918 | BJ20: -8357.24407 | BK20: 4126.96856 | BL20: 4489.494 | BO20: -3.78603 | BP20: 2.0361 | BQ20: 257.46856 | BR20: 154.60378 | BS20: 0 | BT20: 0 | BU20: 102.86478 | BV20: 0 | BW20: 0 | BX20: 0 | BY20: 102.86478 | BZ20: 623.6961 | CA20: 256.57418 | CC20: -48.72228 | CD20: -52.4196 | CE20: -1064.84991 | CF20: 4126.96856 | CG20: 3093.77009 | CH20: 634.66183 | CI20: 398.53664 | CJ20: 23.5 | CL20: 270 | CM20: 1052 | CO20: 8.081777499 | CP20: 57.75135444 | CQ20: -4389.203745 | CU20: 41.12448017 | CV20: 0 | CW20: 0 | CX20: 9533.236511 | CY20: 2179.7573 | CZ20: 1203.44051 | DA20: 9641.49878 | DB20: -8438.05827 | DC20: 4285.54642 | DD20: 4867.285 | DG20: -20.76781 | DH20: 88.32956 | DI20: 782.3349 | DJ20: 170.89681 | DK20: 0 | DL20: 0 | DM20: 611.43809 | DN20: 0 | DO20: 0 | DP20: 0 | DQ20: 611.43809 | DR20: 1235.13419 | DS20: 766.36 | DU20: -120.398 | DV20: -65.661 | DW20: 537.524 | DX20: 4285.54642 | DY20: 3274.11178 | DZ20: 606.00785 | EA20: 405.42679 | EB20: 23.5 | ED20: 58 | EE20: 5548 | EF20: 6057.55518 | EG20: 6103.44149 | EH20: 160 | EK20: -413 | EL20: 0 | EM20: 6 | EN20: -1322.32409 | EO20: 0 | EP20: 0.9 | EQ20: -244.887 | ER20: 0 | ES20: 16.051 | ET20: 0 | EU20: -250 | EV20: 525.80278 | EW20: 345.69156 | EX20: 1000 | EY20: -1141.133 | EZ20: 4682 | FA20: 975 | FB20: 3707 | FC20: 95 | FD20: 5501.13978 | FE20: 1448.72018 | FF20: 4052.4196 | FG20: 0 | FH20: 5294.36569 | FI20: 2383.05911 | FJ20: 2911.30658 | FK20: 0 | FL20: 12410.6981 | FM20: 13050.65282 | FN20: 13504.93441 | FO20: 139.3239055 | FP20: 132.4371726 | FV20: 237.7364358
A21: 75 | B21: Hamina | C21: 19877 | E21: 0.7058621164 | F21: 61.5686855 | G21: -4331.488655 | K21: 50.6851525 | L21: 513.1559088 | M21: 18.97437466 | N21: 9871.308548 | O21: 34495 | P21: 26458 | Q21: 144562 | R21: -118104 | S21: 89199 | T21: 46900 | W21: -259 | X21: 2220 | Y21: 19956 | Z21: 9728 | AA21: 0 | AB21: 0 | AC21: 10228 | AD21: 0 | AE21: -1500 | AF21: 0 | AG21: 8728 | AH21: 14236 | AI21: 23443 | AK21: -736 | AL21: -28506 | AM21: 2729 | AN21: 89199 | AO21: 74460 | AP21: 8528 | AQ21: 6211 | AR21: 21 | AT21: 35.88970588 | AU21: 19702 | AW21: 0.5369334771 | AX21: 56.36196432 | AY21: -4373.991357 | BC21: 54.03367447 | BD21: 173.0938428 | BE21: 6.361947828 | BF21: 9930.803319 | BG21: 36890.76993 | BH21: 26654.4087 | BI21: 154221.5931 | BJ21: -127567.1844 | BK21: 98763.11836 | BL21: 41394.624 | BO21: 87.20913 | BP21: 1583.81057 | BQ21: 14261.57765 | BR21: 9930.5407 | BS21: 0 | BT21: 0 | BU21: 4331.03695 | BV21: 0 | BW21: 1500 | BX21: 0 | BY21: 2831.03695 | BZ21: 20086.95637 | CA21: 13461.27935 | CC21: -730.32653 | CD21: -26848.58081 | CE21: -128.80926 | CF21: 98763.11836 | CG21: 77532.98473 | CH21: 14466.73852 | CI21: 6763.39511 | CJ21: 21 | CL21: 81 | CM21: 19549 | CO21: 0.7733129914 | CP21: 46.25310669 | CQ21: -3821.69279 | CU21: 58.33677933 | CV21: 21.81760346 | CW21: 0.8868983232 | CX21: 8978.960783 | CY21: 38569.05204 | CZ21: 32300.31758 | DA21: 166054.8125 | DB21: -133754.4949 | DC21: 102243.5276 | DD21: 42809.353 | DG21: 56.81246 | DH21: 533.14658 | DI21: 11888.34473 | DJ21: 10866.27221 | DK21: 0 | DL21: 0 | DM21: 1022.07252 | DN21: 0 | DO21: 0 | DP21: 0 | DQ21: 1022.07252 | DR21: 21150.75734 | DS21: 2967.42703 | DU21: -2499.83003 | DV21: -15421.1705 | DW21: 11030.2854 | DX21: 102243.5276 | DY21: 74701.45804 | DZ21: 20237.80966 | EA21: 7304.25988 | EB21: 21 | ED21: 94 | EE21: 97229 | EF21: 105216.2935 | EG21: 113067.5945 | EK21: -21782 | EL21: 63 | EM21: 1005 | EN21: -14085.24729 | EO21: 58.309 | EP21: 436.84968 | EQ21: -9568.8352 | ER21: 114.94407 | ES21: 17516.7495 | ET21: 28530 | EU21: -2616 | EV21: 20000 | EW21: -2311.45281 | EX21: 1115.89188 | EY21: 1866.99266 | EZ21: 84601 | FA21: 61303 | FB21: 23298 | FC21: 9487 | FD21: 75440.04098 | FE21: 64943.54444 | FF21: 10496.49654 | FG21: 9149.25784 | FH21: 63001.75502 | FI21: 50822.13488 | FJ21: 12179.62014 | FK21: 8701.52359 | FL21: 8526.035116 | FM21: 10386.55576 | FN21: 10020.45932 | FO21: 3557.212288 | FP21: 181.9639003 | FV21: 723.864463
A22: 77 | B22: Hankasalmi | C22: 4782 | E22: 4.562626263 | F22: 25.53324516 | G22: -1607.486407 | K22: 63.65611105 | L22: 201.3801757 | M22: 8.692625383 | N22: 8455.876202 | O22: 14940 | P22: 5573 | Q22: 37257 | R22: -31684 | S22: 15424 | T22: 20588 | W22: -59 | X22: 189 | Y22: 4458 | Z22: 2667 | AA22: 645 | AB22: 0 | AC22: 2436 | AD22: 0 | AE22: 0 | AF22: 0 | AG22: 2436 | AH22: 86 | AI22: 4257 | AK22: 251 | AL22: -931 | AM22: 6494 | AN22: 15424 | AO22: 13086 | AP22: 1057 | AQ22: 1281 | AR22: 22 | AT22: 53.01470588 | AU22: 4683 | AW22: 4.832660147 | AX22: 23.67044003 | AY22: -1101.265296 | BC22: 64.40233806 | BD22: 447.4068781 | BE22: 18.90428799 | BF22: 8638.43751 | BG22: 14114.37008 | BH22: 5870.74085 | BI22: 39158.89783 | BJ22: -33288.15698 | BK22: 16744.22646 | BL22: 19281.032 | BO22: -40.82234 | BP22: 270.33223 | BQ22: 2966.61137 | BR22: 1714.53699 | BS22: 0 | BT22: 118.7 | BU22: 1133.37438 | BV22: 0 | BW22: 0 | BX22: 0 | BY22: 1133.37438 | BZ22: 927.73215 | CA22: 3696.03546 | CC22: -695.90618 | CD22: -581.492 | CE22: 2814.12394 | CF22: 16744.22646 | CG22: 13777.88288 | CH22: 1534.6539 | CI22: 1431.68968 | CJ22: 22 | CL22: 116 | CM22: 4601 | CO22: 2.920440886 | CP22: 25.14452976 | CQ22: -950.9095045 | CU22: 63.57788571 | CV22: 881.2753271 | CW22: 35.50356475 | CX22: 9060.09007 | CY22: 14606.91848 | CZ22: 5587.31357 | DA22: 40940.09244 | DB22: -35352.77887 | DC22: 16841.76722 | DD22: 20094.759 | DG22: -36.56478 | DH22: 221.49474 | DI22: 1768.67731 | DJ22: 1694.71884 | DK22: 0 | DL22: 0 | DM22: 73.95847 | DN22: 0 | DO22: 0 | DP22: 0 | DQ22: 73.95847 | DR22: 1001.69062 | DS22: 1412.18633 | DU22: 401.99846 | DV22: -581.492 | DW22: 786.27785 | DX22: 16841.76722 | DY22: 13854.63215 | DZ22: 1510.06576 | EA22: 1477.06931 | EB22: 22 | ED22: 186 | EE22: 17914 | EF22: 20097.77755 | EG22: 21261.19422 | EH22: 670 | EK22: -2189 | EL22: 505 | EM22: 3921 | EN22: -916.01786 | EO22: 0 | EP22: 34.10634 | EQ22: -694.75387 | ER22: 29.786 | ES22: 39.05939 | ET22: 0 | EU22: -6000 | EV22: 0 | EW22: -175 | EX22: 0 | EY22: 0 | EZ22: 6258 | FA22: 5501 | FB22: 757 | FC22: 0 | FD22: 5501.496 | FE22: 4920.004 | FF22: 581.492 | FG22: 0 | FH22: 4920.004 | FI22: 4338.512 | FJ22: 581.492 | FK22: 0 | FL22: 4111.877875 | FM22: 4042.763404 | FN22: 4005.953419 | FO22: 629.7560068 | FP22: 136.8737246 | FV22: 633.4852381
A23: 78 | B23: Hanko | C23: 8042 | E23: 1.910141767 | F23: 94.43092691 | G23: -7602.21338 | K23: 41.50965168 | L23: 345.3121114 | M23: 13.33322371 | N23: 9452.996767 | O23: 28818 | P23: 17762 | Q23: 67029 | R23: -49267 | S23: 40162 | T23: 15883 | W23: 1058 | X23: 220 | Y23: 8056 | Z23: 3557 | AA23: 0 | AB23: 0 | AC23: 4499 | AD23: 10 | AE23: 0 | AF23: 0 | AG23: 4509 | AH23: 11446 | AI23: 6141 | AK23: 679 | AL23: -3883 | AM23: 3459 | AN23: 40162 | AO23: 34419 | AP23: 3162 | AQ23: 2581 | AR23: 21.75 | AT23: 37.90441176 | AU23: 7979 | AW23: 1.208584843 | AX23: 86.41375981 | AY23: -7150.73315 | BC23: 45.08082812 | BD23: 210.5999624 | BE23: 7.81582501 | BF23: 9835.044435 | BG23: 28893.79298 | BH23: 19170.10592 | BI23: 69095.38617 | BJ23: -49925.28025 | BK23: 41324.18238 | BL23: 14272.704 | BO23: 1324.29417 | BP23: 205.11866 | BQ23: 7201.01896 | BR23: 3546.92227 | BS23: 0 | BT23: 0 | BU23: 3654.09669 | BV23: -9.79257 | BW23: 0 | BX23: 0 | BY23: 3663.88926 | BZ23: 15110.08435 | CA23: 5716.56108 | CC23: 200 | CD23: -5883.332 | CE23: 4368.62732 | CF23: 41324.18238 | CG23: 34062.65192 | CH23: 4381.7628 | CI23: 2879.76766 | CJ23: 21.75 | CL23: 38 | CM23: 7832 | CO23: 0.9439341691 | CP23: 77.79981747 | CQ23: -6908.783089 | CU23: 48.15500203 | CV23: 75.38022472 | CW23: 2.777734628 | CX23: 9905.115392 | CY23: 31544.05017 | CZ23: 18165.7932 | DA23: 73913.97506 | DB23: -55748.18186 | DC23: 43720.50514 | DD23: 15557.41 | DG23: 1330.00067 | DH23: 669.38207 | DI23: 5529.11602 | DJ23: 3366.62771 | DK23: 0 | DL23: 0 | DM23: 2162.48831 | DN23: -4.42812 | DO23: 2000 | DP23: 0 | DQ23: 166.91643 | DR23: 15277.00078 | DS23: 5253.93827 | DU23: 200 | DV23: -5883.332 | DW23: 2967.20863 | DX23: 43720.50514 | DY23: 35337.8112 | DZ23: 5408.17359 | EA23: 2974.52035 | EB23: 21.75 | ED23: 63 | EE23: 29149 | EF23: 31171.23629 | EG23: 32683.09594 | EK23: -4645 | EL23: 84 | EM23: 1879 | EN23: -2828.15342 | EO23: 0 | EP23: 1480.21966 | EQ23: -3489.99665 | ER23: 20 | ES23: 1183.26701 | ET23: 10000 | EU23: -9000 | EV23: 0 | EW23: 0 | EX23: 0 | EY23: -1000 | EZ23: 61403 | FA23: 25020 | FB23: 36383 | FC23: 30755 | FD23: 55520.006 | FE23: 19136.674 | FF23: 36383.332 | FG23: 30715.71499 | FH23: 48636.674 | FI23: 13253.342 | FJ23: 35383.332 | FK23: 30951.66919 | FL23: 9473.389704 | FM23: 8712.312609 | FN23: 7984.357302 | FO23: 1624.726952 | FP23: 207.4472615 | FV23: 902.4964231
A24: 79 | B24: Harjavalta | C24: 6869 | E24: 0.9230219256 | F24: 48.73704722 | G24: -3457.562964 | K24: 42.02168205 | L24: 118.7945844 | M24: 4.97104231 | N24: 8722.521473 | O24: 15848 | P24: 6797 | Q24: 51130 | R24: -44333 | S24: 34754 | T24: 13375 | W24: -49 | X24: 73 | Y24: 3820 | Z24: 2689 | AA24: 0 | AB24: 0 | AC24: 1131 | AD24: 0 | AE24: 0 | AF24: 0 | AG24: 1131 | AH24: 1868 | AI24: 3746 | AK24: -243 | AL24: -4143 | AM24: 570 | AN24: 34754 | AO24: 24952 | AP24: 7229 | AQ24: 2573 | AR24: 21.5 | AT24: 205.125 | AU24: 6785 | AW24: 1.573311675 | AX24: 43.81845625 | AY24: -3202.923838 | BC24: 47.8214198 | BD24: 183.4160825 | BE24: 7.358159207 | BF24: 9098.317696 | BG24: 13308.27277 | BH24: 6878.57978 | BI24: 52570.55699 | BJ24: -45691.97721 | BK24: 39252.7974 | BL24: 13272.303 | BO24: -18.10001 | BP24: 52.00221 | BQ24: 6867.02539 | BR24: 2785.58096 | BS24: 0 | BT24: 0 | BU24: 4081.44443 | BV24: 0 | BW24: 0 | BX24: 0 | BY24: 4081.44443 | BZ24: 6131.73541 | CA24: 6721.05038 | CC24: -854.12928 | CD24: -4357.14988 | CE24: 2220.58795 | CF24: 39252.7974 | CG24: 25571.26305 | CH24: 10924.11338 | CI24: 2757.42097 | CJ24: 21.5 | CL24: 26 | CM24: 6753 | CO24: 1.482557825 | CP24: 38.14993522 | CQ24: -2975.035408 | CU24: 53.39011523 | CV24: 180.6982289 | CW24: 7.300287361 | CX24: 9034.555806 | CY24: 14206.37948 | CZ24: 6699.07601 | DA24: 55904.93323 | DB24: -49205.85722 | DC24: 41299.76127 | DD24: 13609.614 | DG24: -60.08296 | DH24: 107.97556 | DI24: 5751.41065 | DJ24: 2673.92774 | DK24: 0 | DL24: 0 | DM24: 3077.48291 | DN24: 0 | DO24: 1500 | DP24: 0 | DQ24: 1577.48291 | DR24: 7709.21832 | DS24: 5588.88968 | DU24: 861.70468 | DV24: -3857.13888 | DW24: 1708.24926 | DX24: 41299.76127 | DY24: 26236.4529 | DZ24: 12240.03742 | EA24: 2823.27095 | EB24: 21.5 | ED24: 44 | EE24: 31216 | EF24: 35815.35031 | EG24: 38167.58234 | EK24: -4599 | EL24: 62 | EM24: 1361 | EN24: -4778.05261 | EO24: 63.51 | EP24: 214.08018 | EQ24: -5043.45725 | ER24: 0 | ES24: 1162.81683 | ET24: 6000 | EU24: -3500 | EV24: 3000 | EW24: 2500 | EX24: 2500 | EY24: -2500 | EZ24: 19572 | FA24: 13929 | FB24: 5643 | FC24: 21 | FD24: 20714.29635 | FE24: 12857.15747 | FF24: 7857.13888 | FG24: 17.49158 | FH24: 16857.15747 | FI24: 11142.86573 | FJ24: 5714.29174 | FK24: 14.29602 | FL24: 3821.225797 | FM24: 4063.40901 | FN24: 3550.443708 | FO24: 1220.300135 | FP24: 180.7048919 | FV24: 1012.089225
A25: 81 | B25: Hartola | C25: 2655 | E25: 2.791738382 | F25: 57.36413757 | G25: -3447.834275 | K25: 33.79608897 | L25: 887.3822976 | M25: 38.19578929 | N25: 8479.849341 | O25: 3983 | P25: 2062 | Q25: 19683 | R25: -17621 | S25: 10263 | T25: 10534 | W25: -64 | X25: 61 | Y25: 3173 | Z25: 1130 | AA25: 0 | AB25: 0 | AC25: 2043 | AD25: 0 | AE25: 0 | AF25: 0 | AG25: 2042 | AH25: 1262 | AI25: 3154 | AK25: -590 | AL25: -1091 | AM25: 1513 | AN25: 10263 | AO25: 7580 | AP25: 1467 | AQ25: 1216 | AR25: 21.5 | AT25: 11 | AU25: 2621 | AW25: 1.338916648 | AX25: 70.1483558 | AY25: -4248.692907 | BC25: 31.68001389 | BD25: 1058.571721 | BE25: 40.34359555 | BF25: 9577.19987 | BG25: 3834.92958 | BH25: 1676.82853 | BI25: 20464.79987 | BJ25: -18787.97134 | BK25: 10852.59372 | BL25: 9467.227 | BO25: -57.70095 | BP25: 77.82003 | BQ25: 1551.96846 | BR25: 993.99361 | BS25: 0 | BT25: 102.80421 | BU25: 455.17064 | BV25: 0 | BW25: 0 | BX25: 0 | BY25: 455.17064 | BZ25: 1717.17183 | CA25: 1462.69622 | CC25: 80.2321 | CD25: -1142.86151 | CE25: -1911.7192 | CF25: 10852.59372 | CG25: 7384.56358 | CH25: 2118.37143 | CI25: 1349.65871 | CJ25: 21.5 | CL25: 133 | CM25: 2574 | CO25: 0.8068118 | CP25: 58.53267943 | CQ25: -3986.993287 | CU25: 35.45475814 | CV25: 616.2706721 | CW25: 25.64806699 | CX25: 8770.204608 | CY25: 3867.09268 | CZ25: 1759.58691 | DA25: 21888.13195 | DB25: -20128.54504 | DC25: 11203.45216 | DD25: 9868.167 | DG25: -67.06188 | DH25: 160.75685 | DI25: 1036.76909 | DJ25: 1258.83257 | DK25: 0 | DL25: 96.75147 | DM25: -318.81495 | DN25: 0 | DO25: 0 | DP25: 0 | DQ25: -318.81495 | DR25: 1839.09671 | DS25: 776.11537 | DU25: 5.03196 | DV25: -1302.727 | DW25: 318.41746 | DX25: 11203.45216 | DY25: 7825.56773 | DZ25: 1965.57648 | EA25: 1412.30795 | EB25: 21.5 | ED25: 176 | EE25: 14448 | EF25: 15330.61843 | EG25: 16756.32979 | EH25: 370 | EK25: -1674 | EL25: 13 | EM25: 20 | EN25: -3422.91034 | EO25: 0 | EP25: 48.49492 | EQ25: -612.30211 | ER25: 102.2042 | ES25: 52.4 | ET25: 2700 | EU25: -1500 | EV25: 2030.86 | EW25: 1500 | EX25: 2000 | EY25: -3500 | EZ25: 11269 | FA25: 8126 | FB25: 3143 | FC25: 22 | FD25: 13656.548 | FE25: 8853.821 | FF25: 4802.727 | FG25: 19.33595 | FH25: 10853.821 | FI25: 9446.839 | FJ25: 1406.982 | FK25: 19.33595 | FL25: 9859.13371 | FM25: 10502.36742 | FN25: 8908.853928 | FO25: 363.9798944 | FP25: 141.4063304 | FV25: 592.1283709
A26: 82 | B26: Hattula | C26: 9389 | E26: 1.477094972 | F26: 63.95442225 | G26: -3821.599744 | K26: 40.19678276 | L26: 54.21237618 | M26: 3.054820198 | N26: 6477.473639 | O26: 22056 | P26: 6459 | Q26: 54593 | R26: -48134 | S26: 39278 | T26: 14030 | W26: 49 | X26: -87 | Y26: 5136 | Z26: 2149 | AA26: 0 | AB26: 0 | AC26: 2987 | AD26: 0 | AE26: -2000 | AF26: 0 | AG26: 2987 | AH26: 6233 | AI26: 4831 | AK26: 1566 | AL26: -3428 | AM26: 2390 | AN26: 39278 | AO26: 35704 | AP26: 1266 | AQ26: 2308 | AR26: 20.75 | AT26: 210.1617647 | AU26: 9405 | AW26: 0.5608137475 | AX26: 66.05827317 | AY26: -3829.059427 | BC26: 39.0232597 | BD26: 81.63288889 | BE26: 4.361440855 | BF26: 6831.688297 | BG26: 23785.44079 | BH26: 7550.70501 | BI26: 58551.23379 | BJ26: -51000.52878 | BK26: 40611.97742 | BL26: 12270.818 | BO26: 54.77065 | BP26: -0.01684 | BQ26: 1937.02045 | BR26: 2219.27681 | BS26: 134.14348 | BT26: 0 | BU26: -148.11288 | BV26: 0 | BW26: 0 | BX26: 0 | BY26: -148.11288 | BZ26: 6084.81829 | CA26: 2045.324 | CC26: -1308.60819 | CD26: -3578 | CE26: 151.17605 | CF26: 40611.97742 | CG26: 36112.62731 | CH26: 1918.45721 | CI26: 2580.8929 | CJ26: 20.75 | CL26: 272 | CM26: 9359 | CO26: 0.4924878076 | CP26: 61.9219908 | CQ26: -3920.099581 | CU26: 40.74743503 | CV26: 102.3831841 | CW26: 5.162574922 | CX26: 7238.609175 | CY26: 24589.21974 | CZ26: 7376.64806 | DA26: 61571.27932 | DB26: -54194.63126 | DC26: 43123.38643 | DD26: 13903.883 | DG26: 47.69781 | DH26: -59.50728 | DI26: 2820.8287 | DJ26: 2037.92404 | DK26: 1095.77753 | DL26: 8.06452 | DM26: 1870.61767 | DN26: 0 | DO26: 0 | DP26: 0 | DQ26: 1870.61767 | DR26: 7955.43596 | DS26: 2480.13742 | DU26: 907.49391 | DV26: -5893.33334 | DW26: -668.07013 | DX26: 43123.38643 | DY26: 38245.79439 | DZ26: 2128.7133 | EA26: 2748.87874 | EB26: 20.75 | ED26: 216 | EE26: 26379 | EF26: 28425.79992 | EG26: 30069.37274 | EK26: -2545 | EL26: 23 | EM26: 81 | EN26: -1961.46551 | EO26: 0 | EP26: 67.31756 | EQ26: -5905.9004 | ER26: 42.5 | ES26: 2715.19285 | ET26: 6000 | EU26: -7157 | EV26: 5000 | EW26: -891.18247 | EX26: 0 | EY26: 6427.45567 | EZ26: 31551 | FA26: 25390 | FB26: 6161 | FC26: 4398 | FD26: 32081.96111 | FE26: 26878.66266 | FF26: 5203.29845 | FG26: 4397.80291 | FH26: 32616.08344 | FI26: 21623.32932 | FJ26: 10992.75412 | FK26: 4397.80291 | FL26: 5014.485036 | FM26: 5140.24733 | FN26: 5984.712597 | FO26: 1843.170814 | FP26: 196.9409995 | FV26: 205.956454
A27: 86 | B27: Hausjärvi | C27: 8175 | E27: 1.334507042 | F27: 65.06901909 | G27: -3201.46789 | K27: 37.85623999 | L27: 1003.058104 | M27: 48.51127283 | N27: 7547.033639 | O27: 18362 | P27: 6473 | Q27: 50730 | R27: -44257 | S27: 32854 | T27: 16695 | W27: -156 | X27: -2 | Y27: 5134 | Z27: 2054 | AA27: 0 | AB27: 0 | AC27: 3080 | AD27: 0 | AE27: 0 | AF27: 0 | AG27: 3080 | AH27: 7938 | AI27: 4982 | AK27: -986 | AL27: -3804 | AM27: -1405 | AN27: 32854 | AO27: 30132 | AP27: 1174 | AQ27: 1548 | AR27: 21.5 | AT27: 167.8529412 | AU27: 8143 | AW27: 0.7821848624 | AX27: 58.53693767 | AY27: -3077.143278 | BC27: 41.56763414 | BD27: 853.8153911 | BE27: 41.49369759 | BF27: 7510.601269 | BG27: 19699.32145 | BH27: 8425.15032 | BI27: 54054.66267 | BJ27: -45629.51235 | BK27: 34502.73814 | BL27: 15439.56288 | BO27: -50.60239 | BP27: 21.51122 | BQ27: 4283.6975 | BR27: 2278.90545 | BS27: 0 | BT27: 0 | BU27: 2004.79205 | BV27: 0 | BW27: 0 | BX27: 0 | BY27: 2004.79205 | BZ27: 9942.88542 | CA27: 3918.89334 | CC27: -84.75786 | CD27: -5498.50724 | CE27: 1135.32303 | CF27: 34502.73814 | CG27: 31176.44542 | CH27: 1658.41377 | CI27: 1667.87895 | CJ27: 21.5 | CL27: 168 | CM27: 8031 | CO27: 0.97737408 | CP27: 51.48759885 | CQ27: -3113.677508 | CU27: 44.62863914 | CV27: 507.3726074 | CW27: 24.78559628 | CX27: 7471.718638 | CY27: 20564.83276 | CZ27: 7743.07667 | DA27: 56930.98155 | DB27: -49187.90488 | DC27: 35860.036 | DD27: 16384.637 | DG27: -211.95142 | DH27: 28.53491 | DI27: 2873.35161 | DJ27: 2376.27613 | DK27: 0 | DL27: 0 | DM27: 497.07548 | DN27: 0 | DO27: 0 | DP27: 0 | DQ27: 497.07548 | DR27: 10439.9609 | DS27: 2676.06261 | DU27: 344.33612 | DV27: -2944.82324 | DW27: 258.07995 | DX27: 35860.036 | DY27: 32316.941 | DZ27: 1758.836 | EA27: 1784.259 | EB27: 21.5 | ED27: 195 | EE27: 26229 | EF27: 29098.77039 | EG27: 31051.15673 | EK27: -7003 | EL27: 449 | EM27: 167 | EN27: -2971.3179 | EO27: 0 | EP27: 187.74759 | EQ27: -2854.3376 | ER27: 179.79491 | ES27: 256.56003 | ET27: 5000 | EU27: 5000 | EV27: 6500 | EW27: -3000 | EX27: 0 | EY27: -692.436 | EZ27: 29528 | FA27: 16656 | FB27: 12872 | FC27: 82 | FD27: 27528.97305 | FE27: 17891.71381 | FF27: 9637.25924 | FG27: 68 | FH27: 23891.71381 | FI27: 14946.89057 | FJ27: 8944.82324 | FK27: 54.4 | FL27: 4015.902141 | FM27: 3951.234193 | FN27: 4281.408898 | FO27: 1503.113535 | FP27: 187.1639316 | FV27: 526.0588849
A28: 111 | B28: Heinola | C28: 18497 | E28: 2.092229629 | F28: 82.8199257 | G28: -537.8710061 | K28: 55.40757598 | L28: 5402.822079 | M28: 210.9012697 | N28: 9350.489269 | O28: 54455 | P28: 20048 | Q28: 127087 | R28: -107039 | S28: 72997 | T28: 52020 | W28: -406 | X28: 2959 | Y28: 20531 | Z28: 8994 | AA28: 9105 | AB28: 0 | AC28: 20642 | AD28: 14 | AE28: -18690 | AF28: -1 | AG28: 1965 | AH28: 28035 | AI28: 28683 | AK28: -1740 | AL28: -9553 | AM28: -1213 | AN28: 72997 | AO28: 63745 | AP28: 3729 | AQ28: 5523 | AR28: 20.5 | AT28: 16 | AU28: 18344 | AW28: 1.184685377 | AX28: 88.56284005 | AY28: -877.7141616 | BC28: 54.63704339 | BD28: 5453.378785 | BE28: 211.6016162 | BF28: 9406.748835 | BG28: 58125.63085 | BH28: 23738.43583 | BI28: 135531.6581 | BJ28: -111793.2223 | BK28: 73125.69665 | BL28: 49109.154 | BO28: -364.55826 | BP28: 5460.72782 | BQ28: 15537.79792 | BR28: 10559.81326 | BS28: 0 | BT28: 0 | BU28: 4977.98466 | BV28: -11.95838 | BW28: 0 | BX28: 0 | BY28: 4989.94304 | BZ28: 33483.01094 | CA28: 13841.1334 | CC28: -2024.80271 | CD28: -13053 | CE28: -6000.0507 | CF28: 73125.69665 | CG28: 61945.59894 | CH28: 5171.45499 | CI28: 6008.64272 | CJ28: 20.5 | CL28: 48 | CM28: 18131 | CO28: 0.6942044499 | CP28: 91.11897092 | CQ28: -1207.968073 | CU28: 52.48502607 | CV28: 5881.450446 | CW28: 219.5578534 | CX28: 9777.511393 | CY28: 59921.40059 | CZ28: 25520.88548 | DA28: 143979.1992 | DB28: -118458.3137 | DC28: 76371.27936 | DD28: 53805.487 | DG28: -510.52618 | DH28: -2150.25979 | DI28: 9057.66667 | DJ28: 8996.92211 | DK28: 0 | DL28: 0 | DM28: 60.74456 | DN28: 18679.83538 | DO28: -18690 | DP28: 21.16533 | DQ28: 49.74385 | DR28: 34208.08535 | DS28: 7940.49022 | DU28: 207.02056 | DV28: -13303 | DW28: -6878.91034 | DX28: 76371.27936 | DY28: 64909.04253 | DZ28: 5010.32076 | EA28: 6451.91607 | EB28: 20.5 | ED28: 145 | EE28: 52211 | EF28: 61149.6943 | EG28: 67231.64124 | EK28: -31482 | EL28: 607 | EM28: 979 | EN28: -22338.84818 | EO28: 642.9398 | EP28: 1854.72428 | EQ28: -25399.23279 | ER28: 1713.0915 | ES28: 8866.74073 | ET28: 35000 | EU28: -6500 | EV28: 0 | EW28: 22000 | EX28: 20000 | EY28: 3029.70741 | EZ28: 99361 | FA28: 86308 | FB28: 13053 | FC28: 3393 | FD28: 108308 | FE28: 73255 | FF28: 35053 | FG28: 1936.82903 | FH28: 118034.7074 | FI28: 79428 | FJ28: 38606.70741 | FK28: 3304.04634 | FL28: 6265.880954 | FM28: 6980.666212 | FN28: 7749.817164 | FO28: 3166.294758 | FP28: 174.6343146 | FV28: 847.0234365
A29: 90 | B29: Heinävesi | C29: 3196 | E29: 89.37931034 | F29: 52.32098925 | G29: -3010.012516 | K29: 44.43380654 | L29: 1543.491865 | M29: 58.19849376 | N29: 9680.225282 | O29: 6139 | P29: 4161 | Q29: 28755 | R29: -24594 | S29: 12194 | T29: 14537 | W29: 128 | X29: 311 | Y29: 2576 | Z29: 1546 | AA29: 575 | AB29: 342 | AC29: 1263 | AD29: 285 | AE29: 0 | AF29: 0 | AG29: 1548 | AH29: 3336 | AI29: 2506 | AK29: -43 | AL29: -13 | AM29: 1427 | AN29: 12194 | AO29: 8430 | AP29: 2534 | AQ29: 1230 | AR29: 21 | AT29: 83.23529412 | AU29: 3136 | AW29: 65.42569715 | AX29: 42.55407026 | AY29: -2329.699911 | BC29: 51.52364897 | BD29: 1533.087934 | BE29: -15.07769987 | BF29: -37112.89525 | BG29: 5903.00972 | BH29: 4573.18779 | BI29: 29299.60923 | BJ29: -24726.42144 | BK29: 13784.08514 | BL29: 13696.754 | BO29: 33.50357 | BP29: 220.78706 | BQ29: 3008.70833 | BR29: 1351.95716 | BS29: 70.78956 | BT29: 0 | BU29: 1727.54073 | BV29: 177.22991 | BW29: 0 | BX29: 0 | BY29: 1550.31082 | BZ29: 5207.40103 | CA29: 2818.43386 | CC29: 84.4504 | CD29: -13.414 | CE29: 2314.53023 | CF29: 13784.08514 | CG29: 8869.04811 | CH29: 3567.87241 | CI29: 1347.16462 | CJ29: 21 | CL29: 32 | CM29: 3061 | CO29: 31.71454728 | CP29: 36.85061702 | CQ29: -2187.9805 | CU29: 53.68682416 | CV29: 1132.279624 | CW29: 39.12619517 | CX29: 10562.79715 | CY29: 5811.52228 | CZ29: 4766.95262 | DA29: 31128.49407 | DB29: -26361.54145 | DC29: 14082.10355 | DD29: 13394.793 | DG29: 16.47299 | DH29: 307.48266 | DI29: 1439.31075 | DJ29: 1320.33334 | DK29: 0 | DL29: 0 | DM29: 118.97741 | DN29: -75 | DO29: 0 | DP29: 0 | DQ29: 193.97741 | DR29: 5040.88944 | DS29: 1487.11592 | DU29: -192.15067 | DV29: -13.414 | DW29: 1006.88128 | DX29: 14082.10355 | DY29: 9403.19145 | DZ29: 3251.2923 | EA29: 1427.6198 | EB29: 21.5 | ED29: 156 | EE29: 20691 | EF29: 21222.37171 | EG29: 22948.49464 | EK29: -2135 | EL29: 0 | EM29: 1056 | EN29: -834.4483 | EO29: 32.7 | EP29: 297.84467 | EQ29: -1072.80084 | ER29: 205 | ES29: 387.5662 | ET29: 7000 | EU29: -9500 | EV29: 0 | EW29: -2700 | EX29: 0 | EY29: -2800 | EZ29: 14457 | FA29: 8944 | FB29: 5513 | FC29: 65 | FD29: 11744.308 | FE29: 8930.894 | FF29: 2813.414 | FG29: 0 | FH29: 8930.894 | FI29: 8909.35 | FJ29: 21.544 | FK29: 65.04284 | FL29: 5609.824781 | FM29: 4860.357864 | FN29: 3800.291441 | FO29: 437.3577419 | FP29: 142.8806736 | FV29: 959.409544
A30: 91 | B30: Helsinki | C30: 656920 | E30: 9.051615295 | F30: 44.65248997 | G30: -938.3395238 | K30: 80.77829932 | L30: 2009.635877 | M30: 85.34453107 | N30: 8594.77562 | O30: 1847157 | P30: 1338032 | Q30: 4662369 | R30: -3324337 | S30: 3565598 | T30: 479558 | W30: 55195 | X30: 87363 | Y30: 863377 | Z30: 375929 | AA30: 9280 | AB30: 0 | AC30: 496728 | AD30: -2141 | AE30: 2192 | AF30: 1822 | AG30: 498601 | AH30: 6540699 | AI30: 729089 | AK30: 6176 | AL30: -81541 | AM30: -8780 | AN30: 3565598 | AO30: 2791940 | AP30: 519324 | AQ30: 254334 | AR30: 18 | AT30: 5 | AU30: 658457 | AW30: 8.16181038 | AX30: 40.33248247 | AY30: -1053.970415 | BC30: 81.80200811 | BD30: 1743.332779 | BE30: 68.64127476 | BF30: 9270.172599 | BG30: 1961847.932 | BH30: 1471241.164 | BI30: 5027069.493 | BJ30: -3555828.329 | BK30: 3828748.671 | BL30: 330345.073 | BO30: 57375.57124 | BP30: 96433.62428 | BQ30: 757074.6101 | BR30: 408493.8548 | BS30: 1000 | BT30: 0 | BU30: 349580.7553 | BV30: -3670.65975 | BW30: 0 | BX30: -3411.54876 | BY30: 356662.9639 | BZ30: 6864432.461 | CA30: 643442.7905 | CC30: 11246.094 | CD30: -78921.87378 | CE30: -89767.52647 | CF30: 3828748.671 | CG30: 2821115.365 | CH30: 726896.8029 | CI30: 280736.5031 | CJ30: 18 | CL30: 17 | CM30: 664028 | CO30: 8.109312714 | CP30: 45.25777466 | CQ30: -838.1973233 | CU30: 80.6907779 | CV30: 2116.740028 | CW30: 77.76633463 | CX30: 9935.020262 | CY30: 1951236.039 | CZ30: 1284274.228 | DA30: 5126058.412 | DB30: -3841784.185 | DC30: 4099816.85 | DD30: 377642.702 | DG30: 58322.56871 | DH30: 38817.41373 | DI30: 732815.3501 | DJ30: 386961.6836 | DK30: 1098.21549 | DL30: 0 | DM30: 346951.8819 | DN30: -15006.52416 | DO30: -1616.77743 | DP30: -645.73487 | DQ30: 364220.9184 | DR30: 7214592.079 | DS30: 653098.6392 | DU30: -221511.6795 | DV30: -76921.88373 | DW30: 484681.0365 | DX30: 4099816.85 | DY30: 3028509.08 | DZ30: 775361.1854 | EA30: 295946.5346 | EB30: 18 | ED30: 20 | EE30: 2014469 | EF30: 2247331.742 | EG30: 2391793.834 | EK30: -1046592 | EL30: 25687 | EM30: 283036 | EN30: -889556.852 | EO30: 28608.571 | EP30: 127737.964 | EQ30: -1032173.206 | ER30: 8124.96261 | ES30: 855630.6406 | ET30: 60000 | EU30: 0 | EV30: 0 | EW30: 0 | EX30: 115000.001 | EY30: 0 | EZ30: 992024 | FA30: 913103 | FB30: 78921 | FC30: 1894619 | FD30: 913102.9516 | FE30: 836181.0679 | FF30: 76921.88373 | FG30: 1606277.636 | FH30: 951181.0689 | FI30: 904604.1208 | FJ30: 46576.94813 | FK30: 2317889.53 | FL30: 8451.742982 | FM30: 8946.474872 | FN30: 9813.463751 | FO30: 168250.5045 | FP30: 253.3786293 | FV30: 1149.770767
A31: 97 | B31: Hirvensalmi | C31: 2156 | E31: 8.316176471 | F31: 22.94039589 | G31: 3662.337662 | K31: 78.07560773 | L31: 5389.146568 | M31: 223.148382 | N31: 8814.935065 | O31: 3656 | P31: 2779 | Q31: 17390 | R31: -14611 | S31: 7863 | T31: 7444 | W31: -3 | X31: 435 | Y31: 1128 | Z31: 826 | AA31: 0 | AB31: 0 | AC31: 302 | AD31: 0 | AE31: 0 | AF31: 0 | AG31: 302 | AH31: 6988 | AI31: 1128 | AK31: -195 | AL31: -133 | AM31: -50 | AN31: 7863 | AO31: 5595 | AP31: 1068 | AQ31: 1200 | AR31: 20 | AT31: 219.2279412 | AU31: 2131 | AW31: 20.3548777 | AX31: 20.93391617 | AY31: 3831.103881 | BC31: 78.13406709 | BD31: 5410.758151 | BE31: 216.9439167 | BF31: 9103.397574 | BG31: 3775.81886 | BH31: 2810.46856 | BI31: 18557.40727 | BJ31: -15746.93871 | BK31: 8758.24155 | BL31: 7242.673 | BO31: -0.00211 | BP31: 424.90228 | BQ31: 678.87601 | BR31: 614.38517 | BS31: 0 | BT31: 0 | BU31: 64.49084 | BV31: 0 | BW31: 0 | BX31: 0 | BY31: 64.49084 | BZ31: 7052.53979 | CA31: 859.23101 | CC31: -146.14558 | CD31: -33.35 | CE31: 271.34888 | CF31: 8758.24155 | CG31: 5920.0768 | CH31: 1511.64157 | CI31: 1326.52318 | CJ31: 20 | CL31: 246 | CM31: 2091 | CP31: 13.74726987 | CQ31: 4535.945619 | CU31: 78.9167377 | CV31: 5648.713022 | CW31: 220.7795537 | CX31: 9338.637652 | CY31: 3416.22938 | CZ31: 2976.65398 | DA31: 18953.39043 | DB31: -15976.73645 | DC31: 8833.52428 | DD31: 7419.906 | DG31: 0 | DH31: 380.11755 | DI31: 656.81138 | DJ31: 604.73044 | DK31: 0 | DL31: 0 | DM31: 52.08094 | DN31: 0 | DO31: 0 | DP31: 0 | DQ31: 52.08094 | DR31: 7104.62073 | DS31: 1663.55393 | DU31: 254.90098 | DV31: 0 | DW31: 1324.96332 | DX31: 8833.52428 | DY31: 6072.19785 | DZ31: 1347.27346 | EA31: 1414.05297 | EB31: 20 | ED31: 210 | EE31: 12160 | EF31: 13074.56912 | EG31: 13741.37716 | EK31: -1470 | EL31: 277 | EM31: 15 | EN31: -868.66905 | EO31: 236.29919 | EP31: 44.48773 | EQ31: -572.43305 | ER31: 93.7 | ES31: 140.14244 | ET31: 0 | EU31: 0 | EV31: 0 | EW31: 0 | EX31: 0 | EY31: 0 | EZ31: 33 | FA31: 0 | FB31: 33 | FC31: 38 | FD31: 0 | FE31: 0 | FF31: 0 | FG31: 38.02763 | FH31: 0 | FI31: 0 | FJ31: 0 | FK31: 38.02763 | FL31: 3645.640074 | FM31: 3697.042708 | FN31: 3785.342138 | FO31: 303.6098925 | FP31: 145.1984182 | FV31: 318.5715673
A32: 98 | B32: Hollola | C32: 23251 | E32: 2.109207521 | F32: 42.01515894 | G32: -1899.402176 | K32: 60.21259043 | L32: 776.009634 | M32: 39.54873559 | N32: 7161.88551 | O32: 32173 | P32: 12710 | Q32: 136342 | R32: -123632 | S32: 98231 | T32: 48255 | W32: -323 | X32: 1148 | Y32: 23679 | Z32: 9495 | AA32: 0 | AB32: 0 | AC32: 14184 | AD32: 6 | AE32: -6000 | AF32: 0 | AG32: 8190 | AH32: 24560 | AI32: 23585 | AK32: -2241 | AL32: -11054 | AM32: 5104 | AN32: 98231 | AO32: 89541 | AP32: 3406 | AQ32: 5284 | AR32: 21 | AT32: 33.875 | AU32: 23090 | AW32: 2.10968173 | AX32: 37.82689741 | AY32: -1669.63462 | BC32: 65.02463889 | BD32: 678.666667 | BE32: 35.22225003 | BF32: 7032.865113 | BG32: 32846.56161 | BH32: 14319.71556 | BI32: 141068.8903 | BJ32: -126749.1747 | BK32: 99699.97974 | BL32: 43572.597 | BO32: -204.07973 | BP32: 985.55503 | BQ32: 17304.87731 | BR32: 8963.67301 | BS32: 1426.74472 | BT32: 0 | BU32: 9767.94902 | BV32: 4973.26908 | BW32: 4700 | BX32: 0 | BY32: 94.67994 | BZ32: 24561.86252 | CA32: 17150.96741 | CC32: -811.22363 | CD32: -8093.34834 | CE32: 5852.01113 | CF32: 99699.97974 | CG32: 88832.68045 | CH32: 5109.59384 | CI32: 5757.70545 | CJ32: 21 | CL32: 66 | CM32: 22943 | CO32: 2.305023129 | CP32: 31.7608326 | CQ32: -1463.215962 | CU32: 69.11723861 | CV32: 644.1885046 | CW32: 32.97840179 | CX32: 7129.781656 | CY32: 35396.0923 | CZ32: 15548.04107 | DA32: 149111.5699 | DB32: -133563.5289 | DC32: 103582.7104 | DD32: 47780.77 | DG32: -253.40333 | DH32: 717.177 | DI32: 18263.72518 | DJ32: 10620.10164 | DK32: 0 | DL32: 0 | DM32: 7643.62354 | DN32: -254.63103 | DO32: 7600 | DP32: 0 | DQ32: 298.25457 | DR32: 25099.79909 | DS32: 17879.06434 | DU32: 964.45093 | DV32: -7777.54334 | DW32: 4405.82465 | DX32: 103582.7104 | DY32: 91985.32583 | DZ32: 5513.7156 | EA32: 6083.66895 | EB32: 21 | ED32: 51 | EE32: 95234 | EF32: 97759.0663 | EG32: 103281.7048 | EK32: -18805 | EL32: 90 | EM32: 234 | EN32: -13015.40878 | EO32: 0 | EP32: 1716.4525 | EQ32: -14269.38569 | ER32: 290 | ES32: 506.146 | ET32: 19000 | EU32: -3000 | EV32: 0 | EW32: 0 | EX32: 0 | EY32: 0 | EZ32: 45429 | FA32: 37336 | FB32: 8093 | FC32: 1760 | FD32: 37336.7583 | FE32: 29559.21496 | FF32: 7777.54334 | FG32: 347.88386 | FH32: 29559.21496 | FI32: 23866.66662 | FJ32: 5692.54834 | FK32: 1558.17528 | FL32: 2682.766333 | FM32: 2574.319963 | FN32: 2422.593853 | FO32: 4380.253611 | FP32: 190.9189562 | FV32: 749.4533265
A33: 102 | B33: Huittinen | C33: 9937 | E33: 2.257829374 | F33: 51.59652429 | G33: -2802.757371 | K33: 48.88063003 | L33: 902.4856597 | M33: 42.53550776 | N33: 7744.289021 | O33: 31766 | P33: 10473 | Q33: 68148 | R33: -57675 | S33: 35970 | T33: 29973 | W33: -180 | X33: 93 | Y33: 8181 | Z33: 3855 | AA33: 0 | AB33: 0 | AC33: 4326 | AD33: 14 | AE33: 0 | AF33: 0 | AG33: 4340 | AH33: 5065 | AI33: 7955 | AK33: 3721 | AL33: -3522 | AM33: 3231 | AN33: 35970 | AO33: 31147 | AP33: 2209 | AQ33: 2614 | AR33: 21 | AT33: 76.18382353 | AU33: 9870 | AW33: 1.489729418 | AX33: 47.62469021 | AY33: -2677.866343 | BC33: 51.0514281 | BD33: 705.0900314 | BE33: 31.51916096 | BF33: 8165.124122 | BG33: 34058.46029 | BH33: 12691.11032 | BI33: 73072.02055 | BJ33: -60380.91023 | BK33: 37605.60367 | BL33: 28010.972 | BO33: -155.51595 | BP33: 89.32578 | BQ33: 5169.47527 | BR33: 3832.18733 | BS33: 0 | BT33: 0 | BU33: 1337.28794 | BV33: -13.54291 | BW33: 0 | BX33: 0 | BY33: 1350.83085 | BZ33: 6415.89984 | CA33: 5081.59405 | CC33: -1295.42583 | CD33: -3418.95278 | CE33: 1391.49295 | CF33: 37605.60367 | CG33: 31410.08322 | CH33: 3364.4997 | CI33: 2831.02075 | CJ33: 21 | CL33: 169 | CM33: 9745 | CO33: 0.752204197 | CP33: 43.89726429 | CQ33: -2580.438844 | CU33: 54.58176732 | CV33: 630.639139 | CW33: 27.33500869 | CX33: 8420.823581 | CY33: 34617.20426 | CZ33: 11494.82963 | DA33: 76589.30188 | DB33: -65094.47225 | DC33: 37802.16156 | DD33: 29711.157 | DG33: -130.16832 | DH33: 139.0984 | DI33: 2427.77639 | DJ33: 3632.1779 | DK33: 4115.90604 | DL33: 0 | DM33: 2911.50453 | DN33: -13.04384 | DO33: 0 | DP33: 0 | DQ33: 2924.54837 | DR33: 9340.44821 | DS33: 2358.59208 | DU33: 513.55276 | DV33: -3270.45416 | DW33: 1343.59487 | DX33: 37802.16156 | DY33: 31177.85702 | DZ33: 3722.74074 | EA33: 2901.5638 | EB33: 21 | ED33: 236 | EE33: 26368 | EF33: 30989.31291 | EG33: 33426.08359 | EK33: -5097 | EL33: 158 | EM33: 215 | EN33: -3933.27416 | EO33: 86.61191 | EP33: 156.56115 | EQ33: -5331.72657 | ER33: 12.42473 | ES33: 4304.30463 | ET33: 4700 | EU33: 0 | EV33: 0 | EW33: 0 | EX33: 0 | EY33: 0 | EZ33: 28859 | FA33: 25440 | FB33: 3419 | FC33: 140 | FD33: 25440.16763 | FE33: 22169.71346 | FF33: 3270.45417 | FG33: 0 | FH33: 22169.71347 | FI33: 19092.73064 | FJ33: 3076.98283 | FK33: 140.11346 | FL33: 3382.20791 | FM33: 3060.488239 | FN33: 2754.253552 | FO33: 1484.659858 | FP33: 152.3509346 | FV33: 523.7563597
A34: 103 | B34: Humppila | C34: 2174 | E34: 1.38150289 | F34: 42.37333156 | G34: -1983.440662 | K34: 51.4926504 | L34: 314.1674333 | M34: 16.57987497 | N34: 6916.283349 | O34: 3224 | P34: 1240 | Q34: 14115 | R34: -12875 | S34: 7583 | T34: 6236 | W34: -33 | X34: 3 | Y34: 914 | Z34: 355 | AA34: 0 | AB34: 0 | AC34: 559 | AD34: 2 | AE34: 0 | AF34: 0 | AG34: 562 | AH34: 184 | AI34: 893 | AK34: -167 | AL34: -650 | AM34: 705 | AN34: 7583 | AO34: 6564 | AP34: 458 | AQ34: 561 | AR34: 22 | AT34: 250.4558824 | AU34: 2166 | AW34: 1.138402035 | AX34: 38.20513316 | AY34: -1577.726879 | BC34: 54.76450469 | BD34: 747.9676593 | BE34: 38.01373107 | BF34: 7181.83109 | BG34: 3512.54006 | BH34: 1181.59672 | BI34: 14768.19275 | BJ34: -13586.59603 | BK34: 8178.39462 | BL34: 6170.355 | BO34: -22.53766 | BP34: 5.32184 | BQ34: 744.93777 | BR34: 337.41334 | BS34: 0 | BT34: 0 | BU34: 407.52443 | BV34: -2.33217 | BW34: 0 | BX34: -2.58544 | BY34: 412.44204 | BZ34: 596.32634 | CA34: 990.18923 | CC34: 490.5928 | CD34: -650 | CE34: 927.01661 | CF34: 8178.39462 | CG34: 7025.65551 | CH34: 641.32505 | CI34: 511.41406 | CJ34: 22 | CL34: 236 | CM34: 2161 | CO34: 0.3018692022 | CP34: 32.019318 | CQ34: -1617.820768 | CU34: 58.69770193 | CV34: 299.949093 | CW34: 15.19731684 | CX34: 7203.996608 | CY34: 3627.92276 | CZ34: 1187.72397 | DA34: 15195.68398 | DB34: -14007.96001 | DC34: 8168.12399 | DD34: 6029.663 | DG34: -45.50369 | DH34: 13.22504 | DI34: 157.54833 | DJ34: 340.42324 | DK34: 0 | DL34: 0 | DM34: -182.87491 | DN34: -2.33217 | DO34: 0 | DP34: -2.978 | DQ34: -177.56474 | DR34: 418.7616 | DS34: 115.03596 | DU34: 113.90012 | DV34: -650 | DW34: -139.11365 | DX34: 8168.12399 | DY34: 6908.55853 | DZ34: 657.57612 | EA34: 601.98934 | EB34: 22 | ED34: 267 | EE34: 9813 | EF34: 9861.38832 | EG34: 10441.1546 | EI34: 395 | EK34: -229 | EL34: 14 | EM34: 27 | EN34: -101.51262 | EO34: 10.2 | EP34: 28.14 | EQ34: -316.54961 | ER34: 12.4 | ES34: 50 | ET34: 0 | EU34: 0 | EV34: 0 | EW34: 0 | EX34: 0 | EY34: 0 | EZ34: 5225 | FA34: 3575 | FB34: 1650 | FC34: 369 | FD34: 4575 | FE34: 2925 | FF34: 1650 | FG34: 0 | FH34: 3925 | FI34: 2275 | FJ34: 1650 | FK34: 301.56077 | FL34: 3332.566697 | FM34: 3194.594645 | FN34: 2822.427446 | FO34: 314.0253877 | FP34: 145.3148486 | FV34: 343.9232548
A35: 105 | B35: Hyrynsalmi | C35: 2199 | E35: 1.839662447 | F35: 22.41443976 | G35: -884.9477035 | K35: 72.06944768 | L35: 961.8008186 | M35: 36.12254925 | N35: 9718.508413 | O35: 4132 | P35: 2245 | Q35: 20473 | R35: -18228 | S35: 8051 | T35: 11034 | W35: -2 | X35: 8 | Y35: 863 | Z35: 477 | AA35: 0 | AB35: 0 | AC35: 386 | AD35: 52 | AE35: 0 | AF35: 0 | AG35: 438 | AH35: 1573 | AI35: 860 | AK35: -26 | AL35: -465 | AM35: 620 | AN35: 8051 | AO35: 6147 | AP35: 845 | AQ35: 1059 | AR35: 21.75 | AT35: 258.5147059 | AU35: 2139 | AW35: 0.1352626927 | AX35: 22.43706541 | AY35: -1219.382324 | BC35: 71.15809621 | BD35: 652.8156194 | BE35: 24.48720701 | BF35: 9730.701463 | BG35: 4506.1353 | BH35: 2288.09373 | BI35: 21478.05086 | BJ35: -19189.95713 | BK35: 8607.80886 | BL35: 10631.134 | BO35: 7.21098 | BP35: 2.12069 | BQ35: 58.3174 | BR35: 482.73622 | BS35: 0 | BT35: 0 | BU35: -424.41882 | BV35: -52.07013 | BW35: 0 | BX35: 0 | BY35: -372.34869 | BZ35: 1201.02222 | CA35: 41.00458 | CC35: -105.40814 | CD35: -465.472 | CE35: -661.84824 | CF35: 8607.80886 | CG35: 6187.43893 | CH35: 1257.60937 | CI35: 1162.76056 | CJ35: 21.75 | CL35: 284 | CM35: 2094 | CO35: 6.770645413 | CP35: 17.40341204 | CQ35: -750.7525167 | CU35: 77.06624832 | CV35: 689.7548138 | CW35: 22.90664814 | CX35: 10990.71787 | CY35: 4354.64155 | CZ35: 2311.57999 | DA35: 21391.52124 | DB35: -19079.94125 | DC35: 8802.04094 | DD35: 12598.597 | DG35: -17.90023 | DH35: 19.19598 | DI35: 2321.99244 | DJ35: 516.9381 | DK35: 153.394 | DL35: 0 | DM35: 1958.44834 | DN35: -52.07055 | DO35: 0 | DP35: 0 | DQ35: 2010.51889 | DR35: 3211.54111 | DS35: 2310.26579 | DU35: -284.90876 | DV35: -320.752 | DW35: 1044.10777 | DX35: 8802.04094 | DY35: 6354.26749 | DZ35: 1245.12371 | EA35: 1202.64974 | EB35: 21.75 | ED35: 19 | EE35: 14701 | EF35: 15312.93248 | EG35: 15296.0575 | EH35: 315 | EI35: 2200 | EJ35: 385 | EK35: -422 | EL35: 179 | EM35: 3 | EN35: -789.10111 | EO35: 68.50569 | EP35: 17.7426 | EQ35: -1587.70596 | ER35: 101.2602 | ES35: 220.28774 | ET35: 0 | EU35: 0 | EV35: 0 | EW35: 500 | EX35: 0 | EY35: 500 | EZ35: 2778 | FA35: 413 | FB35: 2365 | FC35: 0 | FD35: 2812.752 | FE35: 92 | FF35: 2720.752 | FG35: 0 | FH35: 2992 | FI35: 0 | FJ35: 2992 | FK35: 0 | FL35: 5429.740791 | FM35: 5736.799191 | FN35: 5737.226695 | FO35: 292.1502294 | FP35: 139.5177791 | FV35: 27.26386162
A36: 106 | B36: Hyvinkää | C36: 46576 | E36: 1.592202756 | F36: 60.48068373 | G36: -3020.632944 | K36: 46.46445347 | L36: 995.405359 | M36: 47.9052038 | N36: 7584.206458 | O36: 76639 | P36: 41806 | Q36: 304225 | R36: -262419 | S36: 210988 | T36: 73266 | W36: -1773 | X36: 1100 | Y36: 21162 | Z36: 20445 | AA36: 0 | AB36: 0 | AC36: 717 | AD36: -10952 | AE36: 11000 | AF36: 0 | AG36: 765 | AH36: 9259 | AI36: 23282 | AK36: 3150 | AL36: -12610 | AM36: -10485 | AN36: 210988 | AO36: 183623 | AP36: 14846 | AQ36: 12519 | AR36: 19.75 | AT36: 241.3897059 | AU36: 46880 | AW36: 2.571851702 | AX36: 49.15115291 | AY36: -2573.792613 | BC36: 53.03788054 | BD36: 788.143525 | BE36: 39.80796741 | BF36: 7226.502767 | BG36: 78606.68541 | BH36: 47333.5524 | BI36: 300113.7953 | BJ36: -252780.2429 | BK36: 228072.5716 | BL36: 66582.23688 | BO36: -1739.20952 | BP36: 1169.36889 | BQ36: 41304.72493 | BR36: 21933.30008 | BS36: 0 | BT36: 0 | BU36: 19371.42485 | BV36: -366.66672 | BW36: 5000 | BX36: 0 | BY36: 14738.09157 | BZ36: 23996.69797 | CA36: 35129.62746 | CC36: -708.22349 | CD36: -14963.53828 | CE36: 19802.34589 | CF36: 228072.5716 | CG36: 193250.7986 | CH36: 21114.71352 | CI36: 13707.05949 | CJ36: 20.25 | CL36: 41 | CM36: 46797 | CO36: 2.239810496 | CP36: 40.7602546 | CQ36: -2288.38274 | CU36: 58.46571789 | CV36: 637.3402667 | CW36: 31.50248672 | CX36: 7384.470928 | CY36: 81780.47045 | CZ36: 49712.45933 | DA36: 325067.9066 | DB36: -275355.4473 | DC36: 240853.1761 | DD36: 70346.784 | DG36: -1764.55223 | DH36: 1711.38268 | DI36: 35791.3432 | DJ36: 21025.8083 | DK36: 0 | DL36: 0 | DM36: 14765.5349 | DN36: -366.66672 | DO36: 5000 | DP36: 0 | DQ36: 10132.20162 | DR36: 34128.89958 | DS36: 24751.99255 | DU36: 58.37505 | DV36: -14968.61328 | DW36: 13622.88005 | DX36: 240853.1761 | DY36: 202344.9672 | DZ36: 23542.44238 | EA36: 14965.76647 | EB36: 20.25 | ED36: 56 | EE36: 193427 | EF36: 191018.6237 | EG36: 212368.0593 | EK36: -36723 | EL36: 246 | EM36: 2710 | EN36: -21833.4368 | EO36: 489.612 | EP36: 6016.54323 | EQ36: -20410.353 | ER36: 380 | ES36: 8901.2405 | ET36: 0 | EU36: 26677 | EV36: 25000 | EW36: -29027.47821 | EX36: 0 | EY36: -5428.40338 | EZ36: 153614 | FA36: 104243 | FB36: 49371 | FC36: 3120 | FD36: 134623.2386 | FE36: 114274.5279 | FF36: 20348.71071 | FG36: 3026.20756 | FH36: 114226.2219 | FI36: 94225.11753 | FJ36: 20001.10438 | FK36: 2864.62356 | FL36: 6856.535555 | FM36: 6508.061204 | FN36: 6260.940023 | FO36: 9992.344059 | FP36: 213.5253127 | FV36: 881.073484
A37: 108 | B37: Hämeenkyrö | C37: 10344 | E37: 28.26136364 | F37: 75.228725 | G37: -4269.914927 | K37: 36.87410937 | L37: 1049.980665 | M37: 54.4908661 | N37: 7033.159319 | O37: 33006 | P37: 12353 | Q37: 69742 | R37: -57389 | S37: 39012 | T37: 25531 | W37: -252 | X37: 295 | Y37: 7197 | Z37: 5319 | AA37: 0 | AB37: 0 | AC37: 1878 | AD37: 77 | AE37: 0 | AF37: 0 | AG37: 1955 | AH37: 1222 | AI37: 7108 | AK37: -224 | AL37: 0 | AM37: 4881 | AN37: 39012 | AO37: 35286 | AP37: 1779 | AQ37: 1947 | AR37: 22 | AT37: 135.6176471 | AU37: 10337 | AW37: 2.219387285 | AX37: 71.85134284 | AY37: -4183.984431 | BC37: 36.34013169 | BD37: 968.0887008 | BE37: 45.56487619 | BF37: 7754.928913 | BG37: 34833.20653 | BH37: 14502.28673 | BI37: 74505.62394 | BJ37: -60003.33721 | BK37: 40803.45042 | BL37: 23918.093 | BO37: -619.31655 | BP37: 269.22284 | BQ37: 4368.1125 | BR37: 5290.20189 | BS37: 0 | BT37: 0 | BU37: -922.08939 | BV37: -77.21122 | BW37: 0 | BX37: 0 | BY37: -844.87817 | BZ37: 81.70982 | CA37: 4437.97956 | CC37: -859.17412 | CD37: -1625.434 | CE37: 711.17432 | CF37: 40803.45042 | CG37: 36098.77622 | CH37: 2534.12737 | CI37: 2170.54683 | CJ37: 22 | CL37: 216 | CM37: 10257 | CO37: 4.025716625 | CP37: 62.85862161 | CQ37: -3791.184806 | CU37: 39.37581726 | CV37: 1046.602486 | CW37: 48.56828606 | CX37: 7865.418741 | CY37: 35166.60091 | CZ37: 14655.37414 | DA37: 76969.85636 | DB37: -62314.48222 | DC37: 43839.60951 | DD37: 26010.348 | DG37: -529.28418 | DH37: 166.77791 | DI37: 7172.96902 | DJ37: 5149.27981 | DK37: 0 | DL37: 0 | DM37: 2023.68921 | DN37: -77.21122 | DO37: 0 | DP37: 0 | DQ37: 2100.90043 | DR37: 2182.61025 | DS37: 6763.47928 | DU37: 168.60612 | DV37: -1375.434 | DW37: 4327.93602 | DX37: 43839.60951 | DY37: 38336.02628 | DZ37: 3194.11542 | EA37: 2309.46781 | EB37: 22 | ED37: 65 | EE37: 28467 | EF37: 31516.99286 | EG37: 32571.06798 | EI37: 700 | EK37: -2634 | EL37: 261 | EM37: 146 | EN37: -4179.61348 | EO37: 87.77824 | EP37: 365.03 | EQ37: -3097.48326 | ER37: 45.604 | ES37: 616.336 | ET37: 31154 | EU37: -33821 | EV37: 0 | EW37: 0 | EX37: 0 | EY37: -3500 | EZ37: 47748 | FA37: 40123 | FB37: 7625 | FC37: 190 | FD37: 46122.881 | FE37: 38747.447 | FF37: 7375.434 | FG37: 170.47624 | FH37: 41247.447 | FI37: 37937.793 | FJ37: 3309.654 | FK37: 153.35996 | FL37: 6354.118329 | FM37: 6194.495529 | FN37: 5748.118838 | FO37: 1742.546649 | FP37: 169.8885297 | FV37: 422.5706201
A38: 109 | B38: Hämeenlinna | C38: 67848 | E38: 0.9478083885 | F38: 72.61027326 | G38: -2692.518571 | K38: 48.3952064 | L38: 2288.040915 | M38: 104.4345807 | N38: 7996.72798 | O38: 156297 | P38: 90314 | Q38: 477071 | R38: -386757 | S38: 298979 | T38: 122902 | W38: -4014 | X38: 2014 | Y38: 33124 | Z38: 21931 | AA38: 0 | AB38: 0 | AC38: 11193 | AD38: 18 | AE38: -73 | AF38: 2764 | AG38: 13904 | AH38: 195 | AI38: 32075 | AK38: 2221 | AL38: -35278 | AM38: 4003 | AN38: 298979 | AO38: 255175 | AP38: 18457 | AQ38: 25347 | AR38: 21 | AT38: 232.3235294 | AU38: 67971 | AW38: 1.160000767 | AX38: 73.46364531 | AY38: -2597.100488 | BC38: 47.83565333 | BD38: 2603.730092 | BE38: 115.7468499 | BF38: 8210.689831 | BG38: 165721.2343 | BH38: 98034.17345 | BI38: 495593.5406 | BJ38: -397559.3671 | BK38: 317221.2124 | BL38: 109991.064 | BO38: -3500.65483 | BP38: 7185.57137 | BQ38: 33337.82578 | BR38: 22022.97208 | BS38: 0 | BT38: 0 | BU38: 11314.8537 | BV38: -159.77486 | BW38: 76.10464 | BX38: 8000 | BY38: 3398.52392 | BZ38: 3594.11249 | CA38: 28775.86194 | CC38: -4908.02892 | CD38: -27966.56524 | CE38: 5582.45864 | CF38: 317221.2124 | CG38: 261874.5018 | CH38: 27152.00347 | CI38: 28194.70708 | CJ38: 21 | CL38: 189 | CM38: 68043 | CO38: 1.057975903 | CP38: 57.99007234 | CQ38: -2427.957386 | CU38: 53.40837634 | CV38: 1786.99181 | CW38: 77.77391461 | CX38: 8386.51383 | CY38: 168046.8735 | CZ38: 97505.00103 | DA38: 514488.6304 | DB38: -416983.6294 | DC38: 329066.6691 | DD38: 119344.806 | DG38: -1875.16445 | DH38: -531.56638 | DI38: 29021.11485 | DJ38: 28827.57553 | DK38: 9702.51334 | DL38: 0 | DM38: 9896.05266 | DN38: -2265.60755 | DO38: 10574.67523 | DP38: 0 | DQ38: 1586.98498 | DR38: 5181.09743 | DS38: 24068.47185 | DU38: 2508.17444 | DV38: -27201.78642 | DW38: 10426.29293 | DX38: 329066.6691 | DY38: 272905.6811 | DZ38: 26907.20318 | EA38: 29253.78481 | EB38: 21 | ED38: 170 | EE38: 248354 | EF38: 262050.1557 | EG38: 277022.8783 | EH38: 2600 | EK38: -32863 | EL38: 284 | EM38: 4507 | EN38: -28392.20137 | EO38: 354.402 | EP38: 4844.39607 | EQ38: -42401.39434 | ER38: 917.12813 | ES38: 27842.08729 | ET38: 62648 | EU38: 2818 | EV38: 42000 | EW38: 1192.81108 | EX38: 0 | EY38: -44530.47702 | EZ38: 301795 | FA38: 209646 | FB38: 92149 | FC38: 39112 | FD38: 317022.2101 | FE38: 223695.16 | FF38: 93327.05011 | FG38: 38520.05175 | FH38: 245289.9467 | FI38: 198524.6625 | FJ38: 46765.28418 | FK38: 38319.37633 | FL38: 7509.491805 | FM38: 7955.526295 | FN38: 7845.431671 | FO38: 12995.50862 | FP38: 190.9896481 | FV38: 490.4713154
A39: 139 | B39: Ii | C39: 9848 | E39: 0.6617936118 | F39: 76.11730928 | G39: -4867.790414 | K39: 34.97501007 | L39: 835.1949634 | M39: 35.78346067 | N39: 8519.191714 | O39: 20964 | P39: 8079 | Q39: 70952 | R39: -62873 | S39: 34439 | T39: 33759 | W39: -300 | X39: 53 | Y39: 5078 | Z39: 4039 | AA39: 0 | AB39: 0 | AC39: 1039 | AD39: 84 | AE39: 0 | AF39: 0 | AG39: 1123 | AH39: 2824 | AI39: 5018 | AK39: -185 | AL39: -7831 | AM39: 320 | AN39: 34439 | AO39: 28922 | AP39: 1521 | AQ39: 3996 | AR39: 21.25 | AT39: 222.25 | AU39: 9912 | AW39: 0.4820523082 | AX39: 70.33672947 | AY39: -4743.616937 | BC39: 35.93632199 | BD39: 498.034658 | BE39: 21.5037618 | BF39: 8453.527893 | BG39: 23153.49799 | BH39: 9426.60909 | BI39: 74341.53788 | BJ39: -64914.92879 | BK39: 37463.40192 | BL39: 30697.585 | BO39: -267.51433 | BP39: 72.43228 | BQ39: 3050.97608 | BR39: 3892.62647 | BS39: 0 | BT39: 0 | BU39: -841.65039 | BV39: -81.89555 | BW39: 0 | BX39: 0 | BY39: -759.75484 | BZ39: 2064.08319 | CA39: 2166.82249 | CC39: -719.64818 | CD39: -6626 | CE39: 531.38696 | CF39: 37463.40192 | CG39: 30897.02377 | CH39: 2048.64026 | CI39: 4517.73789 | CJ39: 21.5 | CL39: 248 | CM39: 9853 | CO39: 0.652094157 | CP39: 64.02363553 | CQ39: -4766.847933 | CU39: 37.34981791 | CV39: 326.8986745 | CW39: 14.23112773 | CX39: 8384.298033 | CY39: 23633.04849 | CZ39: 10309.62521 | DA39: 77046.58399 | DB39: -66736.95878 | DC39: 38859.89998 | DD39: 33013.608 | DG39: -364.53293 | DH39: 69.38357 | DI39: 4841.39984 | DJ39: 4121.66994 | DK39: 0 | DL39: 0 | DM39: 719.7299 | DN39: -66.37953 | DO39: 450 | DP39: 0 | DQ39: 336.10943 | DR39: 2400.19262 | DS39: 4506.80059 | DU39: 189.38256 | DV39: -7626 | DW39: -332.53453 | DX39: 38859.89998 | DY39: 31837.78336 | DZ39: 2225.86532 | EA39: 4796.2513 | EB39: 21.5 | ED39: 150 | EE39: 42611 | EF39: 44351.98706 | EG39: 46438.65164 | EH39: 700 | EK39: -4805 | EL39: 50 | EM39: 57 | EN39: -2560.20842 | EO39: 464.4784 | EP39: 460.29449 | EQ39: -5182.72099 | ER39: 88.422 | ES39: 254.96387 | ET39: 19100 | EU39: -7590 | EV39: 0 | EW39: 1750 | EX39: 10000 | EY39: -3500 | EZ39: 48243 | FA39: 39367 | FB39: 8876 | FC39: 890 | FD39: 43367 | FE39: 32741 | FF39: 10626 | FG39: 881.0785 | FH39: 42241 | FI39: 35115 | FJ39: 7126 | FK39: 881.0785 | FL39: 7036.454102 | FM39: 6994.141591 | FN39: 7276.550803 | FO39: 1480.827133 | FP39: 150.2920058 | FV39: 307.8063035
A40: 140 | B40: Iisalmi | C40: 21124 | E40: 1.453562142 | F40: 44.19214285 | G40: -1964.306003 | K40: 55.92596517 | L40: 1362.384018 | M40: 59.31468986 | N40: 8383.592123 | O40: 41798 | P40: 28373 | Q40: 155530 | R40: -127157 | S40: 77027 | T40: 62862 | W40: -266 | X40: 1198 | Y40: 13664 | Z40: 8722 | AA40: 0 | AB40: 0 | AC40: 4942 | AD40: -439 | AE40: 0 | AF40: -1740 | AG40: 2763 | AH40: 14929 | AI40: 13429 | AK40: -1073 | AL40: -9303 | AM40: 2354 | AN40: 77027 | AO40: 66202 | AP40: 5504 | AQ40: 5321 | AR40: 20.5 | AT40: 161.8088235 | AU40: 20958 | AW40: 1.399783216 | AX40: 47.64780232 | AY40: -2243.684688 | BC40: 54.96724837 | BD40: 1415.300659 | BE40: 57.45353092 | BF40: 8991.348877 | BG40: 43515.28652 | BH40: 28535.29719 | BI40: 158973.8714 | BJ40: -130438.5742 | BK40: 80668.64407 | BL40: 61539.167 | BO40: -208.03091 | BP40: 1728.01271 | BQ40: 13289.21866 | BR40: 8639.05895 | BS40: 0 | BT40: 0 | BU40: 4650.15971 | BV40: 818.72449 | BW40: 0 | BX40: 605.39827 | BY40: 3226.03695 | BZ40: 18155.18819 | CA40: 12610.31623 | CC40: -589.01002 | CD40: -9422.5332 | CE40: -5920.20547 | CF40: 80668.64407 | CG40: 67179.38685 | CH40: 7615.4504 | CI40: 5873.80682 | CJ40: 20.5 | CL40: 114 | CM40: 20801 | CO40: 1.379275366 | CP40: 43.90718865 | CQ40: -2425.260272 | CU40: 56.75637287 | CV40: 1194.858002 | CW40: 49.0215484 | CX40: 8896.560491 | CY40: 44040.24018 | CZ40: 29210.93395 | DA40: 165705.2891 | DB40: -136494.3552 | DC40: 83993.60923 | DD40: 65746.255 | DG40: -403.39678 | DH40: 922.00017 | DI40: 13764.11247 | DJ40: 9565.892 | DK40: 0 | DL40: 0 | DM40: 4198.22047 | DN40: 607.83589 | DO40: 0 | DP40: 979.49793 | DQ40: 2610.88665 | DR40: 20766.07484 | DS40: 13275.39263 | DU40: 1401.2656 | DV40: -9858.6772 | DW40: -3773.44481 | DX40: 83993.60923 | DY40: 69934.62794 | DZ40: 8003.49594 | EA40: 6055.48535 | EB40: 20.5 | ED40: 76 | EE40: 95161 | EF40: 101227.2959 | EG40: 106685.448 | EK40: -11823 | EL40: 259 | EM40: 489 | EN40: -19629.66543 | EO40: 746 | EP40: 353.14373 | EQ40: -17756.78275 | ER40: 6.1 | ES40: 701.84531 | ET40: 15300 | EU40: 0 | EV40: 16900 | EW40: 0 | EX40: 6700 | EY40: 0 | EZ40: 61342 | FA40: 51920 | FB40: 9422 | FC40: 1589 | FD40: 68820.2247 | FE40: 58961.5475 | FF40: 9858.6772 | FG40: 1487.7872 | FH40: 65661.5475 | FI40: 56219.2363 | FJ40: 9442.3112 | FK40: 1390.7472 | FL40: 5217.288392 | FM40: 5785.755759 | FN40: 6085.191468 | FO40: 3411.445265 | FP40: 164.0039068 | FV40: 634.0881124
A41: 142 | B41: Iitti | C41: 6625 | E41: 3.978723404 | F41: 22.73332501 | G41: -929.0566038 | K41: 69.96660562 | L41: 426.1132075 | M41: 23.02044236 | N41: 6756.226415 | O41: 10059 | P41: 3076 | Q41: 41613 | R41: -38537 | S41: 25383 | T41: 19607 | W41: -42 | X41: -98 | Y41: 6313 | Z41: 1616 | AA41: 0 | AB41: 0 | AC41: 4697 | AD41: 70 | AE41: 0 | AF41: 0 | AG41: 4767 | AH41: 2598 | AI41: 6291 | AK41: -1328 | AL41: -1553 | AM41: 5214 | AN41: 25383 | AO41: 21217 | AP41: 1433 | AQ41: 2733 | AR41: 21.25 | AT41: 46.97058824 | AU41: 6559 | AW41: 2.91021143 | AX41: 18.77468221 | AY41: -355.7124943 | BC41: 75.89440523 | BD41: 589.8453682 | BE41: 29.40039182 | BF41: 7322.81259 | BG41: 10500.18546 | BH41: 3690.32385 | BI41: 43444.58196 | BJ41: -39754.25811 | BK41: 26237.78546 | BL41: 18041.405 | BO41: -29.85595 | BP41: 82.37455 | BQ41: 4577.45095 | BR41: 1662.32837 | BS41: 0 | BT41: 0 | BU41: 2915.12258 | BV41: -69.82868 | BW41: 0 | BX41: 0 | BY41: 2984.95126 | BZ41: 5583.24957 | CA41: 4488.20028 | CC41: -855.257 | CD41: -1553.296 | CE41: 3875.61173 | CF41: 26237.78546 | CG41: 21174.30636 | CH41: 2049.4562 | CI41: 3014.0229 | CJ41: 21.25 | CL41: 86 | CM41: 6504 | CO41: 5.157244635 | CP41: 17.25312342 | CQ41: 109.0136439 | CU41: 77.64414105 | CV41: 982.2844204 | CW41: 49.5924844 | CX41: 7229.599762 | CY41: 11312.4751 | CZ41: 3399.7519 | DA41: 45375.66178 | DB41: -41975.90988 | DC41: 27267.44503 | DD41: 19166.135 | DG41: -7.72562 | DH41: 76.41954 | DI41: 4526.36407 | DJ41: 2964.2275 | DK41: 0 | DL41: 0 | DM41: 1562.13657 | DN41: -69.82868 | DO41: 0 | DP41: 0 | DQ41: 1631.96525 | DR41: 7215.21482 | DS41: 4431.84372 | DU41: -113.84328 | DV41: -862.896 | DW41: 3276.8061 | DX41: 27267.44503 | DY41: 22108.29606 | DZ41: 2010.41968 | EA41: 3148.72929 | EB41: 21.25 | ED41: 68 | EE41: 28779 | EF41: 29830.39797 | EG41: 30904.65255 | EH41: 920 | EK41: -1221 | EL41: 108 | EM41: 36 | EN41: -2992.34324 | EO41: 2118.41402 | EP41: 261.34067 | EQ41: -1338.9897 | ER41: 84.934 | ES41: 99.01808 | ET41: 0 | EU41: 0 | EV41: 0 | EW41: 0 | EX41: 0 | EY41: 0 | EZ41: 8341 | FA41: 6788 | FB41: 1553 | FC41: 0 | FD41: 6787.455 | FE41: 5924.559 | FF41: 862.896 | FG41: 993.19085 | FH41: 5924.559 | FI41: 5313.786 | FJ41: 610.773 | FK41: 1224.53585 | FL41: 2637.433962 | FM41: 2513.493827 | FN41: 2425.685812 | FO41: 1040.390403 | FP41: 159.9616241 | FV41: 697.8885425
A42: 143 | B42: Ikaalinen | C42: 6866 | E42: 2.415968064 | F42: 57.23899465 | G42: -3814.011069 | K42: 39.76385487 | L42: 149.5776289 | M42: 7.223057209 | N42: 7558.549374 | O42: 21971 | P42: 7091 | Q42: 48036 | R42: -40945 | S42: 25705 | T42: 20996 | W42: -120 | X42: 268 | Y42: 5904 | Z42: 2529 | AA42: 0 | AB42: 0 | AC42: 3375 | AD42: 2 | AE42: 0 | AF42: 0 | AG42: 3377 | AH42: -521 | AI42: 5756 | AK42: 179 | AL42: -2357 | AM42: 4719 | AN42: 25705 | AO42: 21116 | AP42: 1945 | AQ42: 2644 | AR42: 22 | AT42: 69.13235294 | AU42: 6877 | AW42: 1.345327939 | AX42: 62.41732737 | AY42: -3894.495558 | BC42: 38.81771783 | BD42: 434.9601629 | BE42: 18.73323512 | BF42: 8474.802053 | BG42: 22468.50898 | BH42: 8119.8624 | BI42: 51095.21403 | BJ42: -42975.35163 | BK42: 26883.66772 | BL42: 19172.853 | BO42: -74.47685 | BP42: 199.75348 | BQ42: 3206.44572 | BR42: 2058.93616 | BS42: 0 | BT42: 0 | BU42: 1147.50956 | BV42: -1.57208 | BW42: 0 | BX42: 0 | BY42: 1149.08164 | BZ42: 628.51975 | CA42: 3147.25526 | CC42: -529.51577 | CD42: -2357.148 | CE42: -840.20084 | CF42: 26883.66772 | CG42: 21687.0335 | CH42: 2762.53633 | CI42: 2434.09789 | CJ42: 22 | CL42: 200 | CM42: 6804 | CO42: 15.01865553 | CP42: 60.91200282 | CQ42: -4252.018448 | CU42: 38.08921431 | CV42: 0 | CW42: 0 | CX42: 8166.743114 | CY42: 23737.16138 | CZ42: 9095.94147 | DA42: 55403.09118 | DB42: -46307.14971 | DC42: 27621.49742 | DD42: 20777.432 | DG42: -127.03209 | DH42: 174.02272 | DI42: 2138.77034 | DJ42: 2042.02058 | DK42: 0 | DL42: 0 | DM42: 96.74976 | DN42: 1.54438 | DO42: 0 | DP42: 0 | DQ42: 95.20538 | DR42: 367.43882 | DS42: 0 | DU42: 0 | DV42: 0 | DW42: 0 | DX42: 27621.49742 | DY42: 22397.92735 | DZ42: 2711.63514 | EA42: 2511.93493 | EB42: 22 | ED42: 209 | EE42: 20687 | EF42: 23046.83071 | EG42: 25208.26601 | EH42: 960 | EK42: -1344 | EL42: 143 | EM42: 164 | EN42: -4771.74831 | EO42: 600 | EP42: 184.29221 | EQ42: -3938.80865 | ER42: 0 | ES42: 0 | ET42: 0 | EU42: -3200 | EV42: 0 | EW42: 5200 | EX42: 0 | EY42: 0 | EZ42: 24157 | FA42: 16000 | FB42: 8157 | FC42: 0 | FD42: 27000 | FE42: 14500 | FF42: 12500 | FG42: 0 | FH42: 27000 | FI42: 13000 | FJ42: 14000 | FK42: 0 | FL42: 6293.183804 | FM42: 6671.022286 | FN42: 6734.177524 | FO42: 1018.087607 | FP42: 149.6307476 | FV42: 466.2564665
A43: 145 | B43: Ilmajoki | C43: 12294 | E43: 1.200123026 | F43: 77.26935077 | G43: -4987.880267 | K43: 35.15090275 | L43: 291.1176184 | M43: 13.39569725 | N43: 7932.243371 | O43: 28181 | P43: 9395 | Q43: 81860 | R43: -72465 | S43: 43264 | T43: 34908 | W43: -326 | X43: 128 | Y43: 5509 | Z43: 3209 | AA43: 0 | AB43: 0 | AC43: 2300 | AD43: 0 | AE43: 0 | AF43: 0 | AG43: 2299 | AH43: 5854 | AI43: 3768 | AK43: -108 | AL43: -4533 | AM43: -6276 | AN43: 43264 | AO43: 39060 | AP43: 1764 | AQ43: 2440 | AR43: 21 | AT43: 244.4117647 | AU43: 12366 | AW43: 0.7682902838 | AX43: 81.99299204 | AY43: -5598.700757 | BC43: 33.05399824 | BD43: 127.3297582 | BE43: 5.440655867 | BF43: 8542.235142 | BG43: 29627.51994 | BH43: 11688.1837 | BI43: 86926.77954 | BJ43: -75238.59584 | BK43: 46127.54279 | BL43: 33055.232 | BO43: -301.46973 | BP43: -226.4952 | BQ43: 3416.21402 | BR43: 3264.27511 | BS43: 0 | BT43: 0 | BU43: 151.93891 | BV43: 0 | BW43: 0 | BX43: 0 | BY43: 151.93891 | BZ43: 6006.34459 | CA43: 1917.85635 | CC43: -941.45333 | CD43: -4544.93365 | CE43: -6513.44586 | CF43: 46127.54279 | CG43: 40386.44962 | CH43: 2886.39976 | CI43: 2854.69341 | CJ43: 21 | CL43: 260 | CM43: 12369 | CO43: 0.445280804 | CP43: 86.85701578 | CQ43: -6157.888753 | CU43: 29.80277834 | CV43: 30.95371574 | CW43: 1.377952296 | CX43: 8199.199838 | CY43: 31301.09156 | CZ43: 11127.43431 | DA43: 92227.78435 | DB43: -81100.35004 | DC43: 47789.53491 | DD43: 35262.73 | DG43: -418.40078 | DH43: 272.97437 | DI43: 1806.48846 | DJ43: 3969.77188 | DK43: 0 | DL43: 0 | DM43: -2163.28342 | DN43: 0 | DO43: 0 | DP43: 0 | DQ43: -2163.28342 | DR43: 3740.94059 | DS43: 843.84624 | DU43: -1541.83689 | DV43: -4598.01226 | DW43: -6960.04572 | DX43: 47789.53491 | DY43: 41557.65266 | DZ43: 3220.97113 | EA43: 3010.91112 | EB43: 21 | ED43: 260 | EE43: 44764 | EF43: 48456.94029 | EG43: 52136.16871 | EK43: -10801 | EL43: 43 | EM43: 714 | EN43: -11744.64451 | EO43: 117.5 | EP43: 3195.8423 | EQ43: -8486.93492 | ER43: 56.85125 | ES43: 626.19171 | ET43: 15001 | EU43: -3207 | EV43: 10000 | EW43: 134.44235 | EX43: 6000 | EY43: 3053.27389 | EZ43: 55720 | FA43: 51312 | FB43: 4408 | FC43: 879 | FD43: 61309.12953 | FE43: 56766.74397 | FF43: 4542.38556 | FG43: 2601.61608 | FH43: 65764.39116 | FI43: 58168.73171 | FJ43: 7595.65945 | FK43: 2804.57497 | FL43: 6754.107695 | FM43: 6809.713502 | FN43: 7134.792543 | FO43: 1978.935841 | FP43: 159.991579 | FV43: 276.2586139
A44: 146 | B44: Ilomantsi | C44: 4749 | E44: 2.489298454 | F44: 27.25229235 | G44: -1105.074753 | K44: 67.49566371 | L44: 1198.77869 | M44: 47.96512165 | N44: 9122.341546 | O44: 9406 | P44: 4923 | Q44: 41159 | R44: -36236 | S44: 17462 | T44: 22633 | W44: -88 | X44: 328 | Y44: 4099 | Z44: 1689 | AA44: 0 | AB44: 0 | AC44: 2410 | AD44: 43 | AE44: -500 | AF44: 0 | AG44: 1953 | AH44: 6112 | AI44: 4425 | AK44: 108 | AL44: -1594 | AM44: 4004 | AN44: 17462 | AO44: 12966 | AP44: 3160 | AQ44: 1336 | AR44: 21 | AT44: 67.11764706 | AU44: 4643 | AW44: 2.67517565 | AX44: 22.98269725 | AY44: -245.3677278 | BC44: 70.45178799 | BD44: 1776.675891 | BE44: 67.16071356 | BF44: 9655.744641 | BG44: 9241.92338 | BH44: 4908.01116 | BI44: 42843.88111 | BJ44: -37935.86995 | BK44: 19187.83067 | BL44: 22601.62 | BO44: -85.12935 | BP44: 335.86565 | BQ44: 4104.31702 | BR44: 3703.15729 | BS44: 0 | BT44: 0 | BU44: 401.15973 | BV44: -42.43603 | BW44: 0 | BX44: 0 | BY44: 443.59576 | BZ44: 6555.39146 | CA44: 4589.08171 | CC44: -30.24799 | CD44: -1480.88077 | CE44: 4081.54447 | CF44: 19187.83067 | CG44: 13178.97943 | CH44: 4533.48011 | CI44: 1475.37113 | CJ44: 21 | CL44: 40 | CM44: 4492 | CO44: 1.913627035 | CP44: 23.17801261 | CQ44: 37.22734862 | CU44: 70.8405527 | CV44: 2206.525467 | CW44: 78.56851968 | CX44: 10250.69327 | CY44: 9325.89796 | CZ44: 4738.25798 | DA44: 45028.27541 | DB44: -40290.01743 | DC44: 19051.13723 | DD44: 23419.857 | DG44: -134.46999 | DH44: 241.13451 | DI44: 2287.64132 | DJ44: 1122.50639 | DK44: 0 | DL44: 0 | DM44: 1165.13493 | DN44: -10.5562 | DO44: 0 | DP44: 0 | DQ44: 1175.69113 | DR44: 7731.08259 | DS44: 1553.27119 | DU44: 142.93594 | DV44: -1131.07447 | DW44: 869.43026 | DX44: 19051.13723 | DY44: 13196.27843 | DZ44: 4299.76318 | EA44: 1555.09562 | EB44: 21 | ED44: 137 | EE44: 28552 | EF44: 29602.91409 | EG44: 31077.26369 | EK44: -547 | EL44: 10 | EM44: 116 | EN44: -520.07866 | EO44: 0 | EP44: 12.54142 | EQ44: -683.84093 | ER44: 0 | ES44: 0 | ET44: 2000 | EU44: 0 | EV44: 0 | EW44: 0 | EX44: 0 | EY44: 0 | EZ44: 9492 | FA44: 8016 | FB44: 1476 | FC44: 1017 | FD44: 8011.41041 | FE44: 6880.33594 | FF44: 1131.07447 | FG44: 0 | FH44: 6880.33594 | FI44: 5749.1221 | FJ44: 1131.21384 | FK44: 1017 | FL44: 4336.913034 | FM44: 4163.408594 | FN44: 4151.137567 | FO44: 628.394211 | FP44: 139.8918546 | FV44: 883.9795434
A45: 153 | B45: Imatra | C45: 26075 | E45: 1.65864005 | F45: 66.59649159 | G45: -3743.815916 | K45: 51.39698766 | L45: 734.189837 | M45: 31.6672105 | N45: 8462.358581 | O45: 35448 | P45: 19623 | Q45: 183132 | R45: -163509 | S45: 105746 | T45: 68907 | W45: -245 | X45: 1876 | Y45: 12775 | Z45: 8453 | AA45: 0 | AB45: 0 | AC45: 4322 | AD45: 0 | AE45: 0 | AF45: 91 | AG45: 4413 | AH45: 70957 | AI45: 19249 | AK45: -1024 | AL45: -7496 | AM45: -9660 | AN45: 105746 | AO45: 90701 | AP45: 3804 | AQ45: 11241 | AR45: 20 | AT45: 231.3161765 | AU45: 25655 | AW45: 1.153028749 | AX45: 69.26030904 | AY45: -4348.45064 | BC45: 51.7414237 | BD45: 477.0613272 | BE45: 20.45166706 | BF45: 8514.092466 | BG45: 37029.85334 | BH45: 20928.92044 | BI45: 184609.2988 | BJ45: -163680.3784 | BK45: 109834.1883 | BL45: 66621.5803 | BO45: -897.38367 | BP45: 201.31354 | BQ45: 12079.32011 | BR45: 9313.26075 | BS45: 0 | BT45: 0 | BU45: 2766.05936 | BV45: 0 | BW45: 0 | BX45: 0 | BY45: 2766.05936 | BZ45: 73722.48188 | CA45: 5180.13361 | CC45: -219.70217 | CD45: -10322.64769 | CE45: -15772.17672 | CF45: 109834.1883 | CG45: 92543.99874 | CH45: 5377.63253 | CI45: 11912.55706 | CJ45: 20 | CL45: 196 | CM45: 25208 | CO45: 0.5295578284 | CP45: 71.48102785 | CQ45: -4981.215495 | CU45: 48.94198345 | CV45: 303.1794954 | CW45: 12.78775769 | CX45: 8653.629393 | CY45: 38018.63627 | CZ45: 21551.25244 | DA45: 195440.0575 | DB45: -173888.8051 | DC45: 111808.6619 | DD45: 71035.79102 | DG45: -912.50762 | DH45: 813.2216 | DI45: 8856.36179 | DJ45: 18128.39121 | DK45: 0 | DL45: 0 | DM45: -9272.02942 | DN45: 0 | DO45: 0 | DP45: 0 | DQ45: -9272.02942 | DR45: 64450.45246 | DS45: 6078.70973 | DU45: -20.44031 | DV45: -17800.69223 | DW45: -12266.83105 | DX45: 111808.6619 | DY45: 93596.27115 | DZ45: 5503.90529 | EA45: 12708.48545 | EB45: 20 | ED45: 198 | EE45: 123273 | EF45: 129523.541 | EG45: 140298.688 | EH45: 1600 | EK45: -29494 | EL45: 444 | EM45: 141 | EN45: -22292.75094 | EO45: 1016.86613 | EP45: 323.57448 | EQ45: -19884.14014 | ER45: 1398.06223 | ES45: 140.53713 | ET45: 27000 | EU45: -8300 | EV45: 12800 | EW45: 0 | EX45: 22500 | EY45: 10000 | EZ45: 101622 | FA45: 91299 | FB45: 10323 | FC45: 0 | FD45: 104099.1965 | FE45: 92698.50431 | FF45: 11400.69223 | FG45: 8502.87475 | FH45: 118798.5043 | FI45: 98587.36631 | FJ45: 20211.138 | FK45: 10002.87475 | FL45: 9461.208054 | FM45: 9435.499387 | FN45: 10065.34191 | FO45: 4679.813557 | FP45: 185.6479513 | FV45: 470.8368782
A46: 148 | B46: Inari | C46: 6862 | E46: 1.637853555 | F46: 30.46931297 | G46: -1196.444185 | K46: 73.81672762 | L46: 1172.835908 | M46: 43.34415393 | N46: 9876.420869 | O46: 27188 | P46: 9849 | Q46: 60049 | R46: -50200 | S46: 28245 | T46: 27129 | W46: -15 | X46: 899 | Y46: 6058 | Z46: 2617 | AA46: 0 | AB46: 0 | AC46: 3441 | AD46: 0 | AE46: 0 | AF46: -66 | AG46: 3375 | AH46: 14620 | AI46: 5231 | AK46: -2112 | AL46: -3645 | AM46: 2908 | AN46: 28245 | AO46: 20976 | AP46: 3041 | AQ46: 4228 | AR46: 19 | AT46: 63.08823529 | AU46: 7008 | AW46: 4.14605432 | AX46: 25.05709217 | AY46: -512.5148045 | BC46: 77.30365801 | BD46: 1251.168169 | BE46: 47.6879298 | BF46: 9576.351578 | BG46: 28579.13131 | BH46: 12276.00789 | BI46: 63390.40963 | BJ46: -51114.40174 | BK46: 30222.74157 | BL46: 26166.607 | BO46: 26.68099 | BP46: 964.52711 | BQ46: 6266.15493 | BR46: 3689.77473 | BS46: 0 | BT46: 0 | BU46: 2576.3802 | BV46: 0 | BW46: 0 | BX46: 45.9186 | BY46: 2530.4616 | BZ46: 17150.97345 | CA46: 5361.51344 | CC46: -1230.45557 | CD46: -1425.74146 | CE46: 4524.37572 | CF46: 30222.74157 | CG46: 21052.21155 | CH46: 4440.38589 | CI46: 4730.14413 | CJ46: 19 | CL46: 39 | CM46: 7047 | CO46: 3.52824891 | CP46: 26.62903735 | CQ46: -115.8413098 | CU46: 76.1973652 | CV46: 1815.067498 | CW46: 66.67748164 | CX46: 9935.882708 | CY46: 29295.00876 | CZ46: 10816.89839 | DA46: 66568.79696 | DB46: -55751.89857 | DC46: 32146.41394 | DD46: 27756.711 | DG46: 24.57035 | DH46: 1405.79289 | DI46: 5581.58961 | DJ46: 3859.36045 | DK46: 0 | DL46: 0 | DM46: 1722.22916 | DN46: 0 | DO46: 0 | DP46: -36.67418 | DQ46: 1758.90334 | DR46: 18909.87679 | DS46: 5394.6553 | DU46: -379.29552 | DV46: -1513.34146 | DW46: 2994.48649 | DX46: 32146.41394 | DY46: 22800.53929 | DZ46: 4367.30327 | EA46: 4975.84183 | EB46: 19 | ED46: 52 | EE46: 24586 | EF46: 25681.66664 | EG46: 26734.33986 | EK46: -3635 | EL46: 272 | EM46: 1040 | EN46: -1910.86024 | EO46: 0 | EP46: 1073.72252 | EQ46: -2874.11937 | ER46: 56.959 | ES46: 416.99156 | ET46: 2500 | EU46: 0 | EV46: 0 | EW46: -307.6 | EX46: 0 | EY46: -119.05863 | EZ46: 12136 | FA46: 10710 | FB46: 1426 | FC46: 7042 | FD46: 10401.99382 | FE46: 8809.58436 | FF46: 1592.40946 | FG46: 6768.56871 | FH46: 11143.24929 | FI46: 7399.605 | FJ46: 3743.64429 | FK46: 6788.02471 | FL46: 6662.78053 | FM46: 6357.710656 | FN46: 6321.694108 | FO46: 1200.028384 | FP46: 170.2892555 | FV46: 894.1431122
A47: 149 | B47: Inkoo | C47: 5321 | E47: 2.377777778 | F47: 42.45930048 | G47: -2597.06822 | K47: 51.81027147 | L47: 153.7305018 | M47: 7.202788768 | N47: 7790.264988 | O47: 12692 | P47: 5024 | Q47: 35889 | R47: -30865 | S47: 26759 | T47: 9188 | W47: -93 | X47: 54 | Y47: 5043 | Z47: 1635 | AA47: 0 | AB47: 0 | AC47: 3408 | AD47: -45 | AE47: -3170 | AF47: 0 | AG47: 193 | AH47: 7804 | AI47: 4647 | AK47: -1761 | AL47: -2067 | AM47: 2406 | AN47: 26759 | AO47: 22802 | AP47: 1306 | AQ47: 2651 | AR47: 20.75 | AT47: 47.97794118 | AU47: 5353 | AW47: 1.796771552 | AX47: 48.02591861 | AY47: -3024.270622 | BC47: 50.56722269 | BD47: 427.0535999 | BE47: 17.39047411 | BF47: 8963.215317 | BG47: 13437.04338 | BH47: 7960.33922 | BI47: 38774.63293 | BJ47: -30814.29371 | BK47: 27175.33673 | BL47: 7601.573 | BO47: -67.77132 | BP47: 55.32406 | BQ47: 3950.16876 | BR47: 1912.03448 | BS47: 0 | BT47: 0 | BU47: 2038.13428 | BV47: -2.24238 | BW47: 2014.982 | BX47: 0 | BY47: 25.39466 | BZ47: 8036.12611 | CA47: 2030.60185 | CC47: 712.71135 | CD47: -2166.92011 | CE47: -2794.51669 | CF47: 27175.33673 | CG47: 22742.99197 | CH47: 1992.85115 | CI47: 2439.49361 | CJ47: 20.75 | CL47: 72 | CM47: 5384 | CO47: 1.401688479 | CP47: 69.16980582 | CQ47: -4437.250097 | CU47: 42.24143494 | CV47: 703.3229216 | CW47: 26.45180699 | CX47: 9704.9274 | CY47: 14390.71837 | CZ47: 6194.29677 | DA47: 40880.88584 | DB47: -34686.58907 | DC47: 29460.20599 | DD47: 8451.172 | DG47: -154.00812 | DH47: 55.46747 | DI47: 3126.24827 | DJ47: 2248.07377 | DK47: 0 | DL47: 0 | DM47: 878.1745 | DN47: 2942.19619 | DO47: -2335.018 | DP47: 0 | DQ47: 270.99631 | DR47: 8649.5373 | DS47: 2781.53407 | DU47: -779.59764 | DV47: -2185.196 | DW47: -7889.39181 | DX47: 29460.20599 | DY47: 24404.09169 | DZ47: 2031.23404 | EA47: 3024.88026 | EB47: 20.75 | ED47: 105 | EE47: 20388 | EF47: 22257.95941 | EG47: 23542.01119 | EK47: -3379 | EL47: 11 | EM47: 1127 | EN47: -6959.67215 | EO47: 75 | EP47: 2059.55361 | EQ47: -11215.90895 | ER47: 121.26 | ES47: 423.72307 | ET47: 0 | EU47: 0 | EV47: 5000 | EW47: -1000 | EX47: 10000 | EY47: 0 | EZ47: 13297 | FA47: 10130 | FB47: 3167 | FC47: 130 | FD47: 15130.316 | FE47: 12945.12 | FF47: 2185.196 | FG47: 0 | FH47: 22945.12 | FI47: 19915.318 | FJ47: 3029.802 | FK47: 119.8918 | FL47: 3121.405751 | FM47: 3493.479137 | FN47: 5030.690947 | FO47: 1176.100804 | FP47: 218.4436858 | FV47: 737.9355053
A48: 151 | B48: Isojoki | C48: 1925 | E48: 7.592436975 | F48: 11.88342138 | G48: 303.8961039 | K48: 83.53984698 | L48: 1127.272727 | M48: 50.26016879 | N48: 8186.493506 | O48: 2898 | P48: 1863 | Q48: 15054 | R48: -13191 | S48: 6914 | T48: 8070 | W48: -13 | X48: 14 | Y48: 1794 | Z48: 501 | AA48: 0 | AB48: 0 | AC48: 1293 | AD48: 3 | AE48: 0 | AF48: 0 | AG48: 1296 | AH48: 2885 | AI48: 1780 | AK48: -57 | AL48: -225 | AM48: 1373 | AN48: 6914 | AO48: 5528 | AP48: 805 | AQ48: 581 | AR48: 22 | AT48: 54.02205882 | AU48: 1891 | AW48: 2.736876708 | AX48: 13.79683169 | AY48: 350.2353252 | BC48: 81.97766508 | BD48: 1360.941666 | BE48: 55.49323953 | BF48: 8951.427456 | BG48: 3163.97194 | BH48: 1774.22973 | BI48: 16069.64364 | BJ48: -14295.41391 | BK48: 7250.38313 | BL48: 7670.609 | BO48: -8.55553 | BP48: 13.63447 | BQ48: 630.65716 | BR48: 485.67832 | BS48: 0 | BT48: 0 | BU48: 144.97884 | BV48: -2.6498 | BW48: 0 | BX48: 0 | BY48: 147.62864 | BZ48: 3033.05681 | CA48: 618.92615 | CC48: 25.00216 | CD48: -225 | CE48: 65.52083 | CF48: 7250.38313 | CG48: 5356.60945 | CH48: 1252.46603 | CI48: 641.30765 | CJ48: 22.5 | CL48: 244 | CM48: 1852 | CO48: 9.170450539 | CP48: 12.88842386 | CQ48: 979.6508639 | CU48: 75.50103572 | CV48: 1925.777138 | CW48: 74.65601457 | CX48: 9415.298413 | CY48: 3222.04429 | CZ48: 2025.89164 | DA48: 16985.1907 | DB48: -14959.29906 | DC48: 8126.87794 | DD48: 8294.261 | DG48: -4.46298 | DH48: 69.28587 | DI48: 1526.66277 | DJ48: 513.258 | DK48: 0 | DL48: 0 | DM48: 1013.40477 | DN48: -2.64979 | DO48: 0 | DP48: 0 | DQ48: 1016.05456 | DR48: 4049.11137 | DS48: 1518.67383 | DU48: -233.13966 | DV48: -162.5 | DW48: 1129.27151 | DX48: 8126.87794 | DY48: 5943.60162 | DZ48: 1178.47749 | EA48: 1004.79883 | EB48: 22.5 | ED48: 49 | EE48: 11023 | EF48: 11642.52175 | EG48: 12514.30819 | EK48: -456 | EL48: 35 | EM48: 14 | EN48: -603.1141 | EO48: 1.8 | EP48: 47.90878 | EQ48: -432.56262 | ER48: 31.7754 | ES48: 11.3849 | ET48: 0 | EU48: 0 | EV48: 0 | EW48: 0 | EX48: 0 | EY48: -225 | EZ48: 612 | FA48: 387 | FB48: 225 | FC48: 90 | FD48: 387.5 | FE48: 162.5 | FF48: 225 | FG48: 78.5 | FH48: 0 | FI48: 0 | FJ48: 0 | FK48: 54 | FL48: 2203.116883 | FM48: 2051.87432 | FN48: 1776.678256 | FO48: 264.160072 | FP48: 142.6350281 | FV48: 333.5045796
A49: 152 | B49: Isokyrö | C49: 4471 | E49: 4.093795094 | F49: 27.74347502 | G49: -960.1878774 | K49: 71.86527715 | L49: 934.9138895 | M49: 45.41584807 | N49: 7513.755312 | O49: 11108 | P49: 3249 | Q49: 30765 | R49: -27516 | S49: 15363 | T49: 14913 | W49: -12 | X49: 71 | Y49: 2819 | Z49: 1453 | AA49: 0 | AB49: 0 | AC49: 1366 | AD49: 0 | AE49: 0 | AF49: 0 | AG49: 1366 | AH49: 12604 | AI49: 2929 | AK49: -37 | AL49: -675 | AM49: 1121 | AN49: 15363 | AO49: 13852 | AP49: 676 | AQ49: 835 | AR49: 21.5 | AT49: 164.8308824 | AU49: 4480 | AW49: 1.539922886 | AX49: 25.5969107 | AY49: -1104.682085 | BC49: 72.42804467 | BD49: 569.4377723 | BE49: 25.97135569 | BF49: 8002.847036 | BG49: 11993.92988 | BH49: 3959.89214 | BI49: 33497.88058 | BJ49: -29537.98844 | BK49: 16047.64948 | BL49: 14587.004 | BO49: -14.69438 | BP49: 50.77803 | BQ49: 1132.74869 | BR49: 1626.6819 | BS49: 0 | BT49: 0 | BU49: -493.93321 | BV49: 0 | BW49: 0 | BX49: 0 | BY49: -493.93321 | BZ49: 12109.94903 | CA49: 1115.09899 | CC49: -526.65271 | CD49: -730 | CE49: -571.7463 | CF49: 16047.64948 | CG49: 14047.06116 | CH49: 1073.21713 | CI49: 927.37119 | CJ49: 21.5 | CL49: 264 | CM49: 4406 | CO49: 5.895662254 | CP49: 23.8543975 | CQ49: -1024.679598 | CU49: 73.60445267 | CV49: 592.4393849 | CW49: 26.16072453 | CX49: 8265.840468 | CY49: 12312.66457 | CZ49: 4273.09236 | DA49: 33421.18878 | DB49: -29148.09642 | DC49: 17508.43813 | DD49: 14864.124 | DG49: -3.66637 | DH49: 110.88096 | DI49: 3331.6803 | DJ49: 1750.78796 | DK49: 0 | DL49: 0 | DM49: 1580.89234 | DN49: 0 | DO49: 0 | DP49: 0 | DQ49: 1580.89234 | DR49: 13690.84137 | DS49: 3302.05973 | DU49: -261.49586 | DV49: -555 | DW49: 453.45716 | DX49: 17508.43813 | DY49: 15227.50589 | DZ49: 1305.91702 | EA49: 975.01522 | EB49: 21.5 | ED49: 57 | EE49: 16196 | EF49: 18292.27927 | EG49: 17721.05443 | EK49: -2084 | EL49: 154 | EM49: 122 | EN49: -1728.5203 | EO49: 0 | EP49: 41.67501 | EQ49: -2922.77057 | ER49: 24 | ES49: 50.168 | ET49: 1100 | EU49: 0 | EV49: 0 | EW49: 0 | EX49: 0 | EY49: 0 | EZ49: 4000 | FA49: 3270 | FB49: 730 | FC49: 491 | FD49: 3270 | FE49: 2715 | FF49: 555 | FG49: 574.47821 | FH49: 2715 | FI49: 2335 | FJ49: 380 | FK49: 589.46653 | FL49: 2853.276672 | FM49: 2583.227511 | FN49: 2728.507783 | FO49: 708.2560879 | FP49: 160.7480908 | FV49: 252.8456897
A50: 165 | B50: Janakkala | C50: 16237 | E50: 1.158479662 | F50: 61.58862612 | G50: -3281.640697 | K50: 40.86789413 | L50: 602.3280163 | M50: 28.58755976 | N50: 7690.398473 | O50: 45651 | P50: 16087 | Q50: 104148 | R50: -88061 | S50: 66705 | T50: 31634 | W50: -336 | X50: 81 | Y50: 10023 | Z50: 6478 | AA50: 0 | AB50: 0 | AC50: 3545 | AD50: 0 | AE50: 0 | AF50: 0 | AG50: 3546 | AH50: 2607 | AI50: 9313 | AK50: -1359 | AL50: -8597 | AM50: -1525 | AN50: 66705 | AO50: 60799 | AP50: 2485 | AQ50: 3421 | AR50: 21 | AT50: 177.9264706 | AU50: 16340 | AW50: 0.8710591715 | AX50: 58.04461891 | AY50: -3088.078936 | BC50: 42.47725557 | BD50: 616.1820869 | BE50: 30.74544361 | BF50: 7315.115196 | BG50: 47132.65644 | BH50: 20198.01528 | BI50: 109358.3636 | BJ50: -89160.34835 | BK50: 68459.72332 | BL50: 28547.68568 | BO50: -239.82722 | BP50: 192.73725 | BQ50: 7799.97068 | BR50: 6160.98473 | BS50: 0 | BT50: 0 | BU50: 1638.98595 | BV50: 0 | BW50: 0 | BX50: 0 | BY50: 1638.98595 | BZ50: 4245.74677 | CA50: 7022.72272 | CC50: -162.15087 | CD50: -8997.81336 | CE50: 1716.10094 | CF50: 68459.72332 | CG50: 60868.02252 | CH50: 3661.6944 | CI50: 3930.0064 | CJ50: 21 | CL50: 194 | CM50: 16280 | CO50: 0.8019282457 | CP50: 54.27401049 | CQ50: -2939.767105 | CU50: 44.05729564 | CV50: 753.4301394 | CW50: 36.11210991 | CX50: 7615.229394 | CY50: 48993.30919 | CZ50: 19551.34377 | DA50: 115580.7599 | DB50: -96029.41613 | DC50: 71527.96985 | DD50: 31323.245 | DG50: -305.25931 | DH50: 226.59804 | DI50: 6743.13745 | DJ50: 6306.93953 | DK50: 1560.89155 | DL50: 0 | DM50: 1997.08947 | DN50: 0 | DO50: 0 | DP50: 0 | DQ50: 1997.08947 | DR50: 6242.83624 | DS50: 6359.64642 | DU50: 1263.33627 | DV50: -8484.71779 | DW50: 1899.63969 | DX50: 71527.96985 | DY50: 63541.70603 | DZ50: 3932.75164 | EA50: 4053.51218 | EB50: 21 | ED50: 175 | EE50: 43620 | EF50: 47896.34312 | EG50: 51502.02777 | EK50: -11950 | EL50: 391 | EM50: 721 | EN50: -6370.74019 | EO50: 165 | EP50: 899.11841 | EQ50: -8451.84301 | ER50: 371.83061 | ES50: 3620.00567 | ET50: 12000 | EU50: 1145 | EV50: 8000 | EW50: -467.0203 | EX50: 5000 | EY50: 157.34338 | EZ50: 52921 | FA50: 42949 | FB50: 9972 | FC50: 1003 | FD50: 51457.83662 | FE50: 42601.89786 | FF50: 8855.93876 | FG50: 0 | FH50: 48130.46221 | FI50: 40132.8695 | FJ50: 7997.59271 | FK50: 0 | FL50: 4741.085176 | FM50: 4850.441519 | FN50: 5487.887413 | FO50: 3025.795525 | FP50: 185.859676 | FV50: 477.3543868
A51: 167 | B51: Joensuu | C51: 76935 | E51: 1.531630592 | F51: 53.04203979 | G51: -1946.96822 | K51: 55.38979862 | L51: 1374.121011 | M51: 70.52439481 | N51: 7111.782674 | O51: 99636 | P51: 75524 | Q51: 471379 | R51: -395855 | S51: 273994 | T51: 171380 | W51: -1036 | X51: 3239 | Y51: 51722 | Z51: 39427 | AA51: 0 | AB51: 0 | AC51: 12295 | AD51: 2724 | AE51: -10533 | AF51: 3 | AG51: 4489 | AH51: 30645 | AI51: 53720 | AK51: -244 | AL51: -33301 | AM51: 13655 | AN51: 273994 | AO51: 231975 | AP51: 22082 | AQ51: 19937 | AR51: 20.5 | AT51: 146.6985294 | AU51: 77261 | AW51: 1.468676037 | AX51: 51.03306544 | AY51: -1673.83943 | BC51: 56.36298926 | BD51: 1570.657978 | BE51: 76.77930117 | BF51: 7466.728051 | BG51: 108372.2304 | BH51: 80416.31188 | BI51: 502712.0756 | BJ51: -422295.7637 | BK51: 296164.6495 | BL51: 164811.937 | BO51: -766.75925 | BP51: 13117.2764 | BQ51: 51031.33998 | BR51: 35362.74309 | BS51: 0 | BT51: 0 | BU51: 15668.59689 | BV51: -1997.12297 | BW51: 7705.72011 | BX51: 4422.44913 | BY51: 5537.55062 | BZ51: 36719.65739 | CA51: 50665.90803 | CC51: -4476.32273 | CD51: -34399.70106 | CE51: 19389.25807 | CF51: 296164.6495 | CG51: 241728.5298 | CH51: 32458.18277 | CI51: 21977.93692 | CJ51: 20.5 | CL51: 99 | CM51: 77513 | CO51: 0.6965547127 | CP51: 51.50479914 | CQ51: -1893.051537 | CU51: 53.85728158 | CV51: 1575.174395 | CW51: 75.82117659 | CX51: 7582.824219 | CY51: 113286.2034 | CZ51: 83362.12527 | DA51: 542713.1493 | DB51: -459351.024 | DC51: 313083.3308 | DD51: 175267.727 | DG51: -858.86497 | DH51: -4134.99675 | DI51: 24006.17205 | DJ51: 33252.99077 | DK51: 0 | DL51: 0 | DM51: -9246.81872 | DN51: -592.78139 | DO51: -1836.13115 | DP51: -3.5 | DQ51: -6814.40618 | DR51: 24486.61721 | DS51: 23861.16125 | DU51: -204.66116 | DV51: -35006.53043 | DW51: -13117.08787 | DX51: 313083.3308 | DY51: 252224.925 | DZ51: 37901.40392 | EA51: 22957.00182 | EB51: 20.5 | ED51: 214 | EE51: 318211 | EF51: 342533.1684 | EG51: 374478.1771 | EK51: -44787 | EL51: 1116 | EM51: 3606 | EN51: -37293.23433 | EO51: 2270.6587 | EP51: 3745.92567 | EQ51: -40190.14317 | ER51: 1222.15282 | ES51: 1989.74123 | ET51: 20000 | EU51: -93 | EV51: 30000 | EW51: 771.97467 | EX51: 35000 | EY51: 237.35811 | EZ51: 238557 | FA51: 179596 | FB51: 58961 | FC51: 20510 | FD51: 234929.7817 | FE51: 174589.9139 | FF51: 60339.86775 | FG51: 16470.96563 | FH51: 235160.6093 | FI51: 176393.8661 | FJ51: 58766.74323 | FK51: 18622.47179 | FL51: 7124.884643 | FM51: 7134.622842 | FN51: 7208.227581 | FO51: 12303.65488 | FP51: 158.7302114 | FV51: 660.5058177
A52: 169 | B52: Jokioinen | C52: 5061 | E52: 2.679644809 | F52: 41.72437769 | G52: -2404.267931 | K52: 57.90229885 | L52: 126.2596325 | M52: 6.772409187 | N52: 6804.781664 | O52: 9580 | P52: 4423 | Q52: 32072 | R52: -27649 | S52: 20308 | T52: 11224 | W52: -111 | X52: 33 | Y52: 3805 | Z52: 1423 | AA52: 0 | AB52: 0 | AC52: 2382 | AD52: 0 | AE52: 0 | AF52: 0 | AG52: 2383 | AH52: 8549 | AI52: 3688 | AK52: 274 | AL52: -1346 | AM52: 2891 | AN52: 20308 | AO52: 18058 | AP52: 1348 | AQ52: 902 | AR52: 21.25 | AT52: 103.3823529 | AU52: 5046 | AW52: 1.818584453 | AX52: 35.7008423 | AY52: -2125.305979 | BC52: 62.65595374 | BD52: 73.36196195 | BE52: 3.761570582 | BF52: 7118.599939 | BG52: 9557.87776 | BH52: 4464.39024 | BI52: 33331.75503 | BJ52: -28867.36479 | BK52: 21119.64235 | BL52: 10315.856 | BO52: -83.52733 | BP52: -0.72442 | BQ52: 2483.88181 | BR52: 1468.6357 | BS52: 0 | BT52: 0 | BU52: 1015.24611 | BV52: 0 | BW52: 0 | BX52: 0 | BY52: 1015.24611 | BZ52: 9551.92784 | CA52: 2432.4727 | CC52: 473.90782 | CD52: -1323.097 | CE52: 1402.1148 | CF52: 21119.64235 | CG52: 17946.44439 | CH52: 2035.22385 | CI52: 1137.97411 | CJ52: 21.25 | CL52: 187 | CM52: 4990 | CO52: 0.9318441939 | CP52: 38.09617898 | CQ52: -2302.956479 | CU52: 60.90899686 | CV52: 65.86141082 | CW52: 3.255119502 | CX52: 7385.109806 | CY52: 10029.03879 | CZ52: 4137.62708 | DA52: 34811.55269 | DB52: -30673.92561 | DC52: 21548.18011 | DD52: 10320.185 | DG52: -73.36301 | DH52: 44.40382 | DI52: 1165.48031 | DJ52: 1534.8721 | DK52: 0 | DL52: 0 | DM52: -369.39179 | DN52: 0 | DO52: 0 | DP52: 0 | DQ52: -369.39179 | DR52: 9182.53605 | DS52: 1163.39826 | DU52: -174.42178 | DV52: -1257.08998 | DW52: -781.62947 | DX52: 21548.18011 | DY52: 18819.1478 | DZ52: 1471.75621 | EA52: 1257.2761 | EB52: 21.25 | ED52: 241 | EE52: 19812 | EF52: 20941.70427 | EG52: 22049.10921 | EK52: -902 | EL52: 0 | EM52: 105 | EN52: -1144.0674 | EO52: 60 | EP52: 53.7095 | EQ52: -1950.59948 | ER52: 0 | ES52: 5.57175 | ET52: 730 | EU52: -3100 | EV52: 0 | EW52: -900 | EX52: 0 | EY52: 2000 | EZ52: 12378 | FA52: 8155 | FB52: 4223 | FC52: 0 | FD52: 10155.2781 | FE52: 6898.1881 | FF52: 3257.09 | FG52: 0 | FH52: 10898.18812 | FI52: 5861.0981 | FJ52: 5037.09002 | FK52: 0 | FL52: 2979.450701 | FM52: 2550.305119 | FN52: 2961.17589 | FO52: 885.6069553 | FP52: 177.4763437 | FV52: 492.2476833
A53: 171 | B53: Joroinen | C53: 4689 | E53: 0.9226190476 | F53: 75.94285555 | G53: -2596.289187 | K53: 44.80695371 | L53: 3013.222435 | M53: 137.7720934 | N53: 7982.938793 | O53: 8220 | P53: 4154 | Q53: 32700 | R53: -28546 | S53: 17770 | T53: 13852 | W53: -59 | X53: 81 | Y53: 3098 | Z53: 1151 | AA53: 0 | AB53: 0 | AC53: 1947 | AD53: 31 | AE53: 0 | AF53: 0 | AG53: 1978 | AH53: 6601 | AI53: 3016 | AK53: -319 | AL53: -3371 | AM53: 2248 | AN53: 17770 | AO53: 15027 | AP53: 1736 | AQ53: 1007 | AR53: 21.25 | AT53: 151.7352941 | AU53: 4624 | AW53: 0.6235470337 | AX53: 78.97123772 | AY53: -2421.418934 | BC53: 44.67589254 | BD53: 3312.23824 | BE53: 141.4719884 | BF53: 8545.627801 | BG53: 8354.21089 | BH53: 4201.51056 | BI53: 34066.25937 | BJ53: -29864.74881 | BK53: 18813.67184 | BL53: 12947.256 | BO53: 25.45701 | BP53: 283.30765 | BQ53: 2204.94369 | BR53: 1326.87123 | BS53: 0 | BT53: 0 | BU53: 878.07246 | BV53: -36.70763 | BW53: 0 | BX53: 0 | BY53: 914.78009 | BZ53: 7515.82528 | CA53: 1886.35445 | CC53: -564.07792 | CD53: -3602.61632 | CE53: 970.89979 | CF53: 18813.67184 | CG53: 15247.47252 | CH53: 2420.04215 | CI53: 1146.15717 | CJ53: 21.25 | CL53: 195 | CM53: 4540 | CO53: 0.568016325 | CP53: 71.70186866 | CQ53: -2436.907839 | CU53: 46.61135753 | CV53: 3113.05454 | CW53: 137.55983 | CX53: 8260.150562 | CY53: 8523.15134 | CZ53: 3960.84568 | DA53: 35186.61129 | DB53: -31225.76561 | DC53: 19591.32611 | DD53: 13611.358 | DG53: -74.75794 | DH53: -121.55165 | DI53: 1780.60891 | DJ53: 1439.25367 | DK53: 0 | DL53: 0 | DM53: 341.35524 | DN53: -21.04789 | DO53: 0 | DP53: 0 | DQ53: 362.40313 | DR53: 7878.22841 | DS53: 1682.35709 | DU53: 467.15583 | DV53: -3244.73232 | DW53: 102.92605 | DX53: 19591.32611 | DY53: 16106.00674 | DZ53: 2255.38219 | EA53: 1229.93718 | EB53: 21.25 | ED53: 182 | EE53: 22105 | EF53: 23320.94539 | EG53: 24301.13937 | EK53: -1107 | EL53: 54 | EM53: 285 | EN53: -1665.41464 | EO53: 13.125 | EP53: 736.83498 | EQ53: -1798.29004 | ER53: 32.896 | ES53: 185.963 | ET53: 3350 | EU53: 0 | EV53: 0 | EW53: 3000 | EX53: 4500 | EY53: -3000 | EZ53: 22769 | FA53: 19166 | FB53: 3603 | FC53: 302 | FD53: 22166.48072 | FE53: 15921.7484 | FF53: 6244.73232 | FG53: 0 | FH53: 20421.7484 | FI53: 17145.45608 | FJ53: 3276.29232 | FK53: 301.95367 | FL53: 7288.76093 | FM53: 7323.116241 | FN53: 7182.114425 | FO53: 757.9297289 | FP53: 166.9448742 | FV53: 476.8476838
A54: 172 | B54: Joutsa | C54: 4297 | E54: 0.5 | F54: 55.1067768 | G54: -4171.28229 | K54: 30.22578767 | L54: 171.5150105 | M54: 6.508080515 | N54: 9619.269258 | O54: 12396 | P54: 4689 | Q54: 35741 | R54: -31052 | S54: 15062 | T54: 16480 | W54: -37 | X54: 193 | Y54: 646 | Z54: 1107 | AA54: 0 | AB54: 70 | AC54: -531 | AD54: 6 | AE54: 0 | AF54: 0 | AG54: -525 | AH54: 2734 | AI54: 572 | AK54: 33 | AL54: -1356 | AM54: -3609 | AN54: 15062 | AO54: 11730 | AP54: 1766 | AQ54: 1566 | AR54: 21 | AT54: 285.7132353 | AU54: 4263 | AW54: 1.205987973 | AX54: 52.44644057 | AY54: -4073.718109 | BC54: 32.86997102 | BD54: 222.5251607 | BE54: 8.557006687 | BF54: 9491.833608 | BG54: 12003.23665 | BH54: 5274.29321 | BI54: 35655.03293 | BJ54: -30380.73972 | BK54: 16086.07092 | BL54: 16881.276 | BO54: -9.12578 | BP54: 222.43713 | BQ54: 2799.91855 | BR54: 1239.83043 | BS54: 0 | BT54: 0 | BU54: 1560.08812 | BV54: -6.36324 | BW54: 0 | BX54: 0 | BY54: 1566.45136 | BZ54: 4171.37132 | CA54: 2933.17443 | CC54: -446.76038 | CD54: -2311.088 | CE54: 636.75502 | CF54: 16086.07092 | CG54: 11881.25173 | CH54: 2446.29437 | CI54: 1758.52482 | CJ54: 21 | CL54: 102 | CM54: 4171 | CO54: 0.2462057437 | CP54: 59.94748044 | CQ54: -4804.346399 | CU54: 27.49313773 | CV54: 396.4903021 | CW54: 14.47603944 | CX54: 9997.137742 | CY54: 12198.87476 | CZ54: 5096.95733 | DA54: 38530.60878 | DB54: -33433.65145 | DC54: 16198.36408 | DD54: 17272.18341 | DG54: -304.2565 | DH54: 305.18735 | DI54: 37.82689 | DJ54: 1308.58987 | DK54: 27.45176 | DL54: 0 | DM54: -1243.31122 | DN54: -6.36324 | DO54: 0 | DP54: 0 | DQ54: -1236.94798 | DR54: 2924.42532 | DS54: 134.18965 | DU54: 341.52341 | DV54: -1134.888 | DW54: -2724.66753 | DX54: 16198.36408 | DY54: 11988.41844 | DZ54: 2356.46667 | EA54: 1853.47897 | EB54: 21 | ED54: 279 | EE54: 17101 | EF54: 20062.50003 | EG54: 22666.33571 | EI54: 500 | EK54: -4193 | EL54: 0 | EM54: 12 | EN54: -2423.14086 | EO54: 10.96445 | EP54: 115.757 | EQ54: -2898.75718 | ER54: 0 | ES54: 39.9 | ET54: 771 | EU54: 4700 | EV54: 0 | EW54: 1600 | EX54: 0 | EY54: 3400 | EZ54: 16604 | FA54: 4293 | FB54: 12311 | FC54: 889 | FD54: 15892.913 | FE54: 3158.025 | FF54: 12734.888 | FG54: 888.26246 | FH54: 18158.025 | FI54: 2473.137 | FJ54: 15684.888 | FK54: 881.59579 | FL54: 7281.591808 | FM54: 7149.885179 | FN54: 7660.75145 | FO54: 570.8770686 | FP54: 136.8681536 | FV54: 656.7953437
A55: 176 | B55: Juuka | C55: 4527 | E55: 4.641200546 | F55: 21.43079913 | G55: -242.5447316 | K55: 76.42337719 | L55: 1370.223106 | M55: 50.5931711 | N55: 9885.354539 | O55: 8188 | P55: 6003 | Q55: 38729 | R55: -32726 | S55: 14021 | T55: 21659 | W55: 25 | X55: 404 | Y55: 3383 | Z55: 2736 | AA55: 0 | AB55: 0 | AC55: 647 | AD55: 884 | AE55: -839 | AF55: 0 | AG55: 693 | AH55: 10957 | AI55: 3832 | AK55: -571 | AL55: -714 | AM55: -1425 | AN55: 14021 | AO55: 10958 | AP55: 1933 | AQ55: 1130 | AR55: 20.75 | AT55: 106.4044118 | AU55: 4444 | AW55: 3.138603885 | AX55: 23.83286562 | AY55: -1283.887505 | BC55: 73.56334754 | BD55: 793.3614761 | BE55: 26.3924909 | BF55: 10971.94425 | BG55: 8431.57176 | BH55: 6090.02362 | BI55: 40804.01451 | BJ55: -34713.99089 | BK55: 15450.75983 | BL55: 21254.126 | BO55: 41.24258 | BP55: 241.52798 | BQ55: 2273.6655 | BR55: 2579.92695 | BS55: 0 | BT55: 0 | BU55: -306.26145 | BV55: -530.68106 | BW55: -470.05532 | BX55: 0 | BY55: 694.47493 | BZ55: 11650.61216 | CA55: 2505.35044 | CC55: 664.6514 | CD55: -714.284 | CE55: -4696.08228 | CF55: 15450.75983 | CG55: 11423.0762 | CH55: 2818.3166 | CI55: 1209.36703 | CJ55: 20.75 | CL55: 174 | CM55: 4352 | CO55: 1.645300061 | CP55: 29.78025783 | CQ55: -1196.853479 | CU55: 70.39645606 | CV55: 1523.347562 | CW55: 56.1777743 | CX55: 9897.541636 | CY55: 8332.07552 | CZ55: 6305.84837 | DA55: 41795.78802 | DB55: -35489.93965 | DC55: 15372.45105 | DD55: 22133.221 | DG55: 29.52826 | DH55: 364.69176 | DI55: 2409.95242 | DJ55: 2012.48401 | DK55: 0 | DL55: 0 | DM55: 397.46841 | DN55: -11.3334 | DO55: -355.42464 | DP55: 0 | DQ55: 764.22645 | DR55: 12414.83861 | DS55: 1680.09194 | DU55: -240.91002 | DV55: -1451.126 | DW55: 467.63598 | DX55: 15372.45105 | DY55: 11416.1871 | DZ55: 2667.88572 | EA55: 1288.37823 | EB55: 20.75 | ED55: 117 | EE55: 27551 | EF55: 28212.91564 | EG55: 30107.2792 | EK55: -5288 | EL55: 0 | EM55: 31 | EN55: -7226.1271 | EO55: 0 | EP55: 24.69438 | EQ55: -1242.05273 | ER55: 0 | ES55: 29.59677 | ET55: 0 | EU55: 3000 | EV55: 0 | EW55: 2000 | EX55: 7000 | EY55: -4263.158 | EZ55: 5500 | FA55: 1786 | FB55: 3714 | FC55: 2861 | FD55: 6785.722 | FE55: 1071.438 | FF55: 5714.284 | FG55: 2779.54535 | FH55: 8071.438 | FI55: 6620.312 | FJ55: 1451.126 | FK55: 2738.76035 | FL55: 3161.475591 | FM55: 3610.068616 | FN55: 4147.839444 | FO55: 550.1776916 | FP55: 126.4195063 | FV55: 511.6259001
A56: 177 | B56: Juupajoki | C56: 1800 | E56: 27.65909091 | F56: 32.14682158 | G56: -1302.777778 | K56: 68.34735926 | L56: 916.6666667 | M56: 47.76729061 | N56: 7004.444444 | O56: 3062 | P56: 1401 | Q56: 12362 | R56: -10961 | S56: 7135 | T56: 4977 | W56: -31 | X56: 66 | Y56: 1186 | Z56: 967 | AA56: 0 | AB56: 0 | AC56: 219 | AD56: 11 | AE56: 0 | AF56: 0 | AG56: 231 | AH56: 2651 | AI56: 1186 | AK56: 255 | AL56: -13 | AM56: 993 | AN56: 7135 | AO56: 5452 | AP56: 1196 | AQ56: 487 | AR56: 21 | AT56: 154.7573529 | AU56: 1786 | AW56: 1.18916169 | AX56: 33.67586839 | AY56: -1002.309037 | BC56: 67.54537283 | BD56: 1381.443354 | BE56: 63.39841098 | BF56: 7953.303819 | BG56: 3202.74578 | BH56: 1326.76301 | BI56: 12614.85344 | BJ56: -11288.09043 | BK56: 7983.60839 | BL56: 4618.778 | BO56: -18.69731 | BP56: -27.52467 | BQ56: 1268.07398 | BR56: 562.90109 | BS56: 0 | BT56: 0 | BU56: 705.17289 | BV56: -10.57123 | BW56: 0 | BX56: 0 | BY56: 715.74412 | BZ56: 3049.04425 | CA56: 1238.35005 | CC56: 1.79963 | CD56: -1062.82022 | CE56: 863.95897 | CF56: 7983.60839 | CG56: 5762.74468 | CH56: 1695.25812 | CI56: 525.60559 | CJ56: 21 | CL56: 83 | CM56: 1768 | CO56: 2.006964777 | CP56: 28.88500059 | CQ56: -516.023026 | CU56: 71.08339355 | CV56: 1612.083682 | CW56: 77.69304084 | CX56: 7573.529593 | CY56: 3339.78074 | CZ56: 1529.61054 | DA56: 13122.7246 | DB56: -11593.11406 | DC56: 8080.56567 | DD56: 4759.124 | DG56: -22.73445 | DH56: 60.92654 | DI56: 1284.7677 | DJ56: 627.90452 | DK56: 0 | DL56: 0 | DM56: 656.86318 | DN56: -10.57123 | DO56: 0 | DP56: 0 | DQ56: 667.43441 | DR56: 3716.47866 | DS56: 1263.13591 | DU56: 135.79836 | DV56: -626.88705 | DW56: 1064.57529 | DX56: 8080.56567 | DY56: 6024.47157 | DZ56: 1497.27463 | EA56: 558.81947 | EB56: 21 | ED56: 60 | EE56: 8235 | EF56: 8359.11639 | EG56: 8652.94662 | EK56: -193 | EL56: 0 | EM56: 0 | EN56: -404.39108 | EO56: 0 | EP56: 30 | EQ56: -227.56062 | ER56: 0 | ES56: 29 | ET56: 0 | EU56: 0 | EV56: 1000 | EW56: -100 | EX56: 0.001 | EY56: -200 | EZ56: 3197 | FA56: 1284 | FB56: 1913 | FC56: 59 | FD56: 3034.28997 | FE56: 2121.40391 | FF56: 912.88606 | FG56: 57.19 | FH56: 2465.9061 | FI56: 1739.96917 | FJ56: 725.93693 | FK56: 19 | FL56: 3953.333333 | FM56: 3991.500761 | FN56: 3720.892048 | FO56: 286.8795986 | FP56: 162.2622164 | FV56: 710.0078275
A57: 178 | B57: Juva | C57: 5932 | E57: 2.426318161 | F57: 53.82728065 | G57: -3519.049225 | K57: 62.80269894 | L57: 513.4861767 | M57: 21.69642683 | N57: 8638.401888 | O57: 7750 | P57: 4466 | Q57: 44690 | R57: -40224 | S57: 20217 | T57: 24634 | W57: -72 | X57: 756 | Y57: 5311 | Z57: 4703 | AA57: 0 | AB57: 0 | AC57: 608 | AD57: 143 | AE57: 0 | AF57: 0 | AG57: 751 | AH57: 5081 | AI57: 5543 | AK57: -1491 | AL57: -2146 | AM57: 1832 | AN57: 20217 | AO57: 15868 | AP57: 2957 | AQ57: 1392 | AR57: 20.75 | AT57: 61.07352941 | AU57: 5887 | AW57: 1.809822288 | AX57: 47.12174793 | AY57: -3374.892878 | BC57: 65.83218235 | BD57: 335.8006472 | BE57: 14.61325791 | BF57: 8387.399784 | BG57: 8396.79311 | BH57: 5128.044 | BI57: 48094.5987 | BJ57: -42966.5547 | BK57: 22154.84535 | BL57: 23526.694 | BO57: -129.16459 | BP57: 731.77035 | BQ57: 3317.59041 | BR57: 1906.8909 | BS57: 0 | BT57: 0 | BU57: 1410.69951 | BV57: -15.83333 | BW57: 0 | BX57: 0 | BY57: 1426.53284 | BZ57: 6507.01232 | CA57: 3180.06627 | CC57: 528.30445 | CD57: -1774.85439 | CE57: 962.24021 | CF57: 22154.84535 | CG57: 16408.29473 | CH57: 4147.61553 | CI57: 1598.93509 | CJ57: 20.75 | CL57: 152 | CM57: 5769 | CO57: 0.852786524 | CP57: 44.72499611 | CQ57: -3430.48026 | CU57: 65.96461139 | CV57: 346.2700104 | CW57: 13.79677061 | CX57: 9160.73459 | CY57: 8598.56314 | CZ57: 5856.93246 | DA57: 51120.10674 | DB57: -45263.17428 | DC57: 22073.24115 | DD57: 24053.9 | DG57: -158.60506 | DH57: 785.72702 | DI57: 1491.08883 | DJ57: 2333.16233 | DK57: 0 | DL57: 0 | DM57: -842.0735 | DN57: -15.83333 | DO57: 0 | DP57: 0 | DQ57: -826.24017 | DR57: 5680.77215 | DS57: 1527.88853 | DU57: 1129.372 | DV57: -1776.3121 | DW57: 122.93075 | DX57: 22073.24115 | DY57: 16735.32106 | DZ57: 3667.15332 | EA57: 1670.76677 | EB57: 20.75 | ED57: 233 | EE57: 35155 | EF57: 36788.95091 | EG57: 38428.60813 | EH57: 640 | EK57: -4308 | EL57: 525 | EM57: 72 | EN57: -2527.71259 | EO57: 85.30272 | EP57: 224.58381 | EQ57: -1564.62187 | ER57: 96 | ES57: 63.66409 | ET57: 2000 | EU57: 1000 | EV57: 0 | EW57: 0 | EX57: 0.30795 | EY57: 0 | EZ57: 21442 | FA57: 10667 | FB57: 10775 | FC57: 1037 | FD57: 19666.73854 | FE57: 8890.42644 | FF57: 10776.3121 | FG57: 1036.62016 | FH57: 17890.73439 | FI57: 7161.90407 | FJ57: 10728.83032 | FK57: 1036.62016 | FL57: 5859.238031 | FM57: 5853.098303 | FN57: 5699.123831 | FO57: 806.5214969 | FP57: 139.8026516 | FV57: 563.545169
A58: 179 | B58: Jyväskylä | C58: 143420 | E58: 2.07885536 | F58: 52.18416373 | G58: -3237.825966 | K58: 48.4840759 | L58: 3.604797099 | M58: 0.1925333328 | N58: 6833.886487 | O58: 366064 | P58: 159297 | Q58: 878285 | R58: -718988 | S58: 549126 | T58: 230220 | W58: 3554 | X58: 7888 | Y58: 71800 | Z58: 55716 | AA58: 0 | AB58: 0 | AC58: 16084 | AD58: 340 | AE58: 0 | AF58: -16 | AG58: 16408 | AH58: 36040 | AI58: 64148 | AK58: 5206 | AL58: -31686 | AM58: 10049 | AN58: 549126 | AO58: 472627 | AP58: 29183 | AQ58: 47316 | AR58: 20 | AT58: 227.2867647 | AU58: 144473 | AW58: 0.6141122722 | AX58: 48.07394301 | AY58: -2661.097752 | BC58: 51.34435133 | BD58: 344.0976361 | BE58: 16.61267096 | BF58: 7560.231433 | BG58: 386769.573 | BH58: 189592.4112 | BI58: 956813.9509 | BJ58: -767221.5397 | BK58: 584651.3719 | BL58: 209999.3451 | BO58: 490.03753 | BP58: 8276.83839 | BQ58: 36196.05324 | BR58: 53856.8384 | BS58: 87268.24227 | BT58: 0 | BU58: 69607.45711 | BV58: -340.44074 | BW58: 0 | BX58: -13.24047 | BY58: 69961.13832 | BZ58: 97816.14351 | CA58: 38193.32112 | CC58: -11727.28847 | CD58: -62587.67 | CE58: 76039.01483 | CF58: 584651.3719 | CG58: 487898.1998 | CH58: 44206.04729 | CI58: 52547.12482 | CJ58: 20 | CL58: 265 | CM58: 145887 | CO58: 0.3479469979 | CP58: 47.39256944 | CQ58: -2586.751488 | CU58: 51.11314258 | CV58: 251.58817 | CW58: 11.93644925 | CX58: 7693.215973 | CY58: 405664.9164 | CZ58: 208438.4105 | DA58: 1027805.854 | DB58: -819367.4439 | DC58: 607054.4429 | DD58: 220718.092 | DG58: 905.26257 | DH58: 4420.73014 | DI58: 13731.08371 | DJ58: 62371.41869 | DK58: 52012.004 | DL58: 0 | DM58: 3371.66902 | DN58: -340.44074 | DO58: 0 | DP58: 6.16063 | DQ58: 3705.94913 | DR58: 101522.4315 | DS58: -17696.33844 | DU58: -37875.42145 | DV58: -49355.2 | DW58: -793.19089 | DX58: 607054.4429 | DY58: 504072.1373 | DZ58: 50727.60675 | EA58: 52254.69887 | EB58: 20 | ED58: 265 | EE58: 370285 | EF58: 436969.2779 | EG58: 483081.1824 | EK58: -64563 | EL58: 594 | EM58: 9870 | EN58: -66943.74878 | EO58: 1532.31073 | EP58: 103257.1318 | EQ58: -91965.50924 | ER58: 1182.91518 | ES58: 107685.7416 | ET58: 50000 | EU58: -42458 | EV58: 0 | EW58: 31976.00922 | EX58: 0 | EY58: 36560.86372 | EZ58: 382892 | FA58: 221112 | FB58: 161780 | FC58: 157212 | FD58: 352279.9502 | FE58: 193524.715 | FF58: 158755.2352 | FG58: 157209.2799 | FH58: 339485.6139 | FI58: 150300.045 | FJ58: 189185.5689 | FK58: 151380.6619 | FL58: 8552.405522 | FM58: 8237.002229 | FN58: 8002.929504 | FO58: 25203.60686 | FP58: 172.7611567 | FV58: 250.5385314
A59: 181 | B59: Jämijärvi | C59: 1707 | E59: 1.582857143 | F59: 50.42376302 | G59: -2191.564148 | K59: 37.32119636 | L59: 492.0913884 | M59: 25.29494266 | N59: 7100.76157 | O59: 2629 | P59: 539 | Q59: 11005 | R59: -10466 | S59: 6074 | T59: 5776 | W59: -24 | X59: 1 | Y59: 1361 | Z59: 343 | AA59: 0 | AB59: 0 | AC59: 1018 | AD59: 0 | AE59: 0 | AF59: 0 | AG59: 1018 | AH59: 181 | AI59: 1324 | AK59: -625 | AL59: -851 | AM59: 1094 | AN59: 6074 | AO59: 5108 | AP59: 306 | AQ59: 660 | AR59: 22.5 | AT59: 88.27205882 | AU59: 1685 | AW59: 0.8773165206 | AX59: 117.3266037 | AY59: -4637.110196 | BC59: 21.90840105 | BD59: 3491.929288 | BE59: 117.2774579 | BF59: 10867.85315 | BG59: 2823.99779 | BH59: 930.40102 | BI59: 11676.71699 | BJ59: -10746.31597 | BK59: 6376.35284 | BL59: 5462.467 | BO59: -44.26934 | BP59: 1.14864 | BQ59: 1049.38317 | BR59: 605.91611 | BS59: 0 | BT59: 0 | BU59: 443.46706 | BV59: 0 | BW59: 0 | BX59: 0 | BY59: 443.46706 | BZ59: 658.15991 | CA59: 1083.34945 | CC59: 700.4926 | CD59: -1202.31896 | CE59: -4072.81053 | CF59: 6376.35284 | CG59: 5184.24155 | CH59: 465.23937 | CI59: 726.87192 | CJ59: 22.5 | CL59: 121 | CM59: 1683 | CO59: 0.4129738467 | CP59: 106.4826469 | CQ59: -7131.060309 | CU59: 21.29894267 | CV59: 155.2532501 | CW59: 5.382807397 | CX59: 10527.48726 | CY59: 2961.06083 | CZ59: 678.29239 | DA59: 12239.44961 | DB59: -11561.15722 | DC59: 6585.04652 | DD59: 5706.02 | DG59: -104.48744 | DH59: -24.81163 | DI59: 600.61023 | DJ59: 1061.35213 | DK59: 0 | DL59: 0 | DM59: -460.7419 | DN59: 0 | DO59: 0 | DP59: 0 | DQ59: -460.7419 | DR59: 197.41801 | DS59: 619.37923 | DU59: -451.72065 | DV59: -1602.87896 | DW59: -4287.98894 | DX59: 6585.04652 | DY59: 5334.18517 | DZ59: 485.02485 | EA59: 765.8365 | EB59: 22.5 | ED59: 196 | EE59: 7567 | EF59: 7973.18167 | EG59: 8287.16962 | EI59: 315 | EK59: -238 | EL59: 8 | EM59: 0 | EN59: -5646.54598 | EO59: 490.386 | EP59: 0 | EQ59: -5213.662 | ER59: 114.8 | ES59: 191.49383 | ET59: 0 | EU59: 500 | EV59: 9500 | EW59: -500 | EX59: 0 | EY59: 1000 | EZ59: 4909 | FA59: 2666 | FB59: 2243 | FC59: 367 | FD59: 12705.6526 | FE59: 10102.77364 | FF59: 2602.87896 | FG59: 317.11686 | FH59: 12102.77364 | FI59: 8596.39468 | FJ59: 3506.37896 | FK59: 487.11686 | FL59: 3639.718805 | FM59: 8382.73657 | FN59: 7980.650321 | FO59: 237.0748964 | FP59: 140.8644661 | FV59: 622.7793294
A60: 182 | B60: Jämsä | C60: 19887 | E60: 2.332056194 | F60: 32.83733025 | G60: -1618.997335 | K60: 60.11230045 | L60: 805.4005129 | M60: 32.1883276 | N60: 9132.850606 | O60: 43536 | P60: 41771 | Q60: 168593 | R60: -126822 | S60: 87372 | T60: 51097 | W60: -264 | X60: 1094 | Y60: 12477 | Z60: 8434 | AA60: 0 | AB60: 0 | AC60: 4043 | AD60: 247 | AE60: 0 | AF60: -75 | AG60: 4215 | AH60: 3613 | AI60: 12452 | AK60: 2896 | AL60: -5176 | AM60: 4832 | AN60: 87372 | AO60: 70253 | AP60: 11485 | AQ60: 5634 | AR60: 21 | AT60: 171.8823529 | AU60: 19767 | AW60: 1.927013026 | AX60: 29.72361652 | AY60: -1536.258005 | BC60: 61.41977085 | BD60: 627.4065746 | BE60: 23.56487569 | BF60: 9717.997359 | BG60: 46912.78941 | BH60: 49983.53479 | BI60: 180763.8313 | BJ60: -130780.2965 | BK60: 92719.66296 | BL60: 46570.0717 | BO60: -207.21378 | BP60: 583.3252 | BQ60: 8885.54955 | BR60: 8550.65067 | BS60: 0 | BT60: 0 | BU60: 334.89888 | BV60: -246.61126 | BW60: 0 | BX60: 181.7916 | BY60: 399.71854 | BZ60: 4012.91281 | CA60: 8626.29803 | CC60: -2598.36414 | CD60: -4492.02 | CE60: 2477.58881 | CF60: 92719.66296 | CG60: 71228.03079 | CH60: 15605.43014 | CI60: 5886.20203 | CJ60: 21 | CL60: 205 | CM60: 19347 | CO60: 0.2298357777 | CP60: 28.78161212 | CQ60: -1822.471806 | CU60: 60.16985285 | CV60: 340.279694 | CW60: 12.21821353 | CX60: 10165.32311 | CY60: 49095.53978 | CZ60: 50925.10542 | DA60: 188961.9114 | DB60: -138036.806 | DC60: 91105.82872 | DD60: 47272.039 | DG60: -178.16544 | DH60: 694.46491 | DI60: 857.36118 | DJ60: 8630.98288 | DK60: 0 | DL60: 0 | DM60: -7773.6217 | DN60: -246.61126 | DO60: 0 | DP60: 0 | DQ60: -7527.01044 | DR60: -3514.09763 | DS60: 37.37085 | DU60: 855.431 | DV60: -4492.04 | DW60: -3980.07281 | DX60: 91105.82872 | DY60: 71723.91185 | DZ60: 13900.56764 | EA60: 5481.34923 | EB60: 21 | ED60: 271 | EE60: 106168 | EF60: 114203.9613 | EG60: 119378.7194 | EK60: -7819 | EL60: 143 | EM60: 56 | EN60: -7100.45849 | EO60: 643.63547 | EP60: 308.1138 | EQ60: -6617.40994 | ER60: 22.035 | ES60: 2577.93128 | ET60: 4000 | EU60: -128 | EV60: 0 | EW60: 44.64086 | EX60: 0 | EY60: 691.11681 | EZ60: 39912 | FA60: 32433 | FB60: 7479 | FC60: 5016 | FD60: 35464.85717 | FE60: 27941.45 | FF60: 7523.40717 | FG60: 5543.45527 | FH60: 31663.93398 | FI60: 23449.41 | FJ60: 8214.52398 | FK60: 6225.58841 | FL60: 3060.190074 | FM60: 2776.98903 | FN60: 2597.115751 | FO60: 3415.424374 | FP60: 176.5350894 | FV60: 449.5143193
A61: 186 | B61: Järvenpää | C61: 44455 | E61: 58.18112245 | F61: 92.44803458 | G61: -5410.460016 | K61: 30.57320928 | L61: 463.1425037 | M61: 24.38861213 | N61: 6931.391295 | O61: 65123 | P61: 40762 | Q61: 270914 | R61: -230152 | S61: 201450 | T61: 50715 | W61: -171 | X61: 573 | Y61: 22415 | Z61: 21477 | AA61: 0 | AB61: 0 | AC61: 938 | AD61: 133 | AE61: 0 | AF61: 0 | AG61: 1071 | AH61: 10747 | AI61: 12634 | AK61: -175 | AL61: 0 | AM61: -13687 | AN61: 201450 | AO61: 182979 | AP61: 4673 | AQ61: 13798 | AR61: 19.75 | AT61: 226.2794118 | AU61: 45226 | AW61: 2.177332899 | AX61: 86.43819603 | AY61: -5463.657804 | BC61: 31.96751635 | BD61: 139.5793698 | BE61: 7.049870616 | BF61: 7226.582269 | BG61: 69160.99894 | BH61: 43730.29421 | BI61: 276902.7938 | BJ61: -233172.4996 | BK61: 218400.2271 | BL61: 39838.14 | BO61: -164.32759 | BP61: 620.32671 | BQ61: 25521.86662 | BR61: 22156.97661 | BS61: 0 | BT61: 0 | BU61: 3364.89001 | BV61: -118.08524 | BW61: 0 | BX61: 0 | BY61: 3482.97525 | BZ61: 14230.20952 | CA61: 14682.24261 | CC61: 2115.95161 | CD61: -11507.322 | CE61: -6508.44946 | CF61: 218400.2271 | CG61: 194498.4605 | CH61: 7144.05484 | CI61: 16757.71173 | CJ61: 20.25 | CL61: 151 | CM61: 45630 | CO61: 1.490587121 | CP61: 92.08358499 | CQ61: -6145.352522 | CU61: 28.74173101 | CV61: 16.31632106 | CW61: 0.7588358867 | CX61: 7848.149108 | CY61: 71473.33301 | CZ61: 44074.96031 | DA61: 302530.1838 | DB61: -258455.2234 | DC61: 230999.4608 | DD61: 44924.963 | DG61: -790.64656 | DH61: 985.82733 | DI61: 17664.38113 | DJ61: 21625.31454 | DK61: 0 | DL61: 0 | DM61: -3960.93341 | DN61: -105.09804 | DO61: 0 | DP61: 0 | DQ61: -3855.83537 | DR61: 10374.37414 | DS61: 7876.5448 | DU61: -5578.90166 | DV61: -11507.322 | DW61: -33318.33336 | DX61: 230999.4608 | DY61: 204423.9412 | DZ61: 8732.92437 | EA61: 17842.59523 | EB61: 20.25 | ED61: 185 | EE61: 180937 | EF61: 186165.6221 | EG61: 209406.841 | EH61: 2000 | EK61: -37941 | EL61: 243 | EM61: 11377 | EN61: -37989.45602 | EO61: 462.986 | EP61: 16335.77795 | EQ61: -56285.86201 | ER61: 255.69542 | ES61: 14835.28843 | ET61: 50000 | EU61: -12277 | EV61: 0 | EW61: -1227.80355 | EX61: 0 | EY61: 46078.4498 | EZ61: 229575 | FA61: 210271 | FB61: 19304 | FC61: 4991 | FD61: 216839.9648 | FE61: 198763.747 | FF61: 18076.21783 | FG61: 4990.98604 | FH61: 251411.0926 | FI61: 187256.425 | FJ61: 64154.66763 | FK61: 4990.98604 | FL61: 9747.317512 | FM61: 9605.097872 | FN61: 10343.94872 | FO61: 10095.00944 | FP61: 221.2362359 | FV61: 564.3184589
A62: 202 | B62: Kaarina | C62: 34667 | E62: 8.142326733 | F62: 61.42722386 | G62: -3017.480601 | K62: 42.49086225 | L62: 653.6187152 | M62: 36.34154004 | N62: 6564.686878 | O62: 80831 | P62: 31823 | Q62: 206069 | R62: -174246 | S62: 150610 | T62: 42557 | W62: -1491 | X62: 700 | Y62: 18130 | Z62: 9598 | AA62: 0 | AB62: 0 | AC62: 8532 | AD62: 17 | AE62: 0 | AF62: 0 | AG62: 8548 | AH62: 26167 | AI62: 15542 | AK62: -3150 | AL62: -817 | AM62: -162 | AN62: 150610 | AO62: 137875 | AP62: 5762 | AQ62: 6973 | AR62: 19.75 | AT62: 220.2352941 | AU62: 35497 | AW62: 6.645671092 | AX62: 62.08132091 | AY62: -3143.523627 | BC62: 42.49144864 | BD62: 728.6519726 | BE62: 33.0353291 | BF62: 7052.765189 | BG62: 87162.4954 | BH62: 40218.7968 | BI62: 220771.5118 | BJ62: -180552.715 | BK62: 164035.5429 | BL62: 37145.457 | BO62: -2208.25004 | BP62: 86.45201 | BQ62: 18506.48689 | BR62: 10372.58652 | BS62: 0 | BT62: 245 | BU62: 8378.90037 | BV62: -16.66667 | BW62: 0 | BX62: 0 | BY62: 8395.56704 | BZ62: 34563.38805 | CA62: 20755.333 | CC62: -1473.672 | CD62: -816.666 | CE62: -2939.281 | CF62: 164035.5429 | CG62: 147184.9551 | CH62: 9102.85393 | CI62: 7747.73387 | CJ62: 20.25 | CL62: 171 | CM62: 35848 | CO62: 2.970351024 | CP62: 58.99928464 | CQ62: -3017.349671 | CU62: 44.2094635 | CV62: 859.8710929 | CW62: 44.05414487 | CX62: 7124.254707 | CY62: 92226.48328 | CZ62: 38954.56929 | DA62: 233969.9552 | DB62: -195015.3859 | DC62: 177589.9842 | DD62: 41275.916 | DG62: -2281.48246 | DH62: 248.08378 | DI62: 21817.11558 | DJ62: 12000.70295 | DK62: 0 | DL62: 0 | DM62: 9816.41263 | DN62: -16.66667 | DO62: 0 | DP62: 0 | DQ62: 9833.0793 | DR62: 44396.46735 | DS62: 19898.77075 | DU62: -712.46814 | DV62: -5783.343 | DW62: 3053.68363 | DX62: 177589.9842 | DY62: 159008.7552 | DZ62: 10529.53508 | EA62: 8051.69395 | EB62: 20.25 | ED62: 93 | EE62: 93653 | EF62: 108443.2492 | EG62: 113858.0073 | EK62: -19324 | EL62: 132 | EM62: 3488 | EN62: -26442.793 | EO62: 716.543 | EP62: 2031.636 | EQ62: -19313.47862 | ER62: 278.6 | ES62: 2189.7915 | ET62: 20000 | EU62: -15000 | EV62: 0 | EW62: 10000 | EX62: 15000 | EY62: -14000 | EZ62: 88975 | FA62: 68158 | FB62: 20817 | FC62: 671 | FD62: 98158.343 | FE62: 67375 | FF62: 30783.343 | FG62: 671.06748 | FH62: 93375 | FI62: 75875 | FJ62: 17500 | FK62: 671.06748 | FL62: 3883.578043 | FM62: 3965.836885 | FN62: 4095.220197 | FO62: 7852.284206 | FP62: 219.0438576 | FV62: 521.3535479
A63: 204 | B63: Kaavi | C63: 2807 | E63: 2.882198953 | F63: 38.24069118 | G63: -2098.681867 | K63: 47.10964111 | L63: 1068.044175 | M63: 41.5645535 | N63: 9379.052369 | O63: 6379 | P63: 3028 | Q63: 24138 | R63: -21110 | S63: 9833 | T63: 13297 | W63: -103 | X63: 179 | Y63: 2096 | Z63: 840 | AA63: 0 | AB63: 0 | AC63: 1256 | AD63: 48 | AE63: 0 | AF63: 0 | AG63: 1304 | AH63: 672 | AI63: 2054 | AK63: 683 | AL63: -658 | AM63: 1386 | AN63: 9833 | AO63: 7458 | AP63: 1304 | AQ63: 1071 | AR63: 22 | AT63: 107.4117647 | AU63: 2778 | AW63: 1.865528024 | AX63: 33.46078608 | AY63: -2060.787178 | BC63: 52.00488445 | BD63: 521.0287185 | BE63: 20.91137022 | BF63: 9094.357772 | BG63: 5610.72182 | BH63: 2561.59079 | BI63: 24597.43123 | BJ63: -22035.84044 | BK63: 10661.25722 | BL63: 12440.192 | BO63: -97.67877 | BP63: 139.00998 | BQ63: 1106.93999 | BR63: 706.21344 | BS63: 0 | BT63: 0 | BU63: 400.72655 | BV63: -10.57764 | BW63: 0 | BX63: 0 | BY63: 411.30419 | BZ63: 1082.91553 | CA63: 903.87359 | CC63: -301.03495 | CD63: -546.694 | CE63: 114.03422 | CF63: 10661.25722 | CG63: 7604.32242 | CH63: 1818.25477 | CI63: 1238.68003 | CJ63: 22 | CL63: 222 | CM63: 2689 | CO63: 1.083400227 | CP63: 44.49566336 | CQ63: -3252.790725 | CU63: 44.73469965 | CV63: 310.4444478 | CW63: 10.48769459 | CX63: 10804.30236 | CY63: 5779.91654 | CZ63: 2356.14231 | DA63: 25335.82847 | DB63: -22979.68616 | DC63: 10968.75911 | DD63: 12452.684 | DG63: -82.96614 | DH63: 180.56713 | DI63: 539.35794 | DJ63: 677.70809 | DK63: 0 | DL63: 0 | DM63: -138.35015 | DN63: -10.57764 | DO63: 0 | DP63: 0 | DQ63: -127.77251 | DR63: 955.14302 | DS63: 512.31169 | DU63: -473.59789 | DV63: -491.157 | DW63: -3082.89015 | DX63: 10968.75911 | DY63: 7753.67336 | DZ63: 1923.0534 | EA63: 1292.03235 | EB63: 22 | ED63: 248 | EE63: 14812 | EF63: 16747.05581 | EG63: 17091.52359 | EH63: 400 | EK63: -1411 | EL63: 0 | EM63: 743 | EN63: -881.67065 | EO63: 53.33646 | EP63: 38.49482 | EQ63: -3625.52184 | ER63: 0 | ES63: 30.32 | ET63: 0 | EU63: 0 | EV63: 0 | EW63: -500 | EX63: 0 | EY63: 3000 | EZ63: 7239 | FA63: 5192 | FB63: 2047 | FC63: 507 | FD63: 6191.841 | FE63: 4700.684 | FF63: 1491.157 | FG63: 0 | FH63: 8700.684 | FI63: 4260.172 | FJ63: 4440.512 | FK63: 507 | FL63: 5905.59316 | FM63: 5695.13505 | FN63: 7380.576727 | FO63: 352.4396982 | FP63: 131.067199 | FV63: 398.4665191
A64: 205 | B64: Kajaani | C64: 36567 | E64: 0.5102084792 | F64: 61.3281263 | G64: 420.2193114 | K64: 64.32455297 | L64: 5182.312888 | M64: 187.0561829 | N64: 10112.17151 | O64: 88360 | P64: 35310 | Q64: 297605 | R64: -262295 | S64: 141422 | T64: 123803 | W64: -1076 | X64: 6174 | Y64: 8028 | Z64: 16378 | AA64: 0 | AB64: 0 | AC64: -8350 | AD64: -3682 | AE64: 42 | AF64: 9 | AG64: -11981 | AH64: 168333 | AI64: 6964 | AK64: 12182 | AL64: -17120 | AM64: -43437 | AN64: 141422 | AO64: 125951 | AP64: 5821 | AQ64: 9650 | AR64: 21 | AT64: 283.6985294 | AU64: 36493 | AW64: 0.9963829766 | AX64: 58.85143743 | AY64: 777.7955975 | BC64: 65.40111614 | BD64: 5430.285165 | BE64: 206.5029971 | BF64: 9598.185563 | BG64: 94251.06808 | BH64: 37398.47337 | BI64: 301923.6319 | BJ64: -264525.1585 | BK64: 149403.9076 | BL64: 118677.025 | BO64: -1005.87715 | BP64: 25408.7671 | BQ64: 27958.66409 | BR64: 17581.50445 | BS64: 0 | BT64: 0 | BU64: 10377.15964 | BV64: -835.15384 | BW64: 4889.78819 | BX64: -20.21303 | BY64: 6342.73832 | BZ64: 174675.9729 | CA64: 29017.19221 | CC64: 102.86599 | CD64: -28066.01638 | CE64: 12659.35585 | CF64: 149403.9076 | CG64: 130220.0263 | CH64: 8622.56012 | CI64: 10561.32121 | CJ64: 21 | CL64: 61 | CM64: 36297 | CO64: 0.9041399402 | CP64: 59.51975107 | CQ64: 723.2619657 | CU64: 64.12588656 | CV64: 5471.853846 | CW64: 211.4844905 | CX64: 9443.844554 | CY64: 98285.73491 | CZ64: 41702.80091 | DA64: 310519.236 | DB64: -268816.4351 | DC64: 155117.3518 | DD64: 124672.0961 | DG64: -1280.02749 | DH64: 4811.84235 | DI64: 14504.82764 | DJ64: 16792.48114 | DK64: 1852.299 | DL64: 0 | DM64: -435.3545 | DN64: -774.50963 | DO64: -176.99902 | DP64: -8.67859 | DQ64: 524.83274 | DR64: 175200.8057 | DS64: 12980.29976 | DU64: -9005.16014 | DV64: -16230.56768 | DW64: -1771.87685 | DX64: 155117.3518 | DY64: 134496.7548 | DZ64: 9439.65856 | EA64: 11180.93842 | EB64: 21 | ED64: 178 | EE64: 176446 | EF64: 178597.6414 | EG64: 180948.3819 | EK64: -50812 | EL64: 301 | EM64: 110 | EN64: -17281.13571 | EO64: 732.9157 | EP64: 190.38365 | EQ64: -18376.8825 | ER64: 725.19201 | ES64: 2899.51388 | ET64: 25000 | EU64: -15137 | EV64: 15620 | EW64: 10242.72268 | EX64: 25000 | EY64: 12532.09437 | EZ64: 134206 | FA64: 94401 | FB64: 39805 | FC64: 6062 | FD64: 132002.9005 | FE64: 83714.24374 | FF64: 48288.65678 | FG64: 724.0285 | FH64: 153304.4272 | FI64: 92274.23766 | FJ64: 61030.18955 | FK64: 5752.49 | FL64: 18154.75702 | FM64: 17822.84964 | FN64: 18513.13135 | FO64: 6404.607371 | FP64: 176.4500474 | FV64: 766.1377275
A65: 208 | B65: Kalajoki | C65: 12400 | E65: 2.788908766 | F65: 56.63188098 | G65: -2659.112903 | K65: 55.07679214 | L65: 1578.064516 | M65: 70.05090281 | N65: 8222.5 | O65: 43109 | P65: 21216 | Q65: 93252 | R65: -72036 | S65: 42970 | T65: 37804 | W65: -10 | X65: 472 | Y65: 9200 | Z65: 5729 | AA65: 0 | AB65: 0 | AC65: 3471 | AD65: 54 | AE65: -2500 | AF65: 0 | AG65: 1025 | AH65: 18311 | AI65: 8729 | AK65: 1490 | AL65: -3200 | AM65: 5028 | AN65: 42970 | AO65: 36015 | AP65: 2079 | AQ65: 4876 | AR65: 21 | AT65: 110.4338235 | AU65: 12412 | AW65: 1.806288678 | AX65: 60.37734912 | AY65: -2958.535037 | BC65: 53.08196528 | BD65: 1642.951788 | BE65: 61.74127115 | BF65: 9368.462592 | BG65: 46359.70738 | BH65: 23588.06851 | BI65: 99387.56309 | BJ65: -75799.49458 | BK65: 45518.46791 | BL65: 36279.272 | BO65: 48.23973 | BP65: 512.98243 | BQ65: 6559.46749 | BR65: 5441.83307 | BS65: 0 | BT65: 0 | BU65: 1117.63442 | BV65: -53.92533 | BW65: 0 | BX65: 0 | BY65: 1171.55975 | BZ65: 19482.71233 | CA65: 7737.56042 | CC65: -1823.9191 | CD65: -3561.4549 | CE65: -524.19954 | CF65: 45518.46791 | CG65: 37416.20023 | CH65: 3074.1157 | CI65: 5028.15198 | CJ65: 21 | CL65: 166 | CM65: 12335 | CO65: 2.311781298 | CP65: 54.62250163 | CQ65: -2705.78586 | CU65: 55.03981025 | CV65: 1679.013804 | CW65: 67.67990818 | CX65: 9054.97739 | CY65: 47610.18631 | CZ65: 24457.24696 | DA65: 103209.236 | DB65: -78751.98906 | DC65: 47454.91748 | DD65: 39663.208 | DG65: 174.65651 | DH65: 965.8827 | DI65: 9506.67563 | DJ65: 6275.04183 | DK65: 0 | DL65: 0 | DM65: 3231.6338 | DN65: -53.92533 | DO65: 0 | DP65: 0 | DQ65: 3285.55913 | DR65: 22562.19006 | DS65: 9112.06096 | DU65: -117.59506 | DV65: -4031.2829 | DW65: 3498.6543 | DX65: 47454.91748 | DY65: 38271.89467 | DZ65: 3475.16649 | EA65: 5707.85632 | EB65: 21 | ED65: 55 | EE65: 37063 | EF65: 42022.03141 | EG65: 42877.79583 | EK65: -4851 | EL65: 229 | EM65: 921 | EN65: -9520.02792 | EO65: 484.96635 | EP65: 773.30161 | EQ65: -7259.94192 | ER65: 333.6365 | ES65: 1312.89876 | ET65: 0 | EU65: -2000 | EV65: 6000 | EW65: 2000 | EX65: 6000 | EY65: -5000 | EZ65: 39746 | FA65: 23230 | FB65: 16516 | FC65: 4056 | FD65: 44228.2775 | FE65: 25196.9946 | FF65: 19031.2829 | FG65: 7111.88505 | FH65: 41196.9946 | FI65: 26565.7117 | FJ65: 14631.2829 | FK65: 7284.6115 | FL65: 5349.274194 | FM65: 5388.5095 | FN65: 5149.465342 | FO65: 1822.471175 | FP65: 147.7479671 | FV65: 528.4778835
A66: 211 | B66: Kangasala | C66: 32214 | E66: 2.544155947 | F66: 48.69869425 | G66: -1415.409449 | K66: 56.28308814 | L66: 1883.963494 | M66: 89.96442336 | N66: 7643.540076 | O66: 88196 | P66: 46892 | Q66: 206816 | R66: -159924 | S66: 137678 | T66: 51539 | W66: -622 | X66: 2831 | Y66: 31502 | Z66: 12710 | AA66: 0 | AB66: 0 | AC66: 18792 | AD66: -2506 | AE66: -5300 | AF66: 0 | AG66: 10986 | AH66: 64711 | AI66: 30182 | AK66: 131 | AL66: -11936 | AM66: 5805 | AN66: 137678 | AO66: 126025 | AP66: 4922 | AQ66: 6731 | AR66: 21 | AT66: 40.92647059 | AU66: 32622 | AW66: 1.295868248 | AX66: 43.52906622 | AY66: -1505.545927 | BC66: 59.0009518 | BD66: 1379.453468 | BE66: 61.46587741 | BF66: 8191.545243 | BG66: 93739.09605 | BH66: 53260.99784 | BI66: 227245.8061 | BJ66: -173984.8082 | BK66: 143280.8581 | BL66: 45223.859 | BO66: -338.23754 | BP66: 4152.71494 | BQ66: 18334.38626 | BR66: 14313.22162 | BS66: 0 | BT66: 0 | BU66: 4021.16464 | BV66: 1690.21213 | BW66: -3630.32336 | BX66: 0 | BY66: 5961.27587 | BZ66: 70672.56321 | CA66: 15317.8882 | CC66: -2427.82741 | CD66: -14022.82219 | CE66: -3548.78403 | CF66: 143280.8581 | CG66: 128315.8595 | CH66: 7306.06385 | CI66: 7658.9347 | CJ66: 21 | CL66: 154 | CM66: 32959 | CO66: 1.15657808 | CP66: 54.85725609 | CQ66: -2260.878774 | CU66: 52.40411288 | CV66: 1607.829366 | CW66: 66.19780322 | CX66: 8865.214403 | CY66: 99743.44644 | CZ66: 49808.55207 | DA66: 238161.1659 | DB66: -188352.6138 | DC66: 153192.2275 | DD66: 49822.792 | DG66: -739.75309 | DH66: 584.93667 | DI66: 14507.58925 | DJ66: 14664.46808 | DK66: 0 | DL66: 0 | DM66: -156.87883 | DN66: 5574.73448 | DO66: -7801.4275 | DP66: 0 | DQ66: 2069.81419 | DR66: 72742.37738 | DS66: 13750.69745 | DU66: -59.41462 | DV66: -12423.04364 | DW66: -26260.41716 | DX66: 153192.2275 | DY66: 136963.8858 | DZ66: 7855.30366 | EA66: 8373.038 | EB66: 21 | ED66: 165 | EE66: 90169 | EF66: 106029.6235 | EG66: 110550.5109 | EK66: -26413 | EL66: 686 | EM66: 1350 | EN66: -25227.84478 | EO66: 2265.8517 | EP66: 4095.32085 | EQ66: -42061.40778 | ER66: 909.12042 | ES66: 1141.17275 | ET66: 16000 | EU66: 0 | EV66: 0 | EW66: 0 | EX66: 40000 | EY66: 0 | EZ66: 72906 | FA66: 61083 | FB66: 11823 | FC66: 28 | FD66: 58882.35519 | FE66: 48759.21063 | FF66: 10123.14456 | FG66: 18.76648 | FH66: 86459.31155 | FI66: 72664.64555 | FJ66: 13794.666 | FK66: 8.56648 | FL66: 4656.453716 | FM66: 4179.238524 | FN66: 4948.621675 | FO66: =(DY66/EB66) -> 6522.0898 | FP66: 197.8849419 | FV66: 562.0252057
A67: 213 | B67: Kangasniemi | C67: 5312 | E67: 2.261181668 | F67: 50.21790066 | G67: -2826.618976 | K67: 53.76740716 | L67: 415.4743976 | M67: 19.33270135 | N67: 7844.126506 | O67: 8104 | P67: 3205 | Q67: 38895 | R67: -35690 | S67: 19437 | T67: 20038 | W67: -80 | X67: 293 | Y67: 3998 | Z67: 1623 | AA67: 0 | AB67: 0 | AC67: 2375 | AD67: 0 | AE67: 0 | AF67: 0 | AG67: 2376 | AH67: 7528 | AI67: 3685 | AK67: -389 | AL67: -1714 | AM67: 4792 | AN67: 19437 | AO67: 14676 | AP67: 2981 | AQ67: 1780 | AR67: 21.5 | AT67: 102.375 | AU67: 5230 | AW67: 1.784201306 | AX67: 41.94392103 | AY67: -2468.866799 | BC67: 58.17877856 | BD67: 441.6785851 | BE67: 19.1498195 | BF67: 8418.496247 | BG67: 8658.11749 | BH67: 3059.95459 | BI67: 41821.46043 | BJ67: -38761.50584 | BK67: 21798.48348 | BL67: 19372.528 | BO67: -54.05772 | BP67: 299.13458 | BQ67: 2654.5825 | BR67: 1565.68156 | BS67: 0 | BT67: 0 | BU67: 1088.90094 | BV67: 0 | BW67: 0 | BX67: 0 | BY67: 1088.90094 | BZ67: 8616.22894 | CA67: 2654.42604 | CC67: 880.59862 | CD67: -1463.34 | CE67: 1984.00578 | CF67: 21798.48348 | CG67: 15415.63096 | CH67: 4399.01057 | CI67: 1983.84195 | CJ67: 21.5 | CL67: 175 | CM67: 5154 | CO67: 1.040135205 | CP67: 33.30885889 | CQ67: -2397.473636 | CU67: 63.01649464 | CV67: 52.59780365 | CW67: 2.169654134 | CX67: 8848.506325 | CY67: 9088.35329 | CZ67: 4349.34723 | DA67: 44504.69853 | DB67: -40155.3513 | DC67: 21570.57866 | DD67: 19852.613 | DG67: -71.93333 | DH67: 329.28095 | DI67: 1525.18798 | DJ67: 1506.64621 | DK67: 0 | DL67: 0 | DM67: 18.54177 | DN67: 0 | DO67: 0 | DP67: 0 | DQ67: 18.54177 | DR67: 8634.97937 | DS67: 836.47535 | DU67: 711.40693 | DV67: -1463.34 | DW67: 477.52638 | DX67: 21570.57866 | DY67: 15333.8918 | DZ67: 4152.12693 | EA67: 2084.55993 | EB67: 21.5 | ED67: 218 | EE67: 27980 | EF67: 30296.32302 | EG67: 32083.04584 | EK67: -962 | EL67: 14 | EM67: 2055 | EN67: -684.3761 | EO67: 0 | EP67: 13.95584 | EQ67: -1007.62821 | ER67: 40 | ES67: 608.67924 | ET67: 0 | EU67: -2100 | EV67: 0 | EW67: -1200 | EX67: 0 | EY67: -3000 | EZ67: 17929 | FA67: 8267 | FB67: 9662 | FC67: 1142 | FD67: 15267.144 | FE67: 6803.804 | FF67: 8463.34 | FG67: 688.29331 | FH67: 10803.804 | FI67: 5340.464 | FJ67: 5463.34 | FK67: 911.60274 | FL67: 5239.269578 | FM67: 4901.665774 | FN67: 4210.495334 | FO67: 713.2042698 | FP67: =(FO67/CM67)*1000 -> 138.3787873 | FV67: =BQ67/AU67*1000 -> 507.5683556
A68: 214 | B68: Kankaanpää | C68: 11163 | E68: 0.8213270142 | F68: 79.04423994 | G68: -5020.335035 | K68: 18.94008927 | L68: 402.9382782 | M68: 18.32741683 | N68: 8024.724536 | O68: 20220 | P68: 8962 | Q68: 75273 | R68: -66311 | S68: 40468 | T68: 31741 | W68: -174 | X68: 1030 | Y68: 6754 | Z68: 3701 | AA68: 0 | AB68: 0 | AC68: 3053 | AD68: 0 | AE68: 0 | AF68: 0 | AG68: 3053 | AH68: -572 | AI68: 6742 | AK68: -265 | AL68: -8262 | AM68: 1130 | AN68: 40468 | AO68: 34526 | AP68: 2728 | AQ68: 3214 | AR68: 21.75 | AT68: 182.9632353 | AU68: 12662 | AW68: 1.017391153 | AX68: 70.37091621 | AY68: -4835.77486 | BC68: 24.18270643 | BD68: 349.7726457 | BE68: 3.43807946 | BF68: 8799.506857 | BG68: 25930.66267 | BH68: 15167.96921 | BI68: 92203.81839 | BJ68: -77035.84918 | BK68: 49833.90764 | BL68: 36011.437 | BO68: -163.41147 | BP68: 1012.67464 | BQ68: 9658.75863 | BR68: 5310.07367 | BS68: 0 | BT68: 0 | BU68: 4348.68496 | BV68: -12.81735 | BW68: 0 | BX68: 0 | BY68: 4361.50231 | BZ68: 2270.02093 | CA68: 9695.86689 | CC68: -998.75298 | CD68: -9490.70689 | CE68: 2229.7638 | CF68: 49833.90764 | CG68: 40560.44355 | CH68: 5027.71957 | CI68: 4245.74452 | CJ68: 21.75 | CL68: 63 | CM68: 12528 | CO68: 0.5870992424 | CP68: 70.40738925 | CQ68: -5118.34753 | CU68: 26.26969797 | CV68: 346.9170099 | CW68: 14.22999647 | CX68: 8898.435702 | CY68: 27086.79869 | CZ68: 15665.47082 | DA68: 98737.75655 | DB68: -83072.28573 | DC68: 50066.65887 | DD68: 37714.949 | DG68: -386.26711 | DH68: 1103.64822 | DI68: 5426.70325 | DJ68: 3844.7733 | DK68: 1706.65528 | DL68: 0 | DM68: 3288.58523 | DN68: -12.81735 | DO68: 0 | DP68: 0 | DQ68: 3301.40258 | DR68: 5571.42351 | DS68: 7150.33061 | DU68: 1059.03872 | DV68: -9527.40778 | DW68: -2786.18035 | DX68: 50066.65887 | DY68: 40388.62801 | DZ68: 5355.66234 | EA68: 4322.36852 | EB68: 21.75 | ED68: 168 | EE68: 47326 | EF68: 57693.54374 | EG68: 62780.12597 | EK68: -5862 | EL68: 200 | EM68: 50 | EN68: -7840.13875 | EO68: 270.592 | EP68: 103.44366 | EQ68: -12257.04908 | ER68: 529.194 | ES68: 1791.34412 | ET68: 11000 | EU68: -262 | EV68: 9000 | EW68: -1752.04904 | EX68: 10000 | EY68: 656.28091 | EZ68: 55640 | FA68: 44411 | FB68: 11229 | FC68: 1435 | FD68: 58292.59673 | FE68: 48170.90431 | FF68: 10121.69242 | FG68: 3099.0075 | FH68: 59421.46986 | FI68: 47766.63572 | FJ68: 11654.83414 | FK68: 3062.63688 | FL68: 7156.857476 | FM68: 6396.971744 | FN68: 6357.835491 | FO68: 1856.948414 | FP68: 148.2238517 | FV68: 762.814613
A69: 216 | B69: Kannonkoski | C69: 1323 | E69: 0.09643916914 | F69: 75 | G69: -4972.789116 | K69: 50.35053342 | L69: 2668.178382 | M69: 60.61012325 | N69: 16068.02721 | O69: 3767 | P69: 4525 | Q69: 14081 | R69: -9556 | S69: 4314 | T69: 6333 | W69: -7 | X69: -510 | Y69: 574 | Z69: 1078 | AA69: 0 | AB69: 0 | AC69: -504 | AD69: 1 | AE69: 0 | AF69: 0 | AG69: -502 | AH69: 8047 | AI69: -1155 | AK69: -122 | AL69: -6055 | AM69: -1580 | AN69: 4314 | AO69: 3187 | AP69: 709 | AQ69: 418 | AR69: 21 | AT69: 247.4338235 | AU69: 1311 | AW69: 2.553752585 | AX69: 79.72184491 | AY69: -4891.502891 | BC69: 41.69905086 | BD69: 2652.365164 | BE69: 107.0968208 | BF69: 9864.279405 | BG69: 2461.40804 | BH69: 1942.39497 | BI69: 12236.19183 | BJ69: -10293.79686 | BK69: 4996.2152 | BL69: 6002.338 | BO69: -12.84866 | BP69: 176.49721 | BQ69: 868.40489 | BR69: 662.81038 | BS69: 0 | BT69: 0 | BU69: 205.59451 | BV69: -0.72667 | BW69: 0 | BX69: 0 | BY69: 206.32118 | BZ69: 2678.61539 | CA69: 748.07174 | CC69: 131.16137 | CD69: -329.98223 | CE69: 400.85387 | CF69: 4996.2152 | CG69: 3458.0712 | CH69: 1010.86403 | CI69: 527.27997 | CJ69: 21.5 | CL69: 97 | CM69: 1269 | CO69: 0.4605127673 | CP69: 69.25897009 | CQ69: -4969.751103 | CU69: 46.19282343 | CV69: 0 | CW69: 0 | CX69: 13320.49009 | CY69: 4541.55946 | CZ69: 5372.63945 | DA69: 16839.29541 | DB69: -11466.65596 | DC69: 4958.26848 | DD69: 6448.96846 | DG69: -47.73741 | DH69: 79.05775 | DI69: -28.09868 | DJ69: 1132.82943 | DK69: 0 | DL69: 0 | DM69: -1160.92811 | DN69: -0.68693 | DO69: 0 | DP69: 0 | DQ69: -1160.24118 | DR69: 6597.31581 | DS69: 0 | DU69: 0 | DV69: 0 | DW69: 0 | DX69: 4958.26848 | DY69: 3457.05122 | DZ69: 947.5962 | EA69: 553.62106 | EB69: 21.5 | ED69: 280 | EE69: 8488 | EF69: 8789.35446 | EG69: 10155.56631 | EH69: 190 | EK69: -427 | EL69: 0 | EM69: 2 | EN69: -347.21787 | EO69: 0 | EP69: 0 | EQ69: -632.8541 | ER69: 0 | ES69: 0 | ET69: 2367 | EU69: 5261 | EV69: 0 | EW69: -194.0447 | EX69: 0 | EY69: 0 | EZ69: 9938 | FA69: 2681 | FB69: 7257 | FC69: 0 | FD69: 9524.22947 | FE69: 2459.65629 | FF69: 7064.57318 | FG69: 0 | FH69: 9302.79533 | FI69: 2243.165 | FJ69: 7059.63033 | FK69: 0 | FL69: 11894.93575 | FM69: 12002.72278 | FN69: 11821.90701 | FO69: 160.79308 | FP69: 126.7084949 | FV69: 662.3988482
A70: 217 | B70: Kannus | C70: 5426 | E70: -123.6 | F70: 46.57367945 | G70: -2541.098415 | K70: 45.53445344 | L70: 560.4496867 | M70: 29.94321401 | N70: 6831.736086 | O70: 9780 | P70: 2757 | Q70: 36255 | R70: -33498 | S70: 19346 | T70: 16613 | W70: 25 | X70: 6 | Y70: 2492 | Z70: 1230 | AA70: 0 | AB70: 0 | AC70: 1262 | AD70: 100 | AE70: 0 | AF70: 0 | AG70: 1363 | AH70: 5337 | AI70: 2486 | AK70: -28 | AL70: 0 | AM70: 1688 | AN70: 19346 | AO70: 16616 | AP70: 1091 | AQ70: 1639 | AR70: 21.5 | AT70: 239.375 | AU70: 5390 | AW70: -30.12213936 | AX70: 41.12585494 | AY70: -2582.355252 | BC70: 48.80714694 | BD70: 166.8884583 | BE70: 8.287752158 | BF70: 7349.916612 | BG70: 10491.95462 | BH70: 3208.47923 | BI70: 37788.52602 | BJ70: -34580.04679 | BK70: 20017.30389 | BL70: 16023.518 | BO70: 65.616 | BP70: 9.28076 | BQ70: 1535.67186 | BR70: 1165.15521 | BS70: 0 | BT70: 0 | BU70: 370.51665 | BV70: -72.6554 | BW70: 0 | BX70: -30 | BY70: 473.17205 | BZ70: 5809.76154 | CA70: 1500.95686 | CC70: -123.94218 | CD70: 0 | CE70: -74.06016 | CF70: 20017.30389 | CG70: 16563.43216 | CH70: 1620.16214 | CI70: 1833.70959 | CJ70: 21.5 | CL70: 258 | CM70: 5352 | CO70: 36.86563841 | CP70: 44.71630141 | CQ70: -2963.206319 | CU70: 45.96091311 | CV70: 161.2436323 | CW70: 7.217551561 | CX70: 8154.278537 | CY70: 10989.88413 | CZ70: 3141.39549 | DA70: 40238.82788 | DB70: -37097.43239 | DC70: 20861.37463 | DD70: 17260.02359 | DG70: -31.67587 | DH70: 281.87271 | DI70: 1274.16267 | DJ70: 1232.93297 | DK70: 0 | DL70: 0 | DM70: 41.2297 | DN70: -47.6399 | DO70: 0 | DP70: 0 | DQ70: 88.8696 | DR70: 5898.63114 | DS70: 1197.1568 | DU70: -408.54061 | DV70: 0 | DW70: -2071.17706 | DX70: 20861.37463 | DY70: 17221.64614 | DZ70: 1562.30741 | EA70: 2077.42108 | EB70: 21.5 | ED70: 240 | EE70: 23348 | EF70: 24036.52699 | EG70: 25712.64459 | EK70: -825 | EL70: 0 | EM70: 27 | EN70: -1768.64132 | EO70: 7.39433 | EP70: 186.22997 | EQ70: -3416.51718 | ER70: 86.785 | ES70: 61.39832 | ET70: 0 | EU70: -1500 | EV70: 0 | EW70: -1000 | EX70: 0 | EY70: 1200 | EZ70: 15000 | FA70: 0 | FB70: 15000 | FC70: 3 | FD70: 14000 | FE70: 0 | FF70: 14000 | FG70: 0 | FH70: 15200 | FI70: 0 | FJ70: 15200 | FK70: 2.948 | FL70: 5164.946554 | FM70: 5156.029041 | FN70: 5847.257337 | FO70: 801.0067972 | FP70: 149.6649472 | FV70: 284.9112913
A71: 218 | B71: Karijoki | C71: 1207 | E71: 6.185185185 | F71: 29.58633094 | G71: -587.4067937 | K71: 63.93410279 | L71: 1884.009942 | M71: 85.28668311 | N71: 8062.966031 | O71: 1695 | P71: 1137 | Q71: 9291 | R71: -8154 | S71: 4145 | T71: 5838 | W71: -17 | X71: 7 | Y71: 1819 | Z71: 329 | AA71: 0 | AB71: 0 | AC71: 1490 | AD71: 0 | AE71: 0 | AF71: 0 | AG71: 1490 | AH71: 2615 | AI71: 1819 | AK71: -106 | AL71: -279 | AM71: 1686 | AN71: 4145 | AO71: 3557 | AP71: 329 | AQ71: 259 | AR71: 22 | AT71: 3 | AU71: 1192 | AW71: 2.581263196 | AX71: 23.73499749 | AY71: -84.50247483 | BC71: 70.65993533 | BD71: 1897.03854 | BE71: 79.28159891 | BF71: 8733.666787 | BG71: 1852.19983 | BH71: 1070.79113 | BI71: 9883.2869 | BJ71: -8812.49577 | BK71: 4185.28751 | BL71: 5430.516 | BO71: -14.15686 | BP71: 5.09965 | BQ71: 794.25053 | BR71: 300.77876 | BS71: 0 | BT71: 0 | BU71: 493.47177 | BV71: 0 | BW71: 0 | BX71: 0 | BY71: 493.47177 | BZ71: 3108.96486 | CA71: 794.25053 | CC71: 132.27793 | CD71: -299.026 | CE71: 609.46605 | CF71: 4185.28751 | CG71: 3353.03426 | CH71: 540.80691 | CI71: 291.44634 | CJ71: 22.5 | CL71: 94 | CM71: 1200 | CO71: 2.628003381 | CP71: 23.93341975 | CQ71: 394.852325 | CU71: 71.03717872 | CV71: 2472.956783 | CW71: 101.8729563 | CX71: 8860.341925 | CY71: 1856.62155 | CZ71: 1219.55329 | DA71: 10437.84088 | DB71: -9218.28759 | DC71: 4272.35939 | DD71: 5648.949 | DG71: -12.52636 | DH71: 36.90034 | DI71: 727.39478 | DJ71: 309.63528 | DK71: 0 | DL71: 0 | DM71: 417.7595 | DN71: 0 | DO71: 0 | DP71: 0 | DQ71: 417.7595 | DR71: 3526.72436 | DS71: 733.48066 | DU71: 1.80224 | DV71: -269.026 | DW71: 564.0038 | DX71: 4272.35939 | DY71: 3419.03077 | DZ71: 553.38163 | EA71: 299.94699 | EB71: 22.5 | ED71: 95 | EE71: 6936 | EF71: 7279.43773 | EG71: 7764.76615 | EH71: 180 | EK71: -144 | EL71: 5 | EM71: 6 | EN71: -211.27556 | EO71: 13.2 | EP71: 13.29108 | EQ71: -181.40347 | ER71: 5.7 | ES71: 6.22661 | ET71: 400 | EU71: 400 | EV71: 0 | EW71: -400 | EX71: 0 | EY71: 0 | EZ71: 2399 | FA71: 1700 | FB71: 699 | FC71: 0 | FD71: 1699.856 | FE71: 1430.83 | FF71: 269.026 | FG71: 0 | FH71: 1430.83 | FI71: 1191.796 | FJ71: 239.034 | FK71: 0 | FL71: 3447.390224 | FM71: 2815.347693 | FN71: 2520.750725 | FO71: 151.9569231 | FP71: 126.6307693 | FV71: 666.3175587
A72: 224 | B72: Karkkila | C72: 8696 | E72: 0.5458324218 | F72: 102.8663243 | G72: -6627.299908 | K72: 8.829012032 | L72: 380.2897884 | M72: 17.85108995 | N72: 7775.75897 | O72: 14785 | P72: 6899 | Q72: 57073 | R72: -50174 | S72: 31969 | T72: 23058 | W72: -402 | X72: 128 | Y72: 4579 | Z72: 2935 | AA72: 0 | AB72: 0 | AC72: 1644 | AD72: 0 | AE72: 0 | AF72: 0 | AG72: 1644 | AH72: -1098 | AI72: 4308 | AK72: -840 | AL72: -8731 | AM72: 3214 | AN72: 31969 | AO72: 28608 | AP72: 1287 | AQ72: 2074 | AR72: 20.75 | AT72: 216.2058824 | AU72: 8717 | AW72: 0.4447849099 | AX72: 97.53302681 | AY72: -6393.739337 | BC72: 10.0663994 | BD72: 188.969509 | BE72: 8.633343197 | BF72: 7821.146916 | BG72: 15629.76731 | BH72: 6751.79233 | BI72: 58233.54285 | BJ72: -51481.75052 | BK72: 34285.78231 | BL72: 20814.595 | BO72: -234.12284 | BP72: 88.92372 | BQ72: 3473.42767 | BR72: 2869.70976 | BS72: 0 | BT72: 0 | BU72: 603.71791 | BV72: 0 | BW72: 0 | BX72: 0 | BY72: 603.71791 | BZ72: -494.56023 | CA72: 3323.90686 | CC72: -180.9639 | CD72: -8106.46082 | CE72: 1831.1686 | CF72: 34285.78231 | CG72: 30082.03841 | CH72: 1914.98731 | CI72: 2288.75659 | CJ72: 21.25 | CL72: 223 | CM72: 8603 | CO72: 0.6336708233 | CP72: 88.99805612 | CQ72: -6003.203312 | CU72: 13.77414733 | CV72: 330.2736499 | CW72: 17.01219535 | CX72: 7086.086171 | CY72: 15879.5684 | CZ72: 7146.93192 | DA72: 59305.96348 | DB72: -52159.03156 | DC72: 35387.78052 | DD72: 22198.173 | DG72: -200.74761 | DH72: 161.58586 | DI72: 5387.76021 | DJ72: 2893.18763 | DK72: 0 | DL72: 0 | DM72: 2494.57258 | DN72: 0 | DO72: 0 | DP72: 0 | DQ72: 2494.57258 | DR72: 2000.01235 | DS72: 5173.31615 | DU72: -179.28721 | DV72: -8644.97518 | DW72: 4093.24526 | DX72: 35387.78052 | DY72: 31013.55382 | DZ72: 1982.47441 | EA72: 2391.75229 | EB72: 21.25 | ED72: 87 | EE72: 38378 | EF72: 38127.09227 | EG72: 39007.06197 | EH72: 1000 | EK72: -1401 | EL72: 22 | EM72: 285 | EN72: -1655.35191 | EO72: 0 | EP72: 162.61365 | EQ72: -1314.43639 | ER72: 0 | ES72: 234.3655 | ET72: 7500 | EU72: -700 | EV72: 0 | EW72: 6000 | EX72: 0 | EY72: 3539.06 | EZ72: 58007 | FA72: 38901 | FB72: 19106 | FC72: 0 | FD72: 55901.16318 | FE72: 30794.97518 | FF72: 25106.188 | FG72: 0 | FH72: 50795.248 | FI72: 22150 | FJ72: 28645.248 | FK72: 0 | FL72: 7627.644894 | FM72: 7425.749389 | FN72: 7052.25895 | FO72: 1459.461356 | FP72: 169.6456302 | FV72: 398.4659481
A73: 226 | B73: Karstula | C73: 3858 | E73: 4189 | F73: 46.64449637 | G73: -1437.013997 | K73: 50.19546769 | L73: 2437.273199 | M73: 113.8377724 | N73: 7814.670814 | O73: 7387 | P73: 4225 | Q73: 29314 | R73: -25089 | S73: 12663 | T73: 16547 | W73: 53 | X73: 14 | Y73: 4188 | Z73: 1987 | AA73: 0 | AB73: 0 | AC73: 2201 | AD73: 0 | AE73: 0 | AF73: 0 | AG73: 2201 | AH73: 1359 | AI73: -14 | AK73: 168 | AL73: 0 | AM73: -336 | AN73: 12663 | AO73: 10149 | AP73: 1524 | AQ73: 990 | AR73: 21.5 | AT73: 19.77205882 | AU73: 3774 | AW73: 10999.22504 | AX73: 45.18771253 | AY73: -1486.279595 | BC73: 50.69301012 | BD73: 2365.698415 | BE73: 91.04184941 | BF73: 9484.428614 | BG73: 7563.94525 | BH73: 5018.90301 | BI73: 30921.68886 | BJ73: -25902.78585 | BK73: 14060.20644 | BL73: 15622.591 | BO73: 75.15426 | BP73: 15.54947 | BQ73: 3870.71532 | BR73: 2016.21682 | BS73: 0 | BT73: 0 | BU73: 1854.4985 | BV73: 0 | BW73: 0 | BX73: 0 | BY73: 1854.4985 | BZ73: 2990.22585 | CA73: 4511.03966 | CC73: -472.13285 | CD73: 0 | CE73: 447.40681 | CF73: 14060.20644 | CG73: 10605.00218 | CH73: 2336.15558 | CI73: 1119.04868 | CJ73: 21.5 | CL73: 25 | CM73: 3665 | CO73: 264.3681521 | CP73: 48.65527134 | CQ73: -2450.651883 | CU73: 50.57450407 | CV73: 2094.865321 | CW73: 72.82238167 | CX73: 10499.87414 | CY73: 7666.55389 | CZ73: 4643.85503 | DA73: 33206.68979 | DB73: -28562.83476 | DC73: 14232.79881 | DD73: 16911.125 | DG73: -7.02184 | DH73: 39.59043 | DI73: 2613.65764 | DJ73: 1721.26368 | DK73: 0 | DL73: 0 | DM73: 892.39396 | DN73: 0 | DO73: 0 | DP73: 0 | DQ73: 892.39396 | DR73: 3919.89704 | DS73: 1935.97316 | DU73: 418.78686 | DV73: 0 | DW73: -3410.07192 | DX73: 14232.79881 | DY73: 10757.89559 | DZ73: 2222.73431 | EA73: 1252.16891 | EB73: 21.5 | ED73: 61 | EE73: 19646 | EF73: 20886.37137 | EG73: 22732.2926 | EH73: 545 | EK73: -691 | EL73: 279 | EM73: 90 | EN73: -4671.64051 | EO73: 121.94166 | EP73: 486.066 | EQ73: -5423.1 | ER73: 17.66392 | ES73: 59.391 | ET73: 0 | EU73: 0 | EV73: 0 | EW73: 0 | EX73: 0 | EY73: 0 | EZ73: 13000 | FA73: 0 | FB73: 13000 | FC73: 723 | FD73: 13000 | FE73: 0 | FF73: 13000 | FG73: 267.86279 | FH73: 13000 | FI73: 0 | FJ73: 13000 | FK73: 419.02908 | FL73: 7203.214101 | FM73: 7275.154367 | FN73: 7387.645211 | FO73: 500.3672367 | FP73: 136.525849 | FV73: 1025.626741
A74: 230 | B74: Karvia | C74: 2322 | E74: 4.284960422 | F74: 21.67530728 | G74: -581.3953488 | K74: 77.58682635 | L74: 844.9612403 | M74: 43.49407835 | N74: 7090.86994 | O74: 3617 | P74: 1190 | Q74: 15807 | R74: -14617 | S74: 6907 | T74: 9070 | W74: -32 | X74: 264 | Y74: 1592 | Z74: 840 | AA74: 0 | AB74: 0 | AC74: 752 | AD74: 0 | AE74: 0 | AF74: 0 | AG74: 751 | AH74: 7743 | AI74: 1592 | AK74: 3 | AL74: -347 | AM74: 1316 | AN74: 6907 | AO74: 5551 | AP74: 689 | AQ74: 667 | AR74: 20.5 | AT74: 142.6691176 | AU74: 2290 | AW74: 3.971776282 | AX74: 18.99500742 | AY74: -303.4394934 | BC74: 80.18100244 | BD74: 705.8600262 | BE74: 33.38489585 | BF74: 7717.229694 | BG74: 3804.98786 | BH74: 1436.89363 | BI74: 16366.41842 | BJ74: -14929.52479 | BK74: 7565.62193 | BL74: 8592.309 | BO74: -27.24813 | BP74: 259.48532 | BQ74: 1460.64333 | BR74: 809.93465 | BS74: 0 | BT74: 0 | BU74: 650.70868 | BV74: 0 | BW74: 0 | BX74: 0 | BY74: 650.70868 | BZ74: 8393.66832 | CA74: 1467.76262 | CC74: -621.01658 | CD74: -347.368 | CE74: 655.13739 | CF74: 7565.62193 | CG74: 5830.11536 | CH74: 1003.73109 | CI74: 731.77548 | CJ74: 20.5 | CL74: 111 | CM74: 2240 | CO74: 1.255871318 | CP74: 21.51800902 | CQ74: -158.6553125 | CU74: 77.49396717 | CV74: 1065.741473 | CW74: 48.47896784 | CX74: 8024.008246 | CY74: 4024.08044 | CZ74: 1446.13158 | DA74: 17586.61301 | DB74: -16140.48143 | DC74: 7486.84428 | DD74: 8839.952 | DG74: -17.38391 | DH74: 273.1845 | DI74: 442.11544 | DJ74: 808.57325 | DK74: 0 | DL74: 0 | DM74: -366.45781 | DN74: 0 | DO74: 0 | DP74: 0 | DQ74: -366.45781 | DR74: 8027.21051 | DS74: 432.91578 | DU74: -50.88909 | DV74: -347.368 | DW74: 339.68854 | DX74: 7486.84428 | DY74: 5734.77647 | DZ74: 995.03703 | EA74: 757.03078 | EB74: 20.5 | ED74: 250 | EE74: 11084 | EF74: 11283.06459 | EG74: 12266.79096 | EH74: 300 | EK74: -277 | EL74: 0 | EM74: 1 | EN74: -929.5593 | EO74: 44.43307 | EP74: 72.501 | EQ74: -364.23984 | ER74: 0 | ES74: 271.0126 | ET74: 0 | EU74: 0 | EV74: 0 | EW74: 0 | EX74: 0 | EY74: 0 | EZ74: 2431 | FA74: 2084 | FB74: 347 | FC74: 246 | FD74: 2084.212 | FE74: 1736.844 | FF74: 347.368 | FG74: 246.37226 | FH74: 1736.844 | FI74: 1389.476 | FJ74: 347.368 | FK74: 246.37226 | FL74: 3467.700258 | FM74: 3392.357197 | FN74: 3404.73742 | FO74: 279.7451937 | FP74: 124.8862472 | FV74: 637.8355153
A75: 231 | B75: Kaskinen | C75: 1278 | E75: 0.06406685237 | F75: 63.39537976 | G75: -4739.43662 | K75: 55.16078386 | L75: 262.9107981 | M75: 8.648801128 | N75: 11095.46166 | O75: 4531 | P75: 2953 | Q75: 11965 | R75: -9012 | S75: 6396 | T75: 2685 | W75: -21 | X75: 8 | Y75: 56 | Z75: 1059 | AA75: 0 | AB75: 0 | AC75: -1003 | AD75: 0 | AE75: 0 | AF75: 0 | AG75: -1003 | AH75: 4776 | AI75: 28 | AK75: -89 | AL75: -1400 | AM75: -571 | AN75: 6396 | AO75: 4907 | AP75: 814 | AQ75: 675 | AR75: 22 | AT75: 292.7647059 | AU75: 1289 | AW75: -1.449390649 | AX75: 69.30690493 | AY75: -5477.315136 | BC75: 49.35393727 | BD75: 2.603685027 | BE75: 0.08430959265 | BF75: 11272.08666 | BG75: 4462.57274 | BH75: 2589.15353 | BI75: 12851.12523 | BJ75: -10261.9717 | BK75: 7207.2165 | BL75: 2440.706 | BO75: -24.86676 | BP75: -1.77455 | BQ75: -640.69051 | BR75: 683.67269 | BS75: 0 | BT75: 0 | BU75: -1324.3632 | BV75: 0 | BW75: 0 | BX75: 0 | BY75: -1324.3632 | BZ75: 3594.40217 | CA75: -487.22667 | CC75: -216.86307 | CD75: -400 | CE75: -989.90269 | CF75: 7207.2165 | CG75: 5226.13255 | CH75: 1244.39986 | CI75: 736.68409 | CJ75: 22 | CL75: 293 | CM75: 1256 | CO75: 1.734710944 | CP75: 62.32449618 | CQ75: -4615.727858 | CU75: 49.47710552 | CV75: 400.2894904 | CW75: 13.51428199 | CX75: 10811.20433 | CY75: 2774.00871 | CZ75: 3139.55993 | DA75: 12901.32509 | DB75: -9761.76516 | DC75: 7419.00876 | DD75: 3062.64 | DG75: -17.45215 | DH75: 14.07384 | DI75: 716.50529 | DJ75: 658.44054 | DK75: 0 | DL75: 0 | DM75: 58.06475 | DN75: 0 | DO75: 0 | DP75: 15 | DQ75: 43.06475 | DR75: 3627.47951 | DS75: 177.56811 | DU75: -806.70861 | DV75: -400 | DW75: 1258.01243 | DX75: 7419.00876 | DY75: 5245.71649 | DZ75: 1292.32663 | EA75: 880.96564 | EB75: 23 | ED75: 110 | EE75: 5714 | EF75: 6347.11592 | EG75: 8653.12136 | EH75: 175 | EJ75: 250 | EK75: -779 | EL75: 0 | EM75: 180 | EN75: -1319.33876 | EO75: 816.66274 | EP75: 0 | EQ75: -625.33425 | ER75: 13.55 | ES75: 1692.22857 | ET75: 7000 | EU75: -4534 | EV75: 0 | EW75: 1223.34871 | EX75: 0 | EY75: 871.25518 | EZ75: 5948 | FA75: 5200 | FB75: 748 | FC75: 0 | FD75: 6770.90583 | FE75: 4800 | FF75: 1970.90583 | FG75: 0 | FH75: 7242.16101 | FI75: 4400 | FJ75: 2842.16101 | FK75: 0 | FL75: 7194.053208 | FM75: 8010.217525 | FN75: 8607.033447 | FO75: 228.07463 | FP75: 181.5880812 | FV75: -497.044616
A76: 232 | B76: Kauhajoki | C76: 13007 | E76: 0.9437656642 | F76: 59.32359521 | G76: -4069.11663 | K76: 30.81397821 | L76: 1864.4576 | M76: 61.41112275 | N76: 11081.49458 | O76: 24214 | P76: 46338 | Q76: 131571 | R76: -85233 | S76: 46156 | T76: 44372 | W76: -618 | X76: 724 | Y76: 5401 | Z76: 4754 | AA76: 0 | AB76: 0 | AC76: 647 | AD76: 35 | AE76: 0 | AF76: 0 | AG76: 682 | AH76: -6633 | AI76: 5471 | AK76: 866 | AL76: -5760 | AM76: 22 | AN76: 46156 | AO76: 38875 | AP76: 4009 | AQ76: 3272 | AR76: 22 | AT76: 251.4632353 | AU76: 12890 | AW76: 1.247566295 | AX76: 56.97539366 | AY76: -3952.66773 | BC76: 31.73696919 | BD76: 1970.165751 | BE76: 62.36685841 | BF76: 11530.33065 | BG76: 26146.29233 | BH76: 50135.56746 | BI76: 137165.4752 | BJ76: -87029.90771 | BK76: 49370.24891 | BL76: 42695.553 | BO76: -452.12251 | BP76: 2506.33101 | BQ76: 7090.1027 | BR76: 5579.19401 | BS76: 0 | BT76: 0 | BU76: 1510.90869 | BV76: -34.61752 | BW76: 0 | BX76: 0 | BY76: 1545.52621 | BZ76: -5087.12816 | CA76: 6830.39756 | CC76: -665.83286 | CD76: -5592.67618 | CE76: 1940.88458 | CF76: 49370.24891 | CG76: 39623.64382 | CH76: 6123.64556 | CI76: 3622.95953 | CJ76: 22 | CL76: 158 | CM76: 12750 | CO76: 1.22297233 | CP76: 56.0369516 | CQ76: -4054.197852 | CU76: 32.67223632 | CV76: 1821.477802 | CW76: 56.92229266 | CX76: 11679.77196 | CY76: 24534.94873 | CZ76: 49573.32394 | DA76: 138900.0058 | DB76: -89326.6819 | DC76: 51274.96557 | DD76: 45876.807 | DG76: -547.45602 | DH76: 135.78669 | DI76: 7413.42134 | DJ76: 5176.26455 | DK76: 0 | DL76: 0 | DM76: 2237.15679 | DN76: -33.71627 | DO76: 0 | DP76: 0 | DQ76: 2270.87306 | DR76: -2816.2551 | DS76: 7376.91193 | DU76: -2636.24872 | DV76: -5959.52518 | DW76: -794.34718 | DX76: 51274.96557 | DY76: 40811.72348 | DZ76: 6636.09009 | EA76: 3827.152 | EB76: 22 | ED76: 104 | EE76: 99990 | EF76: 102880.4164 | EG76: 106203.3618 | EJ76: 800 | EK76: -5706 | EL76: 0 | EM76: 257 | EN76: -5372.30399 | EO76: 68.35 | EP76: 414.44101 | EQ76: -8282.64554 | ER76: 31.5 | ES76: 79.88643 | ET76: 0 | EU76: 6000 | EV76: 7000 | EW76: 0 | EX76: 8000 | EY76: -3000 | EZ76: 65420 | FA76: 49827 | FB76: 15593 | FC76: 866 | FD76: 66826.98146 | FE76: 51134.12228 | FF76: 15692.85918 | FG76: 800.20458 | FH76: 65867.45628 | FI76: 52841.2651 | FJ76: 13026.19118 | FK76: 763.57686 | FL76: 8538.633044 | FM76: 8564.603906 | FN76: 8416.381689 | FO76: 1855.07834 | FP76: 145.4963404 | FV76: 550.0467572
A77: 233 | B77: Kauhava | C77: 15514 | E77: 1.8742536 | F77: 58.54923133 | G77: -3168.041769 | K77: 40.03709217 | L77: 1153.732113 | M77: 50.50468858 | N77: 8338.081733 | O77: 29936 | P77: 9950 | Q77: 111339 | R77: -101389 | S77: 54372 | T77: 57283 | W77: -232 | X77: 349 | Y77: 10383 | Z77: 6231 | AA77: 0 | AB77: 0 | AC77: 4152 | AD77: 194 | AE77: 0 | AF77: 70 | AG77: 4415 | AH77: 6808 | AI77: 10379 | AK77: -1703 | AL77: -5405 | AM77: -1713 | AN77: 54372 | AO77: 47212 | AP77: 3490 | AQ77: 3670 | AR77: 21.75 | AT77: 149.7205882 | AU77: 15312 | AW77: 1.453158409 | AX77: 62.62191152 | AY77: -3400.032757 | BC77: 39.85023344 | BD77: 1102.19316 | BE77: 47.29155512 | BF77: 8506.814853 | BG77: 29980.38622 | BH77: 10128.85895 | BI77: 111648.7563 | BJ77: -101519.8974 | BK77: 56830.95802 | BL77: 53178.359 | BO77: -174.2245 | BP77: 425.38448 | BQ77: 8740.57964 | BR77: 6239.76974 | BS77: 0 | BT77: 0 | BU77: 2500.8099 | BV77: -42.6724 | BW77: 0 | BX77: -133.12933 | BY77: 2676.61163 | BZ77: 9484.86414 | CA77: 8366.88481 | CC77: -2152.87578 | CD77: -5933.55654 | CE77: -2840.22971 | CF77: 56830.95802 | CG77: 47804.93594 | CH77: 4956.20379 | CI77: 4069.81829 | CJ77: 21.75 | CL77: 148 | CM77: 15116 | CO77: 1.344460861 | CP77: 63.48406265 | CQ77: -3711.160376 | CU77: 39.83624891 | CV77: 1103.435944 | CW77: 44.71235774 | CX77: 9007.669018 | CY77: 28593.46509 | CZ77: 7534.7117 | DA77: 115646.3996 | DB77: -108111.6879 | DC77: 59012.64153 | DD77: 56738.287 | DG77: 22.32641 | DH77: 691.57513 | DI77: 8353.14216 | DJ77: 6510.54107 | DK77: 0 | DL77: 0 | DM77: 1842.60109 | DN77: -161.38884 | DO77: 0 | DP77: 0 | DQ77: 2003.98993 | DR77: 11488.85407 | DS77: 8264.06577 | DU77: -8.61164 | DV77: -6138.60554 | DW77: -4163.27805 | DX77: 59012.64153 | DY77: 49831.68525 | DZ77: 5327.95356 | EA77: 3853.00272 | EB77: 21.75 | ED77: 119 | EE77: 74644 | EF77: 74529.23335 | EG77: 78698.19454 | EH77: 1800 | EK77: -12385 | EL77: 183 | EM77: 110 | EN77: -11960.80527 | EO77: 94.6 | EP77: 659.09075 | EQ77: -12668.12254 | ER77: 109.3028 | ES77: 131.47592 | ET77: 12000 | EU77: 3563 | EV77: 12000 | EW77: -2401.666 | EX77: 6000 | EY77: 400.029 | EZ77: 63621 | FA77: 55486 | FB77: 8135 | FC77: 2264 | FD77: 67285.16719 | FE77: 61551.62265 | FF77: 5733.54454 | FG77: 0 | FH77: 67546.59065 | FI77: 61413.01711 | FJ77: 6133.57354 | FK77: 2676.96555 | FL77: 9254.60874 | FM77: 10153.62339 | FN77: 10672.77474 | FO77: 2291.111966 | FP77: 151.5686667 | FV77: 570.8320037
A78: 235 | B78: Kauniainen | C78: 10178 | E78: 1153.111111 | F78: 17.81323837 | G78: 66.90901945 | K78: 87.16683119 | L78: 1307.82079 | M78: 58.28213095 | N78: 8190.41069 | O78: 37228 | P78: 14069 | Q78: 77506 | R78: -63437 | S78: 69215 | T78: 4325 | W78: 225 | X78: 41 | Y78: 10369 | Z78: 8716 | AA78: 0 | AB78: 0 | AC78: 1653 | AD78: 0 | AE78: 0 | AF78: 0 | AG78: 1654 | AH78: 54368 | AI78: 8922 | AK78: 817 | AL78: 0 | AM78: 4637 | AN78: 69215 | AO78: 63838 | AP78: 1060 | AQ78: 4317 | AR78: 17 | AT78: 32.86764706 | AU78: 10396 | AW78: 1110.847791 | AX78: 13.3780276 | AY78: 179.4568603 | BC78: 89.46528266 | BD78: 1020.986206 | BE78: 42.38774671 | BF78: 8791.690859 | BG78: 38433.75907 | BH78: 15888.11355 | BI78: 84772.32185 | BJ78: -68884.2083 | BK78: 74694.61357 | BL78: 1742.05175 | BO78: 219.27641 | BP78: 40.36309 | BQ78: 7812.09652 | BR78: 8572.79504 | BS78: 0 | BT78: 0 | BU78: -760.69852 | BV78: 0 | BW78: 0 | BX78: 0 | BY78: -760.69852 | BZ78: 52845.96194 | CA78: 7027.83071 | CC78: -1028.14336 | CD78: 0 | CE78: 1514.95759 | CF78: 74694.61357 | CG78: 67983.6895 | CH78: 1963.24179 | CI78: 4747.68228 | CJ78: 17 | CL78: 64 | CM78: 10284 | CO78: 229205976 | CP78: 12.84378658 | CQ78: 995.4731301 | CU78: 89.40278884 | CV78: 1985.499594 | CW78: 74.18773159 | CX78: 9768.560598 | CY78: 38875.21862 | CZ78: 16553.20191 | DA78: 87859.79096 | DB78: -71306.58905 | DC78: 87635.77097 | DD78: 3926.40975 | DG78: 227.42821 | DH78: 145.51787 | DI78: 20628.53775 | DJ78: 8469.38058 | DK78: 0 | DL78: 0 | DM78: 12159.15717 | DN78: 0 | DO78: 10000 | DP78: 0 | DQ78: 2159.15717 | DR78: 55765.81763 | DS78: 19758.01142 | DU78: -101.98153 | DV78: 0 | DW78: 8284.77554 | DX78: 87635.77097 | DY78: 80268.53269 | DZ78: 2500.58281 | EA78: 4866.65547 | EB78: 17 | ED78: 2 | EE78: 29935 | EF78: 35962.46962 | EG78: 37511.18066 | EK78: -5822 | EL78: 0 | EM78: 1537 | EN78: -6568.33766 | EO78: 252.7206 | EP78: 802.74394 | EQ78: -12563.8748 | ER78: 172.91253 | ES78: 917.72639 | ET78: 0 | EU78: 2000 | EV78: 0 | EW78: -4000 | EX78: 0 | EY78: 0 | EZ78: 4000 | FA78: 0 | FB78: 4000 | FC78: 5064 | FD78: 0 | FE78: 0 | FF78: 0 | FG78: 4996.86708 | FH78: 0 | FI78: 0 | FJ78: 0 | FK78: 4900.81334 | FL78: 2565.828257 | FM78: 2203.986373 | FN78: 2463.502926 | FO78: 4721.678394 | FP78: 459.1285875 | FV78: 751.452147
A79: 236 | B79: Kaustinen | C79: 4228 | E79: 1.325169555 | F79: 98.39857147 | G79: -7217.360454 | K79: 20.74171465 | L79: 709.0823084 | M79: 30.09957365 | N79: 8598.628193 | O79: 10448 | P79: 6548 | Q79: 31826 | R79: -25278 | S79: 14546 | T79: 14187 | W79: -188 | X79: 51 | Y79: 3318 | Z79: 1585 | AA79: 0 | AB79: 0 | AC79: 1733 | AD79: 0 | AE79: 0 | AF79: 0 | AG79: 1733 | AH79: -535 | AI79: 3385 | AK79: -96 | AL79: -2455 | AM79: 1537 | AN79: 14546 | AO79: 12879 | AP79: 796 | AQ79: 871 | AR79: 22 | AT79: 94.31617647 | AU79: 4196 | AW79: 0.8347016922 | AX79: 105.8320311 | AY79: -8148.972054 | BC79: 21.19393891 | BD79: 83.50850334 | BE79: 3.068799504 | BF79: 9932.419397 | BG79: 11065.0891 | BH79: 6702.99035 | BI79: 32399.09516 | BJ79: -25696.10481 | BK79: 14961.31415 | BL79: 13200.704 | BO79: -160.64165 | BP79: 52.76266 | BQ79: 2358.03435 | BR79: 1524.87718 | BS79: 0 | BT79: 0 | BU79: 833.15717 | BV79: 0 | BW79: 0 | BX79: 0 | BY79: 833.15717 | BZ79: 297.94699 | CA79: 2316.0298 | CC79: -1151.69577 | CD79: -2860.45148 | CE79: -3729.09811 | CF79: 14961.31415 | CG79: 12922.39347 | CH79: 1087.79322 | CI79: 951.12746 | CJ79: 22 | CL79: 155 | CM79: 4198 | CO79: 0.4279485068 | CP79: 94.64287039 | CQ79: -7667.606744 | CU79: 25.60345942 | CV79: 261.8501191 | CW79: 11.12996424 | CX79: 8587.2058 | CY79: 11435.54548 | CZ79: 6928.4937 | DA79: 33730.36106 | DB79: -26801.86736 | DC79: 15993.5781 | DD79: 14765.439 | DG79: -176.94672 | DH79: 239.11931 | DI79: 4019.32233 | DJ79: 1675.66031 | DK79: 0 | DL79: 0 | DM79: 2343.66202 | DN79: 0 | DO79: 0 | DP79: 0 | DQ79: 2343.66202 | DR79: 2641.60901 | DS79: 3961.37169 | DU79: -25.82388 | DV79: -9659.66448 | DW79: 1930.27787 | DX79: 15993.5781 | DY79: 13671.58307 | DZ79: 1154.18831 | EA79: 1167.80672 | EB79: 22 | ED79: 35 | EE79: 18685 | EF79: 18710.68198 | EG79: 19544.34485 | EH79: 590 | EJ79: 550 | EK79: -1874 | EL79: 0 | EM79: 26 | EN79: -6237.54652 | EO79: 25 | EP79: 167.41861 | EQ79: -2117.58268 | ER79: 0 | ES79: 86.48886 | ET79: 2000 | EU79: -6000 | EV79: 13000 | EW79: -800.273 | EX79: 0 | EY79: 9504.341 | EZ79: 30924 | FA79: 28468 | FB79: 2456 | FC79: 0 | FD79: 32262.6436 | FE79: 29607.32012 | FF79: 2655.32348 | FG79: 0 | FH79: 32107.32012 | FI79: 19947.65564 | FJ79: 12159.66448 | FK79: 0 | FL79: 12264.42763 | FM79: 12476.18751 | FN79: 12660.22291 | FO79: 621.4355941 | FP79: 148.0313469 | FV79: 561.9719614
A80: 239 | B80: Keitele | C80: 2155 | E80: 4.501915709 | F80: 48.7347363 | G80: -3092.343387 | K80: 46.03192136 | L80: 653.3642691 | M80: 26.71796205 | N80: 8925.75406 | O80: 5717 | P80: 2997 | Q80: 18229 | R80: -15232 | S80: 7469 | T80: 8779 | W80: -1 | X80: 159 | Y80: 1174 | Z80: 572 | AA80: 0 | AB80: 0 | AC80: 602 | AD80: 0 | AE80: 0 | AF80: 0 | AG80: 602 | AH80: -38 | AI80: 1023 | AK80: 150 | AL80: -260 | AM80: 540 | AN80: 7469 | AO80: 5811 | AP80: 1186 | AQ80: 472 | AR80: 20.5 | AT80: 211.1691176 | AU80: 2095 | AW80: 2.362305603 | AX80: 45.0231065 | AY80: -2770.726496 | BC80: 49.5673105 | BD80: 693.1611599 | BE80: 27.53252158 | BF80: 9189.271771 | BG80: 5748.79619 | BH80: 2814.31225 | BI80: 18271.87451 | BJ80: -15457.56226 | BK80: 7979.7739 | BL80: 8681.566 | BO80: 12.61146 | BP80: 180.82941 | BQ80: 1397.21851 | BR80: 761.63867 | BS80: 0 | BT80: 0 | BU80: 635.57984 | BV80: 0 | BW80: 0 | BX80: 0 | BY80: 635.57984 | BZ80: 598.02765 | CA80: 1439.83067 | CC80: -204.65945 | CD80: -598.288 | CE80: 859.67212 | CF80: 7979.7739 | CG80: 5838.52339 | CH80: 1754.51274 | CI80: 386.73777 | CJ80: 20.5 | CL80: 93 | CM80: 2029 | CO80: 6.761696193 | CP80: 44.8612365 | CQ80: -2683.838595 | CU80: 50.87073272 | CV80: 792.9789305 | CW80: 30.10154861 | CX80: 9615.362765 | CY80: 6124.40815 | CZ80: 2860.97177 | DA80: 18535.88962 | DB80: -15674.91785 | DC80: 8129.41138 | DD80: 8570.357 | DG80: -34.83706 | DH80: 239.31753 | DI80: 1229.331 | DJ80: 773.31026 | DK80: 0 | DL80: 4.5 | DM80: 451.52074 | DN80: 0 | DO80: 0 | DP80: 0 | DQ80: 451.52074 | DR80: 1049.54839 | DS80: 1224.401 | DU80: -209.02817 | DV80: -150 | DW80: 366.84987 | DX80: 8129.41138 | DY80: 6155.73522 | DZ80: 1460.46165 | EA80: 513.21451 | EB80: 20.5 | ED80: 96 | EE80: 10985 | EF80: 11090.7542 | EG80: 10908.24198 | EK80: -741 | EL80: 79 | EM80: 179 | EN80: -666.83348 | EO80: 60.78765 | EP80: 25.88728 | EQ80: -935.55113 | ER80: 0 | ES80: 78 | ET80: 0 | EU80: 0 | EV80: 0 | EW80: 0 | EX80: 0 | EY80: -1150 | EZ80: 7623 | FA80: 2854 | FB80: 4769 | FC80: 114 | FD80: 7025 | FE80: 2325 | FF80: 4700 | FG80: 91.216 | FH80: 5725 | FI80: 2175 | FJ80: 3550 | FK80: 68.412 | FL80: 9004.640371 | FM80: 7421.292773 | FN80: 7335.75829 | FO80: 300.2797668 | FP80: 147.9939708 | FV80: 666.9300764
A81: 240 | B81: Kemi | C81: 20437 | E81: 0.5680398572 | F81: 73.29411262 | G81: -5411.704262 | K81: 31.31768614 | L81: 164.9459314 | M81: 6.863244383 | N81: 8772.128982 | O81: 62753 | P81: 19646 | Q81: 159530 | R81: -139884 | S81: 88470 | T81: 55903 | W81: -78 | X81: 2599 | Y81: 7010 | Z81: 5094 | AA81: 0 | AB81: 0 | AC81: 1916 | AD81: 0 | AE81: 0 | AF81: 0 | AG81: 1917 | AH81: -8878 | AI81: 7028 | AK81: 2157 | AL81: -12819 | AM81: 1039 | AN81: 88470 | AO81: 76160 | AP81: 5946 | AQ81: 6364 | AR81: 21.75 | AT81: 267.5808824 | AU81: 19982 | AW81: 0.30193456 | AX81: 80.95784543 | AY81: -6150.362626 | BC81: 26.51619041 | BD81: 210.445551 | BE81: 7.906458468 | BF81: 9715.17469 | BG81: 65432.439 | BH81: 23580.824 | BI81: 167602.543 | BJ81: -144021.719 | BK81: 92334.526 | BL81: 52739.323 | BO81: 54.416 | BP81: 1531.661 | BQ81: 2638.207 | BR81: 9287.379 | BS81: 0 | BT81: 0 | BU81: -6649.172 | BV81: 0 | BW81: 0 | BX81: 0 | BY81: -6649.172 | BZ81: -15527.626 | CA81: 2149.00442 | CC81: -3085.7942 | CD81: -10077.44044 | CE81: -13050.78203 | CF81: 92334.526 | CG81: 77676.781 | CH81: 8685.847 | CI81: 5971.898 | CJ81: 21.75 | CL81: 282 | CM81: 19499 | CO81: 0.07013577624 | CP81: 86.8664592 | CQ81: -6199.375666 | CU81: 23.85880707 | CV81: 226.2625268 | CW81: 8.860084546 | CX81: 9321.109957 | CY81: 65906.68144 | CZ81: 22543.51529 | DA81: 170500.3578 | DB81: -147956.8425 | DC81: 91616.671 | DD81: 55631.24 | DG81: -404.60365 | DH81: 1561.22176 | DI81: 447.68662 | DJ81: 4976.14029 | DK81: 707.56547 | DL81: 0 | DM81: -3820.8882 | DN81: 0 | DO81: 0 | DP81: 0 | DQ81: -3820.8882 | DR81: -18856.62884 | DS81: -2156.85861 | DU81: -12787.48106 | DV81: -18542.8572 | DW81: 2712.04001 | DX81: 91616.671 | DY81: 77375.212 | DZ81: 6982.18 | EA81: 7259.279 | EB81: 21.75 | ED81: 276 | EE81: 74091 | EF81: 83018.198 | EG81: 85726.95756 | EH81: 1500 | EK81: -6411 | EL81: 0 | EM81: 422 | EN81: -15827.41122 | EO81: 134.62177 | EP81: 493.003 | EQ81: -9892.766 | ER81: 14020 | ES81: 741.66462 | ET81: 13000 | EU81: 500 | EV81: 28000 | EW81: -5000 | EX81: 30000 | EY81: -1785.71424 | EZ81: 107184 | FA81: 61107 | FB81: 46077 | FC81: 17376 | FD81: 120107.143 | FE81: 71278.571 | FF81: 48828.572 | FG81: 17019.721 | FH81: 129778.5714 | FI81: 93535.71416 | FJ81: 36242.8572 | FK81: 17528.37042 | FL81: 7868.13133 | FM81: 9507.480184 | FN81: 11112.41602 | FO81: 3557.481011 | FP81: 182.4442798 | FV81: 132.0291763
A82: 320 | B82: Kemijärvi | C82: 7191 | E82: 0.8355420725 | F82: 69.43519663 | G82: -5325.406758 | K82: 43.69623499 | L82: 695.3135864 | M82: 22.94673842 | N82: 11059.93603 | O82: 25258 | P82: 9512 | Q82: 64839 | R82: -55327 | S82: 29589 | T82: 29684 | W82: 179 | X82: 879 | Y82: 5004 | Z82: 2584 | AA82: 0 | AB82: 0 | AC82: 2420 | AD82: 0 | AE82: -1 | AF82: 0 | AG82: 2419 | AH82: -2028 | AI82: 4902 | AK82: -310 | AL82: -6034 | AM82: -1764 | AN82: 29589 | AO82: 24214 | AP82: 1377 | AQ82: 3998 | AR82: 21.5 | AT82: 134.6102941 | AU82: 7105 | AW82: 1.12333861 | AX82: 66.13758334 | AY82: -4905.783206 | BC82: 47.48576462 | BD82: 932.5480169 | BE82: 31.10435607 | BF82: 10943.1626 | BG82: 25545.59173 | BH82: 10382.42337 | BI82: 65155.02357 | BJ82: -54772.6002 | BK82: 30751.69907 | BL82: 28253.072 | BO82: 222.80153 | BP82: 2881.91947 | BQ82: 7336.89187 | BR82: 2934.55404 | BS82: 0 | BT82: 0 | BU82: 4402.33783 | BV82: 0 | BW82: 0 | BX82: -10.05508 | BY82: 4412.39291 | BZ82: 2384.69203 | CA82: 7113.05716 | CC82: 56.61418 | CD82: -6511.175 | CE82: 4573.31719 | CF82: 30751.69907 | CG82: 24346.19392 | CH82: 2460.58487 | CI82: 3944.92028 | CJ82: 21.5 | CL82: 23 | CM82: 6996 | CO82: 1.821852044 | CP82: 56.55166829 | CQ82: -3963.290778 | CU82: 54.57472152 | CV82: 1157.640567 | CW82: 39.51903704 | CX82: 10692.03196 | CY82: 26555.5759 | CZ82: 11702.78369 | DA82: 69425.42136 | DB82: -57722.63767 | DC82: 31107.50906 | DD82: 30254.326 | DG82: 250.59159 | DH82: 7756.70231 | DI82: 11646.49129 | DJ82: 3158.62713 | DK82: 0 | DL82: 0 | DM82: 8487.86416 | DN82: 0 | DO82: 0 | DP82: -40.03242 | DQ82: 8527.89658 | DR82: 10514.75523 | DS82: 11519.58776 | DU82: -1083.55493 | DV82: -6313.895 | DW82: 10054.9276 | DX82: 31107.50906 | DY82: 24448.18462 | DZ82: 2061.14508 | EA82: 4598.17936 | EB82: 21.5 | ED82: 5 | EE82: 29414 | EF82: 31536.20167 | EG82: 34388.74457 | EH82: 1000 | EK82: -7002 | EL82: 0 | EM82: 336 | EN82: -3903.62628 | EO82: 18.40793 | EP82: 1345.47838 | EQ82: -1742.14646 | ER82: -6.40793 | ES82: 283.89423 | ET82: 11700 | EU82: 0 | EV82: 5000 | EW82: 0 | EX82: 0 | EY82: 0 | EZ82: 40080 | FA82: 33819 | FB82: 6261 | FC82: 11656 | FD82: 38569.212 | FE82: 32255.317 | FF82: 6313.895 | FG82: 12184 | FH82: 32255.317 | FI82: 26491.422 | FJ82: 5763.895 | FK82: 15356.2535 | FL82: 10448.47726 | FM82: 10634.83581 | FN82: 10582.34134 | FO82: 1137.124866 | FP82: 162.539289 | FV82: 1032.637842
A83: 241 | B83: Keminmaa | C83: 7984 | E83: 1.453031731 | F83: 35.64119078 | G83: -1365.981964 | K83: 56.94267786 | L83: 637.3997996 | M83: 31.81060762 | N83: 7313.627255 | O83: 16390 | P83: 3480 | Q83: 51493 | R83: -48013 | S83: 36220 | T83: 16196 | W83: 24 | X83: 26 | Y83: 4453 | Z83: 1906 | AA83: 41 | AB83: 0 | AC83: 2588 | AD83: 0 | AE83: 0 | AF83: 0 | AG83: 2588 | AH83: 4049 | AI83: 4463 | AK83: -1068 | AL83: -3011 | AM83: 834 | AN83: 36220 | AO83: 31240 | AP83: 1399 | AQ83: 3581 | AR83: 21.25 | AT83: 204.1176471 | AU83: 7904 | AW83: 1.23499819 | AX83: 39.54113058 | AY83: -1647.816549 | BC83: 54.47740989 | BD83: 783.3773456 | BE83: 34.58480061 | BF83: 8267.583623 | BG83: 17648.06303 | BH83: 4875.31596 | BI83: 55050.13548 | BJ83: -50174.81952 | BK83: 38722.46867 | BL83: 15390.76197 | BO83: 34.61699 | BP83: 8.99152 | BQ83: 3982.01963 | BR83: 2534.5182 | BS83: 42.61061 | BT83: 0 | BU83: 1490.11204 | BV83: 0 | BW83: 0 | BX83: 0 | BY83: 1490.11204 | BZ83: 5538.49046 | CA83: 4912.02639 | CC83: -121.325 | CD83: -3192.64646 | CE83: 686.07312 | CF83: 38722.46867 | CG83: 32705.92126 | CH83: 2154.40321 | CI83: 3862.1442 | CJ83: 21.25 | CL83: 179 | CM83: 7771 | CO83: 0.7582656236 | CP83: 35.93374198 | CQ83: -1747.432819 | CU83: 56.90017281 | CV83: 454.0758911 | CW83: 21.33930723 | CX83: 7766.779798 | CY83: 18322.21673 | CZ83: 4443.60078 | DA83: 57637.24452 | DB83: -53193.64374 | DC83: 39126.69542 | DD83: 16188.481 | DG83: 124.58245 | DH83: 79.07967 | DI83: 2325.1948 | DJ83: 1897.69025 | DK83: 89.12538 | DL83: 62.9937 | DM83: 453.63623 | DN83: 0 | DO83: 0 | DP83: 0 | DQ83: 453.63623 | DR83: 5992.12669 | DS83: 1395.18804 | DU83: -146.11108 | DV83: -3099.355 | DW83: -300.82142 | DX83: 39126.69542 | DY83: 32894.14594 | DZ83: 2154.69167 | EA83: 4077.85781 | EB83: 21.25 | ED83: 217 | EE83: 31138 | EF83: 33384.21683 | EG83: 34816.02282 | EI83: 520 | EK83: -3695 | EL83: 17 | EM83: 49 | EN83: -5760.78303 | EO83: 542 | EP83: 992.82976 | EQ83: -1973.63213 | ER83: 93.27318 | ES83: 184.34949 | ET83: 0 | EU83: -700 | EV83: 5500 | EW83: 0 | EX83: -0.00167 | EY83: 1500 | EZ83: 14803 | FA83: 11791 | FB83: 3012 | FC83: 5373 | FD83: 17119.48 | FE83: 14124.63833 | FF83: 2994.84167 | FG83: 4791.62911 | FH83: 15520.12333 | FI83: 11233.94066 | FJ83: 4286.18267 | FK83: 6573.79611 | FL83: 3003.507014 | FM83: 3219.896508 | FN83: 2895.038494 | FO83: 1547.959809 | FP83: 199.19699 | FV83: 503.7980301
A84: 322 | B84: Kemiönsaari | C84: 6609 | E84: 3.313282002 | F84: 41.59870989 | G84: -2715.690725 | K84: 59.79699609 | L84: 296.5652898 | M84: 13.90070922 | N84: 7787.108488 | O84: 23071 | P84: 6927 | Q84: 47727 | R84: -40800 | S84: 23300 | T84: 24342 | W84: -152 | X84: 39 | Y84: 6729 | Z84: 5335 | AA84: 0 | AB84: 0 | AC84: 1394 | AD84: 196 | AE84: 0 | AF84: 0 | AG84: 1590 | AH84: 13742 | AI84: 6642 | AK84: -627 | AL84: -1922 | AM84: 5628 | AN84: 23300 | AO84: 18994 | AP84: 1237 | AQ84: 3069 | AR84: 19.75 | AT84: 34.88235294 | AU84: 6614 | AW84: 3.526996674 | AX84: 37.8331785 | AY84: -2011.528316 | BC84: 62.86418308 | BD84: 691.8754158 | BE84: 31.33720995 | BF84: 8058.615529 | BG84: 23642.79633 | BH84: 8461.03474 | BI84: 49884.05159 | BJ84: -41423.01685 | BK84: 24472.24771 | BL84: 23145.774 | BO84: -131.85579 | BP84: 14.80692 | BQ84: 6077.95599 | BR84: 3374.69204 | BS84: 0 | BT84: 0 | BU84: 2703.26395 | BV84: -140.28654 | BW84: 0 | BX84: 0 | BY84: 2843.55049 | BZ84: 16585.47925 | CA84: 6063.09889 | CC84: -544.58947 | CD84: -1624.976 | CE84: 4348.31471 | CF84: 24472.24771 | CG84: 19145.94722 | CH84: 1934.64582 | CI84: 3391.65467 | CJ84: 19.75 | CL84: 36 | CM84: 6549 | CO84: 3.6352512 | CP84: 34.31702834 | CQ84: -1351.061344 | CU84: 65.06977404 | CV84: 1271.12942 | CW84: 55.30990597 | CX84: 8388.411263 | CY84: 25404.64808 | CZ84: 7565.14258 | DA84: 52798.34391 | DB84: -45233.20133 | DC84: 26433.16905 | DD84: 25120.847 | DG84: -163.59433 | DH84: 69.60423 | DI84: 6226.82462 | DJ84: 4191.26717 | DK84: 0 | DL84: 0 | DM84: 2035.55745 | DN84: -139.72197 | DO84: 0 | DP84: 0 | DQ84: 2175.27942 | DR84: 18760.75867 | DS84: 6234.53858 | DU84: 220.96614 | DV84: -1594.216 | DW84: 4405.73589 | DX84: 26433.16905 | DY84: 20982.15206 | DZ84: 1882.38824 | EA84: 3568.62875 | EB84: 19.75 | ED84: 36 | EE84: 18385 | EF84: 19287.9238 | EG84: 20612.02929 | EK84: -1654 | EL84: 430 | EM84: 210 | EN84: -1882.21188 | EO84: 96.4727 | EP84: 70.955 | EQ84: -1953.51683 | ER84: 106.5093 | ES84: 18.20484 | ET84: 0 | EU84: -3500 | EV84: 0 | EW84: 0 | EX84: 0 | EY84: 0 | EZ84: 16003 | FA84: 14378 | FB84: 1625 | FC84: 1 | FD84: 14377.76996 | FE84: 12783.55396 | FF84: 1594.216 | FG84: 0.8914 | FH84: 12783.55396 | FI84: 11189.348 | FJ84: 1594.20596 | FK84: 0.8914 | FL84: 3887.728855 | FM84: 3469.525138 | FN84: 3735.47741 | FO84: 1062.387446 | FP84: 162.2213233 | FV84: 918.9531282
A85: 244 | B85: Kempele | C85: 18796 | E85: 1.020219149 | F85: 65.54734499 | G85: -3751.117259 | K85: 42.97503433 | L85: 277.6654607 | M85: 14.70697003 | N85: 6891.147053 | O85: 48837 | P85: 13133 | Q85: 113256 | R85: -100123 | S85: 74742 | T85: 33123 | W85: -624 | X85: 32 | Y85: 7150 | Z85: 6724 | AA85: 0 | AB85: 0 | AC85: 426 | AD85: 728 | AE85: 0 | AF85: 0 | AG85: 1154 | AH85: 11376 | AI85: 4455 | AK85: 153 | AL85: -6995 | AM85: -71 | AN85: 74742 | AO85: 67226 | AP85: 3917 | AQ85: 3599 | AR85: 20.5 | AT85: 263.5514706 | AU85: 19116 | AW85: 1.014392432 | AX85: 67.12585258 | AY85: -3720.594456 | BC85: 41.05386817 | BD85: 476.0978243 | BE85: 24.05003551 | BF85: 7225.590406 | BG85: 52934.26112 | BH85: 17316.18858 | BI85: 120668.7368 | BJ85: -103352.5482 | BK85: 80854.37025 | BL85: 30456.77604 | BO85: -544.69855 | BP85: 37.10028 | BQ85: 7450.99982 | BR85: 7126.58505 | BS85: 0 | BT85: 0 | BU85: 324.41477 | BV85: -705.40481 | BW85: 0 | BX85: 0 | BY85: 1029.81958 | BZ85: 12405.41274 | CA85: 3581.9003 | CC85: -2519.70565 | CD85: -7337.171 | CE85: -797.89412 | CF85: 80854.37025 | CG85: 71454.39186 | CH85: 5353.30457 | CI85: 4046.67382 | CJ85: 20.5 | CL85: 225 | CM85: 19300 | CO85: 1.2820668 | CP85: 60.96277132 | CQ85: -3645.073446 | CU85: 43.03365578 | CV85: 444.9255902 | CW85: 22.77102752 | CX85: 7131.774806 | CY85: 55426.86306 | CZ85: 17019.17132 | DA85: 126472.9789 | DB85: -109453.8076 | DC85: 86436.82849 | DD85: 33741.917 | DG85: -547.22769 | DH85: 71.99236 | DI85: 10249.7026 | DJ85: 7121.16679 | DK85: 0 | DL85: 0 | DM85: 3128.53581 | DN85: -673.29864 | DO85: 0 | DP85: 0 | DQ85: 3801.83445 | DR85: 16207.24719 | DS85: 7638.59945 | DU85: 1319.66592 | DV85: -7874.276 | DW85: -80.26165 | DX85: 86436.82849 | DY85: 75764.72649 | DZ85: 5966.55333 | EA85: 4705.54867 | EB85: 20.5 | ED85: 126 | EE85: 45304 | EF85: 53844.62868 | EG85: 55270.67473 | EK85: -8706 | EL85: 497 | EM85: 3683 | EN85: -9651.29144 | EO85: 877.16325 | EP85: 4394.33377 | EQ85: -10747.31607 | ER85: 32.19975 | ES85: 2996.25522 | ET85: 6500 | EU85: 0 | EV85: 11500 | EW85: 0 | EX85: 0 | EY85: 5500 | EZ85: 64822 | FA85: 57485 | FB85: 7337 | FC85: 0 | FD85: 68985.231 | FE85: 61110.955 | FF85: 7874.276 | FG85: 0 | FH85: 66610.955 | FI85: 54606.679 | FJ85: 12004.276 | FK85: 0 | FL85: 4413.226218 | FM85: 4692.199793 | FN85: 4722.82375 | FO85: 3695.840317 | FP85: 191.4943169 | FV85: 389.7781869
A86: 245 | B86: Kerava | C86: 37105 | E86: 1.899044869 | F86: 44.11749782 | G86: -2525.023582 | K86: 72.79919797 | L86: 124.4576203 | M86: 6.2763957 | N86: 7237.757715 | O86: 89030 | P86: 33534 | Q86: 220490 | R86: -186956 | S86: 162985 | T86: 40154 | W86: -168 | X86: 842 | Y86: 16857 | Z86: 16399 | AA86: 2733 | AB86: 0 | AC86: 3191 | AD86: 0 | AE86: 0 | AF86: 0 | AG86: 3191 | AH86: 104519 | AI86: 12664 | AK86: 969 | AL86: -8762 | AM86: -18449 | AN86: 162985 | AO86: 145530 | AP86: 7538 | AQ86: 9917 | AR86: 19.25 | AT86: 242.3970588 | AU86: 37232 | AW86: 0.9949150044 | AX86: 50.30326176 | AY86: -2961.730808 | BC86: 68.55958233 | BD86: 174.1656032 | BE86: 8.457390797 | BF86: 7516.555248 | BG86: 94959.36437 | BH86: 45439.59237 | BI86: 240325.0985 | BJ86: -194885.5061 | BK86: 168915.7706 | BL86: 35396.655 | BO86: -129.82355 | BP86: 1906.36872 | BQ86: 11203.46464 | BR86: 17180.98145 | BS86: 0 | BT86: 0 | BU86: -5977.51681 | BV86: 0 | BW86: 0 | BX86: 0 | BY86: -5977.51681 | BZ86: 98541.61284 | CA86: 6047.02316 | CC86: -2797.19185 | CD86: -11261.912 | CE86: -16431.02217 | CF86: 168915.7706 | CG86: 146768.0802 | CH86: 11011.04575 | CI86: 11136.64468 | CJ86: 19.25 | CL86: 254 | CM86: 37676 | CO86: 0.5064304921 | CP86: 50.52090307 | CQ86: -3209.339233 | CU86: 66.55572469 | CV86: 60.69447659 | CW86: 3.064575807 | CX86: 7228.890831 | CY86: 97711.25715 | CZ86: 40447.79077 | DA86: 255255.8838 | DB86: -214808.093 | DC86: 178922.2684 | DD86: 41015.643 | DG86: -351.07468 | DH86: 1390.30446 | DI86: 6169.04815 | DJ86: 18472.61389 | DK86: 0 | DL86: 0 | DM86: -12303.56574 | DN86: 0 | DO86: 0 | DP86: 0 | DQ86: -12303.56574 | DR86: 86238.0471 | DS86: 4925.08621 | DU86: 501.62432 | DV86: -12595.232 | DW86: -10347.40138 | DX86: 178922.2684 | DY86: 152216.973 | DZ86: 12704.07536 | EA86: 14001.22004 | EB86: 19.25 | ED86: 255 | EE86: 101606 | EF86: 116442.8742 | EG86: 128497.3588 | EK86: -39072 | EL86: 97 | EM86: 7862 | EN86: -27965.98509 | EO86: 54.92645 | EP86: 5433.01331 | EQ86: -16700.53405 | ER86: 172.52817 | ES86: 1255.51829 | ET86: 20000 | EU86: 5000 | EV86: 40000 | EW86: -8000 | EX86: 0 | EY86: 14000 | EZ86: 70006 | FA86: 45244 | FB86: 24762 | FC86: 5938 | FD86: 90744.078 | FE86: 71148.862 | FF86: 19595.216 | FG86: 5934.33884 | FH86: 92148.846 | FI86: 59625 | FJ86: 32523.846 | FK86: 5920.97286 | FL86: 5548.65921 | FM86: 6653.720601 | FN86: 6598.424287 | FO86: 7907.37522 | FP86: 209.8783103 | FV86: 300.9095574
A87: 249 | B87: Keuruu | C87: 9486 | E87: 2.984723369 | F87: 81.5233708 | G87: -6912.080961 | K87: 38.99255006 | L87: 199.1355682 | M87: 7.776994484 | N87: 9346.088973 | O87: 36171 | P87: 20789 | Q87: 80197 | R87: -59408 | S87: 35431 | T87: 31047 | W87: 8 | X87: 154 | Y87: 7232 | Z87: 4970 | AA87: 0 | AB87: 0 | AC87: 2262 | AD87: 0 | AE87: 0 | AF87: 0 | AG87: 2262 | AH87: 8194 | AI87: 7125 | AK87: 52 | AL87: -2425 | AM87: 1347 | AN87: 35431 | AO87: 30187 | AP87: 3056 | AQ87: 2188 | AR87: 21.5 | AT87: 99.35294118 | AU87: 9443 | AW87: 1.291312847 | AX87: 79.27825477 | AY87: -6813.216282 | BC87: 36.81836384 | BD87: 332.1392015 | BE87: 12.26287808 | BF87: 9885.99815 | BG87: 38602.39568 | BH87: 23318.9169 | BI87: 87587.15777 | BJ87: -64268.24087 | BK87: 37687.55377 | BL87: 29578.896 | BO87: 130.15041 | BP87: 87.96375 | BQ87: 3216.32306 | BR87: 4995.94506 | BS87: 0 | BT87: 0 | BU87: -1779.622 | BV87: 0 | BW87: 0 | BX87: 0 | BY87: -1779.622 | BZ87: 5733.72779 | CA87: 4139.399 | CC87: 18.634 | CD87: -2518.292 | CE87: 1300.463 | CF87: 37687.55377 | CG87: 30837.44918 | CH87: 4419.91684 | CI87: 2430.18775 | CJ87: 21.5 | CL87: 238 | CM87: 9250 | CO87: 0.3093682254 | CP87: 79.79702858 | CQ87: -6909.508028 | CU87: 35.83824639 | CV87: 300.5281081 | CW87: 11.00187668 | CX87: 9970.368026 | CY87: 38859.6792 | CZ87: 18916.10298 | DA87: 88906.6998 | DB87: -69990.59682 | DC87: 39354.03319 | DD87: 30953.927 | DG87: -188.60095 | DH87: 426.95668 | DI87: 555.7191 | DJ87: 5080.48595 | DK87: 0 | DL87: 0 | DM87: -4524.76685 | DN87: 0 | DO87: 0 | DP87: 0 | DQ87: -4524.76685 | DR87: 3678.30719 | DS87: 3750.672 | DU87: -126.306 | DV87: -2238.04 | DW87: 933.766 | DX87: 39354.03319 | DY87: 32379.58632 | DZ87: 4306.71198 | EA87: 2667.73489 | EB87: 21.75 | ED87: 269 | EE87: 33764 | EF87: 38119.21607 | EG87: 40406.91375 | EK87: -6021 | EL87: 0 | EM87: 243 | EN87: -3331.387 | EO87: 40.586 | EP87: 451.865 | EQ87: -3124.803 | ER87: 120 | ES87: 187.897 | ET87: 5000 | EU87: -3500 | EV87: 0 | EW87: 4000 | EX87: 0 | EY87: -500 | EZ87: 57758 | FA87: 17240 | FB87: 40518 | FC87: 0 | FD87: 59239.677 | FE87: 15001.637 | FF87: 44238.04 | FG87: 0 | FH87: 56501.637 | FI87: 12756.131 | FJ87: 43745.506 | FK87: 0 | FL87: 11664.66371 | FM87: 10713.70624 | FN87: 10527.45946 | FO87: 1488.716612 | FP87: 160.9423365 | FV87: 340.6039458
A88: 250 | B88: Kihniö | C88: 1822 | E88: 1.774966711 | F88: 61.10660722 | G88: -3705.817783 | K88: 48.94239797 | L88: 993.9626784 | M88: 34.80491786 | N88: 10423.71021 | O88: 2829 | P88: 1299 | Q88: 13518 | R88: -12219 | S88: 5860 | T88: 7643 | W88: -107 | X88: 47 | Y88: 1224 | Z88: 588 | AA88: 2115 | AB88: 0 | AC88: 2751 | AD88: 281 | AE88: 0 | AF88: 0 | AG88: 3032 | AH88: 1825 | AI88: 1193 | AK88: 78 | AL88: -642 | AM88: 3908 | AN88: 5860 | AO88: 4586 | AP88: 780 | AQ88: 494 | AR88: 21.5 | AT88: 147.7058824 | AU88: 1808 | AW88: 1.511504441 | AX88: 56.14245573 | AY88: -3361.418435 | BC88: 52.11396887 | BD88: 1115.949082 | BE88: 47.78939709 | BF88: 8523.259126 | BG88: 2982.22534 | BH88: 1494.09922 | BI88: 14131.93774 | BJ88: -12637.83852 | BK88: 6557.81363 | BL88: 7134.829 | BO88: -94.83955 | BP88: 58.09837 | BQ88: 1018.06293 | BR88: 397.29806 | BS88: 0 | BT88: 0 | BU88: 620.76487 | BV88: 0 | BW88: 0 | BX88: 0 | BY88: 620.76487 | BZ88: 2445.52026 | CA88: 1002.53226 | CC88: 50.68924 | CD88: -641.02605 | CE88: 606.52204 | CF88: 6557.81363 | CG88: 4861.23628 | CH88: 1151.69651 | CI88: 544.88084 | CJ88: 21.5 | CL88: 153 | CM88: 1771 | CO88: 0.794757077 | CP88: 51.69375437 | CQ88: -3167.952823 | CU88: 54.06323093 | CV88: 1029.101773 | CW88: 42.84025217 | CX88: 8767.972366 | CY88: 3060.1116 | CZ88: 1298.69 | DA88: 14739.05543 | DB88: -13440.36543 | DC88: 6712.32484 | DD88: 7258.606 | DG88: -92.13807 | DH88: 52.32316 | DI88: 490.7505 | DJ88: 410.95309 | DK88: 0 | DL88: 0 | DM88: 79.79741 | DN88: 0 | DO88: 0 | DP88: 0 | DQ88: 79.79741 | DR88: 2525.31767 | DS88: 686.87167 | DU88: -29.32725 | DV88: -641.50233 | DW88: 301.36909 | DX88: 6712.32484 | DY88: 5000.49425 | DZ88: 1153.82445 | EA88: 558.00614 | EB88: 21.5 | ED88: 225 | EE88: 9689 | EF88: 10106.72761 | EG88: 10448.77075 | EH88: 260 | EK88: -1497 | EL88: 13 | EM88: 4199 | EN88: -452.83872 | EO88: 34.8285 | EP88: 22 | EQ88: -695.75897 | ER88: 308.48939 | ES88: 1.767 | ET88: 500 | EU88: 0 | EV88: 0 | EW88: 0 | EX88: 0 | EY88: 0 | EZ88: 8006 | FA88: 7365 | FB88: 641 | FC88: 3122 | FD88: 7365.17341 | FE88: 6723.75371 | FF88: 641.4197 | FG88: 3057.6202 | FH88: 6723.67108 | FI88: 6085.034 | FJ88: 638.63708 | FK88: 2890.5202 | FL88: 5796.926454 | FM88: 5536.065393 | FN88: 5324.309221 | FO88: 232.5811279 | FP88: 131.3275708 | FV88: 563.0879038
A89: 256 | B89: Kinnula | C89: 1597 | F89: 52.32598811 | G89: -2635.566688 | K89: 60.33486992 | L89: 654.9780839 | M89: 25.08310886 | N89: 9530.995617 | O89: 3779 | P89: 1981 | Q89: 13606 | R89: -11625 | S89: 4961 | T89: 7353 | W89: 65 | X89: -237 | Y89: 517 | Z89: 894 | AA89: 0 | AB89: 0 | AC89: -377 | AD89: 13 | AE89: 0 | AF89: 0 | AG89: -364 | AH89: 3038 | AI89: 760 | AK89: 200 | AL89: 0 | AM89: -581 | AN89: 4961 | AO89: 3872 | AP89: 707 | AQ89: 382 | AR89: 21 | AT89: 270.6029412 | AU89: 1581 | AW89: 4.376194798 | AX89: 50.57490108 | AY89: -4358.777356 | BC89: 58.51318644 | BD89: 650.1442125 | BE89: 23.36558029 | BF89: 10156.08393 | BG89: 4015.038 | BH89: 2553.173 | BI89: 14471.341 | BJ89: -11844.29 | BK89: 5540.135 | BL89: 7564.864 | BO89: 49.753 | BP89: 19.897 | BQ89: 1330.337 | BR89: 851.272 | BS89: 0 | BT89: 0 | BU89: 479.065 | BV89: 0 | BW89: 0 | BX89: 0 | BY89: 491.544 | BZ89: 3385.179 | CA89: 1594.1087 | CC89: -962.83972 | CD89: -300 | CE89: 309.81944 | CF89: 5540.135 | CG89: 4056.088 | CH89: 1045.36 | CI89: 438.687 | CJ89: 21.5 | CL89: 51 | CM89: 1554 | CO89: 1.880994073 | CP89: 48.64894669 | CQ89: -2570.391506 | CU89: 59.09764544 | CV89: 151.2748842 | CW89: 5.404011813 | CX89: 10217.47077 | CY89: 4884.15619 | CZ89: 2703.75748 | DA89: 15424.95433 | DB89: -12721.19685 | DC89: 5433.04866 | DD89: 7812.481 | DG89: 23.16673 | DH89: 31.66884 | DI89: 579.16838 | DJ89: 897.65261 | DK89: 0 | DL89: 0 | DM89: -318.48423 | DN89: -12.66798 | DO89: 0.84546 | DP89: -0.18523 | DQ89: -306.47648 | DR89: 3078.70266 | DS89: 327.20379 | DU89: -583.34781 | DV89: -300 | DW89: -92.36575 | DX89: 5433.04866 | DY89: 3960.6005 | DZ89: 1015.26175 | EA89: 457.18641 | EB89: 21.5 | ED89: 189 | EE89: 8299 | EF89: 8773.599 | EG89: 8723.23775 | EI89: 250 | EK89: -1358 | EL89: 0 | EM89: 17 | EN89: -1279.3547 | EO89: 0 | EP89: -4.93456 | EQ89: -434.06954 | ER89: 0 | ES89: 14.5 | ET89: 2700 | EU89: -2700 | EV89: 0 | EW89: 0 | EX89: 0 | EY89: 0 | EZ89: 6000 | FA89: 2700 | FB89: 3300 | FC89: 0 | FD89: 5700 | FE89: 2400 | FF89: 3300 | FG89: 0 | FH89: 5400 | FI89: 2100 | FJ89: 3300 | FK89: 0 | FL89: 6947.401378 | FM89: 9335.200506 | FN89: 9265.516364 | FO89: 184.2139767 | FP89: 118.5418126 | FV89: 841.4528779
A90: 257 | B90: Kirkkonummi | C90: 40082 | E90: 1.249160134 | F90: 98.13878064 | G90: -5483.508807 | K90: 20.55355689 | L90: 740.7065516 | M90: 33.1329171 | N90: 8159.797415 | O90: 100874 | P90: 29664 | Q90: 247551 | R90: -217887 | S90: 202035 | T90: 42100 | W90: -1091 | X90: 453 | Y90: 25610 | Z90: 18303 | AA90: 54 | AB90: 0 | AC90: 7361 | AD90: 15 | AE90: 0 | AF90: 0 | AG90: 7376 | AH90: 9778 | AI90: 23284 | AK90: -5394 | AL90: -20270 | AM90: -29426 | AN90: 202035 | AO90: 185022 | AP90: 6124 | AQ90: 10889 | AR90: 19.75 | AT90: 163.8235294 | AU90: 40433 | AW90: 0.8735119113 | AX90: 102.1117368 | AY90: -5764.367254 | BC90: 19.04828883 | BD90: 1058.940551 | BE90: 48.07177208 | BF90: 8040.338109 | BG90: 105084.8654 | BH90: 43014.3879 | BI90: 262785.8888 | BJ90: -219771.5009 | BK90: 208118.0036 | BL90: 33382.933 | BO90: -940.7162 | BP90: 523.98632 | BQ90: 21312.7058 | BR90: 20929.21116 | BS90: 0 | BT90: 558.23364 | BU90: -174.739 | BV90: -14.27863 | BW90: 0 | BX90: 0 | BY90: -160.46037 | BZ90: 8545.81547 | CA90: 18059.94264 | CC90: 4587.56091 | CD90: -24544.15955 | CE90: -15453.88089 | CF90: 208118.0036 | CG90: 187976.6777 | CH90: 8241.47883 | CI90: 11899.84711 | CJ90: 19.75 | CL90: 167 | CM90: 40722 | CO90: 1.525590994 | CP90: 82.78132818 | CQ90: -4259.628862 | CU90: 23.48993441 | CV90: 1940.138863 | CW90: 94.35393052 | CX90: 7505.258986 | CY90: 107484.3622 | CZ90: 58469.88693 | DA90: 278697.289 | DB90: -220227.4021 | DC90: 223215.2527 | DD90: 35670.635 | DG90: -913.12144 | DH90: 513.22416 | DI90: 38258.58835 | DJ90: 25572.14992 | DK90: 0 | DL90: 0 | DM90: 12686.43843 | DN90: -13.35167 | DO90: 0 | DP90: 0 | DQ90: 12699.7901 | DR90: 21245.60557 | DS90: 20521.11964 | DU90: 4392.35092 | DV90: -24744.69634 | DW90: 60683.86324 | DX90: 223215.2527 | DY90: 201280.8199 | DZ90: 9196.51974 | EA90: 12737.91309 | EB90: 19.75 | ED90: 38 | EE90: 111465 | EF90: 127031.7858 | EG90: 138843.1934 | EI90: 2200 | EK90: -58072 | EL90: 2560 | EM90: 2802 | EN90: -36760.81718 | EO90: 218 | EP90: 3028.99365 | EQ90: -25830.01994 | ER90: 231.644 | ES90: 65761.11954 | ET90: 69999 | EU90: -6000 | EV90: 58000.02697 | EW90: -5000 | EX90: 0 | EY90: -9000.00002 | EZ90: 211576 | FA90: 151047 | FB90: 60529 | FC90: 699 | FD90: 240033.1885 | FE90: 184302.229 | FF90: 55730.9595 | FG90: 698.83026 | FH90: 206288.4922 | FI90: 161178.6041 | FJ90: 45109.88802 | FK90: 644.68388 | FL90: 7173.64403 | FM90: 8109.006684 | FN90: 7390.360283 | FO90: 10191.43392 | FP90: 250.2685015 | FV90: 527.1116613
A91: 260 | B91: Kitee | C91: 9933 | E91: 8.92578125 | F91: 11.37706536 | G91: 216.3495419 | K91: 80.70678885 | L91: 915.3327293 | M91: 40.93575764 | N91: 8161.481929 | O91: 16383 | P91: 8298 | Q91: 76648 | R91: -68350 | S91: 32672 | T91: 42127 | W91: -15 | X91: 394 | Y91: 6828 | Z91: 3763 | AA91: 0 | AB91: 0 | AC91: 3065 | AD91: 28 | AE91: 0 | AF91: 0 | AG91: 3093 | AH91: 23665 | AI91: 7019 | AK91: -305 | AL91: -741 | AM91: 3864 | AN91: 32672 | AO91: 27559 | AP91: 2464 | AQ91: 2649 | AR91: 21 | AT91: 140.6544118 | AU91: 9877 | AW91: 6.014143185 | AX91: 10.5781604 | AY91: 543.2072947 | BC91: 82.90041495 | BD91: 1241.271564 | BE91: 55.59992771 | BF91: 8148.645864 | BG91: 16703.27124 | BH91: 8510.46127 | BI91: 77593.50007 | BJ91: -69083.0388 | BK91: 33547.33914 | BL91: 41010.36551 | BO91: -13.07508 | BP91: 263.84367 | BQ91: 5725.43444 | BR91: 2912.30844 | BS91: 0 | BT91: 0 | BU91: 2813.126 | BV91: -28.41031 | BW91: 0 | BX91: 0 | BY91: 2841.53631 | BZ91: 26506.48621 | CA91: 5290.73168 | CC91: 619.32869 | CD91: -930.866 | CE91: 3226.49021 | CF91: 33547.33914 | CG91: 27055.06891 | CH91: 3621.36088 | CI91: 2870.90935 | CJ91: 20.75 | CL91: 145 | CM91: 9727 | CO91: 5.722203919 | CP91: 12.74018359 | CQ91: 738.6224602 | CU91: 80.19645973 | CV91: 1680.938439 | CW91: 69.92949162 | CX91: 8773.730741 | CY91: 17322.99361 | CZ91: 8969.01305 | DA91: 82395.39805 | DB91: -73426.385 | DC91: 34224.3587 | DD91: 43946.99026 | DG91: 8.18774 | DH91: 386.57354 | DI91: 5139.72524 | DJ91: 3349.59283 | DK91: 0 | DL91: 0 | DM91: 1790.13241 | DN91: -28.41031 | DO91: 0 | DP91: 0 | DQ91: 1818.54272 | DR91: 27410.51693 | DS91: 5215.29947 | DU91: -43.88443 | DV91: -880.866 | DW91: 2735.70826 | DX91: 34224.3587 | DY91: 27559.6574 | DZ91: 3741.21488 | EA91: 2923.48642 | EB91: 20.75 | ED91: 127 | EE91: 52889 | EF91: 54045.09051 | EG91: 58103.32588 | EK91: -3510 | EL91: 176 | EM91: 179 | EN91: -2150.15858 | EO91: 29.886 | EP91: 56.03111 | EQ91: -2910.27499 | ER91: 418.38378 | ES91: 12.3 | ET91: 1540 | EU91: 0 | EV91: 0 | EW91: 0 | EX91: 0 | EY91: 0 | EZ91: 4293 | FA91: 3362 | FB91: 931 | FC91: 108 | FD91: 3361.159 | FE91: 2480.293 | FF91: 880.866 | FG91: 108.33321 | FH91: 2480.293 | FI91: 1599.425 | FJ91: 880.868 | FK91: 108.33321 | FL91: 2109.735226 | FM91: 2080.835323 | FN91: 2268.192977 | FO91: 1328.17626 | FP91: 136.5453131 | FV91: 579.6734272
A92: 261 | B92: Kittilä | C92: 6436 | E92: 3.96339203 | F92: 32.4384339 | G92: -2574.891237 | K92: 65.93570774 | L92: 300.4972032 | M92: 10.9196238 | N92: 10044.43754 | O92: 26947 | P92: 8165 | Q92: 57982 | R92: -49817 | S92: 31340 | T92: 25369 | W92: -115 | X92: 1661 | Y92: 8438 | Z92: 4623 | AA92: 0 | AB92: 0 | AC92: 3815 | AD92: -1359 | AE92: 1550 | AF92: 0 | AG92: 4006 | AH92: 22687 | AI92: 7817 | AK92: -513 | AL92: -2043 | AM92: 4391 | AN92: 31340 | AO92: 22001 | AP92: 2733 | AQ92: 6606 | AR92: 20.25 | AT92: 5 | AU92: 6523 | AW92: 5.677696322 | AX92: 23.90913742 | AY92: -1281.506738 | BC92: 74.07170553 | BD92: 766.6038679 | BE92: 26.43944842 | BF92: 10583.0654 | BG92: 29423.73311 | BH92: 16825.05897 | BI92: 62248.8183 | BJ92: -45423.75933 | BK92: 32036.93026 | BL92: 23810.343 | BO92: -39.8441 | BP92: 1403.21733 | BQ92: 11786.88716 | BR92: 2941.29679 | BS92: 0 | BT92: 0 | BU92: 8845.59037 | BV92: 790.23403 | BW92: 1900 | BX92: 0 | BY92: 6155.35634 | BZ92: 28842.96241 | CA92: 5227.33039 | CC92: -1437.79617 | CD92: -2043.10062 | CE92: 7995.95239 | CF92: 32036.93026 | CG92: 21138.75068 | CH92: 3553.67823 | CI92: 7344.50135 | CJ92: 20.25 | CL92: 2 | CM92: 6637 | CO92: 5.713912787 | CP92: 22.4050475 | CQ92: -228.692361 | CU92: 78.03664482 | CV92: 1616.30575 | CW92: 56.69188689 | CX92: 10406.27912 | CY92: 30465.34174 | CZ92: 11247.41612 | DA92: 63628.03292 | DB92: -52380.6168 | DC92: 35455.12821 | DD92: 25733.194 | DG92: -58.30052 | DH92: 3260.12133 | DI92: 12009.52622 | DJ92: 3263.37146 | DK92: 0 | DL92: 0 | DM92: 8746.15476 | DN92: 585.78595 | DO92: 1500 | DP92: 0 | DQ92: 6660.36881 | DR92: 35503.33122 | DS92: 11050.00638 | DU92: 103.51193 | DV92: -2048.66831 | DW92: 6821.96808 | DX92: 35455.12821 | DY92: 22421.21574 | DZ92: 5480.83901 | EA92: 7553.07346 | EB92: 20.25 | ED92: 4 | EE92: 23197 | EF92: 24020.39916 | EG92: 23481.31269 | EK92: -4081 | EL92: 25 | EM92: 630 | EN92: -4711.50888 | EO92: 896.84911 | EP92: 6583.28177 | EQ92: -5429.06294 | ER92: 37.7208 | ES92: 1163.30384 | ET92: 2 | EU92: -1845 | EV92: 1.68361 | EW92: -2000 | EX92: 0.72944 | EY92: 0 | EZ92: 12734 | FA92: 8691 | FB92: 4043 | FC92: 601 | FD92: 8693.45298 | FE92: 6649.63767 | FF92: 2043.81531 | FG92: 404.36514 | FH92: 6645.51411 | FI92: 4589.9178 | FJ92: 2055.59631 | FK92: 471.81514 | FL92: 8125.077688 | FM92: 7367.009045 | FN92: 6981.180711 | FO92: 1107.22053 | FP92: 166.8254528 | FV92: 1806.97335
A93: 263 | B93: Kiuruvesi | C93: 7854 | E93: 2.851781653 | F93: 53.19666538 | G93: -3235.421441 | K93: 45.15255571 | L93: 1013.623631 | M93: 42.96943393 | N93: 8610.134963 | O93: 14692 | P93: 7897 | Q93: 60868 | R93: -52971 | S93: 24546 | T93: 35054 | W93: -151 | X93: 875 | Y93: 7353 | Z93: 3945 | AA93: 0 | AB93: 0 | AC93: 3408 | AD93: 2 | AE93: 0 | AF93: 0 | AG93: 3410 | AH93: 8 | AI93: 6608 | AK93: 105 | AL93: -2468 | AM93: 3772 | AN93: 24546 | AO93: 20758 | AP93: 2225 | AQ93: 1563 | AR93: 21.75 | AT93: 49.99264706 | AU93: 7759 | AW93: 3.343440979 | AX93: 54.73083348 | AY93: -3231.191241 | BC93: 45.556518 | BD93: 1089.468675 | BE93: 46.02958667 | BF93: 8639.1405 | BG93: 15231.72783 | BH93: 7159.08527 | BI93: 60607.36074 | BJ93: -53448.27547 | BK93: 26495.37138 | BL93: 33036.167 | BO93: -106.97361 | BP93: 1223.66469 | BQ93: 7199.95399 | BR93: 3695.90198 | BS93: 0 | BT93: 2744.17803 | BU93: 759.87398 | BV93: 294.5153 | BW93: -300 | BX93: 0 | BY93: 765.35868 | BZ93: 773.2319 | CA93: 4163.05093 | CC93: -452.26522 | CD93: -2069.916 | CE93: 272.50561 | CF93: 26495.37138 | CG93: 21490.7421 | CH93: 3295.17665 | CI93: 1709.45263 | CJ93: 21.75 | CL93: 34 | CM93: 7597 | CO93: 1.700796787 | CP93: 47.93887351 | CQ93: -2865.309223 | CU93: 49.5110017 | CV93: 1204.159701 | CW93: 49.57675747 | CX93: 8865.410191 | CY93: 15645.77805 | CZ93: 7849.82773 | DA93: 63637.00051 | DB93: -55787.17278 | DC93: 26665.57037 | DD93: 34327.383 | DG93: -178.40003 | DH93: 932.34925 | DI93: 5959.72981 | DJ93: 4125.82558 | DK93: 0 | DL93: 0 | DM93: 1833.90423 | DN93: -17.189 | DO93: 900 | DP93: 0 | DQ93: 951.09323 | DR93: 1724.32513 | DS93: 5681.37129 | DU93: 874.43509 | DV93: -3427.47574 | DW93: 3311.25392 | DX93: 26665.57037 | DY93: 21701.34632 | DZ93: 3208.45727 | EA93: 1755.76678 | EB93: 21.75 | ED93: 53 | EE93: 39819 | EF93: 40272.76399 | EG93: 42397.59664 | EH93: 900 | EK93: -3984 | EL93: 280 | EM93: 868 | EN93: -4170.02552 | EO93: 250.85117 | EP93: 28.62903 | EQ93: -3168.97632 | ER93: 239.55724 | ES93: 559.30171 | ET93: 240 | EU93: 1000 | EV93: 2951.55974 | EW93: 0 | EX93: 0 | EY93: -500 | EZ93: 31747 | FA93: 13677 | FB93: 18070 | FC93: 604 | FD93: 32628.35474 | FE93: 13866.48454 | FF93: 18761.8702 | FG93: 356.09591 | FH93: 28700.879 | FI93: 11197.963 | FJ93: 17502.916 | FK93: 345.20566 | FL93: 7096.384008 | FM93: 7053.011825 | FN93: 7094.394053 | FO93: 997.7630492 | FP93: 131.3364551 | FV93: 927.9487034
A94: 265 | B94: Kivijärvi | C94: 1107 | E94: 3.4575 | F94: 55.56185616 | G94: -3246.612466 | K94: 48.04469274 | L94: 1540.198735 | M94: 61.70798215 | N94: 9110.207769 | O94: 1916 | P94: 1559 | Q94: 9195 | R94: -7636 | S94: 3894 | T94: 5128 | W94: -35 | X94: -3 | Y94: 1348 | Z94: 699 | AA94: 0 | AB94: 0 | AC94: 649 | AD94: 20 | AE94: 0 | AF94: 0 | AG94: 670 | AH94: 1513 | AI94: -402 | AK94: 21 | AL94: -365 | AM94: -604 | AN94: 3894 | AO94: 2680 | AP94: 753 | AQ94: 461 | AR94: 21.75 | AT94: 9 | AU94: 1088 | AW94: 2.748616106 | AX94: 47.21674752 | AY94: -2608.091158 | BC94: 54.67796155 | BD94: 1623.557142 | BE94: 58.1804179 | BF94: 10185.52939 | BG94: 2025.16659 | BH94: 1467.10466 | BI94: 9396.73452 | BJ94: -7929.62986 | BK94: 4499.57778 | BL94: 5142.438 | BO94: -33.10703 | BP94: 12.05039 | BQ94: 1691.32928 | BR94: 557.34881 | BS94: 0 | BT94: 0 | BU94: 1133.98047 | BV94: -20.34665 | BW94: 0 | BX94: 0 | BY94: 1154.32712 | BZ94: 2613.52922 | CA94: 1772.7623 | CC94: -62.34629 | CD94: -594.27644 | CE94: 806.89678 | CF94: 4499.57778 | CG94: 2900.16613 | CH94: 1087.82313 | CI94: 511.58852 | CJ94: 21.75 | CL94: 5 | CM94: 1064 | CO94: 4.341534373 | CP94: 43.54025358 | CQ94: -1009.504962 | CU94: 61.77416019 | CV94: 3185.612406 | CW94: 130.5861713 | CX94: 8904.070902 | CY94: 2047.77276 | CZ94: 1375.44098 | DA94: 9321.64793 | DB94: -7946.20695 | DC94: 4480.17592 | DD94: 5427.737 | DG94: -33.8196 | DH94: 16.96395 | DI94: 1944.85032 | DJ94: 526.09711 | DK94: 0 | DL94: 0 | DM94: 1418.75321 | DN94: -20.34665 | DO94: 0 | DP94: 0 | DQ94: 1439.09986 | DR94: 4106.28374 | DS94: 1804.48864 | DU94: 192.13598 | DV94: -421.934 | DW94: 1686.67108 | DX94: 4480.17592 | DY94: 2916.27703 | DZ94: 1029.04387 | EA94: 534.85502 | EB94: 21.75 | ED94: 3 | EE94: 6256 | EF94: 6394.38996 | EG94: 6310.49894 | EK94: -442 | EL94: 197 | EM94: 43 | EN94: -1066.63052 | EO94: 0 | EP94: 100.765 | EQ94: -117.81756 | ER94: 0 | ES94: 0 | ET94: 1708 | EU94: 0 | EV94: 0 | EW94: 13.4333 | EX94: 0 | EY94: -12.40008 | EZ94: 5285 | FA94: 4863 | FB94: 422 | FC94: 402 | FD94: 4704.7353 | FE94: 4269.368 | FF94: 435.3673 | FG94: 0 | FH94: 4270.40122 | FI94: 3944.684 | FJ94: 325.71722 | FK94: 401.86735 | FL94: 10299.00632 | FM94: 9878.111195 | FN94: 9571.981776 | FO94: 134.0817025 | FP94: 126.0166377 | FV94: 1554.530588
A95: 271 | B95: Kokemäki | C95: 7013 | E95: 1.266622633 | F95: 58.85791282 | G95: -3819.050335 | K95: 31.86108291 | L95: 343.6475118 | M95: 15.16089002 | N95: 8273.349494 | O95: 17014 | P95: 4776 | Q95: 47159 | R95: -42383 | S95: 26590 | T95: 21327 | W95: 5 | X95: 100 | Y95: 5639 | Z95: 2300 | AA95: 0 | AB95: 0 | AC95: 3339 | AD95: 0 | AE95: 0 | AF95: 0 | AG95: 3339 | AH95: 2595 | AI95: 5579 | AK95: -171 | AL95: -4428 | AM95: 864 | AN95: 26590 | AO95: 22895 | AP95: 1302 | AQ95: 2393 | AR95: 21.75 | AT95: 84.24264706 | AU95: 6951 | AW95: 1.209486534 | AX95: 60.19862913 | AY95: -3922.478035 | BC95: 33.64950219 | BD95: 267.6702259 | BE95: 11.77070483 | BF95: 8300.236379 | BG95: 13040.3131 | BH95: 4827.45556 | BI95: 48704.298 | BJ95: -43876.84244 | BK95: 27517.39901 | BL95: 19620.997 | BO95: 11.62396 | BP95: 114.48534 | BQ95: 3387.66287 | BR95: 2134.62731 | BS95: 172.5364 | BT95: 0 | BU95: 1425.57196 | BV95: 0 | BW95: 0 | BX95: 0 | BY95: 1425.57196 | BZ95: 4019.98934 | CA95: 3578.75849 | CC95: 276.74432 | CD95: -2790.87548 | CE95: -350.48712 | CF95: 27517.39901 | CG95: 22988.47568 | CH95: 1893.88089 | CI95: 2635.04244 | CJ95: 21.75 | CL95: 191 | CM95: 6903 | CO95: 0.7668917361 | CP95: 51.63886705 | CQ95: -3431.061157 | CU95: 37.06912775 | CV95: 272.2343749 | CW95: 12.97941107 | CX95: 7655.628311 | CY95: 13291.22309 | CZ95: 4685.24823 | DA95: 51414.42927 | DB95: -46729.18104 | DC95: 28010.27893 | DD95: 21036.757 | DG95: -81.98109 | DH95: 177.79788 | DI95: 2413.67168 | DJ95: 1862.42884 | DK95: 0 | DL95: 0 | DM95: 551.24284 | DN95: 0 | DO95: 0 | DP95: 0 | DQ95: 551.24284 | DR95: 4574.43744 | DS95: 2325.26447 | DU95: -85.60987 | DV95: -3175.49048 | DW95: 1324.43472 | DX95: 28010.27893 | DY95: 23221.50872 | DZ95: 2055.75684 | EA95: 2733.01337 | EB95: 21.75 | ED95: 200 | EE95: 24880 | EF95: 32573.06983 | EG95: 34830.2848 | EH95: 700 | EK95: -4801 | EL95: 8 | EM95: 78 | EN95: -3991.01561 | EO95: 41.25 | EP95: 20.52 | EQ95: -1316.31875 | ER95: 207.71873 | ES95: 107.77027 | ET95: 10458 | EU95: -5000 | EV95: 5000 | EW95: 0 | EX95: 0 | EY95: -1000 | EZ95: 23867 | FA95: 16077 | FB95: 7790 | FC95: 3654 | FD95: 26078.07909 | FE95: 17902.5886 | FF95: 8175.49049 | FG95: 3861.77701 | FH95: 21902.58861 | FI95: 14582.47812 | FJ95: 7320.11049 | FK95: 1647.54156 | FL95: 5097.39056 | FM95: 5663.045334 | FN95: 5025.735501 | FO95: 1067.655573 | FP95: 154.6654459 | FV95: 487.3633822
A96: 272 | B96: Kokkola | C96: 47772 | E96: 0.74231542 | F96: 78.62331167 | G96: -4741.815289 | K96: 42.72433852 | L96: 912.3963828 | M96: 40.58193547 | N96: 8206.229591 | O96: 99442 | P96: 43100 | Q96: 324628 | R96: -281528 | S96: 201924 | T96: 109533 | W96: -2247 | X96: 2097 | Y96: 29779 | Z96: 17459 | AA96: 0 | AB96: 0 | AC96: 12320 | AD96: -1677 | AE96: 2180 | AF96: -486 | AG96: 12337 | AH96: 24055 | AI96: 28509 | AK96: 1499 | AL96: -40937 | AM96: 12872 | AN96: 201924 | AO96: 168285 | AP96: 19140 | AQ96: 14499 | AR96: 21.5 | AT96: 174.9044118 | AU96: 47909 | AW96: 0.4982803316 | AX96: 71.62084074 | AY96: -4919.05979 | BC96: 45.25415905 | BD96: 260.6268158 | BE96: 10.8809141 | BF96: 8742.720225 | BG96: 103605.9287 | BH96: 46264.92178 | BI96: 339800.2964 | BJ96: -293535.3746 | BK96: 212247.4538 | BL96: 102593.67 | BO96: -2323.85075 | BP96: 1756.22092 | BQ96: 20738.11934 | BR96: 14609.26824 | BS96: 211.98989 | BT96: 0 | BU96: 6340.84099 | BV96: -384.11346 | BW96: 294.00469 | BX96: 750 | BY96: 5680.94976 | BZ96: 29735.73188 | CA96: 19122.41183 | CC96: -1970.38501 | CD96: -44065.92417 | CE96: -9689.23147 | CF96: 212247.4538 | CG96: 171521.7774 | CH96: 24651.21634 | CI96: 16074.46003 | CJ96: 21.5 | CL96: 212 | CM96: 48006 | CO96: 0.6403646646 | CP96: 71.82189503 | CQ96: -4745.100779 | CU96: 45.06785302 | CV96: 664.5845517 | CW96: 30.85051368 | CX96: 7862.862963 | CY96: 105360.0356 | CZ96: 47208.03054 | DA96: 357331.0378 | DB96: -310123.0073 | DC96: 221336.3165 | DD96: 109212.431 | DG96: -2380.69045 | DH96: 6277.11353 | DI96: 24322.16333 | DJ96: 15517.83949 | DK96: 0 | DL96: 0 | DM96: 8804.32384 | DN96: -380.86068 | DO96: 180.83002 | DP96: 550 | DQ96: 8454.3545 | DR96: 38190.08638 | DS96: 17307.72032 | DU96: -1069.85987 | DV96: -39390.34932 | DW96: 7225.44991 | DX96: 221336.3165 | DY96: 179333.6362 | DZ96: 25974.12596 | EA96: 16028.55439 | EB96: 21.5 | ED96: 141 | EE96: 193630 | EF96: 202009.9077 | EG96: 215894.283 | EK96: -18814 | EL96: 1128 | EM96: 2049 | EN96: -32271.92075 | EO96: 1288.92145 | EP96: 2171.356 | EQ96: -19352.02458 | ER96: 572.35505 | ES96: 8697.39912 | ET96: 43500 | EU96: 20860 | EV96: 53200 | EW96: -27329.22721 | EX96: 41000 | EY96: 5904.82306 | EZ96: 246315 | FA96: 187552 | FB96: 58763 | FC96: 9255 | FD96: 228118.8554 | FE96: 196686.3355 | FF96: 31432.51992 | FG96: 377.43827 | FH96: 235633.3291 | FI96: 200342.9798 | FJ96: 35290.34932 | FK96: 8244.44534 | FL96: 9506.070502 | FM96: 9335.720861 | FN96: 9383.375802 | FO96: 8341.099357 | FP96: 173.7511844 | FV96: 432.8647924
B97: KOKO MAA (Manner-Suomi) | C97: 5503664 | E97: 1.988638614 | F97: 59.95643965 | G97: -2940.769277 | K97: 57.95873446 | L97: 1172.770903 | M97: 52.56590898 | N97: 8143.326882 | O97: 13613209 | P97: 7208017 | Q97: 38429297 | R97: -31221280 | S97: 23825588 | T97: 11005673 | W97: 58142 | X97: 404863 | Y97: 4072986 | Z97: 2397525 | AA97: 90574 | AB97: 9330 | AC97: 1756705 | AD97: -25237 | AE97: -96451 | AF97: -61014 | AG97: 1576021 | AH97: 12583318 | AI97: 3702496 | AK97: -31312 | AL97: -1966295 | AM97: 381794 | AN97: 23825588 | AO97: 20124065 | AP97: 1956930 | AQ97: 1744593 | AR97: 19.96 | AT97: - | AU97: 5517897 | AW97: 1.905734999 | AX97: 57.90254182 | AY97: -2907 | BC97: 58.80761313 | BD97: 1178.883979 | BE97: 50.68698657 | BF97: 8486.333805 | BG97: 14320379.82 | BH97: 8352897.496 | BI97: 40635574.5 | BJ97: -32282677 | BK97: 25418413.49 | BL97: 10080583.07 | BO97: 61205.48762 | BP97: 508931.8689 | BQ97: 3786456.894 | BR97: 2411475 | BS97: 115628.7626 | BT97: 7179 | BU97: 1485638.647 | BV97: -6079.26439 | BW97: 105119.8924 | BX97: 1264.72718 | BY97: 1380876.484 | BZ97: 13856797.71 | CA97: 3134186.075 | CC97: -239226.9649 | CD97: -1902425.344 | CE97: 269580.3414 | CF97: 25418413.49 | CG97: 20602525.19 | CH97: 2847097.601 | CI97: 1968747.837 | CJ97: 20.02 | CL97: - | CM97: 5533611 | CO97: 1.668078571 | CP97: 56.47304605 | CQ97: -2859.028517 | CU97: 59.21187405 | CV97: 1258.848759 | CW97: 47.76047067 | CX97: 9620.503957 | CY97: 14495048.7 | CZ97: 8097114.652 | DA97: 42494269.49 | DB97: -34397117.31 | DC97: 26769380.3 | DD97: 10735652.4 | DG97: 56341.38239 | DH97: 277755.6525 | DI97: 3442012.418 | DJ97: 2450985.914 | DK97: 179141.9177 | DL97: 9724.21252 | DM97: 1160444.209 | DN97: -18668.6311 | DO97: 53321.22231 | DP97: 12695.65004 | DQ97: 1113096.152 | DR97: 14924279.64 | DS97: 2670899.749 | DU97: -173632.6229 | DV97: -1995341.173 | DW97: 638944.3797 | DX97: 26769380.3 | DY97: 21642788.67 | DZ97: 3031676.025 | EA97: 2092036.299 | EB97: 20.01 | ED97: - | EE97: 19605831 | EF97: 21370725.51 | EG97: 22918214.47 | EH97: 60000 | EI97: 30000 | EJ97: 10000 | EK97: -4312042 | EL97: 185133 | EM97: 806207 | EN97: -3972968.4 | EO97: 153160.4398 | EP97: 951513.8182 | EQ97: -4230364.469 | ER97: 125087.4827 | ES97: 2016546.833 | ET97: 3338105 | EU97: -762131 | EV97: 1567080.941 | EW97: 454923.1036 | EX97: 1771833.939 | EY97: -213185.805 | EZ97: 19033385 | FA97: 13927122 | FB97: 5106263 | FC97: 5670611 | FD97: 19123709 | FE97: 13571947 | FF97: 5551762 | FG97: 5036550.609 | FH97: 18692992.34 | FI97: 13418146.49 | FJ97: 5274845.85 | FK97: 6278443.869 | FL97: 7480.922891 | FM97: 7679.757319 | FN97: 7867.961626 | FO97: 1081598.634 | FP97: 195.4598244 | FV97: 686.2137685
A98: 273 | B98: Kolari | C98: 3925 | E98: 3.723287671 | F98: 24.53920912 | G98: -487.8980892 | K98: 71.74675386 | L98: 1375.796178 | M98: 55.46644154 | N98: 9053.503185 | O98: 15782 | P98: 4130 | Q98: 33179 | R98: -29049 | S98: 15114 | T98: 16635 | W98: -48 | X98: 17 | Y98: 2669 | Z98: 1605 | AA98: 0 | AB98: 0 | AC98: 1064 | AD98: 14 | AE98: 0 | AF98: 0 | AG98: 1079 | AH98: 15612 | AI98: 2639 | AK98: -81 | AL98: -681 | AM98: 1684 | AN98: 15114 | AO98: 10750 | AP98: 943 | AQ98: 3421 | AR98: 20 | AT98: 144.6838235 | AU98: 3989 | AW98: -5.17117991 | AX98: 20.90708669 | AY98: 74.70676611 | BC98: 73.00726669 | BD98: 1579.782427 | BE98: 61.12191843 | BF98: 9433.941221 | BG98: 17388.33612 | BH98: 5952.54669 | BI98: 36338.24522 | BJ98: -30385.69853 | BK98: 16552.99324 | BL98: 16136.48127 | BO98: -39.72533 | BP98: -7.69748 | BQ98: 2256.35317 | BR98: 1590.43984 | BS98: 0 | BT98: 0 | BU98: 665.91333 | BV98: -14.34943 | BW98: 0 | BX98: 0 | BY98: 680.26276 | BZ98: 16610.22321 | CA98: 1896.96168 | CC98: -374.65409 | CD98: 485.052 | CE98: 5394.82113 | CF98: 16552.99324 | CG98: 11362.13139 | CH98: 1444.3515 | CI98: 3746.51035 | CJ98: 20 | CL98: 149 | CM98: 3999 | CO98: 11.10367272 | CP98: 20.70363643 | CQ98: 681.6104776 | CU98: 74.81882256 | CV98: 2213.606862 | CW98: 81.84798761 | CX98: 9871.55003 | CY98: 16981.58664 | CZ98: 5709.71815 | DA98: 37315.86148 | DB98: -31606.14333 | DC98: 17818.84712 | DD98: 17514.37904 | DG98: -38.89427 | DH98: 414.34669 | DI98: 4102.53525 | DJ98: 2343.68157 | DK98: 0 | DL98: 0 | DM98: 1758.85368 | DN98: -14.34943 | DO98: 0 | DP98: 0 | DQ98: 1773.20311 | DR98: 18578.64732 | DS98: 3698.46121 | DU98: -300.21141 | DV98: -335.052 | DW98: 2929.63834 | DX98: 17818.84712 | DY98: 12384.58798 | DZ98: 1442.25559 | EA98: 3992.00355 | EB98: 20.5 | ED98: 28 | EE98: 13330 | EF98: 14578.64288 | EG98: 16000.08367 | EK98: -1075 | EL98: 50 | EM98: 70 | EN98: -1844.20305 | EO98: 441.0664 | EP98: 1212.59 | EQ98: -1781.14839 | ER98: 139.24568 | ES98: 873.07984 | ET98: 0 | EU98: 0 | EV98: 0 | EW98: 0 | EX98: 0 | EY98: 0 | EZ98: 4510 | FA98: 4025 | FB98: 485 | FC98: 718 | FD98: 3689.747 | FE98: 3689.747 | FF98: 0 | FG98: 759.14095 | FH98: 3689.747 | FI98: 3504.695 | FJ98: 185.052 | FK98: 896.16342 | FL98: 3665.477707 | FM98: 3901.27358 | FN98: 4887.584994 | FO98: 604.1262429 | FP98: 151.0693281 | FV98: 565.643813
A99: 275 | B99: Konnevesi | C99: 2593 | E99: 1.029691211 | F99: 120.1156868 | G99: -9559.969148 | K99: 19.44195978 | L99: 634.4003085 | M99: 25.51417159 | N99: 9075.588122 | O99: 8858 | P99: 3970 | Q99: 20532 | R99: -16562 | S99: 8704 | T99: 10492 | W99: -172 | X99: -52 | Y99: 2410 | Z99: 1169 | AA99: 0 | AB99: 0 | AC99: 1241 | AD99: 0 | AE99: 0 | AF99: 0 | AG99: 1241 | AH99: -1707 | AI99: -1214 | AK99: -680 | AL99: -2335 | AM99: -1367 | AN99: 8704 | AO99: 7034 | AP99: 940 | AQ99: 730 | AR99: 22 | AT99: 56.03676471 | AU99: 2586 | AW99: 1.453533036 | AX99: 109.1561131 | AY99: -8705.973619 | BC99: 25.46904763 | BD99: 579.2890178 | BE99: 21.92776685 | BF99: 9642.591191 | BG99: 9086.82812 | BH99: 3433.22683 | BI99: 21128.83051 | BJ99: -17695.60368 | BK99: 9503.53318 | BL99: 10439.146 | BO99: -145.73889 | BP99: 1147.79239 | BQ99: 3249.129 | BR99: 1113.79381 | BS99: 0 | BT99: 0 | BU99: 2135.33519 | BV99: 0 | BW99: 0 | BX99: 50 | BY99: 2085.33519 | BZ99: 378.35148 | CA99: 3605.25419 | CC99: -111.14379 | CD99: -2184.313 | CE99: 2248.76453 | CF99: 9503.53318 | CG99: 7373.60335 | CH99: 1326.26308 | CI99: 803.66675 | CJ99: 22 | CL99: 11 | CM99: 2521 | CO99: 0.6670232048 | CP99: 102.5986093 | CQ99: -8927.127906 | CU99: 27.45755044 | CV99: 168.187735 | CW99: 6.471537956 | CX99: 9485.924939 | CY99: 9067.5661 | CZ99: 3274.25641 | DA99: 22133.47391 | DB99: -18859.2175 | DC99: 9979.26371 | DD99: 10338.039 | DG99: -163.45004 | DH99: -6.44208 | DI99: 1288.19309 | DJ99: 975.78077 | DK99: 0 | DL99: 0 | DM99: 312.41232 | DN99: 0 | DO99: 0 | DP99: 4.69 | DQ99: 307.72232 | DR99: 686.0738 | DS99: 1220.0304 | DU99: 242.29139 | DV99: -2025.35821 | DW99: -17.7159 | DX99: 9979.26371 | DY99: 7842.23954 | DZ99: 1276.90851 | EA99: 860.11566 | EB99: 22 | ED99: 136 | EE99: 9800 | EF99: 9915.96957 | EG99: 11291.64303 | EH99: 360 | EI99: 480 | EK99: -214 | EL99: 3 | EM99: 58 | EN99: -1425.89301 | EO99: 47.40335 | EP99: 22 | EQ99: -1271.23347 | ER99: 31.34717 | ES99: 2.14 | ET99: 3548 | EU99: 1861 | EV99: 0 | EW99: -318.86982 | EX99: 0 | EY99: -23.615 | EZ99: 24949 | FA99: 20196 | FB99: 4753 | FC99: 711 | FD99: 22446.09521 | FE99: 18011.78221 | FF99: 4434.313 | FG99: 711.28843 | FH99: 20397.122 | FI99: 15986.424 | FJ99: 4410.698 | FK99: 648.28843 | FL99: 12655.99691 | FM99: 11734.43276 | FN99: 11454.18916 | FO99: 356.4654336 | FP99: 141.3984267 | FV99: 1256.430394
A100: 276 | B100: Kontiolahti | C100: 14857 | E100: 1.501697678 | F100: 53.74448407 | G100: -2368.042 | K100: 45.38768952 | L100: 835.6330349 | M100: 45.35647796 | N100: 6724.641583 | O100: 24293 | P100: 10610 | Q100: 83772 | R100: -73162 | S100: 54019 | T100: 29870 | W100: -414 | X100: 324 | Y100: 10637 | Z100: 4731 | AA100: 0 | AB100: 0 | AC100: 5906 | AD100: 80 | AE100: -4500 | AF100: 0 | AG100: 1486 | AH100: 17366 | AI100: 11500 | AK100: -30 | AL100: -6943 | AM100: 3239 | AN100: 54019 | AO100: 49067 | AP100: 2340 | AQ100: 2612 | AR100: 20.5 | AT100: 126.5514706 | AU100: 15035 | AW100: 0.9360109168 | AX100: 62.49370817 | AY100: -3153.788758 | BC100: 42.08514382 | BD100: 606.8883472 | BE100: 28.93963267 | BF100: 7654.355852 | BG100: 25723.51354 | BH100: 11484.82526 | BI100: 88229.1762 | BJ100: -76744.35094 | BK100: 57005.30651 | BL100: 26448.087 | BO100: -377.44681 | BP100: 269.44193 | BQ100: 6601.03769 | BR100: 5987.87229 | BS100: 0 | BT100: 0 | BU100: 613.1654 | BV100: 4314.85284 | BW100: -4000 | BX100: 0 | BY100: 298.31256 | BZ100: 17664.85929 | CA100: 5627.6884 | CC100: 403.07897 | CD100: -7078.12539 | CE100: -12476.10982 | CF100: 57005.30651 | CG100: 50758.76233 | CH100: 3293.77043 | CI100: 2952.77375 | CJ100: 20.5 | CL100: 209 | CM100: 15157 | CO100: 0.7257192697 | CP100: 73.25526585 | CQ100: -3798.998601 | CU100: 36.55323959 | CV100: 858.1709995 | CW100: 42.68888126 | CX100: 7337.564387 | CY100: 26833.74038 | CZ100: 10919.57332 | DA100: 94633.07328 | DB100: -83713.49996 | DC100: 61635.17448 | DD100: 28059.151 | DG100: -589.55818 | DH100: 314.97041 | DI100: 5706.23775 | DJ100: 5689.84937 | DK100: 0 | DL100: 0 | DM100: 16.38838 | DN100: -305.48969 | DO100: 0 | DP100: 0 | DQ100: 321.87807 | DR100: 17156.36836 | DS100: 5237.80632 | DU100: -327.6263 | DV100: -8112.73152 | DW100: -9677.26222 | DX100: 61635.17448 | DY100: 54493.45939 | DZ100: 4007.69594 | EA100: 3134.01915 | EB100: 20.5 | ED100: 188 | EE100: 49525 | EF100: 52388.86571 | EG100: 58447.94044 | EK100: -8773 | EL100: 0 | EM100: 512 | EN100: -19393.97746 | EO100: 71 | EP100: 1219.17924 | EQ100: -15917.51671 | ER100: 250.43612 | ES100: 752.01205 | ET100: 10000 | EU100: 795 | EV100: 20000 | EW100: -5088.48411 | EX100: 20000 | EY100: -846.49722 | EZ100: 43674 | FA100: 30570 | FB100: 13104 | FC100: 45 | FD100: 51506.84135 | FE100: 42790.49948 | FF100: 8716.34187 | FG100: 44.57646 | FH100: 62547.61261 | FI100: 54214.53899 | FJ100: 8333.07362 | FK100: 44.57646 | FL100: 4809.786633 | FM100: 5559.832677 | FN100: 6401.111031 | FO100: 2658.217531 | FP100: 175.3788699 | FV100: 439.0447416
A101: 280 | B101: Korsnäs | C101: 2068 | E101: 27.27777778 | F101: 31.26297789 | G101: -1831.72147 | K101: 61.14003471 | L101: 465.1837524 | M101: 19.95056818 | N101: 8510.638298 | O101: 6292 | P101: 2228 | Q101: 15914 | R101: -13686 | S101: 6606 | T101: 7540 | W101: -15 | X101: 28 | Y101: 473 | Z101: 1300 | AA101: 0 | AB101: 0 | AC101: -827 | AD101: 576 | AE101: 0 | AF101: 0 | AG101: -251 | AH101: 4764 | AI101: 473 | AK101: 34 | AL101: 0 | AM101: -1195 | AN101: 6606 | AO101: 5300 | AP101: 648 | AQ101: 658 | AR101: 21.5 | AT101: 282.6911765 | AU101: 2050 | AW101: 1.026435057 | AX101: 49.45713571 | AY101: -3300.340268 | BC101: 51.53458606 | BD101: 698.0186683 | BE101: 23.44767248 | BF101: 10865.76138 | BG101: 6503.94214 | BH101: 2593.65276 | BI101: 16653.33748 | BJ101: -14059.68472 | BK101: 7789.66759 | BL101: 7293.0909 | BO101: -8.39919 | BP101: 11.98251 | BQ101: 1026.65709 | BR101: 1437.98969 | BS101: 0 | BT101: 0 | BU101: -411.3326 | BV101: -194.58606 | BW101: 0 | BX101: 0 | BY101: -216.74654 | BZ101: 4548.00473 | CA101: 1025.23664 | CC101: -176.60508 | CD101: -1000 | CE101: -1982.84787 | CF101: 7789.66759 | CG101: 6188.62805 | CH101: 883.47026 | CI101: 717.56928 | CJ101: 21.5 | CL101: 183 | CM101: 2024 | CO101: 29.16098739 | CP101: 45.01822125 | CQ101: -3701.489066 | CU101: 52.67787252 | CV101: 253.7043923 | CW101: 9.65449697 | CX101: 9591.603113 | CY101: 6672.74441 | CZ101: 2982.09869 | DA101: 17227.46968 | DB101: -14245.37099 | DC101: 7957.59125 | DD101: 7519.076 | DG101: -39.96948 | DH101: 12.23862 | DI101: 1203.5654 | DJ101: 988.16127 | DK101: 0 | DL101: 0 | DM101: 215.40413 | DN101: 263.70995 | DO101: -500 | DP101: 0 | DQ101: 451.69418 | DR101: 4999.69891 | DS101: 1203.5654 | DU101: 241.11435 | DV101: 0 | DW101: -719.87807 | DX101: 7957.59125 | DY101: 6236.64835 | DZ101: 911.09198 | EA101: 809.85092 | EB101: 22 | ED101: 100 | EE101: 7685 | EF101: 8278.5531 | EG101: 8539.81626 | EK101: -1668 | EL101: 0 | EM101: 0 | EN101: -4612.90501 | EO101: 1587.954 | EP101: 16.8665 | EQ101: -2142.83447 | ER101: 176.441 | ES101: 42.95 | ET101: 0 | EU101: 822 | EV101: 1965 | EW101: 1322 | EX101: 2311.734 | EY101: -2678 | EZ101: 3006 | FA101: 328 | FB101: 2678 | FC101: 0 | FD101: 6293 | FE101: 2115 | FF101: 4178 | FG101: 0 | FH101: 5926.734 | FI101: 4283.046 | FJ101: 1643.688 | FK101: 0 | FL101: 3114.603482 | FM101: 4788.484771 | FN101: 4799.876981 | FO101: 283.4840159 | FP101: 140.0612727 | FV101: 500.8083366
A102: 284 | B102: Koski tl | C102: 2292 | E102: 19.57281553 | F102: 21.92028051 | G102: -446.3350785 | K102: 74.80620155 | L102: 1049.30192 | M102: 45.48316062 | N102: 8420.593368 | O102: 7354 | P102: 3373 | Q102: 17404 | R102: -14031 | S102: 7535 | T102: 8485 | W102: -3 | X102: 27 | Y102: 2013 | Z102: 789 | AA102: 0 | AB102: 0 | AC102: 1224 | AD102: -467 | AE102: 0 | AF102: 0 | AG102: 758 | AH102: 4018 | AI102: 2018 | AK102: 111 | AL102: -100 | AM102: 586 | AN102: 7535 | AO102: 6366 | AP102: 704 | AQ102: 465 | AR102: 20 | AT102: 64.09558824 | AU102: 2271 | AW102: 18.47457894 | AX102: 19.54855416 | AY102: 253.0769793 | BC102: 77.75147179 | BD102: 1637.51218 | BE102: 77.87806791 | BF102: 7674.71461 | BG102: 7780.88893 | BH102: 3542.95943 | BI102: 18248.298 | BJ102: -14705.33857 | BK102: 8048.77688 | BL102: 8549.934 | BO102: -3.97225 | BP102: 27.47123 | BQ102: 1916.87129 | BR102: 763.59036 | BS102: 0 | BT102: 0 | BU102: 1153.28093 | BV102: -45.28064 | BW102: 0 | BX102: 0 | BY102: 1198.56157 | BZ102: 5215.9243 | CA102: 1916.87129 | CC102: 29.32684 | CD102: -100 | CE102: 1510.19529 | CF102: 8048.77688 | CG102: 6534.11012 | CH102: 1001.35763 | CI102: 513.30913 | CJ102: 20 | CL102: 49 | CM102: 2227 | CO102: 5.616562185 | CP102: 23.05655912 | CQ102: 269.466044 | CU102: 73.64526443 | CV102: 2043.528922 | CW102: 79.15350751 | CX102: 9423.310225 | CY102: 8301.63164 | CZ102: 4036.89031 | DA102: 20522.19185 | DB102: -16485.30154 | DC102: 7773.96886 | DD102: 9272.974 | DG102: -3.93894 | DH102: 22.1382 | DI102: 579.84058 | DJ102: 728.41749 | DK102: 0 | DL102: 0 | DM102: -148.57691 | DN102: -45.28064 | DO102: 0 | DP102: 0 | DQ102: -103.29627 | DR102: 4976.84733 | DS102: 426.55988 | DU102: -117.01544 | DV102: -100 | DW102: -14.34806 | DX102: 7773.96886 | DY102: 6436.37077 | DZ102: 787.06895 | EA102: 550.52914 | EB102: 20 | ED102: 232 | EE102: 8273 | EF102: 8583.28735 | EG102: 10311.39099 | EK102: -1788 | EL102: 298 | EM102: 58 | EN102: -448.276 | EO102: 40 | EP102: 1.6 | EQ102: -458.40794 | ER102: 0 | ES102: 17.5 | ET102: 500 | EU102: 100 | EV102: 0 | EW102: 0 | EX102: 0 | EY102: 0 | EZ102: 500 | FA102: 400 | FB102: 100 | FC102: 0 | FD102: 400 | FE102: 300 | FF102: 100 | FG102: 0 | FH102: 300 | FI102: 200 | FJ102: 100 | FK102: 0 | FL102: 743.4554974 | FM102: 630.4208631 | FN102: 1120.751953 | FO102: 321.8185385 | FP102: 144.5076509 | FV102: 844.0648569
A103: 285 | B103: Kotka | C103: 51668 | E103: 2.371822803 | F103: 74.39986926 | G103: -3530.405667 | K103: 47.97691354 | L103: 1317.004722 | M103: 57.28099732 | N103: 8392.080204 | O103: 92174 | P103: 74842 | Q103: 398533 | R103: -323691 | S103: 225262 | T103: 135894 | W103: -2007 | X103: 3164 | Y103: 38622 | Z103: 36649 | AA103: 0 | AB103: 0 | AC103: 1973 | AD103: 271 | AE103: 0 | AF103: 0 | AG103: 2242 | AH103: 11370 | AI103: 47618 | AK103: -2795 | AL103: -14065 | AM103: 31430 | AN103: 225262 | AO103: 200183 | AP103: 10994 | AQ103: 14085 | AR103: 21.5 | AT103: 105.3970588 | AU103: 51241 | AW103: 0.5890752781 | AX103: 69.19580503 | AY103: -3581.961435 | BC103: 50.31242172 | BD103: 760.675263 | BE103: 29.75220983 | BF103: 9510.968368 | BG103: 97973.18063 | BH103: 76793.42849 | BI103: 417673.3342 | BJ103: -340879.9057 | BK103: 236752.225 | BL103: 125975.165 | BO103: -1493.712 | BP103: 3736.41702 | BQ103: 24090.18933 | BR103: 21119.40094 | BS103: 0 | BT103: 120.77047 | BU103: 2850.01792 | BV103: -270.73871 | BW103: 0 | BX103: 0 | BY103: 3120.75663 | BZ103: 19204.09662 | CA103: 18842.08383 | CC103: -6760.27313 | CD103: -43275.81536 | CE103: 1494.99036 | CF103: 236752.225 | CG103: 204221.2753 | CH103: 16924.6025 | CI103: 15606.34723 | CJ103: 21.5 | CL103: 198 | CM103: 50617 | CO103: 1.340522916 | CP103: 70.03897838 | CQ103: -3956.583906 | CU103: 49.55372812 | CV103: 73.69654069 | CW103: 2.876224031 | CX103: 9352.274741 | CY103: 101069.7527 | CZ103: 74884.33669 | DA103: 441638.1485 | DB103: -366753.8118 | DC103: 245149.7 | DD103: 131879.06 | DG103: -771.69597 | DH103: 3433.747 | DI103: 12936.99916 | DJ103: 18966.49398 | DK103: 4.47319 | DL103: 1.34061 | DM103: -6026.36224 | DN103: -1295.50131 | DO103: 0 | DP103: 0 | DQ103: -4730.86093 | DR103: 15883.5773 | DS103: 2841.05946 | DU103: -31816.83494 | DV103: -8909.17936 | DW103: -19732.82942 | DX103: 245149.7 | DY103: 209653.7769 | DZ103: 19305.31632 | EA103: 16190.60675 | EB103: 22 | ED103: 234 | EE103: 262043 | EF103: 277674.6662 | EG103: 300113.5372 | EK103: -18666 | EL103: 815 | EM103: 1663 | EN103: -24117.76986 | EO103: 301.494 | EP103: 6469.18239 | EQ103: -29891.74328 | ER103: 373.79786 | ES103: 6944.05654 | ET103: 0 | EU103: 11269 | EV103: 30000 | EW103: -19860.8337 | EX103: 0 | EY103: 15404.23698 | EZ103: 294264 | FA103: 52026 | FB103: 242238 | FC103: 5263 | FD103: 261127.8634 | FE103: 73117.0359 | FF103: 188010.8275 | FG103: 0 | FH103: 267622.921 | FI103: 67441.20654 | FJ103: 200181.7145 | FK103: 5263.2141 | FL103: 9850.778044 | FM103: 9750.293825 | FN103: 10604.44819 | FO103: 9529.717132 | FP103: 188.2710775 | FV103: 470.135035
A104: 286 | B104: Kouvola | C104: 81187 | E104: 1.853980829 | F104: 50.60741543 | G104: -3180.238215 | K104: 48.12951093 | L104: 350.4625125 | M104: 16.42889459 | N104: 7786.209615 | O104: 142960 | P104: 49790 | Q104: 569660 | R104: -519870 | S104: 354743 | T104: 213734 | W104: -788 | X104: 10733 | Y104: 58552 | Z104: 27503 | AA104: 0 | AB104: 0 | AC104: 31049 | AD104: 102 | AE104: 0 | AF104: 0 | AG104: 31149 | AH104: 17955 | AI104: 72272 | AK104: -372 | AL104: -30310 | AM104: 45516 | AN104: 354743 | AO104: 302676 | AP104: 25999 | AQ104: 26068 | AR104: 21.25 | AT104: 122.5220588 | AU104: 80454 | AW104: 0.884253326 | AX104: 52.76878379 | AY104: -3370.326895 | BC104: 47.66905614 | BD104: 376.414889 | BE104: 16.35231314 | BF104: 8401.957161 | BG104: 155567.1335 | BH104: 52722.73291 | BI104: 600116.9355 | BJ104: -547394.2026 | BK104: 370953.6883 | BL104: 193407.386 | BO104: -571.62967 | BP104: 12022.56513 | BQ104: 28417.80723 | BR104: 26660.65332 | BS104: 0 | BT104: 0 | BU104: 1757.15391 | BV104: -217.23289 | BW104: 0 | BX104: 0 | BY104: 1974.3868 | BZ104: 19930.24021 | CA104: 21788.01404 | CC104: 1963.59627 | CD104: -32460.2752 | CE104: -13251.59576 | CF104: 370953.6883 | CG104: 307316.111 | CH104: 35841.16691 | CI104: 27796.41046 | CJ104: 21.25 | CL104: 233 | CM104: 79429 | CO104: 0.16326921 | CP104: 67.44041832 | CQ104: -4465.164854 | CU104: 40.86000765 | CV104: 384.0613851 | CW104: 15.79645476 | CX104: 8874.295387 | CY104: 141675.7359 | CZ104: 52952.66946 | DA104: 617074.6917 | DB104: -564122.0222 | DC104: 380974.531 | DD104: 179179.326 | DG104: -227.91267 | DH104: 9303.61337 | DI104: 5107.53552 | DJ104: 25181.48254 | DK104: 0 | DL104: 0 | DM104: -20073.94702 | DN104: -71.45097 | DO104: 0 | DP104: 0 | DQ104: -20002.49605 | DR104: -454.81612 | DS104: -7957.32231 | DU104: -3728.49327 | DV104: -43184.0804 | DW104: -34555.79665 | DX104: 380974.531 | DY104: 314412.5169 | DZ104: 36546.46602 | EA104: 30015.5481 | EB104: 21.25 | ED104: 268 | EE104: 385279 | EF104: 404193.5888 | EG104: 434770.6072 | EH104: 3300 | EJ104: 1350 | EK104: -30259 | EL104: 2308 | EM104: 1195 | EN104: -40682.39946 | EO104: 1605.87457 | EP104: 4036.91509 | EQ104: -35016.83302 | ER104: 2342.2277 | ES104: 6076.13098 | ET104: 33000 | EU104: -48542 | EV104: 10000 | EW104: 12641.61008 | EX104: 50000 | EY104: 85639.6006 | EZ104: 266903 | FA104: 219690 | FB104: 47213 | FC104: 46140 | FD104: 257083.7572 | FE104: 186005.507 | FF104: 71078.25024 | FG104: 39458.07767 | FH104: 349539.2774 | FI104: 204276.291 | FJ104: 145262.9864 | FK104: 95768.27994 | FL104: 5936.911082 | FM104: 6573.251404 | FN104: 8420.935879 | FO104: 14795.88315 | FP104: 186.2780993 | FV104: 353.2180778
A105: 287 | B105: Kristiinankaupunki | C105: 6404 | E105: 0.754005655 | F105: 71.36509721 | G105: -4734.072455 | K105: 33.63206976 | L105: 1107.276702 | M105: 40.88419739 | N105: 9885.384135 | O105: 23440 | P105: 8820 | Q105: 52848 | R105: -44028 | S105: 25119 | T105: 23002 | W105: -321 | X105: -94 | Y105: 3678 | Z105: 3594 | AA105: 0 | AB105: 0 | AC105: 84 | AD105: 0 | AE105: 0 | AF105: 0 | AG105: 83 | AH105: 7639 | AI105: 2774 | AK105: -425 | AL105: -4984 | AM105: -479 | AN105: 25119 | AO105: 20980 | AP105: 1486 | AQ105: 2653 | AR105: 21.5 | AT105: 196.0588235 | AU105: 6380 | AW105: 0.7921878311 | AX105: 68.64531099 | AY105: -4656.57011 | BC105: 35.40150206 | BD105: 977.3042445 | BE105: 35.69595083 | BF105: 9961.754089 | BG105: 21250.56277 | BH105: 10087.00699 | BI105: 54386.82531 | BJ105: -44299.81832 | BK105: 26808.09555 | BL105: 21772.521 | BO105: -180.16125 | BP105: -5.80248 | BQ105: 4094.8345 | BR105: 3088.87681 | BS105: 0 | BT105: 0 | BU105: 1005.95769 | BV105: 0 | BW105: 0 | BX105: 0 | BY105: 1005.95769 | BZ105: 8645.33597 | CA105: 2228.70729 | CC105: -1100.11872 | CD105: -5229.0988 | CE105: 483.66007 | CF105: 26808.09555 | CG105: 21778.19951 | CH105: 2193.63715 | CI105: 2836.25889 | CJ105: 21.5 | CL105: 107 | CM105: 6242 | CO105: 0.4282003893 | CP105: 72.19787174 | CQ105: -5189.535497 | CU105: 32.42914447 | CV105: 1363.860288 | CW105: 49.35373403 | CX105: 10086.55201 | CY105: 16174.37812 | CZ105: 9313.21615 | DA105: 57842.08229 | DB105: -48528.86614 | DC105: 27385.02734 | DD105: 23560.598 | DG105: -250.16307 | DH105: -25.83387 | DI105: 2140.76226 | DJ105: 2899.46031 | DK105: 0 | DL105: 0 | DM105: -758.69805 | DN105: 0 | DO105: 0 | DP105: 0 | DQ105: -758.69805 | DR105: 7358.4504 | DS105: 1821.84763 | DU105: 1748.75749 | DV105: -5333.4968 | DW105: -2214.09866 | DX105: 27385.02734 | DY105: 22040.453 | DZ105: 2212.49143 | EA105: 3132.08291 | EB105: 21.5 | ED105: 201 | EE105: 22767 | EF105: 27213.49701 | EG105: 36579.28332 | EK105: -4977 | EL105: 60 | EM105: 1664 | EN105: -3633.94567 | EO105: 1214.8094 | EP105: 674.08905 | EQ105: -4776.7489 | ER105: 484.15961 | ES105: 256.643 | ET105: 7680 | EU105: 364 | EV105: 6280 | EW105: 0 | EX105: 7109.768 | EY105: 0 | EZ105: 29799 | FA105: 24569 | FB105: 5230 | FC105: 0 | FD105: 30848.4018 | FE105: 25796.303 | FF105: 5052.0988 | FG105: 0 | FH105: 32624.673 | FI105: 27674.0532 | FJ105: 4950.6198 | FK105: 0 | FL105: 6586.35228 | FM105: 7170.796505 | FN105: 7951.573952 | FO105: 1025.137349 | FP105: 164.232193 | FV105: 641.8235893
A106: 288 | B106: Kruunupyy | C106: 6416 | E106: 1.126119917 | F106: 61.76432263 | G106: -4010.754364 | K106: 34.54787723 | L106: 250.7793017 | M106: 11.70356716 | N106: 7821.072319 | O106: 10001 | P106: 2620 | Q106: 41294 | R106: -38674 | S106: 24590 | T106: 18836 | W106: -241 | X106: 150 | Y106: 4661 | Z106: 1511 | AA106: 0 | AB106: 0 | AC106: 3150 | AD106: 0 | AE106: 0 | AF106: 0 | AG106: 3150 | AH106: 9693 | AI106: 4548 | AK106: -419 | AL106: -4112 | AM106: 317 | AN106: 24590 | AO106: 20637 | AP106: 2259 | AQ106: 1694 | AR106: 22 | AT106: 118.4926471 | AU106: 6442 | AW106: 1.009706242 | AX106: 59.31693143 | AY106: -3858.796951 | BC106: 38.81964027 | BD106: 214.6099798 | BE106: 9.886717002 | BF106: 7923.018594 | BG106: 10432.74591 | BH106: 2758.27371 | BI106: 43281.08849 | BJ106: -40522.81478 | BK106: 26671.01782 | BL106: 18184.875 | BO106: -189.02011 | BP106: 138.90294 | BQ106: 4282.96087 | BR106: 1359.7726 | BS106: 0 | BT106: 0 | BU106: 2923.18827 | BV106: 0 | BW106: 0 | BX106: 0 | BY106: 2923.18827 | BZ106: 12616.47441 | CA106: 4072.25246 | CC106: -632.20596 | CD106: -4239.972 | CE106: 870.77868 | CF106: 26671.01782 | CG106: 21430.71888 | CH106: 3337.68785 | CI106: 1902.61109 | CJ106: 22 | CL106: 95 | CM106: 6405 | CO106: 1.100371032 | CP106: 50.60767511 | CQ106: -3270.233692 | CU106: 45.791899 | CV106: 335.3406604 | CW106: 17.20802208 | CX106: 7112.92329 | CY106: 10954.7619 | CZ106: 2819.6772 | DA106: 44457.37205 | DB106: -41637.69485 | DC106: 27015.89608 | DD106: 19539.308 | DG106: -190.46308 | DH106: 30.18686 | DI106: 4757.23301 | DJ106: 1548.61342 | DK106: 0 | DL106: 0 | DM106: 3208.61959 | DN106: 0 | DO106: 0 | DP106: 0 | DQ106: 3208.61959 | DR106: 15825.094 | DS106: 4715.53469 | DU106: -163.7466 | DV106: -4305.904 | DW106: 3908.00224 | DX106: 27015.89608 | DY106: 21718.98092 | DZ106: 3461.41059 | EA106: 1835.50457 | EB106: 22 | ED106: 59 | EE106: 28867 | EF106: 30301.53984 | EG106: 30907.7116 | EK106: -4532 | EL106: 151 | EM106: 150 | EN106: -3532.82132 | EO106: 71.43325 | EP106: 259.91429 | EQ106: -910.02906 | ER106: 0 | ES106: 102.49661 | ET106: 5895 | EU106: -1224 | EV106: 3639.502 | EW106: 738.50819 | EX106: 4319.394 | EY106: -2840.26421 | EZ106: 24755 | FA106: 18563 | FB106: 6192 | FC106: 0 | FD106: 24892.60471 | FE106: 17962.4055 | FF106: 6930.19921 | FG106: 0 | FH106: 22065.8305 | FI106: 17975.8955 | FJ106: 4089.935 | FK106: 0 | FL106: 4689.993766 | FM106: 4764.614561 | FN106: 4416.549892 | FO106: 987.2264055 | FP106: 154.1337089 | FV106: 664.8495607
A107: 290 | B107: Kuhmo | C107: 8042 | E107: 0.6604712042 | F107: 69.66364167 | G107: -2576.100473 | K107: 38.41359426 | L107: 3028.226809 | M107: 119.3502021 | N107: 9261.004725 | O107: 14737 | P107: 6332 | Q107: 68525 | R107: -62193 | S107: 28987 | T107: 35025 | W107: -119 | X107: 643 | Y107: 2343 | Z107: 3245 | AA107: 0 | AB107: 0 | AC107: -902 | AD107: 43 | AE107: 0 | AF107: 0 | AG107: -860 | AH107: -2625 | AI107: 2746 | AK107: -677 | AL107: -3640 | AM107: 1575 | AN107: 28987 | AO107: 23643 | AP107: 3356 | AQ107: 1988 | AR107: 22 | AT107: 277.6544118 | AU107: 7928 | AW107: 2.266206425 | AX107: 61.36571144 | AY107: -1866.6293 | BC107: 44.63529664 | BD107: 3375.358165 | BE107: 131.3054377 | BF107: 9382.747216 | BG107: 14947.07244 | BH107: 5069.27008 | BI107: 67512.21192 | BJ107: -62442.94184 | BK107: 31809.54374 | BL107: 35788.0823 | BO107: -108.18756 | BP107: 2942.69332 | BQ107: 7989.18996 | BR107: 2338.12094 | BS107: 0 | BT107: 0 | BU107: 5651.06902 | BV107: -42.44814 | BW107: 0 | BX107: 0 | BY107: 5693.51716 | BZ107: 3068.63939 | CA107: 7549.63987 | CC107: 919.02978 | CD107: -3432.66604 | CE107: 4540.14665 | CF107: 31809.54374 | CG107: 24521.8238 | CH107: 5069.80887 | CI107: 2217.91107 | CJ107: 22 | CL107: 27 | CM107: 7755 | CO107: 1.128041497 | CP107: 62.76489035 | CQ107: -1615.22991 | CU107: 45.06111125 | CV107: 3809.164351 | CW107: 146.6860207 | CX107: 9478.374157 | CY107: 15646.81871 | CZ107: 5587.41381 | DA107: 69578.33738 | DB107: -63990.92357 | DC107: 32064.15698 | DD107: 36177.38125 | DG107: -141.84993 | DH107: -42.05795 | DI107: 4066.70678 | DJ107: 2464.8789 | DK107: 456.175 | DL107: 0 | DM107: 2058.00288 | DN107: -42.44814 | DO107: 0 | DP107: 0 | DQ107: 2100.45102 | DR107: 5169.09041 | DS107: 4522.88178 | DU107: -1225.30859 | DV107: -3582.666 | DW107: 2276.69266 | DX107: 32064.15698 | DY107: 24703.00841 | DZ107: 5051.3528 | EA107: 2309.79577 | EB107: 22 | ED107: 129 | EE107: 48283 | EF107: 46792.78522 | EG107: 47909.89498 | EI107: 1450 | EK107: -1354 | EL107: 39 | EM107: 144 | EN107: -3106.13545 | EO107: 41.49231 | EP107: 55.14992 | EQ107: -2302.38912 | ER107: 0 | ES107: 56.2 | ET107: 0 | EU107: 3000 | EV107: 3000 | EW107: -2000 | EX107: 4500 | EY107: 3500 | EZ107: 39621 | FA107: 33338 | FB107: 6283 | FC107: 50 | FD107: 37187.668 | FE107: 32605.002 | FF107: 4582.666 | FG107: 0 | FH107: 41605.002 | FI107: 33283.336 | FJ107: 8321.666 | FK107: 0 | FL107: 7908.604825 | FM107: 7795.397419 | FN107: 8353.169957 | FO107: 1122.864019 | FP107: 144.7922655 | FV107: 1007.718209
A108: 291 | B108: Kuhmoinen | C108: 2161 | E108: 41.1372549 | F108: 27.31094467 | G108: 363.257751 | K108: 75.19725422 | L108: 2218.880148 | M108: 85.07145288 | N108: 9520.12957 | O108: 4586 | P108: 2705 | Q108: 18661 | R108: -15956 | S108: 8757 | T108: 9233 | W108: 58 | X108: 2 | Y108: 2094 | Z108: 1665 | AA108: 0 | AB108: 0 | AC108: 429 | AD108: 0 | AE108: 0 | AF108: 0 | AG108: 429 | AH108: 6376 | AI108: 1973 | AK108: -314 | AL108: -47 | AM108: 656 | AN108: 8757 | AO108: 6141 | AP108: 1227 | AQ108: 1389 | AR108: 21.75 | AT108: 43.94852941 | AU108: 2158 | AW108: 54.98208461 | AX108: 37.29586189 | AY108: -1340.290816 | BC108: 68.55348633 | BD108: 1954.698943 | BE108: 66.2418249 | BF108: 10770.61381 | BG108: 4895.19467 | BH108: 3254.59329 | BI108: 20001.51391 | BJ108: -16746.92062 | BK108: 9665.11547 | BL108: 8885.428 | BO108: 81.91045 | BP108: -517.68076 | BQ108: 1367.85254 | BR108: 1225.3424 | BS108: 0 | BT108: 0 | BU108: 142.51014 | BV108: 0 | BW108: 0 | BX108: 0 | BY108: 142.51014 | BZ108: 6518.72591 | CA108: 1299.84167 | CC108: 621.09213 | CD108: -47 | CE108: -3941.72392 | CF108: 9665.11547 | CG108: 6394.0643 | CH108: 1728.22648 | CI108: 1542.82469 | CJ108: 21.75 | CL108: 115 | CM108: 2119 | CO108: 8.290131626 | CP108: 40.63216969 | CQ108: -1341.268358 | CU108: 65.8821876 | CV108: 1267.77286 | CW108: 43.24344311 | CX108: 10700.74584 | CY108: 4955.19752 | CZ108: 3318.95081 | DA108: 21607.57317 | DB108: -18288.62236 | DC108: 9894.18017 | DD108: 9311.707 | DG108: 42.1811 | DH108: -14.95817 | DI108: 944.48774 | DJ108: 1125.46027 | DK108: 0 | DL108: 0 | DM108: -180.97253 | DN108: 0 | DO108: 0 | DP108: 0 | DQ108: -180.97253 | DR108: 6337.75338 | DS108: 951.32044 | DU108: 122.97189 | DV108: -47 | DW108: 25.42015 | DX108: 9894.18017 | DY108: 6638.03988 | DZ108: 1641.14357 | EA108: 1614.99672 | EB108: 21.75 | ED108: 162 | EE108: 12240 | EF108: 13057.03778 | EG108: 14641.64728 | EK108: -1536 | EL108: 12 | EM108: 207 | EN108: -5386.36673 | EO108: 33.6 | EP108: 111.20114 | EQ108: -963.89904 | ER108: 3.055 | ES108: 34.94375 | ET108: 0 | EU108: 1500 | EV108: 0 | EW108: 2500 | EX108: 0 | EY108: 0 | EZ108: 3871 | FA108: 324 | FB108: 3547 | FC108: 721 | FD108: 6324 | FE108: 277 | FF108: 6047 | FG108: 462.7477 | FH108: 6277 | FI108: 230 | FJ108: 6047 | FK108: 454.7477 | FL108: 4021.286441 | FM108: 5077.489912 | FN108: 5035.845824 | FO108: 305.1972359 | FP108: 144.0288985 | FV108: 633.8519648
A109: 297 | B109: Kuopio | C109: 120210 | E109: 1.097540836 | F109: 62.12089382 | G109: -3545.71999 | K109: 51.50270478 | L109: 828.9410199 | M109: 36.42396976 | N109: 8306.713252 | O109: 331526 | P109: 182647 | Q109: 872198 | R109: -689551 | S109: 486187 | T109: 248504 | W109: 7134 | X109: 4948 | Y109: 57222 | Z109: 47831 | AA109: 9213 | AB109: 0 | AC109: 18604 | AD109: 171 | AE109: 0 | AF109: 402 | AG109: 19177 | AH109: 176238 | AI109: 53668 | AK109: 4020 | AL109: -51788 | AM109: -6765 | AN109: 486187 | AO109: 421596 | AP109: 27485 | AQ109: 37106 | AR109: 20.75 | AT109: 235.3455882 | AU109: 121543 | AW109: 0.9731507539 | AX109: 56.47172287 | AY109: -3629.839254 | BC109: 53.42445549 | BD109: 366.7688237 | BE109: 15.56395207 | BF109: 8601.325849 | BG109: 335783.0649 | BH109: 190415.3408 | BI109: 896280.9131 | BJ109: -705865.5723 | BK109: 524224.5467 | BL109: 230763.865 | BO109: 6853.23266 | BP109: 5123.31814 | BQ109: 61099.39022 | BR109: 48774.51883 | BS109: 0 | BT109: 0 | BU109: 12324.87139 | BV109: -145.42356 | BW109: 0 | BX109: 0 | BY109: 12470.29495 | BZ109: 188708.6448 | CA109: 43694.776 | CC109: -13589.922 | CD109: -62897.755 | CE109: -20653.433 | CF109: 524224.5467 | CG109: 437817.7577 | CH109: 41721.98739 | CI109: 44684.80159 | CJ109: 20.75 | CL109: 181 | CM109: 122594 | CO109: 0.8406891689 | CP109: 57.32003898 | CQ109: -3966.564309 | CU109: 51.68006292 | CV109: 274.2360215 | CW109: 11.55012892 | CX109: 8666.236415 | CY109: 356902.2928 | CZ109: 191244.2959 | DA109: 954076.2146 | DB109: -762831.9187 | DC109: 549550.649 | DD109: 244656.961 | DG109: 7423.3912 | DH109: 5712.60048 | DI109: 44511.683 | DJ109: 48964.56789 | DK109: 0 | DL109: 0 | DM109: -4452.88489 | DN109: -129.06505 | DO109: 0 | DP109: 0 | DQ109: -4323.81984 | DR109: 184384.8249 | DS109: 40446.22265 | DU109: 2188.18287 | DV109: -53603.22839 | DW109: -50957.44999 | DX109: 549550.649 | DY109: 457508.1408 | DZ109: 44337.10356 | EA109: 47705.40463 | EB109: 20.75 | ED109: 191 | EE109: 416629 | EF109: 466338.6848 | EG109: 491990.7774 | EK109: -81676 | EL109: 2923 | EM109: 18320 | EN109: -81763.565 | EO109: 2378.266 | EP109: 15037.09 | EQ109: -105354.682 | ER109: 2775.69878 | ES109: 11175.31058 | ET109: 115000 | EU109: 0 | EV109: 40000 | EW109: 0 | EX109: 70000 | EY109: 0 | EZ109: 459505 | FA109: 396608 | FB109: 62897 | FC109: 260756 | FD109: 436608.1836 | FE109: 383004.9552 | FF109: 53603.22839 | FG109: 208953.2512 | FH109: 453004.9552 | FI109: 394894.1208 | FJ109: 58110.83439 | FK109: 247141.2249 | FL109: 9714.574495 | FM109: 9284.929938 | FN109: 9887.032531 | FO109: 22048.5851 | FP109: 179.8504421 | FV109: 502.6977302
A110: 300 | B110: Kuortane | C110: 3534 | E110: 6.873350923 | F110: 41.21814961 | G110: -2747.594793 | K110: 59.71656622 | L110: 428.1267685 | M110: 18.03720155 | N110: 8663.554046 | O110: 7768 | P110: 2992 | Q110: 26796 | R110: -23804 | S110: 11546 | T110: 14818 | W110: -25 | X110: 29 | Y110: 2564 | Z110: 1229 | AA110: 0 | AB110: 0 | AC110: 1335 | AD110: 0 | AE110: 0 | AF110: 0 | AG110: 1335 | AH110: 3591 | AI110: 2533 | AK110: 234 | AL110: -338 | AM110: -803 | AN110: 11546 | AO110: 9895 | AP110: 826 | AQ110: 825 | AR110: 21 | AT110: 120.5073529 | AU110: 3528 | AW110: 3.925040447 | AX110: 43.47373358 | AY110: -2872.133118 | BC110: 61.00977489 | BD110: 446.2636905 | BE110: 17.54413109 | BF110: 9284.372429 | BG110: 7964.59254 | BH110: 3316.17169 | BI110: 28180.03148 | BJ110: -24863.85979 | BK110: 11864.14224 | BL110: 14363.074 | BO110: -3.55923 | BP110: 37.32888 | BQ110: 1397.1261 | BR110: 1060.70543 | BS110: 3019.42957 | BT110: 0 | BU110: 3355.85024 | BV110: 0 | BW110: 0 | BX110: 0 | BY110: 3355.85024 | BZ110: 5679.57485 | CA110: 1484.70165 | CC110: -259.68865 | CD110: -337.886 | CE110: 814.90346 | CF110: 11864.14224 | CG110: 9779.14596 | CH110: 1173.9758 | CI110: 911.02048 | CJ110: 21 | CL110: 224 | CM110: 3437 | CO110: 7.432901328 | CP110: 36.45269709 | CQ110: -2551.090157 | CU110: 64.89087003 | CV110: 585.5356415 | CW110: 23.28404181 | CX110: 9178.840637 | CY110: 8412.92393 | CZ110: 4125.42658 | DA110: 29469.80641 | DB110: -25344.37983 | DC110: 12236.26798 | DD110: 15955.188 | DG110: -37.47611 | DH110: 101.1096 | DI110: 2910.70964 | DJ110: 1164.03224 | DK110: 0 | DL110: 0 | DM110: 1746.6774 | DN110: 0 | DO110: 0 | DP110: 0 | DQ110: 1746.6774 | DR110: 7426.25225 | DS110: 2803.70667 | DU110: 136.51738 | DV110: -337.886 | DW110: 1360.55485 | DX110: 12236.26798 | DY110: 10208.8131 | DZ110: 1108.06722 | EA110: 919.38766 | EB110: 21 | ED110: 45 | EE110: 16699 | EF110: 17694.41285 | EG110: 18645.91648 | EK110: -3422 | EL110: 55 | EM110: 31 | EN110: -4212.77876 | EO110: 495.773 | EP110: 3047.20757 | EQ110: -1988.13589 | ER110: 429.012 | ES110: 115.97207 | ET110: 0 | EU110: 1240 | EV110: 0 | EW110: 1000 | EX110: 0 | EY110: -500 | EZ110: 8998 | FA110: 4660 | FB110: 4338 | FC110: 2117 | FD110: 9660.148 | FE110: 4322.262 | FF110: 5337.886 | FG110: 2103.21874 | FH110: 8822.262 | FI110: 3981.616 | FJ110: 4840.646 | FK110: 2079.3419 | FL110: 5757.21562 | FM110: 5819.952653 | FN110: 5646.020006 | FO110: 486.1339571 | FP110: 141.4413608 | FV110: 396.0107993
A111: 301 | B111: Kurikka | C111: 20456 | E111: 1.263470468 | F111: 60.20552526 | G111: -2477.708252 | K111: 52.38881385 | L111: 1989.147438 | M111: 86.77781803 | N111: 8366.640594 | O111: 43820 | P111: 18182 | Q111: 156433 | R111: -138251 | S111: 67889 | T111: 69433 | W111: 277 | X111: 11923 | Y111: 11271 | Z111: 7261 | AA111: 0 | AB111: 0 | AC111: 4010 | AD111: 292 | AE111: 0 | AF111: 0 | AG111: 4302 | AH111: 12809 | AI111: 11417 | AK111: -64 | AL111: -8831 | AM111: 7335 | AN111: 67889 | AO111: 59870 | AP111: 3868 | AQ111: 4151 | AR111: 21 | AT111: 208.1470588 | AU111: 20197 | AW111: 0.2555130324 | AX111: 63.7121472 | AY111: -3065.47016 | BC111: 49.62954271 | BD111: 1695.601523 | BE111: 65.2380474 | BF111: 9486.711826 | BG111: 45145.86798 | BH111: 18640.86897 | BI111: 165951.5648 | BJ111: -147310.6959 | BK111: 70579.98176 | BL111: 67666.743 | BO111: 295.89977 | BP111: 11025.36239 | BQ111: 2257.29106 | BR111: 7055.32295 | BS111: 0 | BT111: 0 | BU111: -4798.03189 | BV111: -291.639 | BW111: 0 | BX111: 0 | BY111: -4506.39289 | BZ111: 8303.13601 | CA111: 2175.10918 | CC111: -1549.50369 | CD111: -9884.2866 | CE111: -11755.40844 | CF111: 70579.98176 | CG111: 59826.01114 | CH111: 5922.66112 | CI111: 4831.3095 | CJ111: 21 | CL111: 283 | CM111: 19890 | CO111: 0.9425777116 | CP111: 76.13206313 | CQ111: -4283.112078 | CU111: 43.3122169 | CV111: 2192.249881 | CW111: 73.41850831 | CX111: 10898.76688 | CY111: 53475.86841 | CZ111: 32767.71779 | DA111: 178217.7429 | DB111: -145450.0251 | DC111: 72215.2875 | DD111: 72483.67 | DG111: 98.59351 | DH111: 11499.16123 | DI111: 10846.68711 | DJ111: 6908.7097 | DK111: 0 | DL111: 0 | DM111: 3937.97741 | DN111: -291.584 | DO111: 0 | DP111: 0 | DQ111: 4229.56141 | DR111: 12532.69742 | DS111: 7623.33642 | DU111: -2517.00203 | DV111: -11544.3326 | DW111: -22641.18072 | DX111: 72215.2875 | DY111: 60714.38727 | DZ111: 6397.61957 | EA111: 5103.28066 | EB111: 21 | ED111: 121 | EE111: 99634 | EF111: 106918.8244 | EG111: 109661.4012 | EK111: -4763 | EL111: 130 | EM111: 551 | EN111: -14843.51016 | EO111: 243.94543 | EP111: 669.04711 | EQ111: -35904.52699 | ER111: 238.11262 | ES111: 5401.89723 | ET111: 7000 | EU111: -3000 | EV111: 16000 | EW111: -1000 | EX111: 41000 | EY111: 4000 | EZ111: 76737 | FA111: 55852 | FB111: 20885 | FC111: 23449 | FD111: 81851.7287 | FE111: 60307.3961 | FF111: 21544.3326 | FG111: 22581.84605 | FH111: 115307.3961 | FI111: 86589.40102 | FJ111: 28717.99508 | FK111: 23833.5726 | FL111: 6451.456785 | FM111: 6637.847179 | FN111: 8291.662773 | FO111: 2891.161299 | FP111: 145.3575314 | FV111: 111.7636807
A112: 304 | B112: Kustavi | C112: 962 | E112: 2.147321429 | F112: 34.65024402 | G112: -1117.463617 | K112: 73.7400298 | L112: 1215.176715 | M112: 47.65300424 | N112: 9307.692308 | O112: 2763 | P112: 1530 | Q112: 7646 | R112: -6116 | S112: 4653 | T112: 2423 | W112: -20 | X112: 2 | Y112: 942 | Z112: 412 | AA112: 0 | AB112: 0 | AC112: 530 | AD112: -472 | AE112: 0 | AF112: 0 | AG112: 58 | AH112: 3730 | AI112: 937 | AK112: -197 | AL112: -428 | AM112: 120 | AN112: 4653 | AO112: 3114 | AP112: 258 | AQ112: 1281 | AR112: 18.25 | AT112: 39.91911765 | AU112: 971 | AW112: 0.4265868609 | AX112: 31.04131356 | AY112: -1688.890628 | BC112: 73.81553721 | BD112: 642.0272091 | BE112: 24.92351014 | BF112: 9402.364676 | BG112: 3365.96714 | BH112: 1582.7203 | BI112: 8777.99456 | BJ112: -7195.27426 | BK112: 5020.34059 | BL112: 2369.48096 | BO112: -16.02221 | BP112: 4.0469 | BQ112: 182.57198 | BR112: 506.59889 | BS112: 0 | BT112: 0 | BU112: -324.02691 | BV112: -32.21451 | BW112: -290.98163 | BX112: -4.07398 | BY112: 3.24321 | BZ112: 3733.68175 | CA112: 182.57198 | CC112: 216.42514 | CD112: -449.52 | CE112: -643.89225 | CF112: 5020.34059 | CG112: 3180.24954 | CH112: 378.16029 | CI112: 1461.93076 | CJ112: 18.25 | CL112: 277 | CM112: 950 | CO112: 1.249629559 | CP112: 34.65150568 | CQ112: -1654.831989 | CU112: 70.71778598 | CV112: 1447.258737 | CW112: 51.41519557 | CX112: 10274.18904 | CY112: 3421.71195 | CZ112: 1827.78569 | DA112: 9296.87571 | DB112: -7469.09002 | DC112: 5654.29657 | DD112: 2372.773 | DG112: -17.64847 | DH112: 9.78148 | DI112: 550.11256 | DJ112: 517.34405 | DK112: 237.48518 | DL112: 13.5229 | DM112: 256.73079 | DN112: -32.21451 | DO112: 237.48518 | DP112: 0 | DQ112: 51.46012 | DR112: 3785.14187 | DS112: 536.58966 | DU112: 54.00409 | DV112: -436.695 | DW112: 90.84503 | DX112: 5654.29657 | DY112: 3734.71949 | DZ112: 390.45913 | EA112: 1529.11795 | EB112: 18 | ED112: 106 | EE112: 3843 | EF112: 4267.04311 | EG112: 4708.2482 | EK112: -860 | EL112: 19 | EM112: 24 | EN112: -826.46423 | EO112: 0 | EP112: 0 | EQ112: -445.74463 | ER112: 0 | ES112: 0 | ET112: 850 | EU112: 0 | EV112: 0 | EW112: 0 | EX112: 780 | EY112: 0 | EZ112: 2505 | FA112: 2056 | FB112: 449 | FC112: 0 | FD112: 2055.571 | FE112: 1657.876 | FF112: 397.695 | FG112: 0 | FH112: 2398.876 | FI112: 1977.272 | FJ112: 421.604 | FK112: 0 | FL112: 4951.143451 | FM112: 4331.61792 | FN112: 5564.066316 | FO112: 207.4844161 | FP112: 218.4046485 | FV112: 188.0246962
A113: 305 | B113: Kuusamo | C113: 15213 | E113: 1.595646788 | F113: 37.4395479 | G113: -1005.915993 | K113: 61.47929087 | L113: 1549.530007 | M113: 61.84693071 | N113: 9144.81036 | O113: 51545 | P113: 24238 | Q113: 120695 | R113: -96457 | S113: 53888 | T113: 51454 | W113: -337 | X113: 123 | Y113: 8671 | Z113: 7929 | AA113: 0 | AB113: 0 | AC113: 742 | AD113: 0 | AE113: 0 | AF113: 862 | AG113: 1604 | AH113: 14796 | AI113: 8211 | AK113: -1068 | AL113: -5305 | AM113: -2520 | AN113: 53888 | AO113: 42693 | AP113: 4396 | AQ113: 6799 | AR113: 20 | AT113: 198.0735294 | AU113: 15165 | AW113: 1.147502092 | AX113: 40.59629315 | AY113: -1560.541223 | BC113: 58.99799113 | BD113: 1573.729157 | BE113: 56.50806941 | BF113: 10165.11709 | BG113: 55244.79559 | BH113: 27060.21731 | BI113: 126260.8066 | BJ113: -99200.58932 | BK113: 58416.26171 | BL113: 49895.077 | BO113: -306.51326 | BP113: 801.90647 | BQ113: 9606.1426 | BR113: 8183.30568 | BS113: 0 | BT113: 0 | BU113: 1422.83692 | BV113: 0 | BW113: 0 | BX113: -694.58266 | BY113: 2117.41958 | BZ113: 16913.90283 | CA113: 9418.70121 | CC113: 2312.17899 | CD113: -8330.43074 | CE113: -7291.60916 | CF113: 58416.26171 | CG113: 44181.335 | CH113: 6659.91918 | CI113: 7575.00753 | CJ113: 20 | CL113: 117 | CM113: 15146 | CO113: 0.8164615001 | CP113: 43.06030227 | CQ113: -2592.369311 | CU113: 55.99636531 | CV113: 1091.724357 | CW113: 37.98568335 | CX113: 10490.25199 | CY113: 58170.01102 | CZ113: 30763.45696 | DA113: 133934.1581 | DB113: -103170.7012 | DC113: 59005.81435 | DD113: 54345.022 | DG113: -348.45655 | DH113: -987.29556 | DI113: 8844.38308 | DJ113: 6855.63821 | DK113: 0 | DL113: 0 | DM113: 1988.74487 | DN113: 0 | DO113: 0 | DP113: -1119.65666 | DQ113: 3108.40153 | DR113: 19981.6996 | DS113: 4892.23952 | DU113: 1257.67369 | DV113: -10917.68258 | DW113: -12098.63632 | DX113: 59005.81435 | DY113: 44512.224 | DZ113: 6667.02612 | EA113: 7826.56423 | EB113: 20 | ED113: 103 | EE113: 46407 | EF113: 56503.87226 | EG113: 59200.08259 | EK113: -12997 | EL113: 1581 | EM113: 685 | EN113: -18396.77423 | EO113: 1436.45353 | EP113: 250.01033 | EQ113: -21188.48242 | ER113: 231.39638 | ES113: 3966.2102 | ET113: 7000 | EU113: 0 | EV113: 14000 | EW113: 0 | EX113: 16530.959 | EY113: 0 | EZ113: 31076 | FA113: 23096 | FB113: 7980 | FC113: 4273 | FD113: 36746.04154 | FE113: 30959.52762 | FF113: 5786.51392 | FG113: 4286.33249 | FH113: 42359.31796 | FI113: 35889.52995 | FJ113: 6469.78801 | FK113: 7276.99806 | FL113: 3866.232827 | FM113: 4402.786691 | FN113: 5024.477228 | FO113: 2225.6112 | FP113: 146.9438268 | FV113: 633.4416485
A114: 312 | B114: Kyyjärvi | C114: 1288 | E114: 13.14705882 | F114: 120.5323869 | G114: -4972.826087 | K114: 5.808553407 | L114: 5257.763975 | M114: 237.2832869 | N114: 8087.732919 | O114: 2333 | P114: 1516 | Q114: 10189 | R114: -8673 | S114: 4656 | T114: 5121 | W114: 51 | X114: 184 | Y114: 1339 | Z114: 2219 | AA114: 0 | AB114: 0 | AC114: -880 | AD114: 0 | AE114: 0 | AF114: 0 | AG114: -880 | AH114: -4649 | AI114: -908 | AK114: -300 | AL114: -100 | AM114: -1002 | AN114: 4656 | AO114: 3324 | AP114: 927 | AQ114: 405 | AR114: 22.5 | AT114: 27.83088235 | AU114: 1232 | AW114: 22.11731861 | AX114: 104.7764262 | AY114: -4436.492167 | BC114: 11.4999115 | BD114: 5294.923263 | BE114: 213.7168057 | BF114: 9043.027687 | BG114: 2505.54082 | BH114: 1677.96404 | BI114: 10590.38368 | BJ114: -8912.41964 | BK114: 5138.14028 | BL114: 4842.383 | BO114: 43.66191 | BP114: 31.26013 | BQ114: 1143.02568 | BR114: 362.12313 | BS114: 0 | BT114: 0 | BU114: 780.90255 | BV114: 0 | BW114: 0 | BX114: 0 | BY114: 780.90255 | BZ114: -3883.82436 | CA114: 1267.21151 | CC114: 207.53495 | CD114: -51.68012 | CE114: 828.38907 | CF114: 5138.14028 | CG114: 3216.0606 | CH114: 1476.58169 | CI114: 445.49799 | CJ114: 22.5 | CL114: 35 | CM114: 1196 | CO114: 42.31723152 | CP114: 99.44454046 | CQ114: -4006.345226 | CU114: 16.67837592 | CV114: 5882.091154 | CW114: 221.1001615 | CX114: 9710.365008 | CY114: 2510.54179 | CZ114: 1503.80967 | DA114: 11121.75679 | DB114: -9617.94712 | DC114: 5530.52536 | DD114: 5050.248 | DG114: -0.95528 | DH114: -127.72481 | DI114: 834.14615 | DJ114: 9.68014 | DK114: 0 | DL114: 0 | DM114: 824.46601 | DN114: 0 | DO114: 0 | DP114: 0 | DQ114: 824.46601 | DR114: -3054.30782 | DS114: 846.30091 | DU114: 14.90351 | DV114: 0 | DW114: 563.14765 | DX114: 5530.52536 | DY114: 3605.27879 | DZ114: 1434.90043 | EA114: 490.34614 | EB114: 22.5 | ED114: 66 | EE114: 6808 | EF114: 6856.10306 | EG114: 7502.16078 | EH114: 180 | EK114: -114 | EL114: 0 | EM114: 20 | EN114: -497.13571 | EO114: 26.77 | EP114: 31.54327 | EQ114: -341.34726 | ER114: 0 | ES114: 58.194 | ET114: 0 | EU114: 2200 | EV114: 0 | EW114: -1500 | EX114: 0 | EY114: -800 | EZ114: 13052 | FA114: 52 | FB114: 13000 | FC114: 527 | FD114: 11500 | FE114: 0 | FF114: 11500 | FG114: 0 | FH114: 10700 | FI114: 0 | FJ114: 10700 | FK114: 308.04055 | FL114: 15223.60248 | FM114: 14562.72347 | FN114: 14223.2402 | FO114: 160.2346129 | FP114: 133.9754288 | FV114: 927.7805844
A115: 316 | B115: Kärkölä | C115: 4326 | E115: 9.197979798 | F115: 63.40740741 | G115: -2675.913084 | K115: 47.44051517 | L115: 1247.803976 | M115: 66.7254809 | N115: 6825.705039 | O115: 6136 | P115: 2619 | Q115: 25339 | R115: -22720 | S115: 17244 | T115: 9837 | W115: 29 | X115: 133 | Y115: 4523 | Z115: 1071 | AA115: 0 | AB115: 0 | AC115: 3452 | AD115: 0 | AE115: 0 | AF115: 0 | AG115: 3452 | AH115: 6917 | AI115: 4510 | AK115: -1358 | AL115: -465 | AM115: 1444 | AN115: 17244 | AO115: 15411 | AP115: 837 | AQ115: 996 | AR115: 22 | AT115: 25.81617647 | AU115: 4245 | AW115: 62.47754021 | AX115: 80.5612917 | AY115: -4677.400528 | BC115: 42.89829899 | BD115: 365.9744287 | BE115: 15.2684536 | BF115: 8748.801289 | BG115: 6601.58556 | BH115: 2974.00208 | BI115: 27324.10008 | BJ115: -24350.098 | BK115: 16957.37902 | BL115: 8738.095 | BO115: 4.59779 | BP115: 88.94552 | BQ115: 1438.91933 | BR115: 1081.67375 | BS115: 0 | BT115: 0 | BU115: 357.24558 | BV115: 0 | BW115: 0 | BX115: 0 | BY115: 357.24558 | BZ115: 7226.52081 | CA115: 1438.91933 | CC115: 171.04218 | CD115: 0 | CE115: -8313.42004 | CF115: 16957.37902 | CG115: 14745.41784 | CH115: 1113.53611 | CI115: 1098.42507 | CJ115: 22 | CL115: 241 | CM115: 4198 | CO115: 1.092156175 | CP115: 81.2489107 | CQ115: -5380.050238 | CU115: 40.96960158 | CV115: 301.7504026 | CW115: 13.71854644 | CX115: 8028.466968 | CY115: 6962.23445 | CZ115: 3144.55503 | DA115: 29463.80308 | DB115: -26319.24805 | DC115: 18087.77107 | DD115: 9327.493 | DG115: -70.61958 | DH115: 145.24146 | DI115: 1170.6379 | DJ115: 1268.44444 | DK115: 0 | DL115: 0 | DM115: -97.80654 | DN115: 0 | DO115: 0 | DP115: 0 | DQ115: -97.80654 | DR115: 7100.17027 | DS115: 1155.95545 | DU115: 722.19354 | DV115: -1064.923 | DW115: -2984.48241 | DX115: 18087.77107 | DY115: 15857.82611 | DZ115: 1004.37111 | EA115: 1225.57385 | EB115: 22 | ED115: 223 | EE115: 16865 | EF115: 18080.59621 | EG115: 20178.40447 | EK115: -3682 | EL115: 600 | EM115: 16 | EN115: -9755.5015 | EO115: 0 | EP115: 3.16213 | EQ115: -4155.16286 | ER115: 0 | ES115: 14.725 | ET115: 6000 | EU115: -7000 | EV115: 7500 | EW115: -4064.923 | EX115: 0 | EY115: 3050 | EZ115: 16229 | FA115: 12164 | FB115: 4065 | FC115: 3434 | FD115: 19664.052 | FE115: 15149.129 | FF115: 4514.923 | FG115: 3331.112 | FH115: 21649.129 | FI115: 13634.206 | FJ115: 8014.923 | FK115: 3034 | FL115: 4074.895978 | FM115: 5290.943006 | FN115: 6034.626022 | FO115: 720.8102777 | FP115: 171.7032582 | FV115: 338.96804
A116: 317 | B116: Kärsämäki | C116: 2538 | E116: 1.865092749 | F116: 66.39988567 | G116: -1016.548463 | K116: 51.76600823 | L116: 4182.821119 | M116: 177.0222486 | N116: 8624.507486 | O116: 5482 | P116: 1910 | Q116: 19697 | R116: -17787 | S116: 7023 | T116: 12058 | W116: -54 | X116: 907 | Y116: 2147 | Z116: 719 | AA116: 0 | AB116: 0 | AC116: 1428 | AD116: 0 | AE116: 55 | AF116: 0 | AG116: 1484 | AH116: 7821 | AI116: 2119 | AK116: 59 | AL116: -1121 | AM116: 1360 | AN116: 7023 | AO116: 5788 | AP116: 702 | AQ116: 533 | AR116: 21.5 | AT116: 71.14705882 | AU116: 2533 | AW116: 2.775960844 | AX116: 60.88076378 | AY116: -562.4145756 | BC116: 54.95718832 | BD116: 4264.075871 | BE116: 183.7704735 | BF116: 8469.193462 | BG116: 5730.36012 | BH116: 2047.82606 | BI116: 20536.84705 | BJ116: -18489.02099 | BK116: 8035.74455 | BL116: 11860.191 | BO116: -36.01326 | BP116: 778.06434 | BQ116: 2148.96564 | BR116: 807.26023 | BS116: 0 | BT116: 0 | BU116: 1341.70541 | BV116: 0 | BW116: -53.83409 | BX116: 0 | BY116: 1395.5395 | BZ116: 9215.8636 | CA116: 2146.99295 | CC116: -392.80433 | CD116: -738.576 | CE116: 1201.24821 | CF116: 8035.74455 | CG116: 6313.2459 | CH116: 1134.6038 | CI116: 587.89485 | CJ116: 21.5 | CL116: 47 | CM116: 2474 | CO116: 2.249106828 | CP116: 54.13184981 | CQ116: -623.419903 | CU116: 57.62060873 | CV116: 4086.25483 | CW116: 155.111556 | CX116: 9615.550586 | CY116: 5874.67637 | CZ116: 2085.72345 | DA116: 21142.929 | DB116: -19057.20555 | DC116: 8720.43572 | DD116: 12452.348 | DG116: -52.7127 | DH116: -325.31837 | DI116: 1737.5471 | DJ116: 806.38008 | DK116: 0 | DL116: 0 | DM116: 931.16702 | DN116: 0 | DO116: -42.27108 | DP116: 0 | DQ116: 973.4381 | DR116: 10144.16344 | DS116: 1644.97098 | DU116: 195.50449 | DV116: -738.576 | DW116: 545.69307 | DX116: 8720.43572 | DY116: 6797.78017 | DZ116: 1271.05985 | EA116: 651.5957 | EB116: 21.5 | ED116: 64 | EE116: 12478 | EF116: 13052.01127 | EG116: 13324.54668 | EK116: -802 | EL116: 0 | EM116: 43 | EN116: -1211.36974 | EO116: 256 | EP116: 9.625 | EQ116: -1484.60891 | ER116: 238 | ES116: 147.331 | ET116: 3950 | EU116: -3500 | EV116: 0 | EW116: -300 | EX116: 0 | EY116: -200 | EZ116: 11774 | FA116: 10035 | FB116: 1739 | FC116: 1435 | FD116: 10335.412 | FE116: 8896.836 | FF116: 1438.576 | FG116: 139 | FH116: 9396.836 | FI116: 8158.26 | FJ116: 1238.576 | FK116: 2096.6 | FL116: 8774.62569 | FM116: 9703.505093 | FN116: 10521.0727 | FO116: 316.1758219 | FP116: 127.799443 | FV116: 848.3875405
A117: 398 | B117: Lahti | C117: 119984 | E117: 2.004780846 | F117: 112.1207732 | G117: -6248.058074 | K117: 39.42273179 | L117: 606.7892386 | M117: 29.33834821 | N117: 7549.098213 | O117: 163827 | P117: 88073 | Q117: 756311 | R117: -668238 | S117: 504619 | T117: 243834 | W117: -3482 | X117: 16154 | Y117: 92887 | Z117: 50704 | AA117: 0 | AB117: 0 | AC117: 42183 | AD117: 273 | AE117: 0 | AF117: -136 | AG117: 42320 | AH117: 173724 | AI117: 93281 | AK117: -30959 | AL117: -40345 | AM117: 9338 | AN117: 504619 | AO117: 434333 | AP117: 32227 | AQ117: 38059 | AR117: 20.75 | AT117: 97.33823529 | AU117: 120027 | AW117: 2.074690485 | AX117: 105.6015568 | AY117: -5530.809077 | BC117: 41.33034846 | BD117: 1293.60917 | BE117: 62.79879963 | BF117: 7518.732042 | BG117: 173080.1385 | BH117: 116313.5646 | BI117: 791493.9567 | BJ117: -675180.3921 | BK117: 519177.3487 | BL117: 224004.155 | BO117: -3682.29469 | BP117: 15922.73914 | BQ117: 80241.55606 | BR117: 52268.53426 | BS117: 0 | BT117: 0 | BU117: 27973.0218 | BV117: -212.29069 | BW117: 10000 | BX117: 138.8588 | BY117: 18046.45369 | BZ117: 190728.6497 | CA117: 53942.77207 | CC117: 26820.76964 | CD117: -32650 | CE117: 44970.07401 | CF117: 519177.3487 | CG117: 431589.1244 | CH117: 45619.22819 | CI117: 41968.99616 | CJ117: 20.75 | CL117: 92 | CM117: 120175 | CO117: 2.113342831 | CP117: 96.294646 | CQ117: -4747.30475 | CU117: 42.98897703 | CV117: 2280.457304 | CW117: 106.1513141 | CX117: 7841.324653 | CY117: 177779.1623 | CZ117: 147266.4712 | DA117: 842396.4592 | DB117: -695129.988 | DC117: 545067.5614 | DD117: 245733.054 | DG117: -3393.95541 | DH117: 7690.43196 | DI117: 99967.10397 | DJ117: 52848.74457 | DK117: 0 | DL117: 0 | DM117: 47118.3594 | DN117: -139.88024 | DO117: 20000 | DP117: 173.60271 | DQ117: 27084.63693 | DR117: 213059.9653 | DS117: 42347.82183 | DU117: 29679.28286 | DV117: -41200 | DW117: 58725.92088 | DX117: 545067.5614 | DY117: 452477.2515 | DZ117: 48348.78249 | EA117: 44241.52738 | EB117: 20.75 | ED117: 47 | EE117: 504647 | EF117: 533010.341 | EG117: 577026.8268 | EK117: -94469 | EL117: 1304 | EM117: 9222 | EN117: -69188.39248 | EO117: 2986.78951 | EP117: 57228.90491 | EQ117: -87542.89062 | ER117: 2681.21962 | ES117: 101239.77 | ET117: 60000 | EU117: 12264 | EV117: 0 | EW117: 487.76235 | EX117: 0 | EY117: 13200.59413 | EZ117: 873709 | FA117: 792120 | FB117: 81589 | FC117: 433734 | FD117: 841546.5787 | FE117: 754920 | FF117: 86626.57873 | FG117: 288948.863 | FH117: 813547.1729 | FI117: 679020 | FJ117: 134527.1729 | FK117: 350764.9406 | FL117: 10364.06521 | FM117: 10330.21215 | FN117: 10266.62762 | FO117: 21806.1326 | FP117: 181.4531525 | FV117: 668.5292148
